Workbook

Sheet Read Me first
A1: Financial Planning Template version 2 (Dec. 2014)
A3: This template can be used to create your own financial plan
A4: Features
A5: 1. Life insurance calculator with action plan for nominee
A6: 2. Retirement planner that allows you take into account rental income and pension
A7: 3. Non-recurring financial goal planner (5 goals). Examples are Childrens education, marriage, business goals
A8: 4. Recurring financial goal planner (2 goals). These could be goals occuring once a year, twice a year or any other frequency.
A9: 5. The cash flow summary shows your salary and TOTAL monthly investment required for each year with probability of achieving financial goals
A10: 6.Detailed cash flow chart shows the detailed cash flow analys for each year
A11: 7. One page report which summarises all the results
A13: Comments and suggestions welcome | E13: pattu@iitm.ac.in
A14: Download more financial calculators and analysis tools from: | G14: Freefincal.com

Sheet Life Insurance Calculator
A1: Comprehensive Child Planner
A2: Fill only cells in green
A3: Monthly income your family will need to meet expenses in your absence | B3: 0
A4: How long would this income be needed | B4: 0
A5: If spouse is unemployed but can work choose a comfortable no of years. You could also decrease the monthly income needed a little
A6: If spouse is uneducated this will be for likely lifetime of spouse
A7: If spouse is employed and can manage independently its upto you
A8: Annual Inflation in monthly expenses | B8: 0.1 | C8: monthly income will increase annually at this rate (inflation-indexed income)
A9: Return expected when part of the insurance sum is invested to meet expenses | B9: 0.09
A10: Current life insurance cover | B10: 0
A11: Assets your family can use to generate some income | B11: 0 | C11: Don’t include anything you don’t want them sell
A12: Current liabilities (personal loan, credit card debt) | B12: 0 | C12: If you have separate cover for home loan you don’t need to include that
A13: Provide for your childrens schooling
A14: Annual amount needed for your first childs school education
A15: inflation rate on this amount | B15: 0.1
A16: Years you will need this amount for (until child enters 12th grade) | B16: 0 | C16: So child enters college 1 year later. Enter this carefully as it will influence the college fund goal
A18: Annual amount needed for your second childs school education | B18: 0 | C18: Set zero if not relevant
A19: inflation rate on this amount | B19: 0
A20: Years you will need this amount for (until child enters 12th grade) | B20: 0 | C20: So child enters college 1 year later. Enter this carefully as it will influence the college fund goal
A21: Return expected if part of the insurance sum is invested to meet school expenses | B21: 0.09
A22: Provide for your childrens college education
A23: Amount needed for first child's college expenses (current amt) | B23: 0 | C23: Set zero if not relevant
A24: Amount needed for second child's college expenses (current amt) | B24: 0 | C24: Set zero if not relevant
A25: inflation rate on this amount (use at least 10%) | B25: 0.1
A26: Return expected if part of the insurance sum is invested to meet college expenses | B26: 0.09
A27: Provide for your childrens marriage | C27: insurance will be calculated with and wihout incl. marriage expenses
A28: Amount needed for first child's marriage (current amt) | B28: 0 | C28: Set zero if not relevant
A29: No of years to goal | B29: 0
A30: Amount needed for second child's marriage (current amt) | B30: 0 | C30: Set zero if not relevant
A31: No of years to goal | B31: 0
A32: inflation rate on this amount (use at least 10%) | B32: 0.1
A33: Return expected if part of the insurance sum is invested to meet marriage expenses | B33: 0.09
A35: Insurance amount breakup (to be seen and understood by nominee and legal heirs) | C35: Action Plan | D35: Please create a WILL incorporating an action plan like this.
A36: (A) Sum required to generate an inflation indexed monthly income | B36: =PV((1+B9)/(1+B8)-1,B4,-B3*12,,1) -> 0 | C36: to be invested to provided annual interest at beginning of each year
A37: (B) Sum required to clear your liabilities | B37: =B12 -> 0 | C37: to be cleared immediately
A38: (C) Sum required to meet inflation indexed school expenses for children | B38: =PV((1+B21)/(1+B15)-1,B16,-B14,,1)+PV((1+B21)/(1+B19)-1,B20,-B18,,1) -> 0 | C38: to be invested to provided annual interest at beginning of each year
A39: (D) Sum to be invested for first childs college education | B39: =B23*(1+B25)^(B16+1)/(1+B26)^(B16+1) -> 0 | C39: to be invested in a mix of equity and debt to get a corpus for college fees
A40: (E) Sum to be invested for second childs college education | B40: =B24*(1+B25)^(B20+1)/(1+B26)^(B20+1) -> 0 | C40: to be invested in a mix of equity and debt to get a corpus for college fees
A41: (F) Sum to be invested for first childs marriage | B41: =B28*(1+B32)^(B29)/(1+B33)^(B29) -> 0 | C41: to be invested in a mix of equity and debt to get a corpus for marriage
A42: (G) Sum to be invested for second child's marriage | B42: =B30*(1+B32)^(B31)/(1+B33)^(B31) -> 0 | C42: to be invested in a mix of equity and debt to get a corpus for marriage
A43: (H) Usable assets will be subtracted from sum of above two quantities | B43: =B11 -> 0 | C43: to be liquidated immediately
A45: So net insurance required (A+B+C+D+E+F+G -H) | B45: =SUM(B36:B42)-B43 -> 0 | C45: or | D45: =B45/100000 -> 0 | E45: lakhs | F45: Choose a close round figure
A46: or net insurance excluding both childrens marriage expenses | B46: =SUM(B36:B40)-B43 -> 0 | C46: or | D46: =B46/100000 -> 0 | E46: lakhs
A47: or net insurance excluding 1st childs marriage expenses | B47: =SUM(B36:B40)-B43+B42 -> 0 | C47: or | D47: =B47/100000 -> 0 | E47: lakhs
A48: or net insurance excluding 2nd childs marriage expenses | B48: =SUM(B36:B40)-B43+B41 -> 0 | C48: or | D48: =B48/100000 -> 0 | E48: lakhs

Sheet Retirement
A1: Retirement Planner (Fill only cells in green) | S1: effective inflation calculation | Y1: =B5-age+y -> 2064 | BE1: 0 | BF1: 0
A2: Current year (assume plan is done in Jan 2014) | B2: =YEAR(TODAY()) -> 2014 | D2: Current post-tax Monthly Salary * | E2: 100000 | G2: Annual increase of monthly salary | J2: 0.1 | S2: income | T2: =(IF(eryear1=B5-age+y,passiver,0))*(1+IF(eryear1=B5-age+y,incpr,0))^(B5-age)+(IF(eryear2=B5-age+y,passiver1,0))*(1+IF(eryear2=B5-age+y,incpr1,0))^(B5-age) -> 0 | W2: =IF(eryear1=B5-age+y,passiver,IF(eryear2=B5-age+y,passiver1,0))*(1+IF(eryear1=B5-age+y,incpr,IF(eryear2=B5-age+y,incpr1,0)))^(rety-y) -> 0 | Y2: =rety -> 2039 | BE2: 0.103 | BF2: 1
A3: Age (end of current year) | B3: 40 | D3: Exclude tax and misc. deductions but include EPF contribution | S3: expense | T3: ='Detailed Cash Flow Chart'!AY1 -> 2416619.402 | Y3: =Y1-Y2 -> 25 | BE3: 0.206
A4: Year of retirement | B4: 2039 | D4: Other sources of income like rent, business | G4: Start year | H4: End Year | I4: =CONCATENATE("Ensure end dates are on or before ",rety) -> Ensure end dates are on or before 2039 | T4: =IF(T2>T3,0,T3-T2) -> 2416619.402 | U4: =T4/(1+inf)^Y3 -> 280250.1215 | BE4: 0.309
A5: Life expectancy * | B5: 90 | D5: 1st source of income before retirement (current value) | G5: 2013 | H5: 2020 | I5: annual increase | J5: 0.12
A6: * life expectancy of younger spouse if married | D6: 2nd source of income before retirement (current value) | G6: 2013 | H6: 2020 | I6: annual increase | J6: 0.05
A7: Current monthly expenses | B7: 30000 | W7: =eryear1-B5-age+y -> 3948
A8: Other Annual expenses | B8: 30000 | D8: Other sources of income like rent, business, govt pension etc. | G8: Start year | H8: End Year | I8: =CONCATENATE("Ensure start dates are after ",rety) -> Ensure start dates are after 2039 | S8: =IF(eryear1=B5-age+y,passiver,IF(eryear2=B5-age+y,passiver1,0)) -> 0 | W8: =eryear1-B5-age+y -> 3948
A9: Expected inflation upto retirement | B9: 0.09 | D9: 1st sources of income after retirement (current value) | G9: 2021 | H9: =B5-age+y -> 2064 | I9: annual increase
A10: Expected inflation after retirement | B10: 0.09 | D10: 2nd source of income after retirement (current value) | G10: 2021 | H10: =B5-age+y -> 2064 | I10: annual increase | T10: =IF(eryear1=B5-age+y,incpr,0)+IF(eryear2=B5-age+y,incpr1,0) -> 0 | W10: =(IF(eryear1=B5-age+y,passiver,0)) -> 0
A11: Anticipated post-retirement rate of interest (post-tax) | B11: 0.07 | W11: =(1+IF(eryear1=B5-age+y,incpr,0))^(B5-age) -> 1
A12: Net rate of interest (pre-retirement) (post-tax)# | B12: 0.09 | D12: Home loan EMI amount (if any). (get of other emis first!) | E12: 55000 | G12: 2013 | H12: 2030 | I12: enter current as start year if loan is ongoing
A13: Amount invested so far (end of current year) | B13: 5000000 | T13: =IF(eryear2=B5-age+y,passiver1,0) -> 0
A14: rate of interest for this amount (post-tax) | B14: 0.09 | D14: No of years you expect to work | E14: =B4-y-1 -> 24 | G14: Post-tax monthly pension in 1st year of retirement | J14: =(E17)*(1+preinf)^(wy+1) -> 280250.1215
A15: Annual increase in monthly investment | B15: 0.1 | D15: Estimated years in retirement | E15: =B5-age-wy -> 26 | G15: =CONCATENATE("Corpus required for funding retirement for ",k," years") -> Corpus required for funding retirement for 26 years | J15: =PV((1+retroi)/(1+inf)-1,k,-U4*12,,1) -> 111279551.8 | L15: =IF(corptax=0,"congratulations! You do not need a pension since your income from other sources is enough to cover your expenses","") -> 
A16: # I will use about 8-9% for a 60:40 equity:debt portfolio. | D16: When you retire amt invested so far will grow to | E16: =B13*(1+B14)^(wy) -> 39555415.87 | G16: Initial monthly investment required = | J16: =IF(IF(B15=B12,(J15-E16)/(12*wy*(1+B12)^wy),(J15-E16)*(B12-B15)/(12*(1+B12)*((1+B12)^(wy)-(1+B15)^(wy))))<0,"none",IF(B15=B12,(J15-E16)/(12*wy*(1+B12)^wy),(J15-E16)*(B12-B15)/(12*(1+B12)*((1+B12)^(wy)-(1+B15)^(wy))))) -> 28285.13678 | L16: =IF(corptax=0,"please ignore the retirement coprus graph below. It is not relevant to you","") ->  | T16: =B5-age+y -> 2064
A17: Contact me if you need some help in this regard. | D17: Current expenses per month (annual/12) | E17: =(B7+(B8/12)) -> 32500 | G17: Excess amount available for other needs | J17: =IF(E16-corptax<0,"none",E16-corptax) -> none
G19: Investments are assumed to start from next year

Sheet Financial Goals (recurring)
A1: Recurring Goal 1 (enter name below) | E1: Recurring Goal 1 | J1: Recurring Goal 2 (enter name below) | N1: Recurring Goal 2 | V1: 2
A2: Vacation | D2: year when | E2: Year when | F2: Redemption | G2: future value | H2: Monthy investment required | J2: Medical test | M2: year when | N2: Year when | O2: Redemption | P2: future value | Q2: Monthy investment required | V2: 3
A3: Priority @ | B3: 6 | D3: invest. Starts | E3: sum required | F3: number | H3: =CONCATENATE(B6," year(s) before redemption") -> 2 year(s) before redemption | J3: Priority | K3: 7 | M3: invest. Starts | N3: sum required | O3: number | Q3: =CONCATENATE(K6," year(s) before redemption") -> 2 year(s) before redemption | V3: 4
A4: =CONCATENATE("How many years from ",Retirement!B2," will the recurring") -> How many years from 2014 will the recurring | B4: 1 | D4: =IF(F4="","",Retirement!$B$2+($B$4)) -> 2015 | E4: =IF(F4="","",Retirement!$B$2+($B$4+$B$6*F4)) -> 2017 | F4: 1 | G4: =IF(F4="","",$B$8*(1+infgr)^($B$4+$B$6*F4)) -> 0 | H4: =IF(F4="","",IF(typegr1=1,(G4)*($B$10-$B$11+0.00001%)/((12*((1+$B$10)^($B$6)-(1+$B$11-0.00001%)^($B$6)))*(1+$B$10)), (G4)*($B$10-$B$11+0.00001%)/((12*((1+$B$10)^($B$6)-(1+$B$11-0.00001%)^($B$6)))))) -> 0 | J4: How many years from now will the recurring | K4: 3 | M4: =IF(O4="","",Retirement!$B$2+($K$4)) -> 2017 | N4: =IF(O4="","",Retirement!$B$2+($K$4+$K$6*O4)) -> 2019 | O4: 1 | P4: =IF(O4="","",$K$8*(1+$K$9)^($K$4+$K$6*O4)) -> 0 | Q4: =IF(O4="","",IF($K$12=1,(P4)*($K$10-$K$11+0.00001%)/((12*((1+$K$10)^($K$6)-(1+$K$11-0.00001%)^($K$6)))*(1+$K$10)), (P4)*($K$10-$K$11+0.00001%)/((12*((1+$K$10)^($K$6)-(1+$K$11-0.00001%)^($K$6)))))) -> 0 | V4: 5
A5: goal start | D5: =IF(F5="","",D4+$B$6) -> 2017 | E5: =IF(F5="","",Retirement!$B$2+($B$4+$B$6*F5)) -> 2019 | F5: =IF(F4<ROUND($B$7/$B$6,0),F4+1,"") -> 2 | G5: 0 | H5: 0 | J5: goal start | M5: =IF(O5="","",M4+$K$6) -> 2019 | N5: =IF(O5="","",Retirement!$B$2+($K$4+$K$6*O5)) -> 2021 | O5: =IF(O4<ROUND($K$7/$K$6,0),O4+1,"") -> 2 | P5: 0 | Q5: 0 | V5: 6
A6: Frequency of the recurring goal (years) | B6: 2 | D6: 2019 | E6: =IF(F6="","",Retirement!$B$2+($B$4+$B$6*F6)) -> 2021 | F6: 3 | G6: 0 | H6: 0 | J6: Frequency of the recurring goal (years) | K6: 2 | M6: 2021 | N6: =IF(O6="","",Retirement!$B$2+($K$4+$K$6*O6)) -> 2023 | O6: 3 | P6: 0 | Q6: 0 | V6: 7
A7: How long do you need to plan for this goal (y) | B7: 30 | D7: 2021 | E7: =IF(F7="","",Retirement!$B$2+($B$4+$B$6*F7)) -> 2023 | F7: 4 | G7: 0 | H7: 0 | J7: How long do you need to plan for this goal | K7: 26 | M7: 2023 | N7: =IF(O7="","",Retirement!$B$2+($K$4+$K$6*O7)) -> 2025 | O7: 4 | P7: 0 | Q7: 0
A8: Present cost | D8: 2023 | E8: =IF(F8="","",Retirement!$B$2+($B$4+$B$6*F8)) -> 2025 | F8: 5 | G8: 0 | H8: 0 | J8: Present cost | M8: 2025 | N8: =IF(O8="","",Retirement!$B$2+($K$4+$K$6*O8)) -> 2027 | O8: 5 | P8: 0 | Q8: 0
A9: inflation | B9: 0.1 | D9: 2025 | E9: =IF(F9="","",Retirement!$B$2+($B$4+$B$6*F9)) -> 2027 | F9: 6 | G9: 0 | H9: 0 | J9: inflation | K9: 0.1 | M9: 2027 | N9: =IF(O9="","",Retirement!$B$2+($K$4+$K$6*O9)) -> 2029 | O9: 6 | P9: 0 | Q9: 0
A10: Net rate of return (post-tax) | B10: 0.1 | D10: 2027 | E10: =IF(F10="","",Retirement!$B$2+($B$4+$B$6*F10)) -> 2029 | F10: 7 | G10: 0 | H10: 0 | J10: Net rate of return (post-tax) | K10: 0.1 | M10: 2029 | N10: =IF(O10="","",Retirement!$B$2+($K$4+$K$6*O10)) -> 2031 | O10: 7 | P10: 0 | Q10: 0
A11: Annual inc. in monthly invest. % | B11: 0.1 | D11: 2029 | E11: =IF(F11="","",Retirement!$B$2+($B$4+$B$6*F11)) -> 2031 | F11: 8 | G11: 0 | H11: 0 | J11: Annual inc. in monthly invest. % | K11: 0.1 | M11: 2031 | N11: =IF(O11="","",Retirement!$B$2+($K$4+$K$6*O11)) -> 2033 | O11: 8 | P11: 0 | Q11: 0
A12: When investment are made (see note 1) | B12: 1 | D12: 2031 | E12: =IF(F12="","",Retirement!$B$2+($B$4+$B$6*F12)) -> 2033 | F12: 9 | G12: 0 | H12: 0 | J12: When investment are made (see note 1) | K12: 1 | M12: 2033 | N12: =IF(O12="","",Retirement!$B$2+($K$4+$K$6*O12)) -> 2035 | O12: 9 | P12: 0 | Q12: 0
D13: 2033 | E13: =IF(F13="","",Retirement!$B$2+($B$4+$B$6*F13)) -> 2035 | F13: 10 | G13: 0 | H13: 0 | M13: 2035 | N13: =IF(O13="","",Retirement!$B$2+($K$4+$K$6*O13)) -> 2037 | O13: 10 | P13: 0 | Q13: 0
D14: 2035 | E14: =IF(F14="","",Retirement!$B$2+($B$4+$B$6*F14)) -> 2037 | F14: 11 | G14: 0 | H14: 0 | M14: 2037 | N14: =IF(O14="","",Retirement!$B$2+($K$4+$K$6*O14)) -> 2039 | O14: 11 | P14: 0 | Q14: 0
D15: 2037 | E15: =IF(F15="","",Retirement!$B$2+($B$4+$B$6*F15)) -> 2039 | F15: 12 | G15: 0 | H15: 0 | M15: 2039 | N15: =IF(O15="","",Retirement!$B$2+($K$4+$K$6*O15)) -> 2041 | O15: 12 | P15: 0 | Q15: 0
D16: 2039 | E16: =IF(F16="","",Retirement!$B$2+($B$4+$B$6*F16)) -> 2041 | F16: 13 | G16: 0 | H16: 0 | M16: 2041 | N16: =IF(O16="","",Retirement!$B$2+($K$4+$K$6*O16)) -> 2043 | O16: 13 | P16: 0 | Q16: 0
D17: 2041 | E17: =IF(F17="","",Retirement!$B$2+($B$4+$B$6*F17)) -> 2043 | F17: 14 | G17: 0 | H17: 0 | N17: =IF(O17="","",Retirement!$B$2+($K$4+$K$6*O17)) -> 
D18: 2043 | E18: =IF(F18="","",Retirement!$B$2+($B$4+$B$6*F18)) -> 2045 | F18: 15 | G18: 0 | H18: 0 | N18: =IF(O18="","",Retirement!$B$2+($K$4+$K$6*O18)) -> 
E19: =IF(F19="","",Retirement!$B$2+($B$4+$B$6*F19)) ->  | N19: =IF(O19="","",Retirement!$B$2+($K$4+$K$6*O19)) -> 
E20: =IF(F20="","",Retirement!$B$2+($B$4+$B$6*F20)) ->  | N20: =IF(O20="","",Retirement!$B$2+($K$4+$K$6*O20)) -> 
E21: =IF(F21="","",Retirement!$B$2+($B$4+$B$6*F21)) ->  | N21: =IF(O21="","",Retirement!$B$2+($K$4+$K$6*O21)) -> 
E22: =IF(F22="","",Retirement!$B$2+($B$4+$B$6*F22)) ->  | N22: =IF(O22="","",Retirement!$B$2+($K$4+$K$6*O22)) -> 
E23: =IF(F23="","",Retirement!$B$2+($B$4+$B$6*F23)) ->  | N23: =IF(O23="","",Retirement!$B$2+($K$4+$K$6*O23)) -> 
E24: =IF(F24="","",Retirement!$B$2+($B$4+$B$6*F24)) ->  | N24: =IF(O24="","",Retirement!$B$2+($K$4+$K$6*O24)) -> 
E25: =IF(F25="","",Retirement!$B$2+($B$4+$B$6*F25)) ->  | N25: =IF(O25="","",Retirement!$B$2+($K$4+$K$6*O25)) -> 
E26: =IF(F26="","",Retirement!$B$2+($B$4+$B$6*F26)) ->  | N26: =IF(O26="","",Retirement!$B$2+($K$4+$K$6*O26)) -> 
E27: =IF(F27="","",Retirement!$B$2+($B$4+$B$6*F27)) ->  | N27: =IF(O27="","",Retirement!$B$2+($K$4+$K$6*O27)) -> 
E28: =IF(F28="","",Retirement!$B$2+($B$4+$B$6*F28)) ->  | N28: =IF(O28="","",Retirement!$B$2+($K$4+$K$6*O28)) -> 
E29: =IF(F29="","",Retirement!$B$2+($B$4+$B$6*F29)) ->  | N29: =IF(O29="","",Retirement!$B$2+($K$4+$K$6*O29)) -> 
E30: =IF(F30="","",Retirement!$B$2+($B$4+$B$6*F30)) ->  | N30: =IF(O30="","",Retirement!$B$2+($K$4+$K$6*O30)) -> 
E31: =IF(F31="","",Retirement!$B$2+($B$4+$B$6*F31)) ->  | N31: =IF(O31="","",Retirement!$B$2+($K$4+$K$6*O31)) -> 
E32: =IF(F32="","",Retirement!$B$2+($B$4+$B$6*F32)) ->  | N32: =IF(O32="","",Retirement!$B$2+($K$4+$K$6*O32)) -> 
E33: =IF(F33="","",Retirement!$B$2+($B$4+$B$6*F33)) ->  | N33: =IF(O33="","",Retirement!$B$2+($K$4+$K$6*O33)) -> 
E34: =IF(F34="","",Retirement!$B$2+($B$4+$B$6*F34)) ->  | N34: =IF(O34="","",Retirement!$B$2+($K$4+$K$6*O34)) -> 

Sheet Financial Goals (non-recurring)
A1: Non-recurring goals (Fill only cells in green) | M1: 0 | Q1: 2
A2: Priority (retirement is always no 1) | B2: More than one goal can have the same priority. From left to right, arrange goals in terms of | Q2: 3
B3: decreasing . That is 3 is less important than 2 but more important than 4. | M3: 1 | Q3: 4
B4: 3 | D4: 3 | F4: 2 | H4: 4 | J4: 5 | Q4: 5
A5: Goal Name | B5: Abhay's Education | D5: XYZ education | F5: Abhay's Marriage | H5: XYZ marriage | J5: Goal 5 | Q5: 6
A6: Date when money is required | B6: 2027-03-01 | D6: 2029-03-01 | F6: 2032-01-01 | H6: 2019-03-01 | J6: 2029-05-01 | Q6: 7
A7: Date when you will start investments | B7: 2014-03-01 | D7: 2014-06-01 | F7: 2013-12-01 | H7: 2015-03-01 | J7: 2019-07-01
A8: Years available for investment (rounded off) | B8: =INT((B6-B7)/365) -> 13 | C8: 1 | D8: =INT((D6-D7)/365) -> 14 | F8: =INT((F6-F7)/365) -> 18 | H8: =INT((H6-H7)/365) -> 4 | J8: =INT((J6-J7)/365) -> 9
A9: Present cost (as on date) | B9: 2500000 | D9: 2500000 | F9: 1500000 | H9: 1500000 | J9: 0
A10: inflation | B10: 0.1 | D10: 0.1 | F10: 0.12 | H10: 0.1 | J10: 0.1
A11: Net rate of return (post-tax) | B11: 0.1 | D11: 0.1 | F11: 0.12 | H11: 0.1 | J11: 0.1
A12: Amt invested so far | B12: 0 | D12: 0 | F12: 0 | H12: 0 | J12: 0
A13: RoI of current invest. | B13: 0 | D13: 0 | F13: 0 | H13: 0 | J13: 0
A14: Annual inc. in monthly invest. % | B14: 0.1 | D14: 0.1 | F14: 0 | H14: 0 | J14: 0
A15: When investment are made ** | B15: 1 | D15: 0 | F15: 0 | H15: 1 | J15: 0
A16: Future Cost | B16: =B9*(1+B10)^((B6-TODAY())/365) -> 8034744.124 | D16: =D9*(1+D10)^((D6-TODAY())/365) -> 9724579.378 | F16: =F9*(1+F10)^((F6-TODAY())/365) -> 10405129.58 | H16: =H9*(1+H10)^((H6-TODAY())/365) -> 2247786.252 | J16: =J9*(1+J10)^((J6-TODAY())/365) -> 0
A17: Future value of curr. Inv. | B17: =B12*(1+B13)^((B6-TODAY())/365) -> 0 | D17: =D12*(1+D13)^((D6-TODAY())/365) -> 0 | F17: =F12*(1+F13)^((F6-TODAY())/365) -> 0 | H17: =H12*(1+H13)^((H6-TODAY())/365) -> 0 | J17: =J12*(1+J13)^((J6-TODAY())/365) -> 0
A18: initial mon. invest. reqd. when investments start | B18: =IF(B15=1,(B16-B17)*(B11-B14+0.00001%)/((12*((1+B11)^(B8)-(1+B14-0.00001%)^(B8)))*(1+B11)), (B16-B17)*(B11-B14+0.00001%)/((12*((1+B11)^(B8)-(1+B14-0.00001%)^(B8))))) -> 14919.10539 | D18: =IF(D15=1,(D16-D17)*(D11-D14+0.00001%)/((12*((1+D11)^(D8)-(1+D14-0.00001%)^(D8)))*(1+D11)), (D16-D17)*(D11-D14+0.00001%)/((12*((1+D11)^(D8)-(1+D14-0.00001%)^(D8))))) -> 16767.05902 | F18: =IF(F15=1,(F16-F17)*(F11-F14+0.00001%)/((12*((1+F11)^(F8)-(1+F14-0.00001%)^(F8)))*(1+F11)), (F16-F17)*(F11-F14+0.00001%)/((12*((1+F11)^(F8)-(1+F14-0.00001%)^(F8))))) -> 15553.34627 | H18: =IF(H15=1,(H16-H17)*(H11-H14+0.00001%)/((12*((1+H11)^(H8)-(1+H14-0.00001%)^(H8)))*(1+H11)), (H16-H17)*(H11-H14+0.00001%)/((12*((1+H11)^(H8)-(1+H14-0.00001%)^(H8))))) -> 36691.84675 | J18: =IF(J15=1,(J16-J17)*(J11-J14+0.00001%)/((12*((1+J11)^(J8)-(1+J14-0.00001%)^(J8)))*(1+J11)), (J16-J17)*(J11-J14+0.00001%)/((12*((1+J11)^(J8)-(1+J14-0.00001%)^(J8))))) -> 0
A20: ** note 1: Choose '0' if SIP occurs at month beginning and '1' if SIP occurs at month end**

Sheet Report
A1: Summary of the financial plan
L2: =TODAY() -> 2014-12-03
A3: I | B3: Recommended minimum emergency fund value | F3: =Retirement!E17*6 -> 195000 | G3: Maximum emergency fund value | J3: =Retirement!E17*12 -> 390000
A5: II | B5: Recommended pure term life insurance value based on all the inputs provided | G5: =ROUND('Life Insurance Calculator'!D45,0) -> 0 | H5: Lakhs
B6: See Life Insurance Calculator sheet for other details & action plan to be followed by nominee. Please create a will incorporating this action plan
A8: III | B8: Recommendations: buy individual health insurance policy for all your dependents for the maximum amount you can afford and
B9: increase the sum insured each year. | E9: Minimum individual health cover for your family should not be less than | K9: =CONCATENATE("Rs. ",J3/100000," Lakhs") -> Rs. 3.9 Lakhs
T10: ='Cash flow summary'!O5 -> Retirement | U10: ='Cash flow summary'!P5 -> 2015 | V10: ='Cash flow summary'!Q5 -> 2038 | W10: ='Cash flow summary'!R5 -> 1 | X10: ='Cash flow summary'!S5 -> 1 | Y10: ='Cash flow summary'!T5 -> 0.92
A11: IV | B11: Financial Goals | C11: Present | D11: Invest. | E11: Invest. | F11: Corpus | G11: initial mon. | H11: Annual | I11: Priority | J11: % | K11: Feasibility of achievement | T11: ='Cash flow summary'!O6 -> Abhay's Education | U11: ='Cash flow summary'!P6 -> 2014 | V11: ='Cash flow summary'!Q6 -> 2027 | W11: ='Cash flow summary'!R6 -> 3 | X11: ='Cash flow summary'!S6 -> 1+2+3 | Y11: ='Cash flow summary'!T6 -> 0.48
B12: that are part of the | G12: invest. | H12: increase in | K12: for goal combo | T12: ='Cash flow summary'!O7 -> XYZ education | U12: ='Cash flow summary'!P7 -> 2014 | V12: ='Cash flow summary'!Q7 -> 2029 | W12: ='Cash flow summary'!R7 -> 3 | X12: ='Cash flow summary'!S7 -> 1+2+3 | Y12: ='Cash flow summary'!T7 -> 0.48
B13: cash flow chart | C13: Cost | D13: begins | E13: ends | F13: required | G13: reqd. | H13: mon. invest. | J13: Complete | K13: (in terms of priority) | T13: ='Cash flow summary'!O8 -> Abhay's Marriage | U13: ='Cash flow summary'!P8 -> 2013 | V13: ='Cash flow summary'!Q8 -> 2032 | W13: ='Cash flow summary'!R8 -> 2 | X13: ='Cash flow summary'!S8 -> 1+2 | Y13: ='Cash flow summary'!T8 -> 
B14: =IF(Retirement!J16="none","",IF(Retirement!J16=0,"","Retirement")) -> Retirement | C14: NA | D14: =YEAR(TODAY())+1 -> 2015 | E14: =Retirement!B4-1 -> 2038 | F14: =corptax -> 111279551.8 | G14: =Retirement!J16 -> 28285.13678 | H14: =gd -> 0.1 | I14: 1 | J14: =IF(ISERROR(Retirement!B13/corptax),"NA",Retirement!B13/corptax) -> 0.04493188478 | K14: 1 alone | L14: ='Cash flow summary'!T5 -> 0.92 | T14: ='Cash flow summary'!O9 -> XYZ marriage | U14: ='Cash flow summary'!P9 -> 2015 | V14: ='Cash flow summary'!Q9 -> 2019 | W14: ='Cash flow summary'!R9 -> 4 | X14: ='Cash flow summary'!S9 -> 1+2+3+4 | Y14: ='Cash flow summary'!T9 -> 0.48
B15: If the feasibility of retirement is not 100%, the rest of the goals don't matter much! | T15: ='Cash flow summary'!O10 ->  | U15: ='Cash flow summary'!P10 ->  | V15: ='Cash flow summary'!Q10 ->  | W15: ='Cash flow summary'!R10 ->  | X15: ='Cash flow summary'!S10 -> see note 2 below | Y15: ='Cash flow summary'!T10 -> 
A16: V | B16: Non-recurring goals | T16: ='Cash flow summary'!O11 ->  | U16: ='Cash flow summary'!P11 ->  | V16: ='Cash flow summary'!Q11 ->  | W16: ='Cash flow summary'!R11 ->  | X16: ='Cash flow summary'!S11 -> see note 2 below | Y16: ='Cash flow summary'!T11 -> 
B17: =IF('Financial Goals (non-recurring)'!B9=0,"",'Financial Goals (non-recurring)'!B5) -> Abhay's Education | C17: =IF(B17="","",'Financial Goals (non-recurring)'!B9) -> 2500000 | D17: =IF(B17="","",YEAR('Financial Goals (non-recurring)'!B7)) -> 2014 | E17: =IF(B17="","",YEAR('Financial Goals (non-recurring)'!B6)) -> 2027 | F17: =IF(B17="","",gcorpus) -> 8034744.124 | G17: =IF(B17="","",'Financial Goals (non-recurring)'!B18) -> 14919.10539 | H17: =IF(B17="","",incg) -> 0.1 | I17: =IF(B17="","",'Financial Goals (non-recurring)'!B4) -> 3 | J17: =IF(B17="","",'Financial Goals (non-recurring)'!B12/'Financial Goals (non-recurring)'!B16) -> 0 | K17: =IF(B17="","",INDEX($T$10:$Y$17,MATCH(B17,$T$10:$T$17,0),5)) -> 1+2+3 | L17: =IF(B17="","",INDEX($T$10:$Y$17,MATCH(B17,$T$10:$T$17,0),6)) -> 0.48 | T17: ='Cash flow summary'!O12 ->  | U17: ='Cash flow summary'!P12 ->  | V17: ='Cash flow summary'!Q12 ->  | W17: ='Cash flow summary'!R12 ->  | X17: ='Cash flow summary'!S12 -> see note 2 below | Y17: ='Cash flow summary'!T12 -> 
B18: =IF('Financial Goals (non-recurring)'!D9=0,"",'Financial Goals (non-recurring)'!D5) -> XYZ education | C18: =IF(B18="","",'Financial Goals (non-recurring)'!D9) -> 2500000 | D18: =IF(B18="","",YEAR('Financial Goals (non-recurring)'!D7)) -> 2014 | E18: =IF(B18="","",YEAR('Financial Goals (non-recurring)'!D6)) -> 2029 | F18: =IF(B18="","",'Financial Goals (non-recurring)'!D16) -> 9724579.378 | G18: =IF(B18="","",'Financial Goals (non-recurring)'!D18) -> 16767.05902 | H18: =IF(B18="","",'Financial Goals (non-recurring)'!D14) -> 0.1 | I18: =IF(B18="","",'Financial Goals (non-recurring)'!D4) -> 3 | J18: =IF(B18="","",'Financial Goals (non-recurring)'!D12/'Financial Goals (non-recurring)'!D16) -> 0 | K18: =IF(B18="","",INDEX($T$10:$Y$17,MATCH(B18,$T$10:$T$17,0),5)) -> 1+2+3 | L18: =IF(B18="","",INDEX($T$10:$Y$17,MATCH(B18,$T$10:$T$17,0),6)) -> 0.48
B19: =IF('Financial Goals (non-recurring)'!F9=0,"",'Financial Goals (non-recurring)'!F5) -> Abhay's Marriage | C19: =IF(B19="","",'Financial Goals (non-recurring)'!F9) -> 1500000 | D19: =IF(B19="","",YEAR('Financial Goals (non-recurring)'!F7)) -> 2013 | E19: =IF(B19="","",YEAR('Financial Goals (non-recurring)'!F6)) -> 2032 | F19: =IF(B19="","",'Financial Goals (non-recurring)'!F16) -> 10405129.58 | G19: =IF(B19="","",'Financial Goals (non-recurring)'!F18) -> 15553.34627 | H19: =IF(B19="","",'Financial Goals (non-recurring)'!F14) -> 0 | I19: =IF(B19="","",'Financial Goals (non-recurring)'!F4) -> 2 | J19: =IF(B19="","",'Financial Goals (non-recurring)'!F12/'Financial Goals (non-recurring)'!F16) -> 0 | K19: =IF(B19="","",INDEX($T$10:$Y$17,MATCH(B19,$T$10:$T$17,0),5)) -> 1+2 | L19: =IF(B19="","",INDEX($T$10:$Y$17,MATCH(B19,$T$10:$T$17,0),6)) -> 
B20: =IF('Financial Goals (non-recurring)'!H9=0,"",'Financial Goals (non-recurring)'!H5) -> XYZ marriage | C20: =IF(B20="","",'Financial Goals (non-recurring)'!H9) -> 1500000 | D20: =IF(B20="","",YEAR('Financial Goals (non-recurring)'!H7)) -> 2015 | E20: =IF(B20="","",YEAR('Financial Goals (non-recurring)'!H6)) -> 2019 | F20: =IF(B20="","",'Financial Goals (non-recurring)'!H16) -> 2247786.252 | G20: =IF(B20="","",'Financial Goals (non-recurring)'!H18) -> 36691.84675 | H20: =IF(B20="","",'Financial Goals (non-recurring)'!H14) -> 0 | I20: =IF(B20="","",'Financial Goals (non-recurring)'!H4) -> 4 | J20: =IF(B20="","",'Financial Goals (non-recurring)'!H12/'Financial Goals (non-recurring)'!H16) -> 0 | K20: =IF(B20="","",INDEX($T$10:$Y$17,MATCH(B20,$T$10:$T$17,0),5)) -> 1+2+3+4 | L20: =IF(B20="","",INDEX($T$10:$Y$17,MATCH(B20,$T$10:$T$17,0),6)) -> 0.48
B21: =IF('Financial Goals (non-recurring)'!J9=0,"",'Financial Goals (non-recurring)'!J5) ->  | C21: =IF(B21="","",'Financial Goals (non-recurring)'!J9) ->  | D21: =IF(B21="","",YEAR('Financial Goals (non-recurring)'!J7)) ->  | E21: =IF(B21="","",YEAR('Financial Goals (non-recurring)'!J6)) ->  | F21: =IF(B21="","",'Financial Goals (non-recurring)'!J16) ->  | G21: =IF(B21="","",'Financial Goals (non-recurring)'!J18) ->  | H21: =IF(B21="","",'Financial Goals (non-recurring)'!J14) ->  | I21: =IF(B21="","",'Financial Goals (non-recurring)'!J4) ->  | J21: =IF(B21="","",'Financial Goals (non-recurring)'!J12/'Financial Goals (non-recurring)'!J16) ->  | K21: =IF(B21="","",INDEX($T$10:$Y$17,MATCH(B21,$T$10:$T$17,0),5)) ->  | L21: =IF(B21="","",INDEX($T$10:$Y$17,MATCH(B21,$T$10:$T$17,0),6)) -> 
A22: VI | B22: Recurring goals
B23: =IF('Financial Goals (recurring)'!B8=0,"",'Financial Goals (recurring)'!A2) ->  | C23: =IF(B23="","",'Financial Goals (recurring)'!B8) ->  | D23: =IF(B23="","",'Financial Goals (recurring)'!D4) ->  | E23: =IF(B23="","",MAX('Financial Goals (recurring)'!E4:E34)) ->  | F23: =IF(B23="","","NA") ->  | G23: =IF(B23="","","NA") ->  | H23: =IF(B23="","",'Financial Goals (recurring)'!B11) ->  | I23: =IF(B23="","",'Financial Goals (recurring)'!B3) ->  | J23: =IF(B23="","","NA") ->  | K23: =IF(B23="","",INDEX($T$10:$Y$17,MATCH(B23,$T$10:$T$17,0),5)) ->  | L23: =IF(B23="","",INDEX($T$10:$Y$17,MATCH(B23,$T$10:$T$17,0),6)) -> 
B24: =IF('Financial Goals (recurring)'!K8=0,"",'Financial Goals (recurring)'!J2) ->  | C24: =IF(B24="","",'Financial Goals (recurring)'!K8) ->  | D24: =IF(B24="","",'Financial Goals (recurring)'!M4) ->  | E24: =IF(B24="","",MAX('Financial Goals (recurring)'!N4:N34)) ->  | F24: =IF(B24="","","NA") ->  | G24: =IF(B24="","","NA") ->  | H24: =IF(B24="","",'Financial Goals (recurring)'!K11) ->  | I24: =IF(B24="","",'Financial Goals (recurring)'!K3) ->  | J24: =IF(B24="","","NA") ->  | K24: =IF(B24="","",INDEX($T$10:$Y$17,MATCH(B24,$T$10:$T$17,0),5)) ->  | L24: =IF(B24="","",INDEX($T$10:$Y$17,MATCH(B24,$T$10:$T$17,0),6)) -> 
B25: Note 2: This investment occurs in retirement. Therefore you will have to inspect the chart in 'Cash flow summary' to assess feasibility.
A26: Probability associated with goal feasibility is an approximate number arrived by counting the number of years, there is enough cash
A27: to fund the goals in the indicated combination. If the feasibiity of two goals of different priority is less than 100% you will need to
A28: makes changes to the assumptions associated with either goal.
A30: Comments and suggestions welcome | E30: pattu@iitm.ac.in
A31: Download more financial calculators and analysis tools from: | G31: Freefincal.com

Sheet Analysis-1
A1: Choose Year | B1: 2014 | D1: Year | E1: Age | F1: Monthly Expenses | G1: EMI | H1: Amount available for investment | I1: Excess | J1: Amount needed for investment | K1: Net Salary +EPF | L1: Additional income | V1: =YEAR(TODAY()) -> 2014
D2: =INDEX('Cash flow summary'!$A$4:$M$160,MATCH('Analysis-1'!$B$1,'Cash flow summary'!$A$4:$A$160,0),1) -> 2014 | E2: =INDEX('Cash flow summary'!$A$4:$M$160,MATCH('Analysis-1'!$B$1,'Cash flow summary'!$A$4:$A$160,0),2) -> 40 | F2: =INDEX('Cash flow summary'!$A$4:$M$160,MATCH('Analysis-1'!$B$1,'Cash flow summary'!$A$4:$A$160,0),10) -> 32500 | G2: =INDEX('Cash flow summary'!$A$4:$M$160,MATCH('Analysis-1'!$B$1,'Cash flow summary'!$A$4:$A$160,0),11) -> 55000 | H2: =INDEX('Cash flow summary'!$A$4:$M$160,MATCH('Analysis-1'!$B$1,'Cash flow summary'!$A$4:$A$160,0),13) -> 12500 | I2: =L2+K2-F2-G2-H2 -> 0 | J2: =INDEX('Cash flow summary'!$A$4:$M$160,MATCH('Analysis-1'!$B$1,'Cash flow summary'!$A$4:$A$160,0),12) -> 31686.1644 | K2: =INDEX('Cash flow summary'!$A$4:$M$160,MATCH('Analysis-1'!$B$1,'Cash flow summary'!$A$4:$A$160,0),3) -> 100000 | L2: =INDEX('Cash flow summary'!$A$4:$M$160,MATCH('Analysis-1'!$B$1,'Cash flow summary'!$A$4:$A$160,0),8) -> 0 | V2: =V1+1 -> 2015
E3: Percentage | F3: Monthly Expenses | G3: EMI | H3: Amount available for investment | I3: Excess | J3: Amount needed for investment | V3: =V2+1 -> 2016
F4: =F2/($K$2+$L$2) -> 0.325 | G4: =G2/($K$2+$L$2) -> 0.55 | H4: =H2/($K$2+$L$2) -> 0.125 | I4: =I2/($K$2+$L$2) -> 0 | J4: =J2/($K$2+$L$2) -> 0.316861644 | V4: 2017
V5: 2018
V6: 2019
V7: 2020
V8: 2021
V9: 2022
V10: 2023
V11: 2024
V12: 2025
V13: 2026
V14: 2027
V15: 2028
V16: 2029
V17: 2030
V18: 2031
V19: 2032
V20: 2033
V21: 2034
V22: 2035
V23: 2036
V24: 2037
V25: 2038
V26: 2039
V27: 2040
V28: 2041
V29: 2042
V30: 2043
V31: 2044
V32: 2045
V33: 2046
V34: 2047
V35: 2048
V36: 2049
V37: 2050
V38: 2051
V39: 2052
V40: 2053
V41: 2054
V42: 2055
V43: 2056
V44: 2057
V45: 2058
V46: 2059
V47: 2060
V48: 2061
V49: 2062
V50: 2063
V51: 2064
V52: 2065
V53: 2066
V54: 2067
V55: 2068

Sheet Analysis-2
A1: Year | B1: Age | C1: Post-tax | H1: Income | I1: post-tax | J1: Monthly | K1: EMI | L1: Total invest. needed | M1: Total Cash available | O1: Please ensure only relevant goals are found in the list below | Y1: 1 | Z1: =COUNT(Y4:Y160) -> 25 | AA1: 1+2 | AB1: =COUNT(AA4:AA160) -> 25 | AC1: 1+2+3 | AD1: =COUNT(AC4:AC160) -> 25 | AE1: 1+2+3+4 | AF1: =COUNT(AE4:AE160) -> 25 | AG1: 1+2+3+4+5 | AH1: =COUNT(AG4:AG160) -> 25 | AI1: 1+2+3+4+5+6 | AJ1: =COUNT(AI4:AI160) -> 25 | AK1: 1+2+3+4+5+6+7 | AL1: =COUNT(AK4:AK160) -> 25
C2: Monthly | H2: from | I2: pension | J2: expenses | L2: each month for | M2: for investment | O2: are found in the list below | Y2: feasibility | Z2: =COUNTIF(Y4:Y160,">0") -> 23 | AA2: feasibility | AB2: =COUNTIF(AA4:AA160,">0") -> 23 | AC2: feasibility | AD2: =COUNTIF(AC4:AC160,">0") -> 12 | AE2: feasibility | AF2: =COUNTIF(AE4:AE160,">0") -> 12 | AG2: feasibility | AH2: =COUNTIF(AG4:AG160,">0") -> 12 | AI2: feasibility | AJ2: =COUNTIF(AI4:AI160,">0") -> 12 | AK2: feasibility | AL2: =COUNTIF(AK4:AK160,">0") -> 12
C3: Salary | H3: other sources | L3: ALL goals | M3: each month | O3: Goals included in | P3: Invest. | Q3: Invest. | R3: Priority | S3: Feasbility | Z3: =Z2/Z1 -> 0.92 | AB3: =AB2/AB1 -> 0.92 | AD3: =AD2/AD1 -> 0.48 | AF3: =AF2/AF1 -> 0.48 | AH3: =AH2/AH1 -> 0.48 | AJ3: =AJ2/AJ1 -> 0.48 | AL3: =AL2/AL1 -> 0.48
A4: =IF(ISERROR(C4),NA(),'Detailed Cash Flow Chart'!AJ4) -> 2014 | B4: ='Detailed Cash Flow Chart'!B4 -> 40 | C4: =salary -> 100000 | D4: =IF(A4>=syear1,IF(A4<=eyear1,passive*(1+incp)^(A4-YEAR(TODAY())),0),0) -> 0 | E4: =IF(A4>=syear2,IF(A4<=eyear2,passive2*(1+incp1)^(A4-YEAR(TODAY())),0),0) -> 0 | F4: =IF(A4>=sryear1,IF(A4<=eryear1,passiver*(1+incpr)^(A4-YEAR(TODAY())),0),0) -> 0 | G4: =IF(A4>=sryear2,IF(A4<=eryear2,passiver1*(1+incpr1)^(A4-YEAR(TODAY())),0),0) -> 0 | H4: =IF(A4="",NA(),IF(D4+E4+F4+G4=0,NA(),D4+E4+F4+G4)) ->  | I4: ='Detailed Cash Flow Chart'!D4 -> 0 | J4: =IF(ISERROR(C4),NA(),'Detailed Cash Flow Chart'!C4) -> 32500 | K4: =IF(A4>=emistart,IF(A4<=emiend,emi,NA()),NA()) -> 55000 | L4: =IF(ISERROR(C4),NA(),'Detailed Cash Flow Chart'!AQ4) -> 31686.1644 | M4: =IF(ISERROR(C4),NA(),IF(IF(IF(ISERROR(I4),0,I4)+IF(ISERROR(H4),0,H4)>IF(ISERROR(J4),0,J4),IF(ISERROR(B4),0,B4),IF(ISERROR(C4),0,C4))=0,0,IF(ISERROR(I4),0,I4)+IF(ISERROR(C4),0,C4)+IF(ISERROR(H4),0,H4)-IF(ISERROR(J4),0,J4)-IF(ISERROR(K4),0,K4))) -> 12500 | O4: cash flow chart | P4: begins | Q4: ends | S4: for goal combo | W4: 1 | X4: =Z3 -> 0.92 | Y4: =M4-'Detailed Cash Flow Chart'!E4 -> 12500 | AA4: =Y4 -IF('Financial Goals (non-recurring)'!$B$4=2,IF('Detailed Cash Flow Chart'!S4="",0,'Detailed Cash Flow Chart'!S4),0) -IF('Financial Goals (non-recurring)'!$D$4=2,IF('Detailed Cash Flow Chart'!U4="",0,'Detailed Cash Flow Chart'!U4),0) -IF('Financial Goals (non-recurring)'!$F$4=2,IF('Detailed Cash Flow Chart'!W4="",0,'Detailed Cash Flow Chart'!W4),0) -IF('Financial Goals (non-recurring)'!$H$4=2,IF('Detailed Cash Flow Chart'!Y4="",0,'Detailed Cash Flow Chart'!Y4),0) -IF('Financial Goals (non-recurring)'!$J$4=2,IF('Detailed Cash Flow Chart'!AA4="",0,'Detailed Cash Flow Chart'!AA4),0) -IF('Financial Goals (recurring)'!$B$3=2,IF('Detailed Cash Flow Chart'!AG4="",0,'Detailed Cash Flow Chart'!AG4),0) -IF('Financial Goals (recurring)'!$K$3=2,IF('Detailed Cash Flow Chart'!AN4="",0,'Detailed Cash Flow Chart'!AN4),0) -> 12500 | AB4: =IF('Financial Goals (non-recurring)'!$D$4=2,'Detailed Cash Flow Chart'!U4,0) -> 0 | AC4: =AA4 -IF('Financial Goals (non-recurring)'!$B$4=3,IF('Detailed Cash Flow Chart'!S4="",0,'Detailed Cash Flow Chart'!S4),0) -IF('Financial Goals (non-recurring)'!$D$4=3,IF('Detailed Cash Flow Chart'!U4="",0,'Detailed Cash Flow Chart'!U4),0) -IF('Financial Goals (non-recurring)'!$F$4=3,IF('Detailed Cash Flow Chart'!W4="",0,'Detailed Cash Flow Chart'!W4),0) -IF('Financial Goals (non-recurring)'!$H$4=3,IF('Detailed Cash Flow Chart'!Y4="",0,'Detailed Cash Flow Chart'!Y4),0) -IF('Financial Goals (non-recurring)'!$J$4=3,IF('Detailed Cash Flow Chart'!AA4="",0,'Detailed Cash Flow Chart'!AA4),0) -IF('Financial Goals (recurring)'!$B$3=3,IF('Detailed Cash Flow Chart'!AG4="",0,'Detailed Cash Flow Chart'!AG4),0) -IF('Financial Goals (recurring)'!$K$3=3,IF('Detailed Cash Flow Chart'!AN4="",0,'Detailed Cash Flow Chart'!AN4),0) -> -19186.1644 | AE4: =AC4 -IF('Financial Goals (non-recurring)'!$B$4=4,IF('Detailed Cash Flow Chart'!S4="",0,'Detailed Cash Flow Chart'!S4),0) -IF('Financial Goals (non-recurring)'!$D$4=4,IF('Detailed Cash Flow Chart'!U4="",0,'Detailed Cash Flow Chart'!U4),0) -IF('Financial Goals (non-recurring)'!$F$4=4,IF('Detailed Cash Flow Chart'!W4="",0,'Detailed Cash Flow Chart'!W4),0) -IF('Financial Goals (non-recurring)'!$H$4=4,IF('Detailed Cash Flow Chart'!Y4="",0,'Detailed Cash Flow Chart'!Y4),0) -IF('Financial Goals (non-recurring)'!$J$4=4,IF('Detailed Cash Flow Chart'!AA4="",0,'Detailed Cash Flow Chart'!AA4),0) -IF('Financial Goals (recurring)'!$B$3=4,IF('Detailed Cash Flow Chart'!AG4="",0,'Detailed Cash Flow Chart'!AG4),0) -IF('Financial Goals (recurring)'!$K$3=4,IF('Detailed Cash Flow Chart'!AN4="",0,'Detailed Cash Flow Chart'!AN4),0) -> -19186.1644 | AG4: =AE4 -IF('Financial Goals (non-recurring)'!$B$4=5,IF('Detailed Cash Flow Chart'!S4="",0,'Detailed Cash Flow Chart'!S4),0) -IF('Financial Goals (non-recurring)'!$D$4=5,IF('Detailed Cash Flow Chart'!U4="",0,'Detailed Cash Flow Chart'!U4),0) -IF('Financial Goals (non-recurring)'!$F$4=5,IF('Detailed Cash Flow Chart'!W4="",0,'Detailed Cash Flow Chart'!W4),0) -IF('Financial Goals (non-recurring)'!$H$4=5,IF('Detailed Cash Flow Chart'!Y4="",0,'Detailed Cash Flow Chart'!Y4),0) -IF('Financial Goals (non-recurring)'!$J$4=5,IF('Detailed Cash Flow Chart'!AA4="",0,'Detailed Cash Flow Chart'!AA4),0) -IF('Financial Goals (recurring)'!$B$3=5,IF('Detailed Cash Flow Chart'!AG4="",0,'Detailed Cash Flow Chart'!AG4),0) -IF('Financial Goals (recurring)'!$K$3=5,IF('Detailed Cash Flow Chart'!AN4="",0,'Detailed Cash Flow Chart'!AN4),0) -> -19186.1644 | AI4: =AG4 -IF('Financial Goals (non-recurring)'!$B$4=6,IF('Detailed Cash Flow Chart'!S4="",0,'Detailed Cash Flow Chart'!S4),0) -IF('Financial Goals (non-recurring)'!$D$4=6,IF('Detailed Cash Flow Chart'!U4="",0,'Detailed Cash Flow Chart'!U4),0) -IF('Financial Goals (non-recurring)'!$F$4=6,IF('Detailed Cash Flow Chart'!W4="",0,'Detailed Cash Flow Chart'!W4),0) -IF('Financial Goals (non-recurring)'!$H$4=6,IF('Detailed Cash Flow Chart'!Y4="",0,'Detailed Cash Flow Chart'!Y4),0) -IF('Financial Goals (non-recurring)'!$J$4=6,IF('Detailed Cash Flow Chart'!AA4="",0,'Detailed Cash Flow Chart'!AA4),0) -IF('Financial Goals (recurring)'!$B$3=6,IF('Detailed Cash Flow Chart'!AG4="",0,'Detailed Cash Flow Chart'!AG4),0) -IF('Financial Goals (recurring)'!$K$3=6,IF('Detailed Cash Flow Chart'!AN4="",0,'Detailed Cash Flow Chart'!AN4),0) -> -19186.1644 | AK4: =AI4 -IF('Financial Goals (non-recurring)'!$B$4=7,IF('Detailed Cash Flow Chart'!S4="",0,'Detailed Cash Flow Chart'!S4),0) -IF('Financial Goals (non-recurring)'!$D$4=7,IF('Detailed Cash Flow Chart'!U4="",0,'Detailed Cash Flow Chart'!U4),0) -IF('Financial Goals (non-recurring)'!$F$4=7,IF('Detailed Cash Flow Chart'!W4="",0,'Detailed Cash Flow Chart'!W4),0) -IF('Financial Goals (non-recurring)'!$H$4=7,IF('Detailed Cash Flow Chart'!Y4="",0,'Detailed Cash Flow Chart'!Y4),0) -IF('Financial Goals (non-recurring)'!$J$4=7,IF('Detailed Cash Flow Chart'!AA4="",0,'Detailed Cash Flow Chart'!AA4),0) -IF('Financial Goals (recurring)'!$B$3=7,IF('Detailed Cash Flow Chart'!AG4="",0,'Detailed Cash Flow Chart'!AG4),0) -IF('Financial Goals (recurring)'!$K$3=7,IF('Detailed Cash Flow Chart'!AN4="",0,'Detailed Cash Flow Chart'!AN4),0) -> -19186.1644
A5: =IF(ISERROR(C5),NA(),'Detailed Cash Flow Chart'!AJ5) -> 2015 | B5: ='Detailed Cash Flow Chart'!B5 -> 41 | C5: =IF(A4<(y+wy+1),C4+C4*inc,NA()) -> 110000 | D5: 0 | E5: 0 | F5: 0 | G5: 0 | H5: =IF(A5="",NA(),IF(D5+E5+F5+G5=0,NA(),D5+E5+F5+G5)) ->  | I5: ='Detailed Cash Flow Chart'!D5 -> 0 | J5: =IF(ISERROR(C5),NA(),'Detailed Cash Flow Chart'!C5) -> 35425 | K5: 55000 | L5: =IF(ISERROR(C5),NA(),'Detailed Cash Flow Chart'!AQ5) -> 99831.76438 | M5: =IF(ISERROR(C5),NA(),IF(IF(IF(ISERROR(I5),0,I5)+IF(ISERROR(H5),0,H5)>IF(ISERROR(J5),0,J5),IF(ISERROR(B5),0,B5),IF(ISERROR(C5),0,C5))=0,0,IF(ISERROR(I5),0,I5)+IF(ISERROR(C5),0,C5)+IF(ISERROR(H5),0,H5)-IF(ISERROR(J5),0,J5)-IF(ISERROR(K5),0,K5))) -> 19575 | O5: =IF(Retirement!J16="none","",IF(Retirement!J16=0,"","Retirement")) -> Retirement | P5: =YEAR(TODAY())+1 -> 2015 | Q5: =Retirement!B4-1 -> 2038 | R5: 1 | S5: 1 | T5: =X4 -> 0.92 | V5: 1+2 | W5: 2 | X5: =AB3 -> 0.92 | Y5: =IF('Detailed Cash Flow Chart'!E5=0,NA(),M5-'Detailed Cash Flow Chart'!E5) -> -8710.136781 | AA5: =Y5 -IF('Financial Goals (non-recurring)'!$B$4=2,IF('Detailed Cash Flow Chart'!S5="",0,'Detailed Cash Flow Chart'!S5),0) -IF('Financial Goals (non-recurring)'!$D$4=2,IF('Detailed Cash Flow Chart'!U5="",0,'Detailed Cash Flow Chart'!U5),0) -IF('Financial Goals (non-recurring)'!$F$4=2,IF('Detailed Cash Flow Chart'!W5="",0,'Detailed Cash Flow Chart'!W5),0) -IF('Financial Goals (non-recurring)'!$H$4=2,IF('Detailed Cash Flow Chart'!Y5="",0,'Detailed Cash Flow Chart'!Y5),0) -IF('Financial Goals (non-recurring)'!$J$4=2,IF('Detailed Cash Flow Chart'!AA5="",0,'Detailed Cash Flow Chart'!AA5),0) -IF('Financial Goals (recurring)'!$B$3=2,IF('Detailed Cash Flow Chart'!AG5="",0,'Detailed Cash Flow Chart'!AG5),0) -IF('Financial Goals (recurring)'!$K$3=2,IF('Detailed Cash Flow Chart'!AN5="",0,'Detailed Cash Flow Chart'!AN5),0) -> -8710.136781 | AC5: =AA5 -IF('Financial Goals (non-recurring)'!$B$4=3,IF('Detailed Cash Flow Chart'!S5="",0,'Detailed Cash Flow Chart'!S5),0) -IF('Financial Goals (non-recurring)'!$D$4=3,IF('Detailed Cash Flow Chart'!U5="",0,'Detailed Cash Flow Chart'!U5),0) -IF('Financial Goals (non-recurring)'!$F$4=3,IF('Detailed Cash Flow Chart'!W5="",0,'Detailed Cash Flow Chart'!W5),0) -IF('Financial Goals (non-recurring)'!$H$4=3,IF('Detailed Cash Flow Chart'!Y5="",0,'Detailed Cash Flow Chart'!Y5),0) -IF('Financial Goals (non-recurring)'!$J$4=3,IF('Detailed Cash Flow Chart'!AA5="",0,'Detailed Cash Flow Chart'!AA5),0) -IF('Financial Goals (recurring)'!$B$3=3,IF('Detailed Cash Flow Chart'!AG5="",0,'Detailed Cash Flow Chart'!AG5),0) -IF('Financial Goals (recurring)'!$K$3=3,IF('Detailed Cash Flow Chart'!AN5="",0,'Detailed Cash Flow Chart'!AN5),0) -> -43564.91763 | AE5: =AC5 -IF('Financial Goals (non-recurring)'!$B$4=4,IF('Detailed Cash Flow Chart'!S5="",0,'Detailed Cash Flow Chart'!S5),0) -IF('Financial Goals (non-recurring)'!$D$4=4,IF('Detailed Cash Flow Chart'!U5="",0,'Detailed Cash Flow Chart'!U5),0) -IF('Financial Goals (non-recurring)'!$F$4=4,IF('Detailed Cash Flow Chart'!W5="",0,'Detailed Cash Flow Chart'!W5),0) -IF('Financial Goals (non-recurring)'!$H$4=4,IF('Detailed Cash Flow Chart'!Y5="",0,'Detailed Cash Flow Chart'!Y5),0) -IF('Financial Goals (non-recurring)'!$J$4=4,IF('Detailed Cash Flow Chart'!AA5="",0,'Detailed Cash Flow Chart'!AA5),0) -IF('Financial Goals (recurring)'!$B$3=4,IF('Detailed Cash Flow Chart'!AG5="",0,'Detailed Cash Flow Chart'!AG5),0) -IF('Financial Goals (recurring)'!$K$3=4,IF('Detailed Cash Flow Chart'!AN5="",0,'Detailed Cash Flow Chart'!AN5),0) -> -80256.76438 | AG5: =AE5 -IF('Financial Goals (non-recurring)'!$B$4=5,IF('Detailed Cash Flow Chart'!S5="",0,'Detailed Cash Flow Chart'!S5),0) -IF('Financial Goals (non-recurring)'!$D$4=5,IF('Detailed Cash Flow Chart'!U5="",0,'Detailed Cash Flow Chart'!U5),0) -IF('Financial Goals (non-recurring)'!$F$4=5,IF('Detailed Cash Flow Chart'!W5="",0,'Detailed Cash Flow Chart'!W5),0) -IF('Financial Goals (non-recurring)'!$H$4=5,IF('Detailed Cash Flow Chart'!Y5="",0,'Detailed Cash Flow Chart'!Y5),0) -IF('Financial Goals (non-recurring)'!$J$4=5,IF('Detailed Cash Flow Chart'!AA5="",0,'Detailed Cash Flow Chart'!AA5),0) -IF('Financial Goals (recurring)'!$B$3=5,IF('Detailed Cash Flow Chart'!AG5="",0,'Detailed Cash Flow Chart'!AG5),0) -IF('Financial Goals (recurring)'!$K$3=5,IF('Detailed Cash Flow Chart'!AN5="",0,'Detailed Cash Flow Chart'!AN5),0) -> -80256.76438 | AI5: =AG5 -IF('Financial Goals (non-recurring)'!$B$4=6,IF('Detailed Cash Flow Chart'!S5="",0,'Detailed Cash Flow Chart'!S5),0) -IF('Financial Goals (non-recurring)'!$D$4=6,IF('Detailed Cash Flow Chart'!U5="",0,'Detailed Cash Flow Chart'!U5),0) -IF('Financial Goals (non-recurring)'!$F$4=6,IF('Detailed Cash Flow Chart'!W5="",0,'Detailed Cash Flow Chart'!W5),0) -IF('Financial Goals (non-recurring)'!$H$4=6,IF('Detailed Cash Flow Chart'!Y5="",0,'Detailed Cash Flow Chart'!Y5),0) -IF('Financial Goals (non-recurring)'!$J$4=6,IF('Detailed Cash Flow Chart'!AA5="",0,'Detailed Cash Flow Chart'!AA5),0) -IF('Financial Goals (recurring)'!$B$3=6,IF('Detailed Cash Flow Chart'!AG5="",0,'Detailed Cash Flow Chart'!AG5),0) -IF('Financial Goals (recurring)'!$K$3=6,IF('Detailed Cash Flow Chart'!AN5="",0,'Detailed Cash Flow Chart'!AN5),0) -> -80256.76438 | AK5: =AI5 -IF('Financial Goals (non-recurring)'!$B$4=7,IF('Detailed Cash Flow Chart'!S5="",0,'Detailed Cash Flow Chart'!S5),0) -IF('Financial Goals (non-recurring)'!$D$4=7,IF('Detailed Cash Flow Chart'!U5="",0,'Detailed Cash Flow Chart'!U5),0) -IF('Financial Goals (non-recurring)'!$F$4=7,IF('Detailed Cash Flow Chart'!W5="",0,'Detailed Cash Flow Chart'!W5),0) -IF('Financial Goals (non-recurring)'!$H$4=7,IF('Detailed Cash Flow Chart'!Y5="",0,'Detailed Cash Flow Chart'!Y5),0) -IF('Financial Goals (non-recurring)'!$J$4=7,IF('Detailed Cash Flow Chart'!AA5="",0,'Detailed Cash Flow Chart'!AA5),0) -IF('Financial Goals (recurring)'!$B$3=7,IF('Detailed Cash Flow Chart'!AG5="",0,'Detailed Cash Flow Chart'!AG5),0) -IF('Financial Goals (recurring)'!$K$3=7,IF('Detailed Cash Flow Chart'!AN5="",0,'Detailed Cash Flow Chart'!AN5),0) -> -80256.76438
A6: =IF(ISERROR(C6),NA(),'Detailed Cash Flow Chart'!AJ6) -> 2016 | B6: ='Detailed Cash Flow Chart'!B6 -> 42 | C6: 121000 | D6: 0 | E6: 0 | F6: 0 | G6: 0 | I6: ='Detailed Cash Flow Chart'!D6 -> 0 | J6: =IF(ISERROR(C6),NA(),'Detailed Cash Flow Chart'!C6) -> 38613.25 | K6: 55000 | L6: =IF(ISERROR(C6),NA(),'Detailed Cash Flow Chart'!AQ6) -> 106145.7561 | M6: 27386.75 | O6: =IF('Financial Goals (non-recurring)'!B9=0,"",'Financial Goals (non-recurring)'!B5) -> Abhay's Education | P6: =IF('Financial Goals (non-recurring)'!B9=0,"",YEAR('Financial Goals (non-recurring)'!B7)) -> 2014 | Q6: =IF('Financial Goals (non-recurring)'!B9=0,"",YEAR('Financial Goals (non-recurring)'!B6)) -> 2027 | R6: =IF('Financial Goals (non-recurring)'!B9=0,"",Report!I17) -> 3 | S6: =IF(Q6>$Q$5,"see note 2 below",IF(R6="","",INDEX($V$4:$X$10,MATCH(R6,$W$4:$W$10,0),1))) -> 1+2+3 | T6: =IF(Q6>$Q$5,"",IF(O6="","",INDEX(V4:X10,MATCH(R6,W4:W10,0),3))) -> 0.48 | V6: 1+2+3 | W6: 3 | X6: =AD3 -> 0.48 | Y6: =IF('Detailed Cash Flow Chart'!E6=0,NA(),M6-'Detailed Cash Flow Chart'!E6) -> -3726.900459 | AA6: =Y6 -IF('Financial Goals (non-recurring)'!$B$4=2,IF('Detailed Cash Flow Chart'!S6="",0,'Detailed Cash Flow Chart'!S6),0) -IF('Financial Goals (non-recurring)'!$D$4=2,IF('Detailed Cash Flow Chart'!U6="",0,'Detailed Cash Flow Chart'!U6),0) -IF('Financial Goals (non-recurring)'!$F$4=2,IF('Detailed Cash Flow Chart'!W6="",0,'Detailed Cash Flow Chart'!W6),0) -IF('Financial Goals (non-recurring)'!$H$4=2,IF('Detailed Cash Flow Chart'!Y6="",0,'Detailed Cash Flow Chart'!Y6),0) -IF('Financial Goals (non-recurring)'!$J$4=2,IF('Detailed Cash Flow Chart'!AA6="",0,'Detailed Cash Flow Chart'!AA6),0) -IF('Financial Goals (recurring)'!$B$3=2,IF('Detailed Cash Flow Chart'!AG6="",0,'Detailed Cash Flow Chart'!AG6),0) -IF('Financial Goals (recurring)'!$K$3=2,IF('Detailed Cash Flow Chart'!AN6="",0,'Detailed Cash Flow Chart'!AN6),0) -> -3726.900459 | AC6: =AA6 -IF('Financial Goals (non-recurring)'!$B$4=3,IF('Detailed Cash Flow Chart'!S6="",0,'Detailed Cash Flow Chart'!S6),0) -IF('Financial Goals (non-recurring)'!$D$4=3,IF('Detailed Cash Flow Chart'!U6="",0,'Detailed Cash Flow Chart'!U6),0) -IF('Financial Goals (non-recurring)'!$F$4=3,IF('Detailed Cash Flow Chart'!W6="",0,'Detailed Cash Flow Chart'!W6),0) -IF('Financial Goals (non-recurring)'!$H$4=3,IF('Detailed Cash Flow Chart'!Y6="",0,'Detailed Cash Flow Chart'!Y6),0) -IF('Financial Goals (non-recurring)'!$J$4=3,IF('Detailed Cash Flow Chart'!AA6="",0,'Detailed Cash Flow Chart'!AA6),0) -IF('Financial Goals (recurring)'!$B$3=3,IF('Detailed Cash Flow Chart'!AG6="",0,'Detailed Cash Flow Chart'!AG6),0) -IF('Financial Goals (recurring)'!$K$3=3,IF('Detailed Cash Flow Chart'!AN6="",0,'Detailed Cash Flow Chart'!AN6),0) -> -42067.15939 | AE6: =AC6 -IF('Financial Goals (non-recurring)'!$B$4=4,IF('Detailed Cash Flow Chart'!S6="",0,'Detailed Cash Flow Chart'!S6),0) -IF('Financial Goals (non-recurring)'!$D$4=4,IF('Detailed Cash Flow Chart'!U6="",0,'Detailed Cash Flow Chart'!U6),0) -IF('Financial Goals (non-recurring)'!$F$4=4,IF('Detailed Cash Flow Chart'!W6="",0,'Detailed Cash Flow Chart'!W6),0) -IF('Financial Goals (non-recurring)'!$H$4=4,IF('Detailed Cash Flow Chart'!Y6="",0,'Detailed Cash Flow Chart'!Y6),0) -IF('Financial Goals (non-recurring)'!$J$4=4,IF('Detailed Cash Flow Chart'!AA6="",0,'Detailed Cash Flow Chart'!AA6),0) -IF('Financial Goals (recurring)'!$B$3=4,IF('Detailed Cash Flow Chart'!AG6="",0,'Detailed Cash Flow Chart'!AG6),0) -IF('Financial Goals (recurring)'!$K$3=4,IF('Detailed Cash Flow Chart'!AN6="",0,'Detailed Cash Flow Chart'!AN6),0) -> -78759.00614 | AG6: =AE6 -IF('Financial Goals (non-recurring)'!$B$4=5,IF('Detailed Cash Flow Chart'!S6="",0,'Detailed Cash Flow Chart'!S6),0) -IF('Financial Goals (non-recurring)'!$D$4=5,IF('Detailed Cash Flow Chart'!U6="",0,'Detailed Cash Flow Chart'!U6),0) -IF('Financial Goals (non-recurring)'!$F$4=5,IF('Detailed Cash Flow Chart'!W6="",0,'Detailed Cash Flow Chart'!W6),0) -IF('Financial Goals (non-recurring)'!$H$4=5,IF('Detailed Cash Flow Chart'!Y6="",0,'Detailed Cash Flow Chart'!Y6),0) -IF('Financial Goals (non-recurring)'!$J$4=5,IF('Detailed Cash Flow Chart'!AA6="",0,'Detailed Cash Flow Chart'!AA6),0) -IF('Financial Goals (recurring)'!$B$3=5,IF('Detailed Cash Flow Chart'!AG6="",0,'Detailed Cash Flow Chart'!AG6),0) -IF('Financial Goals (recurring)'!$K$3=5,IF('Detailed Cash Flow Chart'!AN6="",0,'Detailed Cash Flow Chart'!AN6),0) -> -78759.00614 | AI6: =AG6 -IF('Financial Goals (non-recurring)'!$B$4=6,IF('Detailed Cash Flow Chart'!S6="",0,'Detailed Cash Flow Chart'!S6),0) -IF('Financial Goals (non-recurring)'!$D$4=6,IF('Detailed Cash Flow Chart'!U6="",0,'Detailed Cash Flow Chart'!U6),0) -IF('Financial Goals (non-recurring)'!$F$4=6,IF('Detailed Cash Flow Chart'!W6="",0,'Detailed Cash Flow Chart'!W6),0) -IF('Financial Goals (non-recurring)'!$H$4=6,IF('Detailed Cash Flow Chart'!Y6="",0,'Detailed Cash Flow Chart'!Y6),0) -IF('Financial Goals (non-recurring)'!$J$4=6,IF('Detailed Cash Flow Chart'!AA6="",0,'Detailed Cash Flow Chart'!AA6),0) -IF('Financial Goals (recurring)'!$B$3=6,IF('Detailed Cash Flow Chart'!AG6="",0,'Detailed Cash Flow Chart'!AG6),0) -IF('Financial Goals (recurring)'!$K$3=6,IF('Detailed Cash Flow Chart'!AN6="",0,'Detailed Cash Flow Chart'!AN6),0) -> -78759.00614 | AK6: =AI6 -IF('Financial Goals (non-recurring)'!$B$4=7,IF('Detailed Cash Flow Chart'!S6="",0,'Detailed Cash Flow Chart'!S6),0) -IF('Financial Goals (non-recurring)'!$D$4=7,IF('Detailed Cash Flow Chart'!U6="",0,'Detailed Cash Flow Chart'!U6),0) -IF('Financial Goals (non-recurring)'!$F$4=7,IF('Detailed Cash Flow Chart'!W6="",0,'Detailed Cash Flow Chart'!W6),0) -IF('Financial Goals (non-recurring)'!$H$4=7,IF('Detailed Cash Flow Chart'!Y6="",0,'Detailed Cash Flow Chart'!Y6),0) -IF('Financial Goals (non-recurring)'!$J$4=7,IF('Detailed Cash Flow Chart'!AA6="",0,'Detailed Cash Flow Chart'!AA6),0) -IF('Financial Goals (recurring)'!$B$3=7,IF('Detailed Cash Flow Chart'!AG6="",0,'Detailed Cash Flow Chart'!AG6),0) -IF('Financial Goals (recurring)'!$K$3=7,IF('Detailed Cash Flow Chart'!AN6="",0,'Detailed Cash Flow Chart'!AN6),0) -> -78759.00614
A7: =IF(ISERROR(C7),NA(),'Detailed Cash Flow Chart'!AJ7) -> 2017 | B7: ='Detailed Cash Flow Chart'!B7 -> 43 | C7: 133100 | D7: 0 | E7: 0 | F7: 0 | G7: 0 | I7: ='Detailed Cash Flow Chart'!D7 -> 0 | J7: =IF(ISERROR(C7),NA(),'Detailed Cash Flow Chart'!C7) -> 42088.4425 | K7: 55000 | L7: =IF(ISERROR(C7),NA(),'Detailed Cash Flow Chart'!AQ7) -> 113091.1471 | M7: 36011.5575 | O7: =IF('Financial Goals (non-recurring)'!D9=0,"",'Financial Goals (non-recurring)'!D5) -> XYZ education | P7: =IF(O7="","",YEAR('Financial Goals (non-recurring)'!D7)) -> 2014 | Q7: =IF(O7="","",YEAR('Financial Goals (non-recurring)'!D6)) -> 2029 | R7: =IF(O7="","",Report!I18) -> 3 | S7: 1+2+3 | T7: 0.48 | V7: 1+2+3+4 | W7: 4 | X7: =AF3 -> 0.48 | Y7: =IF('Detailed Cash Flow Chart'!E7=0,NA(),M7-'Detailed Cash Flow Chart'!E7) -> 1786.541995 | AA7: =Y7 -IF('Financial Goals (non-recurring)'!$B$4=2,IF('Detailed Cash Flow Chart'!S7="",0,'Detailed Cash Flow Chart'!S7),0) -IF('Financial Goals (non-recurring)'!$D$4=2,IF('Detailed Cash Flow Chart'!U7="",0,'Detailed Cash Flow Chart'!U7),0) -IF('Financial Goals (non-recurring)'!$F$4=2,IF('Detailed Cash Flow Chart'!W7="",0,'Detailed Cash Flow Chart'!W7),0) -IF('Financial Goals (non-recurring)'!$H$4=2,IF('Detailed Cash Flow Chart'!Y7="",0,'Detailed Cash Flow Chart'!Y7),0) -IF('Financial Goals (non-recurring)'!$J$4=2,IF('Detailed Cash Flow Chart'!AA7="",0,'Detailed Cash Flow Chart'!AA7),0) -IF('Financial Goals (recurring)'!$B$3=2,IF('Detailed Cash Flow Chart'!AG7="",0,'Detailed Cash Flow Chart'!AG7),0) -IF('Financial Goals (recurring)'!$K$3=2,IF('Detailed Cash Flow Chart'!AN7="",0,'Detailed Cash Flow Chart'!AN7),0) -> 1786.541995 | AC7: =AA7 -IF('Financial Goals (non-recurring)'!$B$4=3,IF('Detailed Cash Flow Chart'!S7="",0,'Detailed Cash Flow Chart'!S7),0) -IF('Financial Goals (non-recurring)'!$D$4=3,IF('Detailed Cash Flow Chart'!U7="",0,'Detailed Cash Flow Chart'!U7),0) -IF('Financial Goals (non-recurring)'!$F$4=3,IF('Detailed Cash Flow Chart'!W7="",0,'Detailed Cash Flow Chart'!W7),0) -IF('Financial Goals (non-recurring)'!$H$4=3,IF('Detailed Cash Flow Chart'!Y7="",0,'Detailed Cash Flow Chart'!Y7),0) -IF('Financial Goals (non-recurring)'!$J$4=3,IF('Detailed Cash Flow Chart'!AA7="",0,'Detailed Cash Flow Chart'!AA7),0) -IF('Financial Goals (recurring)'!$B$3=3,IF('Detailed Cash Flow Chart'!AG7="",0,'Detailed Cash Flow Chart'!AG7),0) -IF('Financial Goals (recurring)'!$K$3=3,IF('Detailed Cash Flow Chart'!AN7="",0,'Detailed Cash Flow Chart'!AN7),0) -> -40387.74283 | AE7: =AC7 -IF('Financial Goals (non-recurring)'!$B$4=4,IF('Detailed Cash Flow Chart'!S7="",0,'Detailed Cash Flow Chart'!S7),0) -IF('Financial Goals (non-recurring)'!$D$4=4,IF('Detailed Cash Flow Chart'!U7="",0,'Detailed Cash Flow Chart'!U7),0) -IF('Financial Goals (non-recurring)'!$F$4=4,IF('Detailed Cash Flow Chart'!W7="",0,'Detailed Cash Flow Chart'!W7),0) -IF('Financial Goals (non-recurring)'!$H$4=4,IF('Detailed Cash Flow Chart'!Y7="",0,'Detailed Cash Flow Chart'!Y7),0) -IF('Financial Goals (non-recurring)'!$J$4=4,IF('Detailed Cash Flow Chart'!AA7="",0,'Detailed Cash Flow Chart'!AA7),0) -IF('Financial Goals (recurring)'!$B$3=4,IF('Detailed Cash Flow Chart'!AG7="",0,'Detailed Cash Flow Chart'!AG7),0) -IF('Financial Goals (recurring)'!$K$3=4,IF('Detailed Cash Flow Chart'!AN7="",0,'Detailed Cash Flow Chart'!AN7),0) -> -77079.58958 | AG7: =AE7 -IF('Financial Goals (non-recurring)'!$B$4=5,IF('Detailed Cash Flow Chart'!S7="",0,'Detailed Cash Flow Chart'!S7),0) -IF('Financial Goals (non-recurring)'!$D$4=5,IF('Detailed Cash Flow Chart'!U7="",0,'Detailed Cash Flow Chart'!U7),0) -IF('Financial Goals (non-recurring)'!$F$4=5,IF('Detailed Cash Flow Chart'!W7="",0,'Detailed Cash Flow Chart'!W7),0) -IF('Financial Goals (non-recurring)'!$H$4=5,IF('Detailed Cash Flow Chart'!Y7="",0,'Detailed Cash Flow Chart'!Y7),0) -IF('Financial Goals (non-recurring)'!$J$4=5,IF('Detailed Cash Flow Chart'!AA7="",0,'Detailed Cash Flow Chart'!AA7),0) -IF('Financial Goals (recurring)'!$B$3=5,IF('Detailed Cash Flow Chart'!AG7="",0,'Detailed Cash Flow Chart'!AG7),0) -IF('Financial Goals (recurring)'!$K$3=5,IF('Detailed Cash Flow Chart'!AN7="",0,'Detailed Cash Flow Chart'!AN7),0) -> -77079.58958 | AI7: =AG7 -IF('Financial Goals (non-recurring)'!$B$4=6,IF('Detailed Cash Flow Chart'!S7="",0,'Detailed Cash Flow Chart'!S7),0) -IF('Financial Goals (non-recurring)'!$D$4=6,IF('Detailed Cash Flow Chart'!U7="",0,'Detailed Cash Flow Chart'!U7),0) -IF('Financial Goals (non-recurring)'!$F$4=6,IF('Detailed Cash Flow Chart'!W7="",0,'Detailed Cash Flow Chart'!W7),0) -IF('Financial Goals (non-recurring)'!$H$4=6,IF('Detailed Cash Flow Chart'!Y7="",0,'Detailed Cash Flow Chart'!Y7),0) -IF('Financial Goals (non-recurring)'!$J$4=6,IF('Detailed Cash Flow Chart'!AA7="",0,'Detailed Cash Flow Chart'!AA7),0) -IF('Financial Goals (recurring)'!$B$3=6,IF('Detailed Cash Flow Chart'!AG7="",0,'Detailed Cash Flow Chart'!AG7),0) -IF('Financial Goals (recurring)'!$K$3=6,IF('Detailed Cash Flow Chart'!AN7="",0,'Detailed Cash Flow Chart'!AN7),0) -> -77079.58958 | AK7: =AI7 -IF('Financial Goals (non-recurring)'!$B$4=7,IF('Detailed Cash Flow Chart'!S7="",0,'Detailed Cash Flow Chart'!S7),0) -IF('Financial Goals (non-recurring)'!$D$4=7,IF('Detailed Cash Flow Chart'!U7="",0,'Detailed Cash Flow Chart'!U7),0) -IF('Financial Goals (non-recurring)'!$F$4=7,IF('Detailed Cash Flow Chart'!W7="",0,'Detailed Cash Flow Chart'!W7),0) -IF('Financial Goals (non-recurring)'!$H$4=7,IF('Detailed Cash Flow Chart'!Y7="",0,'Detailed Cash Flow Chart'!Y7),0) -IF('Financial Goals (non-recurring)'!$J$4=7,IF('Detailed Cash Flow Chart'!AA7="",0,'Detailed Cash Flow Chart'!AA7),0) -IF('Financial Goals (recurring)'!$B$3=7,IF('Detailed Cash Flow Chart'!AG7="",0,'Detailed Cash Flow Chart'!AG7),0) -IF('Financial Goals (recurring)'!$K$3=7,IF('Detailed Cash Flow Chart'!AN7="",0,'Detailed Cash Flow Chart'!AN7),0) -> -77079.58958
A8: =IF(ISERROR(C8),NA(),'Detailed Cash Flow Chart'!AJ8) -> 2018 | B8: ='Detailed Cash Flow Chart'!B8 -> 44 | C8: 146410 | D8: 0 | E8: 0 | F8: 0 | G8: 0 | I8: ='Detailed Cash Flow Chart'!D8 -> 0 | J8: =IF(ISERROR(C8),NA(),'Detailed Cash Flow Chart'!C8) -> 45876.40233 | K8: 55000 | L8: =IF(ISERROR(C8),NA(),'Detailed Cash Flow Chart'!AQ8) -> 120731.0771 | M8: 45533.59767 | O8: =IF('Financial Goals (non-recurring)'!F9=0,"",'Financial Goals (non-recurring)'!F5) -> Abhay's Marriage | P8: =IF(O8="","",YEAR('Financial Goals (non-recurring)'!F7)) -> 2013 | Q8: =IF(O8="","",YEAR('Financial Goals (non-recurring)'!F6)) -> 2032 | R8: =IF(O8="","",Report!I19) -> 2 | S8: 1+2 | V8: 1+2+3+4+5 | W8: 5 | X8: =AH3 -> 0.48 | Y8: =IF('Detailed Cash Flow Chart'!E8=0,NA(),M8-'Detailed Cash Flow Chart'!E8) -> 7886.080619 | AA8: =Y8 -IF('Financial Goals (non-recurring)'!$B$4=2,IF('Detailed Cash Flow Chart'!S8="",0,'Detailed Cash Flow Chart'!S8),0) -IF('Financial Goals (non-recurring)'!$D$4=2,IF('Detailed Cash Flow Chart'!U8="",0,'Detailed Cash Flow Chart'!U8),0) -IF('Financial Goals (non-recurring)'!$F$4=2,IF('Detailed Cash Flow Chart'!W8="",0,'Detailed Cash Flow Chart'!W8),0) -IF('Financial Goals (non-recurring)'!$H$4=2,IF('Detailed Cash Flow Chart'!Y8="",0,'Detailed Cash Flow Chart'!Y8),0) -IF('Financial Goals (non-recurring)'!$J$4=2,IF('Detailed Cash Flow Chart'!AA8="",0,'Detailed Cash Flow Chart'!AA8),0) -IF('Financial Goals (recurring)'!$B$3=2,IF('Detailed Cash Flow Chart'!AG8="",0,'Detailed Cash Flow Chart'!AG8),0) -IF('Financial Goals (recurring)'!$K$3=2,IF('Detailed Cash Flow Chart'!AN8="",0,'Detailed Cash Flow Chart'!AN8),0) -> 7886.080619 | AC8: =AA8 -IF('Financial Goals (non-recurring)'!$B$4=3,IF('Detailed Cash Flow Chart'!S8="",0,'Detailed Cash Flow Chart'!S8),0) -IF('Financial Goals (non-recurring)'!$D$4=3,IF('Detailed Cash Flow Chart'!U8="",0,'Detailed Cash Flow Chart'!U8),0) -IF('Financial Goals (non-recurring)'!$F$4=3,IF('Detailed Cash Flow Chart'!W8="",0,'Detailed Cash Flow Chart'!W8),0) -IF('Financial Goals (non-recurring)'!$H$4=3,IF('Detailed Cash Flow Chart'!Y8="",0,'Detailed Cash Flow Chart'!Y8),0) -IF('Financial Goals (non-recurring)'!$J$4=3,IF('Detailed Cash Flow Chart'!AA8="",0,'Detailed Cash Flow Chart'!AA8),0) -IF('Financial Goals (recurring)'!$B$3=3,IF('Detailed Cash Flow Chart'!AG8="",0,'Detailed Cash Flow Chart'!AG8),0) -IF('Financial Goals (recurring)'!$K$3=3,IF('Detailed Cash Flow Chart'!AN8="",0,'Detailed Cash Flow Chart'!AN8),0) -> -38505.63269 | AE8: =AC8 -IF('Financial Goals (non-recurring)'!$B$4=4,IF('Detailed Cash Flow Chart'!S8="",0,'Detailed Cash Flow Chart'!S8),0) -IF('Financial Goals (non-recurring)'!$D$4=4,IF('Detailed Cash Flow Chart'!U8="",0,'Detailed Cash Flow Chart'!U8),0) -IF('Financial Goals (non-recurring)'!$F$4=4,IF('Detailed Cash Flow Chart'!W8="",0,'Detailed Cash Flow Chart'!W8),0) -IF('Financial Goals (non-recurring)'!$H$4=4,IF('Detailed Cash Flow Chart'!Y8="",0,'Detailed Cash Flow Chart'!Y8),0) -IF('Financial Goals (non-recurring)'!$J$4=4,IF('Detailed Cash Flow Chart'!AA8="",0,'Detailed Cash Flow Chart'!AA8),0) -IF('Financial Goals (recurring)'!$B$3=4,IF('Detailed Cash Flow Chart'!AG8="",0,'Detailed Cash Flow Chart'!AG8),0) -IF('Financial Goals (recurring)'!$K$3=4,IF('Detailed Cash Flow Chart'!AN8="",0,'Detailed Cash Flow Chart'!AN8),0) -> -75197.47944 | AG8: =AE8 -IF('Financial Goals (non-recurring)'!$B$4=5,IF('Detailed Cash Flow Chart'!S8="",0,'Detailed Cash Flow Chart'!S8),0) -IF('Financial Goals (non-recurring)'!$D$4=5,IF('Detailed Cash Flow Chart'!U8="",0,'Detailed Cash Flow Chart'!U8),0) -IF('Financial Goals (non-recurring)'!$F$4=5,IF('Detailed Cash Flow Chart'!W8="",0,'Detailed Cash Flow Chart'!W8),0) -IF('Financial Goals (non-recurring)'!$H$4=5,IF('Detailed Cash Flow Chart'!Y8="",0,'Detailed Cash Flow Chart'!Y8),0) -IF('Financial Goals (non-recurring)'!$J$4=5,IF('Detailed Cash Flow Chart'!AA8="",0,'Detailed Cash Flow Chart'!AA8),0) -IF('Financial Goals (recurring)'!$B$3=5,IF('Detailed Cash Flow Chart'!AG8="",0,'Detailed Cash Flow Chart'!AG8),0) -IF('Financial Goals (recurring)'!$K$3=5,IF('Detailed Cash Flow Chart'!AN8="",0,'Detailed Cash Flow Chart'!AN8),0) -> -75197.47944 | AI8: =AG8 -IF('Financial Goals (non-recurring)'!$B$4=6,IF('Detailed Cash Flow Chart'!S8="",0,'Detailed Cash Flow Chart'!S8),0) -IF('Financial Goals (non-recurring)'!$D$4=6,IF('Detailed Cash Flow Chart'!U8="",0,'Detailed Cash Flow Chart'!U8),0) -IF('Financial Goals (non-recurring)'!$F$4=6,IF('Detailed Cash Flow Chart'!W8="",0,'Detailed Cash Flow Chart'!W8),0) -IF('Financial Goals (non-recurring)'!$H$4=6,IF('Detailed Cash Flow Chart'!Y8="",0,'Detailed Cash Flow Chart'!Y8),0) -IF('Financial Goals (non-recurring)'!$J$4=6,IF('Detailed Cash Flow Chart'!AA8="",0,'Detailed Cash Flow Chart'!AA8),0) -IF('Financial Goals (recurring)'!$B$3=6,IF('Detailed Cash Flow Chart'!AG8="",0,'Detailed Cash Flow Chart'!AG8),0) -IF('Financial Goals (recurring)'!$K$3=6,IF('Detailed Cash Flow Chart'!AN8="",0,'Detailed Cash Flow Chart'!AN8),0) -> -75197.47944 | AK8: =AI8 -IF('Financial Goals (non-recurring)'!$B$4=7,IF('Detailed Cash Flow Chart'!S8="",0,'Detailed Cash Flow Chart'!S8),0) -IF('Financial Goals (non-recurring)'!$D$4=7,IF('Detailed Cash Flow Chart'!U8="",0,'Detailed Cash Flow Chart'!U8),0) -IF('Financial Goals (non-recurring)'!$F$4=7,IF('Detailed Cash Flow Chart'!W8="",0,'Detailed Cash Flow Chart'!W8),0) -IF('Financial Goals (non-recurring)'!$H$4=7,IF('Detailed Cash Flow Chart'!Y8="",0,'Detailed Cash Flow Chart'!Y8),0) -IF('Financial Goals (non-recurring)'!$J$4=7,IF('Detailed Cash Flow Chart'!AA8="",0,'Detailed Cash Flow Chart'!AA8),0) -IF('Financial Goals (recurring)'!$B$3=7,IF('Detailed Cash Flow Chart'!AG8="",0,'Detailed Cash Flow Chart'!AG8),0) -IF('Financial Goals (recurring)'!$K$3=7,IF('Detailed Cash Flow Chart'!AN8="",0,'Detailed Cash Flow Chart'!AN8),0) -> -75197.47944
A9: =IF(ISERROR(C9),NA(),'Detailed Cash Flow Chart'!AJ9) -> 2019 | B9: ='Detailed Cash Flow Chart'!B9 -> 45 | C9: 161051 | D9: 0 | E9: 0 | F9: 0 | G9: 0 | I9: ='Detailed Cash Flow Chart'!D9 -> 0 | J9: =IF(ISERROR(C9),NA(),'Detailed Cash Flow Chart'!C9) -> 50005.27853 | K9: 55000 | L9: =IF(ISERROR(C9),NA(),'Detailed Cash Flow Chart'!AQ9) -> 92443.1534 | M9: 56045.72147 | O9: =IF('Financial Goals (non-recurring)'!H9=0,"",'Financial Goals (non-recurring)'!H5) -> XYZ marriage | P9: =IF(O9="","",YEAR('Financial Goals (non-recurring)'!H7)) -> 2015 | Q9: =IF(O9="","",YEAR('Financial Goals (non-recurring)'!H6)) -> 2019 | R9: =IF(O9="","",Report!I20) -> 4 | S9: 1+2+3+4 | T9: 0.48 | V9: 1+2+3+4+5+6 | W9: 6 | X9: =AJ3 -> 0.48 | Y9: =IF('Detailed Cash Flow Chart'!E9=0,NA(),M9-'Detailed Cash Flow Chart'!E9) -> 14633.4527 | AA9: =Y9 -IF('Financial Goals (non-recurring)'!$B$4=2,IF('Detailed Cash Flow Chart'!S9="",0,'Detailed Cash Flow Chart'!S9),0) -IF('Financial Goals (non-recurring)'!$D$4=2,IF('Detailed Cash Flow Chart'!U9="",0,'Detailed Cash Flow Chart'!U9),0) -IF('Financial Goals (non-recurring)'!$F$4=2,IF('Detailed Cash Flow Chart'!W9="",0,'Detailed Cash Flow Chart'!W9),0) -IF('Financial Goals (non-recurring)'!$H$4=2,IF('Detailed Cash Flow Chart'!Y9="",0,'Detailed Cash Flow Chart'!Y9),0) -IF('Financial Goals (non-recurring)'!$J$4=2,IF('Detailed Cash Flow Chart'!AA9="",0,'Detailed Cash Flow Chart'!AA9),0) -IF('Financial Goals (recurring)'!$B$3=2,IF('Detailed Cash Flow Chart'!AG9="",0,'Detailed Cash Flow Chart'!AG9),0) -IF('Financial Goals (recurring)'!$K$3=2,IF('Detailed Cash Flow Chart'!AN9="",0,'Detailed Cash Flow Chart'!AN9),0) -> 14633.4527 | AC9: =AA9 -IF('Financial Goals (non-recurring)'!$B$4=3,IF('Detailed Cash Flow Chart'!S9="",0,'Detailed Cash Flow Chart'!S9),0) -IF('Financial Goals (non-recurring)'!$D$4=3,IF('Detailed Cash Flow Chart'!U9="",0,'Detailed Cash Flow Chart'!U9),0) -IF('Financial Goals (non-recurring)'!$F$4=3,IF('Detailed Cash Flow Chart'!W9="",0,'Detailed Cash Flow Chart'!W9),0) -IF('Financial Goals (non-recurring)'!$H$4=3,IF('Detailed Cash Flow Chart'!Y9="",0,'Detailed Cash Flow Chart'!Y9),0) -IF('Financial Goals (non-recurring)'!$J$4=3,IF('Detailed Cash Flow Chart'!AA9="",0,'Detailed Cash Flow Chart'!AA9),0) -IF('Financial Goals (recurring)'!$B$3=3,IF('Detailed Cash Flow Chart'!AG9="",0,'Detailed Cash Flow Chart'!AG9),0) -IF('Financial Goals (recurring)'!$K$3=3,IF('Detailed Cash Flow Chart'!AN9="",0,'Detailed Cash Flow Chart'!AN9),0) -> -36397.43193 | AE9: =AC9 -IF('Financial Goals (non-recurring)'!$B$4=4,IF('Detailed Cash Flow Chart'!S9="",0,'Detailed Cash Flow Chart'!S9),0) -IF('Financial Goals (non-recurring)'!$D$4=4,IF('Detailed Cash Flow Chart'!U9="",0,'Detailed Cash Flow Chart'!U9),0) -IF('Financial Goals (non-recurring)'!$F$4=4,IF('Detailed Cash Flow Chart'!W9="",0,'Detailed Cash Flow Chart'!W9),0) -IF('Financial Goals (non-recurring)'!$H$4=4,IF('Detailed Cash Flow Chart'!Y9="",0,'Detailed Cash Flow Chart'!Y9),0) -IF('Financial Goals (non-recurring)'!$J$4=4,IF('Detailed Cash Flow Chart'!AA9="",0,'Detailed Cash Flow Chart'!AA9),0) -IF('Financial Goals (recurring)'!$B$3=4,IF('Detailed Cash Flow Chart'!AG9="",0,'Detailed Cash Flow Chart'!AG9),0) -IF('Financial Goals (recurring)'!$K$3=4,IF('Detailed Cash Flow Chart'!AN9="",0,'Detailed Cash Flow Chart'!AN9),0) -> -36397.43193 | AG9: =AE9 -IF('Financial Goals (non-recurring)'!$B$4=5,IF('Detailed Cash Flow Chart'!S9="",0,'Detailed Cash Flow Chart'!S9),0) -IF('Financial Goals (non-recurring)'!$D$4=5,IF('Detailed Cash Flow Chart'!U9="",0,'Detailed Cash Flow Chart'!U9),0) -IF('Financial Goals (non-recurring)'!$F$4=5,IF('Detailed Cash Flow Chart'!W9="",0,'Detailed Cash Flow Chart'!W9),0) -IF('Financial Goals (non-recurring)'!$H$4=5,IF('Detailed Cash Flow Chart'!Y9="",0,'Detailed Cash Flow Chart'!Y9),0) -IF('Financial Goals (non-recurring)'!$J$4=5,IF('Detailed Cash Flow Chart'!AA9="",0,'Detailed Cash Flow Chart'!AA9),0) -IF('Financial Goals (recurring)'!$B$3=5,IF('Detailed Cash Flow Chart'!AG9="",0,'Detailed Cash Flow Chart'!AG9),0) -IF('Financial Goals (recurring)'!$K$3=5,IF('Detailed Cash Flow Chart'!AN9="",0,'Detailed Cash Flow Chart'!AN9),0) -> -36397.43193 | AI9: =AG9 -IF('Financial Goals (non-recurring)'!$B$4=6,IF('Detailed Cash Flow Chart'!S9="",0,'Detailed Cash Flow Chart'!S9),0) -IF('Financial Goals (non-recurring)'!$D$4=6,IF('Detailed Cash Flow Chart'!U9="",0,'Detailed Cash Flow Chart'!U9),0) -IF('Financial Goals (non-recurring)'!$F$4=6,IF('Detailed Cash Flow Chart'!W9="",0,'Detailed Cash Flow Chart'!W9),0) -IF('Financial Goals (non-recurring)'!$H$4=6,IF('Detailed Cash Flow Chart'!Y9="",0,'Detailed Cash Flow Chart'!Y9),0) -IF('Financial Goals (non-recurring)'!$J$4=6,IF('Detailed Cash Flow Chart'!AA9="",0,'Detailed Cash Flow Chart'!AA9),0) -IF('Financial Goals (recurring)'!$B$3=6,IF('Detailed Cash Flow Chart'!AG9="",0,'Detailed Cash Flow Chart'!AG9),0) -IF('Financial Goals (recurring)'!$K$3=6,IF('Detailed Cash Flow Chart'!AN9="",0,'Detailed Cash Flow Chart'!AN9),0) -> -36397.43193 | AK9: =AI9 -IF('Financial Goals (non-recurring)'!$B$4=7,IF('Detailed Cash Flow Chart'!S9="",0,'Detailed Cash Flow Chart'!S9),0) -IF('Financial Goals (non-recurring)'!$D$4=7,IF('Detailed Cash Flow Chart'!U9="",0,'Detailed Cash Flow Chart'!U9),0) -IF('Financial Goals (non-recurring)'!$F$4=7,IF('Detailed Cash Flow Chart'!W9="",0,'Detailed Cash Flow Chart'!W9),0) -IF('Financial Goals (non-recurring)'!$H$4=7,IF('Detailed Cash Flow Chart'!Y9="",0,'Detailed Cash Flow Chart'!Y9),0) -IF('Financial Goals (non-recurring)'!$J$4=7,IF('Detailed Cash Flow Chart'!AA9="",0,'Detailed Cash Flow Chart'!AA9),0) -IF('Financial Goals (recurring)'!$B$3=7,IF('Detailed Cash Flow Chart'!AG9="",0,'Detailed Cash Flow Chart'!AG9),0) -IF('Financial Goals (recurring)'!$K$3=7,IF('Detailed Cash Flow Chart'!AN9="",0,'Detailed Cash Flow Chart'!AN9),0) -> -36397.43193
A10: =IF(ISERROR(C10),NA(),'Detailed Cash Flow Chart'!AJ10) -> 2020 | B10: ='Detailed Cash Flow Chart'!B10 -> 46 | C10: 177156.1 | D10: 0 | E10: 0 | F10: 0 | G10: 0 | I10: ='Detailed Cash Flow Chart'!D10 -> 0 | J10: =IF(ISERROR(C10),NA(),'Detailed Cash Flow Chart'!C10) -> 54505.7536 | K10: 55000 | L10: =IF(ISERROR(C10),NA(),'Detailed Cash Flow Chart'!AQ10) -> 101687.4687 | M10: 67650.3464 | O10: =IF('Financial Goals (non-recurring)'!J9=0,"",'Financial Goals (non-recurring)'!J5) ->  | P10: =IF(O10="","",YEAR('Financial Goals (non-recurring)'!J7)) ->  | Q10: =IF(O10="","",YEAR('Financial Goals (non-recurring)'!J6)) ->  | R10: =IF(O10="","",Report!I21) ->  | S10: see note 2 below | V10: 1+2+3+4+5+6+7 | W10: 7 | X10: =AL3 -> 0.48 | Y10: =IF('Detailed Cash Flow Chart'!E10=0,NA(),M10-'Detailed Cash Flow Chart'!E10) -> 22096.85076 | AA10: =Y10 -IF('Financial Goals (non-recurring)'!$B$4=2,IF('Detailed Cash Flow Chart'!S10="",0,'Detailed Cash Flow Chart'!S10),0) -IF('Financial Goals (non-recurring)'!$D$4=2,IF('Detailed Cash Flow Chart'!U10="",0,'Detailed Cash Flow Chart'!U10),0) -IF('Financial Goals (non-recurring)'!$F$4=2,IF('Detailed Cash Flow Chart'!W10="",0,'Detailed Cash Flow Chart'!W10),0) -IF('Financial Goals (non-recurring)'!$H$4=2,IF('Detailed Cash Flow Chart'!Y10="",0,'Detailed Cash Flow Chart'!Y10),0) -IF('Financial Goals (non-recurring)'!$J$4=2,IF('Detailed Cash Flow Chart'!AA10="",0,'Detailed Cash Flow Chart'!AA10),0) -IF('Financial Goals (recurring)'!$B$3=2,IF('Detailed Cash Flow Chart'!AG10="",0,'Detailed Cash Flow Chart'!AG10),0) -IF('Financial Goals (recurring)'!$K$3=2,IF('Detailed Cash Flow Chart'!AN10="",0,'Detailed Cash Flow Chart'!AN10),0) -> 22096.85076 | AC10: =AA10 -IF('Financial Goals (non-recurring)'!$B$4=3,IF('Detailed Cash Flow Chart'!S10="",0,'Detailed Cash Flow Chart'!S10),0) -IF('Financial Goals (non-recurring)'!$D$4=3,IF('Detailed Cash Flow Chart'!U10="",0,'Detailed Cash Flow Chart'!U10),0) -IF('Financial Goals (non-recurring)'!$F$4=3,IF('Detailed Cash Flow Chart'!W10="",0,'Detailed Cash Flow Chart'!W10),0) -IF('Financial Goals (non-recurring)'!$H$4=3,IF('Detailed Cash Flow Chart'!Y10="",0,'Detailed Cash Flow Chart'!Y10),0) -IF('Financial Goals (non-recurring)'!$J$4=3,IF('Detailed Cash Flow Chart'!AA10="",0,'Detailed Cash Flow Chart'!AA10),0) -IF('Financial Goals (recurring)'!$B$3=3,IF('Detailed Cash Flow Chart'!AG10="",0,'Detailed Cash Flow Chart'!AG10),0) -IF('Financial Goals (recurring)'!$K$3=3,IF('Detailed Cash Flow Chart'!AN10="",0,'Detailed Cash Flow Chart'!AN10),0) -> -34037.12234 | AE10: =AC10 -IF('Financial Goals (non-recurring)'!$B$4=4,IF('Detailed Cash Flow Chart'!S10="",0,'Detailed Cash Flow Chart'!S10),0) -IF('Financial Goals (non-recurring)'!$D$4=4,IF('Detailed Cash Flow Chart'!U10="",0,'Detailed Cash Flow Chart'!U10),0) -IF('Financial Goals (non-recurring)'!$F$4=4,IF('Detailed Cash Flow Chart'!W10="",0,'Detailed Cash Flow Chart'!W10),0) -IF('Financial Goals (non-recurring)'!$H$4=4,IF('Detailed Cash Flow Chart'!Y10="",0,'Detailed Cash Flow Chart'!Y10),0) -IF('Financial Goals (non-recurring)'!$J$4=4,IF('Detailed Cash Flow Chart'!AA10="",0,'Detailed Cash Flow Chart'!AA10),0) -IF('Financial Goals (recurring)'!$B$3=4,IF('Detailed Cash Flow Chart'!AG10="",0,'Detailed Cash Flow Chart'!AG10),0) -IF('Financial Goals (recurring)'!$K$3=4,IF('Detailed Cash Flow Chart'!AN10="",0,'Detailed Cash Flow Chart'!AN10),0) -> -34037.12234 | AG10: =AE10 -IF('Financial Goals (non-recurring)'!$B$4=5,IF('Detailed Cash Flow Chart'!S10="",0,'Detailed Cash Flow Chart'!S10),0) -IF('Financial Goals (non-recurring)'!$D$4=5,IF('Detailed Cash Flow Chart'!U10="",0,'Detailed Cash Flow Chart'!U10),0) -IF('Financial Goals (non-recurring)'!$F$4=5,IF('Detailed Cash Flow Chart'!W10="",0,'Detailed Cash Flow Chart'!W10),0) -IF('Financial Goals (non-recurring)'!$H$4=5,IF('Detailed Cash Flow Chart'!Y10="",0,'Detailed Cash Flow Chart'!Y10),0) -IF('Financial Goals (non-recurring)'!$J$4=5,IF('Detailed Cash Flow Chart'!AA10="",0,'Detailed Cash Flow Chart'!AA10),0) -IF('Financial Goals (recurring)'!$B$3=5,IF('Detailed Cash Flow Chart'!AG10="",0,'Detailed Cash Flow Chart'!AG10),0) -IF('Financial Goals (recurring)'!$K$3=5,IF('Detailed Cash Flow Chart'!AN10="",0,'Detailed Cash Flow Chart'!AN10),0) -> -34037.12234 | AI10: =AG10 -IF('Financial Goals (non-recurring)'!$B$4=6,IF('Detailed Cash Flow Chart'!S10="",0,'Detailed Cash Flow Chart'!S10),0) -IF('Financial Goals (non-recurring)'!$D$4=6,IF('Detailed Cash Flow Chart'!U10="",0,'Detailed Cash Flow Chart'!U10),0) -IF('Financial Goals (non-recurring)'!$F$4=6,IF('Detailed Cash Flow Chart'!W10="",0,'Detailed Cash Flow Chart'!W10),0) -IF('Financial Goals (non-recurring)'!$H$4=6,IF('Detailed Cash Flow Chart'!Y10="",0,'Detailed Cash Flow Chart'!Y10),0) -IF('Financial Goals (non-recurring)'!$J$4=6,IF('Detailed Cash Flow Chart'!AA10="",0,'Detailed Cash Flow Chart'!AA10),0) -IF('Financial Goals (recurring)'!$B$3=6,IF('Detailed Cash Flow Chart'!AG10="",0,'Detailed Cash Flow Chart'!AG10),0) -IF('Financial Goals (recurring)'!$K$3=6,IF('Detailed Cash Flow Chart'!AN10="",0,'Detailed Cash Flow Chart'!AN10),0) -> -34037.12234 | AK10: =AI10 -IF('Financial Goals (non-recurring)'!$B$4=7,IF('Detailed Cash Flow Chart'!S10="",0,'Detailed Cash Flow Chart'!S10),0) -IF('Financial Goals (non-recurring)'!$D$4=7,IF('Detailed Cash Flow Chart'!U10="",0,'Detailed Cash Flow Chart'!U10),0) -IF('Financial Goals (non-recurring)'!$F$4=7,IF('Detailed Cash Flow Chart'!W10="",0,'Detailed Cash Flow Chart'!W10),0) -IF('Financial Goals (non-recurring)'!$H$4=7,IF('Detailed Cash Flow Chart'!Y10="",0,'Detailed Cash Flow Chart'!Y10),0) -IF('Financial Goals (non-recurring)'!$J$4=7,IF('Detailed Cash Flow Chart'!AA10="",0,'Detailed Cash Flow Chart'!AA10),0) -IF('Financial Goals (recurring)'!$B$3=7,IF('Detailed Cash Flow Chart'!AG10="",0,'Detailed Cash Flow Chart'!AG10),0) -IF('Financial Goals (recurring)'!$K$3=7,IF('Detailed Cash Flow Chart'!AN10="",0,'Detailed Cash Flow Chart'!AN10),0) -> -34037.12234
A11: =IF(ISERROR(C11),NA(),'Detailed Cash Flow Chart'!AJ11) -> 2021 | B11: ='Detailed Cash Flow Chart'!B11 -> 47 | C11: 194871.71 | D11: 0 | E11: 0 | F11: 0 | G11: 0 | I11: ='Detailed Cash Flow Chart'!D11 -> 0 | J11: =IF(ISERROR(C11),NA(),'Detailed Cash Flow Chart'!C11) -> 59411.27143 | K11: 55000 | L11: =IF(ISERROR(C11),NA(),'Detailed Cash Flow Chart'!AQ11) -> 111856.2156 | M11: 80460.43857 | O11: =IF('Financial Goals (recurring)'!B8=0,"",'Financial Goals (recurring)'!A2) ->  | P11: =IF(O11="","",'Financial Goals (recurring)'!D4) ->  | Q11: =IF(O11="","",MAX('Financial Goals (recurring)'!E4:E34)) ->  | R11: =IF(O11="","",Report!I23) ->  | S11: see note 2 below | Y11: =IF('Detailed Cash Flow Chart'!E11=0,NA(),M11-'Detailed Cash Flow Chart'!E11) -> 30351.59337 | AA11: =Y11 -IF('Financial Goals (non-recurring)'!$B$4=2,IF('Detailed Cash Flow Chart'!S11="",0,'Detailed Cash Flow Chart'!S11),0) -IF('Financial Goals (non-recurring)'!$D$4=2,IF('Detailed Cash Flow Chart'!U11="",0,'Detailed Cash Flow Chart'!U11),0) -IF('Financial Goals (non-recurring)'!$F$4=2,IF('Detailed Cash Flow Chart'!W11="",0,'Detailed Cash Flow Chart'!W11),0) -IF('Financial Goals (non-recurring)'!$H$4=2,IF('Detailed Cash Flow Chart'!Y11="",0,'Detailed Cash Flow Chart'!Y11),0) -IF('Financial Goals (non-recurring)'!$J$4=2,IF('Detailed Cash Flow Chart'!AA11="",0,'Detailed Cash Flow Chart'!AA11),0) -IF('Financial Goals (recurring)'!$B$3=2,IF('Detailed Cash Flow Chart'!AG11="",0,'Detailed Cash Flow Chart'!AG11),0) -IF('Financial Goals (recurring)'!$K$3=2,IF('Detailed Cash Flow Chart'!AN11="",0,'Detailed Cash Flow Chart'!AN11),0) -> 30351.59337 | AC11: =AA11 -IF('Financial Goals (non-recurring)'!$B$4=3,IF('Detailed Cash Flow Chart'!S11="",0,'Detailed Cash Flow Chart'!S11),0) -IF('Financial Goals (non-recurring)'!$D$4=3,IF('Detailed Cash Flow Chart'!U11="",0,'Detailed Cash Flow Chart'!U11),0) -IF('Financial Goals (non-recurring)'!$F$4=3,IF('Detailed Cash Flow Chart'!W11="",0,'Detailed Cash Flow Chart'!W11),0) -IF('Financial Goals (non-recurring)'!$H$4=3,IF('Detailed Cash Flow Chart'!Y11="",0,'Detailed Cash Flow Chart'!Y11),0) -IF('Financial Goals (non-recurring)'!$J$4=3,IF('Detailed Cash Flow Chart'!AA11="",0,'Detailed Cash Flow Chart'!AA11),0) -IF('Financial Goals (recurring)'!$B$3=3,IF('Detailed Cash Flow Chart'!AG11="",0,'Detailed Cash Flow Chart'!AG11),0) -IF('Financial Goals (recurring)'!$K$3=3,IF('Detailed Cash Flow Chart'!AN11="",0,'Detailed Cash Flow Chart'!AN11),0) -> -31395.77704 | AE11: =AC11 -IF('Financial Goals (non-recurring)'!$B$4=4,IF('Detailed Cash Flow Chart'!S11="",0,'Detailed Cash Flow Chart'!S11),0) -IF('Financial Goals (non-recurring)'!$D$4=4,IF('Detailed Cash Flow Chart'!U11="",0,'Detailed Cash Flow Chart'!U11),0) -IF('Financial Goals (non-recurring)'!$F$4=4,IF('Detailed Cash Flow Chart'!W11="",0,'Detailed Cash Flow Chart'!W11),0) -IF('Financial Goals (non-recurring)'!$H$4=4,IF('Detailed Cash Flow Chart'!Y11="",0,'Detailed Cash Flow Chart'!Y11),0) -IF('Financial Goals (non-recurring)'!$J$4=4,IF('Detailed Cash Flow Chart'!AA11="",0,'Detailed Cash Flow Chart'!AA11),0) -IF('Financial Goals (recurring)'!$B$3=4,IF('Detailed Cash Flow Chart'!AG11="",0,'Detailed Cash Flow Chart'!AG11),0) -IF('Financial Goals (recurring)'!$K$3=4,IF('Detailed Cash Flow Chart'!AN11="",0,'Detailed Cash Flow Chart'!AN11),0) -> -31395.77704 | AG11: =AE11 -IF('Financial Goals (non-recurring)'!$B$4=5,IF('Detailed Cash Flow Chart'!S11="",0,'Detailed Cash Flow Chart'!S11),0) -IF('Financial Goals (non-recurring)'!$D$4=5,IF('Detailed Cash Flow Chart'!U11="",0,'Detailed Cash Flow Chart'!U11),0) -IF('Financial Goals (non-recurring)'!$F$4=5,IF('Detailed Cash Flow Chart'!W11="",0,'Detailed Cash Flow Chart'!W11),0) -IF('Financial Goals (non-recurring)'!$H$4=5,IF('Detailed Cash Flow Chart'!Y11="",0,'Detailed Cash Flow Chart'!Y11),0) -IF('Financial Goals (non-recurring)'!$J$4=5,IF('Detailed Cash Flow Chart'!AA11="",0,'Detailed Cash Flow Chart'!AA11),0) -IF('Financial Goals (recurring)'!$B$3=5,IF('Detailed Cash Flow Chart'!AG11="",0,'Detailed Cash Flow Chart'!AG11),0) -IF('Financial Goals (recurring)'!$K$3=5,IF('Detailed Cash Flow Chart'!AN11="",0,'Detailed Cash Flow Chart'!AN11),0) -> -31395.77704 | AI11: =AG11 -IF('Financial Goals (non-recurring)'!$B$4=6,IF('Detailed Cash Flow Chart'!S11="",0,'Detailed Cash Flow Chart'!S11),0) -IF('Financial Goals (non-recurring)'!$D$4=6,IF('Detailed Cash Flow Chart'!U11="",0,'Detailed Cash Flow Chart'!U11),0) -IF('Financial Goals (non-recurring)'!$F$4=6,IF('Detailed Cash Flow Chart'!W11="",0,'Detailed Cash Flow Chart'!W11),0) -IF('Financial Goals (non-recurring)'!$H$4=6,IF('Detailed Cash Flow Chart'!Y11="",0,'Detailed Cash Flow Chart'!Y11),0) -IF('Financial Goals (non-recurring)'!$J$4=6,IF('Detailed Cash Flow Chart'!AA11="",0,'Detailed Cash Flow Chart'!AA11),0) -IF('Financial Goals (recurring)'!$B$3=6,IF('Detailed Cash Flow Chart'!AG11="",0,'Detailed Cash Flow Chart'!AG11),0) -IF('Financial Goals (recurring)'!$K$3=6,IF('Detailed Cash Flow Chart'!AN11="",0,'Detailed Cash Flow Chart'!AN11),0) -> -31395.77704 | AK11: =AI11 -IF('Financial Goals (non-recurring)'!$B$4=7,IF('Detailed Cash Flow Chart'!S11="",0,'Detailed Cash Flow Chart'!S11),0) -IF('Financial Goals (non-recurring)'!$D$4=7,IF('Detailed Cash Flow Chart'!U11="",0,'Detailed Cash Flow Chart'!U11),0) -IF('Financial Goals (non-recurring)'!$F$4=7,IF('Detailed Cash Flow Chart'!W11="",0,'Detailed Cash Flow Chart'!W11),0) -IF('Financial Goals (non-recurring)'!$H$4=7,IF('Detailed Cash Flow Chart'!Y11="",0,'Detailed Cash Flow Chart'!Y11),0) -IF('Financial Goals (non-recurring)'!$J$4=7,IF('Detailed Cash Flow Chart'!AA11="",0,'Detailed Cash Flow Chart'!AA11),0) -IF('Financial Goals (recurring)'!$B$3=7,IF('Detailed Cash Flow Chart'!AG11="",0,'Detailed Cash Flow Chart'!AG11),0) -IF('Financial Goals (recurring)'!$K$3=7,IF('Detailed Cash Flow Chart'!AN11="",0,'Detailed Cash Flow Chart'!AN11),0) -> -31395.77704
A12: =IF(ISERROR(C12),NA(),'Detailed Cash Flow Chart'!AJ12) -> 2022 | B12: ='Detailed Cash Flow Chart'!B12 -> 48 | C12: 214358.881 | D12: 0 | E12: 0 | F12: 0 | G12: 0 | I12: ='Detailed Cash Flow Chart'!D12 -> 0 | J12: =IF(ISERROR(C12),NA(),'Detailed Cash Flow Chart'!C12) -> 64758.28585 | K12: 55000 | L12: =IF(ISERROR(C12),NA(),'Detailed Cash Flow Chart'!AQ12) -> 123041.8372 | M12: 94600.59515 | O12: =IF('Financial Goals (recurring)'!K8=0,"",'Financial Goals (recurring)'!J2) ->  | P12: =IF(O12="","",'Financial Goals (recurring)'!M4) ->  | Q12: =IF(O12="","",MAX('Financial Goals (recurring)'!N4:N34)) ->  | R12: =IF(O12="","",Report!I24) ->  | S12: =IF(Q12>$Q$5,"see note 2 below",IF(R12="","",INDEX($V$4:$X$10,MATCH(R12,$W$4:$W$10,0),1))) -> see note 2 below | Y12: =IF('Detailed Cash Flow Chart'!E12=0,NA(),M12-'Detailed Cash Flow Chart'!E12) -> 39480.86542 | AA12: =Y12 -IF('Financial Goals (non-recurring)'!$B$4=2,IF('Detailed Cash Flow Chart'!S12="",0,'Detailed Cash Flow Chart'!S12),0) -IF('Financial Goals (non-recurring)'!$D$4=2,IF('Detailed Cash Flow Chart'!U12="",0,'Detailed Cash Flow Chart'!U12),0) -IF('Financial Goals (non-recurring)'!$F$4=2,IF('Detailed Cash Flow Chart'!W12="",0,'Detailed Cash Flow Chart'!W12),0) -IF('Financial Goals (non-recurring)'!$H$4=2,IF('Detailed Cash Flow Chart'!Y12="",0,'Detailed Cash Flow Chart'!Y12),0) -IF('Financial Goals (non-recurring)'!$J$4=2,IF('Detailed Cash Flow Chart'!AA12="",0,'Detailed Cash Flow Chart'!AA12),0) -IF('Financial Goals (recurring)'!$B$3=2,IF('Detailed Cash Flow Chart'!AG12="",0,'Detailed Cash Flow Chart'!AG12),0) -IF('Financial Goals (recurring)'!$K$3=2,IF('Detailed Cash Flow Chart'!AN12="",0,'Detailed Cash Flow Chart'!AN12),0) -> 39480.86542 | AC12: =AA12 -IF('Financial Goals (non-recurring)'!$B$4=3,IF('Detailed Cash Flow Chart'!S12="",0,'Detailed Cash Flow Chart'!S12),0) -IF('Financial Goals (non-recurring)'!$D$4=3,IF('Detailed Cash Flow Chart'!U12="",0,'Detailed Cash Flow Chart'!U12),0) -IF('Financial Goals (non-recurring)'!$F$4=3,IF('Detailed Cash Flow Chart'!W12="",0,'Detailed Cash Flow Chart'!W12),0) -IF('Financial Goals (non-recurring)'!$H$4=3,IF('Detailed Cash Flow Chart'!Y12="",0,'Detailed Cash Flow Chart'!Y12),0) -IF('Financial Goals (non-recurring)'!$J$4=3,IF('Detailed Cash Flow Chart'!AA12="",0,'Detailed Cash Flow Chart'!AA12),0) -IF('Financial Goals (recurring)'!$B$3=3,IF('Detailed Cash Flow Chart'!AG12="",0,'Detailed Cash Flow Chart'!AG12),0) -IF('Financial Goals (recurring)'!$K$3=3,IF('Detailed Cash Flow Chart'!AN12="",0,'Detailed Cash Flow Chart'!AN12),0) -> -28441.24203 | AE12: =AC12 -IF('Financial Goals (non-recurring)'!$B$4=4,IF('Detailed Cash Flow Chart'!S12="",0,'Detailed Cash Flow Chart'!S12),0) -IF('Financial Goals (non-recurring)'!$D$4=4,IF('Detailed Cash Flow Chart'!U12="",0,'Detailed Cash Flow Chart'!U12),0) -IF('Financial Goals (non-recurring)'!$F$4=4,IF('Detailed Cash Flow Chart'!W12="",0,'Detailed Cash Flow Chart'!W12),0) -IF('Financial Goals (non-recurring)'!$H$4=4,IF('Detailed Cash Flow Chart'!Y12="",0,'Detailed Cash Flow Chart'!Y12),0) -IF('Financial Goals (non-recurring)'!$J$4=4,IF('Detailed Cash Flow Chart'!AA12="",0,'Detailed Cash Flow Chart'!AA12),0) -IF('Financial Goals (recurring)'!$B$3=4,IF('Detailed Cash Flow Chart'!AG12="",0,'Detailed Cash Flow Chart'!AG12),0) -IF('Financial Goals (recurring)'!$K$3=4,IF('Detailed Cash Flow Chart'!AN12="",0,'Detailed Cash Flow Chart'!AN12),0) -> -28441.24203 | AG12: =AE12 -IF('Financial Goals (non-recurring)'!$B$4=5,IF('Detailed Cash Flow Chart'!S12="",0,'Detailed Cash Flow Chart'!S12),0) -IF('Financial Goals (non-recurring)'!$D$4=5,IF('Detailed Cash Flow Chart'!U12="",0,'Detailed Cash Flow Chart'!U12),0) -IF('Financial Goals (non-recurring)'!$F$4=5,IF('Detailed Cash Flow Chart'!W12="",0,'Detailed Cash Flow Chart'!W12),0) -IF('Financial Goals (non-recurring)'!$H$4=5,IF('Detailed Cash Flow Chart'!Y12="",0,'Detailed Cash Flow Chart'!Y12),0) -IF('Financial Goals (non-recurring)'!$J$4=5,IF('Detailed Cash Flow Chart'!AA12="",0,'Detailed Cash Flow Chart'!AA12),0) -IF('Financial Goals (recurring)'!$B$3=5,IF('Detailed Cash Flow Chart'!AG12="",0,'Detailed Cash Flow Chart'!AG12),0) -IF('Financial Goals (recurring)'!$K$3=5,IF('Detailed Cash Flow Chart'!AN12="",0,'Detailed Cash Flow Chart'!AN12),0) -> -28441.24203 | AI12: =AG12 -IF('Financial Goals (non-recurring)'!$B$4=6,IF('Detailed Cash Flow Chart'!S12="",0,'Detailed Cash Flow Chart'!S12),0) -IF('Financial Goals (non-recurring)'!$D$4=6,IF('Detailed Cash Flow Chart'!U12="",0,'Detailed Cash Flow Chart'!U12),0) -IF('Financial Goals (non-recurring)'!$F$4=6,IF('Detailed Cash Flow Chart'!W12="",0,'Detailed Cash Flow Chart'!W12),0) -IF('Financial Goals (non-recurring)'!$H$4=6,IF('Detailed Cash Flow Chart'!Y12="",0,'Detailed Cash Flow Chart'!Y12),0) -IF('Financial Goals (non-recurring)'!$J$4=6,IF('Detailed Cash Flow Chart'!AA12="",0,'Detailed Cash Flow Chart'!AA12),0) -IF('Financial Goals (recurring)'!$B$3=6,IF('Detailed Cash Flow Chart'!AG12="",0,'Detailed Cash Flow Chart'!AG12),0) -IF('Financial Goals (recurring)'!$K$3=6,IF('Detailed Cash Flow Chart'!AN12="",0,'Detailed Cash Flow Chart'!AN12),0) -> -28441.24203 | AK12: =AI12 -IF('Financial Goals (non-recurring)'!$B$4=7,IF('Detailed Cash Flow Chart'!S12="",0,'Detailed Cash Flow Chart'!S12),0) -IF('Financial Goals (non-recurring)'!$D$4=7,IF('Detailed Cash Flow Chart'!U12="",0,'Detailed Cash Flow Chart'!U12),0) -IF('Financial Goals (non-recurring)'!$F$4=7,IF('Detailed Cash Flow Chart'!W12="",0,'Detailed Cash Flow Chart'!W12),0) -IF('Financial Goals (non-recurring)'!$H$4=7,IF('Detailed Cash Flow Chart'!Y12="",0,'Detailed Cash Flow Chart'!Y12),0) -IF('Financial Goals (non-recurring)'!$J$4=7,IF('Detailed Cash Flow Chart'!AA12="",0,'Detailed Cash Flow Chart'!AA12),0) -IF('Financial Goals (recurring)'!$B$3=7,IF('Detailed Cash Flow Chart'!AG12="",0,'Detailed Cash Flow Chart'!AG12),0) -IF('Financial Goals (recurring)'!$K$3=7,IF('Detailed Cash Flow Chart'!AN12="",0,'Detailed Cash Flow Chart'!AN12),0) -> -28441.24203
A13: =IF(ISERROR(C13),NA(),'Detailed Cash Flow Chart'!AJ13) -> 2023 | B13: ='Detailed Cash Flow Chart'!B13 -> 49 | C13: 235794.7691 | D13: 0 | E13: 0 | F13: 0 | G13: 0 | I13: ='Detailed Cash Flow Chart'!D13 -> 0 | J13: =IF(ISERROR(C13),NA(),'Detailed Cash Flow Chart'!C13) -> 70586.53158 | K13: 55000 | L13: =IF(ISERROR(C13),NA(),'Detailed Cash Flow Chart'!AQ13) -> 135346.0209 | M13: 110208.2375 | O13: Note 1: investment for retirement is assumed to begin only from next year | Y13: =IF('Detailed Cash Flow Chart'!E13=0,NA(),M13-'Detailed Cash Flow Chart'!E13) -> 49576.53482 | AA13: =Y13 -IF('Financial Goals (non-recurring)'!$B$4=2,IF('Detailed Cash Flow Chart'!S13="",0,'Detailed Cash Flow Chart'!S13),0) -IF('Financial Goals (non-recurring)'!$D$4=2,IF('Detailed Cash Flow Chart'!U13="",0,'Detailed Cash Flow Chart'!U13),0) -IF('Financial Goals (non-recurring)'!$F$4=2,IF('Detailed Cash Flow Chart'!W13="",0,'Detailed Cash Flow Chart'!W13),0) -IF('Financial Goals (non-recurring)'!$H$4=2,IF('Detailed Cash Flow Chart'!Y13="",0,'Detailed Cash Flow Chart'!Y13),0) -IF('Financial Goals (non-recurring)'!$J$4=2,IF('Detailed Cash Flow Chart'!AA13="",0,'Detailed Cash Flow Chart'!AA13),0) -IF('Financial Goals (recurring)'!$B$3=2,IF('Detailed Cash Flow Chart'!AG13="",0,'Detailed Cash Flow Chart'!AG13),0) -IF('Financial Goals (recurring)'!$K$3=2,IF('Detailed Cash Flow Chart'!AN13="",0,'Detailed Cash Flow Chart'!AN13),0) -> 49576.53482 | AC13: =AA13 -IF('Financial Goals (non-recurring)'!$B$4=3,IF('Detailed Cash Flow Chart'!S13="",0,'Detailed Cash Flow Chart'!S13),0) -IF('Financial Goals (non-recurring)'!$D$4=3,IF('Detailed Cash Flow Chart'!U13="",0,'Detailed Cash Flow Chart'!U13),0) -IF('Financial Goals (non-recurring)'!$F$4=3,IF('Detailed Cash Flow Chart'!W13="",0,'Detailed Cash Flow Chart'!W13),0) -IF('Financial Goals (non-recurring)'!$H$4=3,IF('Detailed Cash Flow Chart'!Y13="",0,'Detailed Cash Flow Chart'!Y13),0) -IF('Financial Goals (non-recurring)'!$J$4=3,IF('Detailed Cash Flow Chart'!AA13="",0,'Detailed Cash Flow Chart'!AA13),0) -IF('Financial Goals (recurring)'!$B$3=3,IF('Detailed Cash Flow Chart'!AG13="",0,'Detailed Cash Flow Chart'!AG13),0) -IF('Financial Goals (recurring)'!$K$3=3,IF('Detailed Cash Flow Chart'!AN13="",0,'Detailed Cash Flow Chart'!AN13),0) -> -25137.78337 | AE13: =AC13 -IF('Financial Goals (non-recurring)'!$B$4=4,IF('Detailed Cash Flow Chart'!S13="",0,'Detailed Cash Flow Chart'!S13),0) -IF('Financial Goals (non-recurring)'!$D$4=4,IF('Detailed Cash Flow Chart'!U13="",0,'Detailed Cash Flow Chart'!U13),0) -IF('Financial Goals (non-recurring)'!$F$4=4,IF('Detailed Cash Flow Chart'!W13="",0,'Detailed Cash Flow Chart'!W13),0) -IF('Financial Goals (non-recurring)'!$H$4=4,IF('Detailed Cash Flow Chart'!Y13="",0,'Detailed Cash Flow Chart'!Y13),0) -IF('Financial Goals (non-recurring)'!$J$4=4,IF('Detailed Cash Flow Chart'!AA13="",0,'Detailed Cash Flow Chart'!AA13),0) -IF('Financial Goals (recurring)'!$B$3=4,IF('Detailed Cash Flow Chart'!AG13="",0,'Detailed Cash Flow Chart'!AG13),0) -IF('Financial Goals (recurring)'!$K$3=4,IF('Detailed Cash Flow Chart'!AN13="",0,'Detailed Cash Flow Chart'!AN13),0) -> -25137.78337 | AG13: =AE13 -IF('Financial Goals (non-recurring)'!$B$4=5,IF('Detailed Cash Flow Chart'!S13="",0,'Detailed Cash Flow Chart'!S13),0) -IF('Financial Goals (non-recurring)'!$D$4=5,IF('Detailed Cash Flow Chart'!U13="",0,'Detailed Cash Flow Chart'!U13),0) -IF('Financial Goals (non-recurring)'!$F$4=5,IF('Detailed Cash Flow Chart'!W13="",0,'Detailed Cash Flow Chart'!W13),0) -IF('Financial Goals (non-recurring)'!$H$4=5,IF('Detailed Cash Flow Chart'!Y13="",0,'Detailed Cash Flow Chart'!Y13),0) -IF('Financial Goals (non-recurring)'!$J$4=5,IF('Detailed Cash Flow Chart'!AA13="",0,'Detailed Cash Flow Chart'!AA13),0) -IF('Financial Goals (recurring)'!$B$3=5,IF('Detailed Cash Flow Chart'!AG13="",0,'Detailed Cash Flow Chart'!AG13),0) -IF('Financial Goals (recurring)'!$K$3=5,IF('Detailed Cash Flow Chart'!AN13="",0,'Detailed Cash Flow Chart'!AN13),0) -> -25137.78337 | AI13: =AG13 -IF('Financial Goals (non-recurring)'!$B$4=6,IF('Detailed Cash Flow Chart'!S13="",0,'Detailed Cash Flow Chart'!S13),0) -IF('Financial Goals (non-recurring)'!$D$4=6,IF('Detailed Cash Flow Chart'!U13="",0,'Detailed Cash Flow Chart'!U13),0) -IF('Financial Goals (non-recurring)'!$F$4=6,IF('Detailed Cash Flow Chart'!W13="",0,'Detailed Cash Flow Chart'!W13),0) -IF('Financial Goals (non-recurring)'!$H$4=6,IF('Detailed Cash Flow Chart'!Y13="",0,'Detailed Cash Flow Chart'!Y13),0) -IF('Financial Goals (non-recurring)'!$J$4=6,IF('Detailed Cash Flow Chart'!AA13="",0,'Detailed Cash Flow Chart'!AA13),0) -IF('Financial Goals (recurring)'!$B$3=6,IF('Detailed Cash Flow Chart'!AG13="",0,'Detailed Cash Flow Chart'!AG13),0) -IF('Financial Goals (recurring)'!$K$3=6,IF('Detailed Cash Flow Chart'!AN13="",0,'Detailed Cash Flow Chart'!AN13),0) -> -25137.78337 | AK13: =AI13 -IF('Financial Goals (non-recurring)'!$B$4=7,IF('Detailed Cash Flow Chart'!S13="",0,'Detailed Cash Flow Chart'!S13),0) -IF('Financial Goals (non-recurring)'!$D$4=7,IF('Detailed Cash Flow Chart'!U13="",0,'Detailed Cash Flow Chart'!U13),0) -IF('Financial Goals (non-recurring)'!$F$4=7,IF('Detailed Cash Flow Chart'!W13="",0,'Detailed Cash Flow Chart'!W13),0) -IF('Financial Goals (non-recurring)'!$H$4=7,IF('Detailed Cash Flow Chart'!Y13="",0,'Detailed Cash Flow Chart'!Y13),0) -IF('Financial Goals (non-recurring)'!$J$4=7,IF('Detailed Cash Flow Chart'!AA13="",0,'Detailed Cash Flow Chart'!AA13),0) -IF('Financial Goals (recurring)'!$B$3=7,IF('Detailed Cash Flow Chart'!AG13="",0,'Detailed Cash Flow Chart'!AG13),0) -IF('Financial Goals (recurring)'!$K$3=7,IF('Detailed Cash Flow Chart'!AN13="",0,'Detailed Cash Flow Chart'!AN13),0) -> -25137.78337
A14: =IF(ISERROR(C14),NA(),'Detailed Cash Flow Chart'!AJ14) -> 2024 | B14: ='Detailed Cash Flow Chart'!B14 -> 50 | C14: 259374.246 | D14: 0 | E14: 0 | F14: 0 | G14: 0 | I14: ='Detailed Cash Flow Chart'!D14 -> 0 | J14: =IF(ISERROR(C14),NA(),'Detailed Cash Flow Chart'!C14) -> 76939.31942 | K14: 55000 | L14: =IF(ISERROR(C14),NA(),'Detailed Cash Flow Chart'!AQ14) -> 148880.623 | M14: 127434.9266 | O14: Note 2: This investment occurs in retirement. Therefore you will have to | Y14: =IF('Detailed Cash Flow Chart'!E14=0,NA(),M14-'Detailed Cash Flow Chart'!E14) -> 60740.05362 | AA14: =Y14 -IF('Financial Goals (non-recurring)'!$B$4=2,IF('Detailed Cash Flow Chart'!S14="",0,'Detailed Cash Flow Chart'!S14),0) -IF('Financial Goals (non-recurring)'!$D$4=2,IF('Detailed Cash Flow Chart'!U14="",0,'Detailed Cash Flow Chart'!U14),0) -IF('Financial Goals (non-recurring)'!$F$4=2,IF('Detailed Cash Flow Chart'!W14="",0,'Detailed Cash Flow Chart'!W14),0) -IF('Financial Goals (non-recurring)'!$H$4=2,IF('Detailed Cash Flow Chart'!Y14="",0,'Detailed Cash Flow Chart'!Y14),0) -IF('Financial Goals (non-recurring)'!$J$4=2,IF('Detailed Cash Flow Chart'!AA14="",0,'Detailed Cash Flow Chart'!AA14),0) -IF('Financial Goals (recurring)'!$B$3=2,IF('Detailed Cash Flow Chart'!AG14="",0,'Detailed Cash Flow Chart'!AG14),0) -IF('Financial Goals (recurring)'!$K$3=2,IF('Detailed Cash Flow Chart'!AN14="",0,'Detailed Cash Flow Chart'!AN14),0) -> 60740.05362 | AC14: =AA14 -IF('Financial Goals (non-recurring)'!$B$4=3,IF('Detailed Cash Flow Chart'!S14="",0,'Detailed Cash Flow Chart'!S14),0) -IF('Financial Goals (non-recurring)'!$D$4=3,IF('Detailed Cash Flow Chart'!U14="",0,'Detailed Cash Flow Chart'!U14),0) -IF('Financial Goals (non-recurring)'!$F$4=3,IF('Detailed Cash Flow Chart'!W14="",0,'Detailed Cash Flow Chart'!W14),0) -IF('Financial Goals (non-recurring)'!$H$4=3,IF('Detailed Cash Flow Chart'!Y14="",0,'Detailed Cash Flow Chart'!Y14),0) -IF('Financial Goals (non-recurring)'!$J$4=3,IF('Detailed Cash Flow Chart'!AA14="",0,'Detailed Cash Flow Chart'!AA14),0) -IF('Financial Goals (recurring)'!$B$3=3,IF('Detailed Cash Flow Chart'!AG14="",0,'Detailed Cash Flow Chart'!AG14),0) -IF('Financial Goals (recurring)'!$K$3=3,IF('Detailed Cash Flow Chart'!AN14="",0,'Detailed Cash Flow Chart'!AN14),0) -> -21445.69639 | AE14: =AC14 -IF('Financial Goals (non-recurring)'!$B$4=4,IF('Detailed Cash Flow Chart'!S14="",0,'Detailed Cash Flow Chart'!S14),0) -IF('Financial Goals (non-recurring)'!$D$4=4,IF('Detailed Cash Flow Chart'!U14="",0,'Detailed Cash Flow Chart'!U14),0) -IF('Financial Goals (non-recurring)'!$F$4=4,IF('Detailed Cash Flow Chart'!W14="",0,'Detailed Cash Flow Chart'!W14),0) -IF('Financial Goals (non-recurring)'!$H$4=4,IF('Detailed Cash Flow Chart'!Y14="",0,'Detailed Cash Flow Chart'!Y14),0) -IF('Financial Goals (non-recurring)'!$J$4=4,IF('Detailed Cash Flow Chart'!AA14="",0,'Detailed Cash Flow Chart'!AA14),0) -IF('Financial Goals (recurring)'!$B$3=4,IF('Detailed Cash Flow Chart'!AG14="",0,'Detailed Cash Flow Chart'!AG14),0) -IF('Financial Goals (recurring)'!$K$3=4,IF('Detailed Cash Flow Chart'!AN14="",0,'Detailed Cash Flow Chart'!AN14),0) -> -21445.69639 | AG14: =AE14 -IF('Financial Goals (non-recurring)'!$B$4=5,IF('Detailed Cash Flow Chart'!S14="",0,'Detailed Cash Flow Chart'!S14),0) -IF('Financial Goals (non-recurring)'!$D$4=5,IF('Detailed Cash Flow Chart'!U14="",0,'Detailed Cash Flow Chart'!U14),0) -IF('Financial Goals (non-recurring)'!$F$4=5,IF('Detailed Cash Flow Chart'!W14="",0,'Detailed Cash Flow Chart'!W14),0) -IF('Financial Goals (non-recurring)'!$H$4=5,IF('Detailed Cash Flow Chart'!Y14="",0,'Detailed Cash Flow Chart'!Y14),0) -IF('Financial Goals (non-recurring)'!$J$4=5,IF('Detailed Cash Flow Chart'!AA14="",0,'Detailed Cash Flow Chart'!AA14),0) -IF('Financial Goals (recurring)'!$B$3=5,IF('Detailed Cash Flow Chart'!AG14="",0,'Detailed Cash Flow Chart'!AG14),0) -IF('Financial Goals (recurring)'!$K$3=5,IF('Detailed Cash Flow Chart'!AN14="",0,'Detailed Cash Flow Chart'!AN14),0) -> -21445.69639 | AI14: =AG14 -IF('Financial Goals (non-recurring)'!$B$4=6,IF('Detailed Cash Flow Chart'!S14="",0,'Detailed Cash Flow Chart'!S14),0) -IF('Financial Goals (non-recurring)'!$D$4=6,IF('Detailed Cash Flow Chart'!U14="",0,'Detailed Cash Flow Chart'!U14),0) -IF('Financial Goals (non-recurring)'!$F$4=6,IF('Detailed Cash Flow Chart'!W14="",0,'Detailed Cash Flow Chart'!W14),0) -IF('Financial Goals (non-recurring)'!$H$4=6,IF('Detailed Cash Flow Chart'!Y14="",0,'Detailed Cash Flow Chart'!Y14),0) -IF('Financial Goals (non-recurring)'!$J$4=6,IF('Detailed Cash Flow Chart'!AA14="",0,'Detailed Cash Flow Chart'!AA14),0) -IF('Financial Goals (recurring)'!$B$3=6,IF('Detailed Cash Flow Chart'!AG14="",0,'Detailed Cash Flow Chart'!AG14),0) -IF('Financial Goals (recurring)'!$K$3=6,IF('Detailed Cash Flow Chart'!AN14="",0,'Detailed Cash Flow Chart'!AN14),0) -> -21445.69639 | AK14: =AI14 -IF('Financial Goals (non-recurring)'!$B$4=7,IF('Detailed Cash Flow Chart'!S14="",0,'Detailed Cash Flow Chart'!S14),0) -IF('Financial Goals (non-recurring)'!$D$4=7,IF('Detailed Cash Flow Chart'!U14="",0,'Detailed Cash Flow Chart'!U14),0) -IF('Financial Goals (non-recurring)'!$F$4=7,IF('Detailed Cash Flow Chart'!W14="",0,'Detailed Cash Flow Chart'!W14),0) -IF('Financial Goals (non-recurring)'!$H$4=7,IF('Detailed Cash Flow Chart'!Y14="",0,'Detailed Cash Flow Chart'!Y14),0) -IF('Financial Goals (non-recurring)'!$J$4=7,IF('Detailed Cash Flow Chart'!AA14="",0,'Detailed Cash Flow Chart'!AA14),0) -IF('Financial Goals (recurring)'!$B$3=7,IF('Detailed Cash Flow Chart'!AG14="",0,'Detailed Cash Flow Chart'!AG14),0) -IF('Financial Goals (recurring)'!$K$3=7,IF('Detailed Cash Flow Chart'!AN14="",0,'Detailed Cash Flow Chart'!AN14),0) -> -21445.69639
A15: =IF(ISERROR(C15),NA(),'Detailed Cash Flow Chart'!AJ15) -> 2025 | B15: ='Detailed Cash Flow Chart'!B15 -> 51 | C15: 285311.6706 | D15: 0 | E15: 0 | F15: 0 | G15: 0 | I15: ='Detailed Cash Flow Chart'!D15 -> 0 | J15: =IF(ISERROR(C15),NA(),'Detailed Cash Flow Chart'!C15) -> 83863.85817 | K15: 55000 | L15: =IF(ISERROR(C15),NA(),'Detailed Cash Flow Chart'!AQ15) -> 163768.6853 | M15: 146447.8124 | O15: inspect the cash flow chart to assess feasibility. | Y15: =IF('Detailed Cash Flow Chart'!E15=0,NA(),M15-'Detailed Cash Flow Chart'!E15) -> 73083.45218 | AA15: =Y15 -IF('Financial Goals (non-recurring)'!$B$4=2,IF('Detailed Cash Flow Chart'!S15="",0,'Detailed Cash Flow Chart'!S15),0) -IF('Financial Goals (non-recurring)'!$D$4=2,IF('Detailed Cash Flow Chart'!U15="",0,'Detailed Cash Flow Chart'!U15),0) -IF('Financial Goals (non-recurring)'!$F$4=2,IF('Detailed Cash Flow Chart'!W15="",0,'Detailed Cash Flow Chart'!W15),0) -IF('Financial Goals (non-recurring)'!$H$4=2,IF('Detailed Cash Flow Chart'!Y15="",0,'Detailed Cash Flow Chart'!Y15),0) -IF('Financial Goals (non-recurring)'!$J$4=2,IF('Detailed Cash Flow Chart'!AA15="",0,'Detailed Cash Flow Chart'!AA15),0) -IF('Financial Goals (recurring)'!$B$3=2,IF('Detailed Cash Flow Chart'!AG15="",0,'Detailed Cash Flow Chart'!AG15),0) -IF('Financial Goals (recurring)'!$K$3=2,IF('Detailed Cash Flow Chart'!AN15="",0,'Detailed Cash Flow Chart'!AN15),0) -> 73083.45218 | AC15: =AA15 -IF('Financial Goals (non-recurring)'!$B$4=3,IF('Detailed Cash Flow Chart'!S15="",0,'Detailed Cash Flow Chart'!S15),0) -IF('Financial Goals (non-recurring)'!$D$4=3,IF('Detailed Cash Flow Chart'!U15="",0,'Detailed Cash Flow Chart'!U15),0) -IF('Financial Goals (non-recurring)'!$F$4=3,IF('Detailed Cash Flow Chart'!W15="",0,'Detailed Cash Flow Chart'!W15),0) -IF('Financial Goals (non-recurring)'!$H$4=3,IF('Detailed Cash Flow Chart'!Y15="",0,'Detailed Cash Flow Chart'!Y15),0) -IF('Financial Goals (non-recurring)'!$J$4=3,IF('Detailed Cash Flow Chart'!AA15="",0,'Detailed Cash Flow Chart'!AA15),0) -IF('Financial Goals (recurring)'!$B$3=3,IF('Detailed Cash Flow Chart'!AG15="",0,'Detailed Cash Flow Chart'!AG15),0) -IF('Financial Goals (recurring)'!$K$3=3,IF('Detailed Cash Flow Chart'!AN15="",0,'Detailed Cash Flow Chart'!AN15),0) -> -17320.87284 | AE15: =AC15 -IF('Financial Goals (non-recurring)'!$B$4=4,IF('Detailed Cash Flow Chart'!S15="",0,'Detailed Cash Flow Chart'!S15),0) -IF('Financial Goals (non-recurring)'!$D$4=4,IF('Detailed Cash Flow Chart'!U15="",0,'Detailed Cash Flow Chart'!U15),0) -IF('Financial Goals (non-recurring)'!$F$4=4,IF('Detailed Cash Flow Chart'!W15="",0,'Detailed Cash Flow Chart'!W15),0) -IF('Financial Goals (non-recurring)'!$H$4=4,IF('Detailed Cash Flow Chart'!Y15="",0,'Detailed Cash Flow Chart'!Y15),0) -IF('Financial Goals (non-recurring)'!$J$4=4,IF('Detailed Cash Flow Chart'!AA15="",0,'Detailed Cash Flow Chart'!AA15),0) -IF('Financial Goals (recurring)'!$B$3=4,IF('Detailed Cash Flow Chart'!AG15="",0,'Detailed Cash Flow Chart'!AG15),0) -IF('Financial Goals (recurring)'!$K$3=4,IF('Detailed Cash Flow Chart'!AN15="",0,'Detailed Cash Flow Chart'!AN15),0) -> -17320.87284 | AG15: =AE15 -IF('Financial Goals (non-recurring)'!$B$4=5,IF('Detailed Cash Flow Chart'!S15="",0,'Detailed Cash Flow Chart'!S15),0) -IF('Financial Goals (non-recurring)'!$D$4=5,IF('Detailed Cash Flow Chart'!U15="",0,'Detailed Cash Flow Chart'!U15),0) -IF('Financial Goals (non-recurring)'!$F$4=5,IF('Detailed Cash Flow Chart'!W15="",0,'Detailed Cash Flow Chart'!W15),0) -IF('Financial Goals (non-recurring)'!$H$4=5,IF('Detailed Cash Flow Chart'!Y15="",0,'Detailed Cash Flow Chart'!Y15),0) -IF('Financial Goals (non-recurring)'!$J$4=5,IF('Detailed Cash Flow Chart'!AA15="",0,'Detailed Cash Flow Chart'!AA15),0) -IF('Financial Goals (recurring)'!$B$3=5,IF('Detailed Cash Flow Chart'!AG15="",0,'Detailed Cash Flow Chart'!AG15),0) -IF('Financial Goals (recurring)'!$K$3=5,IF('Detailed Cash Flow Chart'!AN15="",0,'Detailed Cash Flow Chart'!AN15),0) -> -17320.87284 | AI15: =AG15 -IF('Financial Goals (non-recurring)'!$B$4=6,IF('Detailed Cash Flow Chart'!S15="",0,'Detailed Cash Flow Chart'!S15),0) -IF('Financial Goals (non-recurring)'!$D$4=6,IF('Detailed Cash Flow Chart'!U15="",0,'Detailed Cash Flow Chart'!U15),0) -IF('Financial Goals (non-recurring)'!$F$4=6,IF('Detailed Cash Flow Chart'!W15="",0,'Detailed Cash Flow Chart'!W15),0) -IF('Financial Goals (non-recurring)'!$H$4=6,IF('Detailed Cash Flow Chart'!Y15="",0,'Detailed Cash Flow Chart'!Y15),0) -IF('Financial Goals (non-recurring)'!$J$4=6,IF('Detailed Cash Flow Chart'!AA15="",0,'Detailed Cash Flow Chart'!AA15),0) -IF('Financial Goals (recurring)'!$B$3=6,IF('Detailed Cash Flow Chart'!AG15="",0,'Detailed Cash Flow Chart'!AG15),0) -IF('Financial Goals (recurring)'!$K$3=6,IF('Detailed Cash Flow Chart'!AN15="",0,'Detailed Cash Flow Chart'!AN15),0) -> -17320.87284 | AK15: =AI15 -IF('Financial Goals (non-recurring)'!$B$4=7,IF('Detailed Cash Flow Chart'!S15="",0,'Detailed Cash Flow Chart'!S15),0) -IF('Financial Goals (non-recurring)'!$D$4=7,IF('Detailed Cash Flow Chart'!U15="",0,'Detailed Cash Flow Chart'!U15),0) -IF('Financial Goals (non-recurring)'!$F$4=7,IF('Detailed Cash Flow Chart'!W15="",0,'Detailed Cash Flow Chart'!W15),0) -IF('Financial Goals (non-recurring)'!$H$4=7,IF('Detailed Cash Flow Chart'!Y15="",0,'Detailed Cash Flow Chart'!Y15),0) -IF('Financial Goals (non-recurring)'!$J$4=7,IF('Detailed Cash Flow Chart'!AA15="",0,'Detailed Cash Flow Chart'!AA15),0) -IF('Financial Goals (recurring)'!$B$3=7,IF('Detailed Cash Flow Chart'!AG15="",0,'Detailed Cash Flow Chart'!AG15),0) -IF('Financial Goals (recurring)'!$K$3=7,IF('Detailed Cash Flow Chart'!AN15="",0,'Detailed Cash Flow Chart'!AN15),0) -> -17320.87284
A16: =IF(ISERROR(C16),NA(),'Detailed Cash Flow Chart'!AJ16) -> 2026 | B16: ='Detailed Cash Flow Chart'!B16 -> 52 | C16: 313842.8377 | D16: 0 | E16: 0 | F16: 0 | G16: 0 | I16: ='Detailed Cash Flow Chart'!D16 -> 0 | J16: =IF(ISERROR(C16),NA(),'Detailed Cash Flow Chart'!C16) -> 91411.60541 | K16: 55000 | L16: =IF(ISERROR(C16),NA(),'Detailed Cash Flow Chart'!AQ16) -> 180145.5538 | M16: 167431.2323 | Y16: =IF('Detailed Cash Flow Chart'!E16=0,NA(),M16-'Detailed Cash Flow Chart'!E16) -> 86730.43598 | AA16: =Y16 -IF('Financial Goals (non-recurring)'!$B$4=2,IF('Detailed Cash Flow Chart'!S16="",0,'Detailed Cash Flow Chart'!S16),0) -IF('Financial Goals (non-recurring)'!$D$4=2,IF('Detailed Cash Flow Chart'!U16="",0,'Detailed Cash Flow Chart'!U16),0) -IF('Financial Goals (non-recurring)'!$F$4=2,IF('Detailed Cash Flow Chart'!W16="",0,'Detailed Cash Flow Chart'!W16),0) -IF('Financial Goals (non-recurring)'!$H$4=2,IF('Detailed Cash Flow Chart'!Y16="",0,'Detailed Cash Flow Chart'!Y16),0) -IF('Financial Goals (non-recurring)'!$J$4=2,IF('Detailed Cash Flow Chart'!AA16="",0,'Detailed Cash Flow Chart'!AA16),0) -IF('Financial Goals (recurring)'!$B$3=2,IF('Detailed Cash Flow Chart'!AG16="",0,'Detailed Cash Flow Chart'!AG16),0) -IF('Financial Goals (recurring)'!$K$3=2,IF('Detailed Cash Flow Chart'!AN16="",0,'Detailed Cash Flow Chart'!AN16),0) -> 86730.43598 | AC16: =AA16 -IF('Financial Goals (non-recurring)'!$B$4=3,IF('Detailed Cash Flow Chart'!S16="",0,'Detailed Cash Flow Chart'!S16),0) -IF('Financial Goals (non-recurring)'!$D$4=3,IF('Detailed Cash Flow Chart'!U16="",0,'Detailed Cash Flow Chart'!U16),0) -IF('Financial Goals (non-recurring)'!$F$4=3,IF('Detailed Cash Flow Chart'!W16="",0,'Detailed Cash Flow Chart'!W16),0) -IF('Financial Goals (non-recurring)'!$H$4=3,IF('Detailed Cash Flow Chart'!Y16="",0,'Detailed Cash Flow Chart'!Y16),0) -IF('Financial Goals (non-recurring)'!$J$4=3,IF('Detailed Cash Flow Chart'!AA16="",0,'Detailed Cash Flow Chart'!AA16),0) -IF('Financial Goals (recurring)'!$B$3=3,IF('Detailed Cash Flow Chart'!AG16="",0,'Detailed Cash Flow Chart'!AG16),0) -IF('Financial Goals (recurring)'!$K$3=3,IF('Detailed Cash Flow Chart'!AN16="",0,'Detailed Cash Flow Chart'!AN16),0) -> -12714.32154 | AE16: =AC16 -IF('Financial Goals (non-recurring)'!$B$4=4,IF('Detailed Cash Flow Chart'!S16="",0,'Detailed Cash Flow Chart'!S16),0) -IF('Financial Goals (non-recurring)'!$D$4=4,IF('Detailed Cash Flow Chart'!U16="",0,'Detailed Cash Flow Chart'!U16),0) -IF('Financial Goals (non-recurring)'!$F$4=4,IF('Detailed Cash Flow Chart'!W16="",0,'Detailed Cash Flow Chart'!W16),0) -IF('Financial Goals (non-recurring)'!$H$4=4,IF('Detailed Cash Flow Chart'!Y16="",0,'Detailed Cash Flow Chart'!Y16),0) -IF('Financial Goals (non-recurring)'!$J$4=4,IF('Detailed Cash Flow Chart'!AA16="",0,'Detailed Cash Flow Chart'!AA16),0) -IF('Financial Goals (recurring)'!$B$3=4,IF('Detailed Cash Flow Chart'!AG16="",0,'Detailed Cash Flow Chart'!AG16),0) -IF('Financial Goals (recurring)'!$K$3=4,IF('Detailed Cash Flow Chart'!AN16="",0,'Detailed Cash Flow Chart'!AN16),0) -> -12714.32154 | AG16: =AE16 -IF('Financial Goals (non-recurring)'!$B$4=5,IF('Detailed Cash Flow Chart'!S16="",0,'Detailed Cash Flow Chart'!S16),0) -IF('Financial Goals (non-recurring)'!$D$4=5,IF('Detailed Cash Flow Chart'!U16="",0,'Detailed Cash Flow Chart'!U16),0) -IF('Financial Goals (non-recurring)'!$F$4=5,IF('Detailed Cash Flow Chart'!W16="",0,'Detailed Cash Flow Chart'!W16),0) -IF('Financial Goals (non-recurring)'!$H$4=5,IF('Detailed Cash Flow Chart'!Y16="",0,'Detailed Cash Flow Chart'!Y16),0) -IF('Financial Goals (non-recurring)'!$J$4=5,IF('Detailed Cash Flow Chart'!AA16="",0,'Detailed Cash Flow Chart'!AA16),0) -IF('Financial Goals (recurring)'!$B$3=5,IF('Detailed Cash Flow Chart'!AG16="",0,'Detailed Cash Flow Chart'!AG16),0) -IF('Financial Goals (recurring)'!$K$3=5,IF('Detailed Cash Flow Chart'!AN16="",0,'Detailed Cash Flow Chart'!AN16),0) -> -12714.32154 | AI16: =AG16 -IF('Financial Goals (non-recurring)'!$B$4=6,IF('Detailed Cash Flow Chart'!S16="",0,'Detailed Cash Flow Chart'!S16),0) -IF('Financial Goals (non-recurring)'!$D$4=6,IF('Detailed Cash Flow Chart'!U16="",0,'Detailed Cash Flow Chart'!U16),0) -IF('Financial Goals (non-recurring)'!$F$4=6,IF('Detailed Cash Flow Chart'!W16="",0,'Detailed Cash Flow Chart'!W16),0) -IF('Financial Goals (non-recurring)'!$H$4=6,IF('Detailed Cash Flow Chart'!Y16="",0,'Detailed Cash Flow Chart'!Y16),0) -IF('Financial Goals (non-recurring)'!$J$4=6,IF('Detailed Cash Flow Chart'!AA16="",0,'Detailed Cash Flow Chart'!AA16),0) -IF('Financial Goals (recurring)'!$B$3=6,IF('Detailed Cash Flow Chart'!AG16="",0,'Detailed Cash Flow Chart'!AG16),0) -IF('Financial Goals (recurring)'!$K$3=6,IF('Detailed Cash Flow Chart'!AN16="",0,'Detailed Cash Flow Chart'!AN16),0) -> -12714.32154 | AK16: =AI16 -IF('Financial Goals (non-recurring)'!$B$4=7,IF('Detailed Cash Flow Chart'!S16="",0,'Detailed Cash Flow Chart'!S16),0) -IF('Financial Goals (non-recurring)'!$D$4=7,IF('Detailed Cash Flow Chart'!U16="",0,'Detailed Cash Flow Chart'!U16),0) -IF('Financial Goals (non-recurring)'!$F$4=7,IF('Detailed Cash Flow Chart'!W16="",0,'Detailed Cash Flow Chart'!W16),0) -IF('Financial Goals (non-recurring)'!$H$4=7,IF('Detailed Cash Flow Chart'!Y16="",0,'Detailed Cash Flow Chart'!Y16),0) -IF('Financial Goals (non-recurring)'!$J$4=7,IF('Detailed Cash Flow Chart'!AA16="",0,'Detailed Cash Flow Chart'!AA16),0) -IF('Financial Goals (recurring)'!$B$3=7,IF('Detailed Cash Flow Chart'!AG16="",0,'Detailed Cash Flow Chart'!AG16),0) -IF('Financial Goals (recurring)'!$K$3=7,IF('Detailed Cash Flow Chart'!AN16="",0,'Detailed Cash Flow Chart'!AN16),0) -> -12714.32154
A17: =IF(ISERROR(C17),NA(),'Detailed Cash Flow Chart'!AJ17) -> 2027 | B17: ='Detailed Cash Flow Chart'!B17 -> 53 | C17: 345227.1214 | D17: 0 | E17: 0 | F17: 0 | G17: 0 | I17: ='Detailed Cash Flow Chart'!D17 -> 0 | J17: =IF(ISERROR(C17),NA(),'Detailed Cash Flow Chart'!C17) -> 99638.64989 | K17: 55000 | L17: =IF(ISERROR(C17),NA(),'Detailed Cash Flow Chart'!AQ17) -> 146655.3111 | M17: 190588.4715 | Y17: =IF('Detailed Cash Flow Chart'!E17=0,NA(),M17-'Detailed Cash Flow Chart'!E17) -> 101817.5956 | AA17: =Y17 -IF('Financial Goals (non-recurring)'!$B$4=2,IF('Detailed Cash Flow Chart'!S17="",0,'Detailed Cash Flow Chart'!S17),0) -IF('Financial Goals (non-recurring)'!$D$4=2,IF('Detailed Cash Flow Chart'!U17="",0,'Detailed Cash Flow Chart'!U17),0) -IF('Financial Goals (non-recurring)'!$F$4=2,IF('Detailed Cash Flow Chart'!W17="",0,'Detailed Cash Flow Chart'!W17),0) -IF('Financial Goals (non-recurring)'!$H$4=2,IF('Detailed Cash Flow Chart'!Y17="",0,'Detailed Cash Flow Chart'!Y17),0) -IF('Financial Goals (non-recurring)'!$J$4=2,IF('Detailed Cash Flow Chart'!AA17="",0,'Detailed Cash Flow Chart'!AA17),0) -IF('Financial Goals (recurring)'!$B$3=2,IF('Detailed Cash Flow Chart'!AG17="",0,'Detailed Cash Flow Chart'!AG17),0) -IF('Financial Goals (recurring)'!$K$3=2,IF('Detailed Cash Flow Chart'!AN17="",0,'Detailed Cash Flow Chart'!AN17),0) -> 101817.5956 | AC17: =AA17 -IF('Financial Goals (non-recurring)'!$B$4=3,IF('Detailed Cash Flow Chart'!S17="",0,'Detailed Cash Flow Chart'!S17),0) -IF('Financial Goals (non-recurring)'!$D$4=3,IF('Detailed Cash Flow Chart'!U17="",0,'Detailed Cash Flow Chart'!U17),0) -IF('Financial Goals (non-recurring)'!$F$4=3,IF('Detailed Cash Flow Chart'!W17="",0,'Detailed Cash Flow Chart'!W17),0) -IF('Financial Goals (non-recurring)'!$H$4=3,IF('Detailed Cash Flow Chart'!Y17="",0,'Detailed Cash Flow Chart'!Y17),0) -IF('Financial Goals (non-recurring)'!$J$4=3,IF('Detailed Cash Flow Chart'!AA17="",0,'Detailed Cash Flow Chart'!AA17),0) -IF('Financial Goals (recurring)'!$B$3=3,IF('Detailed Cash Flow Chart'!AG17="",0,'Detailed Cash Flow Chart'!AG17),0) -IF('Financial Goals (recurring)'!$K$3=3,IF('Detailed Cash Flow Chart'!AN17="",0,'Detailed Cash Flow Chart'!AN17),0) -> 43933.16043 | AE17: =AC17 -IF('Financial Goals (non-recurring)'!$B$4=4,IF('Detailed Cash Flow Chart'!S17="",0,'Detailed Cash Flow Chart'!S17),0) -IF('Financial Goals (non-recurring)'!$D$4=4,IF('Detailed Cash Flow Chart'!U17="",0,'Detailed Cash Flow Chart'!U17),0) -IF('Financial Goals (non-recurring)'!$F$4=4,IF('Detailed Cash Flow Chart'!W17="",0,'Detailed Cash Flow Chart'!W17),0) -IF('Financial Goals (non-recurring)'!$H$4=4,IF('Detailed Cash Flow Chart'!Y17="",0,'Detailed Cash Flow Chart'!Y17),0) -IF('Financial Goals (non-recurring)'!$J$4=4,IF('Detailed Cash Flow Chart'!AA17="",0,'Detailed Cash Flow Chart'!AA17),0) -IF('Financial Goals (recurring)'!$B$3=4,IF('Detailed Cash Flow Chart'!AG17="",0,'Detailed Cash Flow Chart'!AG17),0) -IF('Financial Goals (recurring)'!$K$3=4,IF('Detailed Cash Flow Chart'!AN17="",0,'Detailed Cash Flow Chart'!AN17),0) -> 43933.16043 | AG17: =AE17 -IF('Financial Goals (non-recurring)'!$B$4=5,IF('Detailed Cash Flow Chart'!S17="",0,'Detailed Cash Flow Chart'!S17),0) -IF('Financial Goals (non-recurring)'!$D$4=5,IF('Detailed Cash Flow Chart'!U17="",0,'Detailed Cash Flow Chart'!U17),0) -IF('Financial Goals (non-recurring)'!$F$4=5,IF('Detailed Cash Flow Chart'!W17="",0,'Detailed Cash Flow Chart'!W17),0) -IF('Financial Goals (non-recurring)'!$H$4=5,IF('Detailed Cash Flow Chart'!Y17="",0,'Detailed Cash Flow Chart'!Y17),0) -IF('Financial Goals (non-recurring)'!$J$4=5,IF('Detailed Cash Flow Chart'!AA17="",0,'Detailed Cash Flow Chart'!AA17),0) -IF('Financial Goals (recurring)'!$B$3=5,IF('Detailed Cash Flow Chart'!AG17="",0,'Detailed Cash Flow Chart'!AG17),0) -IF('Financial Goals (recurring)'!$K$3=5,IF('Detailed Cash Flow Chart'!AN17="",0,'Detailed Cash Flow Chart'!AN17),0) -> 43933.16043 | AI17: =AG17 -IF('Financial Goals (non-recurring)'!$B$4=6,IF('Detailed Cash Flow Chart'!S17="",0,'Detailed Cash Flow Chart'!S17),0) -IF('Financial Goals (non-recurring)'!$D$4=6,IF('Detailed Cash Flow Chart'!U17="",0,'Detailed Cash Flow Chart'!U17),0) -IF('Financial Goals (non-recurring)'!$F$4=6,IF('Detailed Cash Flow Chart'!W17="",0,'Detailed Cash Flow Chart'!W17),0) -IF('Financial Goals (non-recurring)'!$H$4=6,IF('Detailed Cash Flow Chart'!Y17="",0,'Detailed Cash Flow Chart'!Y17),0) -IF('Financial Goals (non-recurring)'!$J$4=6,IF('Detailed Cash Flow Chart'!AA17="",0,'Detailed Cash Flow Chart'!AA17),0) -IF('Financial Goals (recurring)'!$B$3=6,IF('Detailed Cash Flow Chart'!AG17="",0,'Detailed Cash Flow Chart'!AG17),0) -IF('Financial Goals (recurring)'!$K$3=6,IF('Detailed Cash Flow Chart'!AN17="",0,'Detailed Cash Flow Chart'!AN17),0) -> 43933.16043 | AK17: =AI17 -IF('Financial Goals (non-recurring)'!$B$4=7,IF('Detailed Cash Flow Chart'!S17="",0,'Detailed Cash Flow Chart'!S17),0) -IF('Financial Goals (non-recurring)'!$D$4=7,IF('Detailed Cash Flow Chart'!U17="",0,'Detailed Cash Flow Chart'!U17),0) -IF('Financial Goals (non-recurring)'!$F$4=7,IF('Detailed Cash Flow Chart'!W17="",0,'Detailed Cash Flow Chart'!W17),0) -IF('Financial Goals (non-recurring)'!$H$4=7,IF('Detailed Cash Flow Chart'!Y17="",0,'Detailed Cash Flow Chart'!Y17),0) -IF('Financial Goals (non-recurring)'!$J$4=7,IF('Detailed Cash Flow Chart'!AA17="",0,'Detailed Cash Flow Chart'!AA17),0) -IF('Financial Goals (recurring)'!$B$3=7,IF('Detailed Cash Flow Chart'!AG17="",0,'Detailed Cash Flow Chart'!AG17),0) -IF('Financial Goals (recurring)'!$K$3=7,IF('Detailed Cash Flow Chart'!AN17="",0,'Detailed Cash Flow Chart'!AN17),0) -> 43933.16043
A18: =IF(ISERROR(C18),NA(),'Detailed Cash Flow Chart'!AJ18) -> 2028 | B18: ='Detailed Cash Flow Chart'!B18 -> 54 | C18: 379749.8336 | D18: 0 | E18: 0 | F18: 0 | G18: 0 | I18: ='Detailed Cash Flow Chart'!D18 -> 0 | J18: =IF(ISERROR(C18),NA(),'Detailed Cash Flow Chart'!C18) -> 108606.1284 | K18: 55000 | L18: =IF(ISERROR(C18),NA(),'Detailed Cash Flow Chart'!AQ18) -> 161320.8422 | M18: 216143.7052 | O18: If entries in this column turn red, it means that for that year, you will not be able | Y18: =IF('Detailed Cash Flow Chart'!E18=0,NA(),M18-'Detailed Cash Flow Chart'!E18) -> 118495.7417 | AA18: =Y18 -IF('Financial Goals (non-recurring)'!$B$4=2,IF('Detailed Cash Flow Chart'!S18="",0,'Detailed Cash Flow Chart'!S18),0) -IF('Financial Goals (non-recurring)'!$D$4=2,IF('Detailed Cash Flow Chart'!U18="",0,'Detailed Cash Flow Chart'!U18),0) -IF('Financial Goals (non-recurring)'!$F$4=2,IF('Detailed Cash Flow Chart'!W18="",0,'Detailed Cash Flow Chart'!W18),0) -IF('Financial Goals (non-recurring)'!$H$4=2,IF('Detailed Cash Flow Chart'!Y18="",0,'Detailed Cash Flow Chart'!Y18),0) -IF('Financial Goals (non-recurring)'!$J$4=2,IF('Detailed Cash Flow Chart'!AA18="",0,'Detailed Cash Flow Chart'!AA18),0) -IF('Financial Goals (recurring)'!$B$3=2,IF('Detailed Cash Flow Chart'!AG18="",0,'Detailed Cash Flow Chart'!AG18),0) -IF('Financial Goals (recurring)'!$K$3=2,IF('Detailed Cash Flow Chart'!AN18="",0,'Detailed Cash Flow Chart'!AN18),0) -> 118495.7417 | AC18: =AA18 -IF('Financial Goals (non-recurring)'!$B$4=3,IF('Detailed Cash Flow Chart'!S18="",0,'Detailed Cash Flow Chart'!S18),0) -IF('Financial Goals (non-recurring)'!$D$4=3,IF('Detailed Cash Flow Chart'!U18="",0,'Detailed Cash Flow Chart'!U18),0) -IF('Financial Goals (non-recurring)'!$F$4=3,IF('Detailed Cash Flow Chart'!W18="",0,'Detailed Cash Flow Chart'!W18),0) -IF('Financial Goals (non-recurring)'!$H$4=3,IF('Detailed Cash Flow Chart'!Y18="",0,'Detailed Cash Flow Chart'!Y18),0) -IF('Financial Goals (non-recurring)'!$J$4=3,IF('Detailed Cash Flow Chart'!AA18="",0,'Detailed Cash Flow Chart'!AA18),0) -IF('Financial Goals (recurring)'!$B$3=3,IF('Detailed Cash Flow Chart'!AG18="",0,'Detailed Cash Flow Chart'!AG18),0) -IF('Financial Goals (recurring)'!$K$3=3,IF('Detailed Cash Flow Chart'!AN18="",0,'Detailed Cash Flow Chart'!AN18),0) -> 54822.86297 | AE18: =AC18 -IF('Financial Goals (non-recurring)'!$B$4=4,IF('Detailed Cash Flow Chart'!S18="",0,'Detailed Cash Flow Chart'!S18),0) -IF('Financial Goals (non-recurring)'!$D$4=4,IF('Detailed Cash Flow Chart'!U18="",0,'Detailed Cash Flow Chart'!U18),0) -IF('Financial Goals (non-recurring)'!$F$4=4,IF('Detailed Cash Flow Chart'!W18="",0,'Detailed Cash Flow Chart'!W18),0) -IF('Financial Goals (non-recurring)'!$H$4=4,IF('Detailed Cash Flow Chart'!Y18="",0,'Detailed Cash Flow Chart'!Y18),0) -IF('Financial Goals (non-recurring)'!$J$4=4,IF('Detailed Cash Flow Chart'!AA18="",0,'Detailed Cash Flow Chart'!AA18),0) -IF('Financial Goals (recurring)'!$B$3=4,IF('Detailed Cash Flow Chart'!AG18="",0,'Detailed Cash Flow Chart'!AG18),0) -IF('Financial Goals (recurring)'!$K$3=4,IF('Detailed Cash Flow Chart'!AN18="",0,'Detailed Cash Flow Chart'!AN18),0) -> 54822.86297 | AG18: =AE18 -IF('Financial Goals (non-recurring)'!$B$4=5,IF('Detailed Cash Flow Chart'!S18="",0,'Detailed Cash Flow Chart'!S18),0) -IF('Financial Goals (non-recurring)'!$D$4=5,IF('Detailed Cash Flow Chart'!U18="",0,'Detailed Cash Flow Chart'!U18),0) -IF('Financial Goals (non-recurring)'!$F$4=5,IF('Detailed Cash Flow Chart'!W18="",0,'Detailed Cash Flow Chart'!W18),0) -IF('Financial Goals (non-recurring)'!$H$4=5,IF('Detailed Cash Flow Chart'!Y18="",0,'Detailed Cash Flow Chart'!Y18),0) -IF('Financial Goals (non-recurring)'!$J$4=5,IF('Detailed Cash Flow Chart'!AA18="",0,'Detailed Cash Flow Chart'!AA18),0) -IF('Financial Goals (recurring)'!$B$3=5,IF('Detailed Cash Flow Chart'!AG18="",0,'Detailed Cash Flow Chart'!AG18),0) -IF('Financial Goals (recurring)'!$K$3=5,IF('Detailed Cash Flow Chart'!AN18="",0,'Detailed Cash Flow Chart'!AN18),0) -> 54822.86297 | AI18: =AG18 -IF('Financial Goals (non-recurring)'!$B$4=6,IF('Detailed Cash Flow Chart'!S18="",0,'Detailed Cash Flow Chart'!S18),0) -IF('Financial Goals (non-recurring)'!$D$4=6,IF('Detailed Cash Flow Chart'!U18="",0,'Detailed Cash Flow Chart'!U18),0) -IF('Financial Goals (non-recurring)'!$F$4=6,IF('Detailed Cash Flow Chart'!W18="",0,'Detailed Cash Flow Chart'!W18),0) -IF('Financial Goals (non-recurring)'!$H$4=6,IF('Detailed Cash Flow Chart'!Y18="",0,'Detailed Cash Flow Chart'!Y18),0) -IF('Financial Goals (non-recurring)'!$J$4=6,IF('Detailed Cash Flow Chart'!AA18="",0,'Detailed Cash Flow Chart'!AA18),0) -IF('Financial Goals (recurring)'!$B$3=6,IF('Detailed Cash Flow Chart'!AG18="",0,'Detailed Cash Flow Chart'!AG18),0) -IF('Financial Goals (recurring)'!$K$3=6,IF('Detailed Cash Flow Chart'!AN18="",0,'Detailed Cash Flow Chart'!AN18),0) -> 54822.86297 | AK18: =AI18 -IF('Financial Goals (non-recurring)'!$B$4=7,IF('Detailed Cash Flow Chart'!S18="",0,'Detailed Cash Flow Chart'!S18),0) -IF('Financial Goals (non-recurring)'!$D$4=7,IF('Detailed Cash Flow Chart'!U18="",0,'Detailed Cash Flow Chart'!U18),0) -IF('Financial Goals (non-recurring)'!$F$4=7,IF('Detailed Cash Flow Chart'!W18="",0,'Detailed Cash Flow Chart'!W18),0) -IF('Financial Goals (non-recurring)'!$H$4=7,IF('Detailed Cash Flow Chart'!Y18="",0,'Detailed Cash Flow Chart'!Y18),0) -IF('Financial Goals (non-recurring)'!$J$4=7,IF('Detailed Cash Flow Chart'!AA18="",0,'Detailed Cash Flow Chart'!AA18),0) -IF('Financial Goals (recurring)'!$B$3=7,IF('Detailed Cash Flow Chart'!AG18="",0,'Detailed Cash Flow Chart'!AG18),0) -IF('Financial Goals (recurring)'!$K$3=7,IF('Detailed Cash Flow Chart'!AN18="",0,'Detailed Cash Flow Chart'!AN18),0) -> 54822.86297
A19: =IF(ISERROR(C19),NA(),'Detailed Cash Flow Chart'!AJ19) -> 2029 | B19: ='Detailed Cash Flow Chart'!B19 -> 55 | C19: 417724.8169 | D19: 0 | E19: 0 | F19: 0 | G19: 0 | I19: ='Detailed Cash Flow Chart'!D19 -> 0 | J19: =IF(ISERROR(C19),NA(),'Detailed Cash Flow Chart'!C19) -> 118380.6799 | K19: 55000 | L19: =IF(ISERROR(C19),NA(),'Detailed Cash Flow Chart'!AQ19) -> 107412.7599 | M19: 244344.137 | O19: to invest enough for all your goals. | Y19: =IF('Detailed Cash Flow Chart'!E19=0,NA(),M19-'Detailed Cash Flow Chart'!E19) -> 136931.3771 | AA19: =Y19 -IF('Financial Goals (non-recurring)'!$B$4=2,IF('Detailed Cash Flow Chart'!S19="",0,'Detailed Cash Flow Chart'!S19),0) -IF('Financial Goals (non-recurring)'!$D$4=2,IF('Detailed Cash Flow Chart'!U19="",0,'Detailed Cash Flow Chart'!U19),0) -IF('Financial Goals (non-recurring)'!$F$4=2,IF('Detailed Cash Flow Chart'!W19="",0,'Detailed Cash Flow Chart'!W19),0) -IF('Financial Goals (non-recurring)'!$H$4=2,IF('Detailed Cash Flow Chart'!Y19="",0,'Detailed Cash Flow Chart'!Y19),0) -IF('Financial Goals (non-recurring)'!$J$4=2,IF('Detailed Cash Flow Chart'!AA19="",0,'Detailed Cash Flow Chart'!AA19),0) -IF('Financial Goals (recurring)'!$B$3=2,IF('Detailed Cash Flow Chart'!AG19="",0,'Detailed Cash Flow Chart'!AG19),0) -IF('Financial Goals (recurring)'!$K$3=2,IF('Detailed Cash Flow Chart'!AN19="",0,'Detailed Cash Flow Chart'!AN19),0) -> 136931.3771 | AC19: =AA19 -IF('Financial Goals (non-recurring)'!$B$4=3,IF('Detailed Cash Flow Chart'!S19="",0,'Detailed Cash Flow Chart'!S19),0) -IF('Financial Goals (non-recurring)'!$D$4=3,IF('Detailed Cash Flow Chart'!U19="",0,'Detailed Cash Flow Chart'!U19),0) -IF('Financial Goals (non-recurring)'!$F$4=3,IF('Detailed Cash Flow Chart'!W19="",0,'Detailed Cash Flow Chart'!W19),0) -IF('Financial Goals (non-recurring)'!$H$4=3,IF('Detailed Cash Flow Chart'!Y19="",0,'Detailed Cash Flow Chart'!Y19),0) -IF('Financial Goals (non-recurring)'!$J$4=3,IF('Detailed Cash Flow Chart'!AA19="",0,'Detailed Cash Flow Chart'!AA19),0) -IF('Financial Goals (recurring)'!$B$3=3,IF('Detailed Cash Flow Chart'!AG19="",0,'Detailed Cash Flow Chart'!AG19),0) -IF('Financial Goals (recurring)'!$K$3=3,IF('Detailed Cash Flow Chart'!AN19="",0,'Detailed Cash Flow Chart'!AN19),0) -> 136931.3771 | AE19: =AC19 -IF('Financial Goals (non-recurring)'!$B$4=4,IF('Detailed Cash Flow Chart'!S19="",0,'Detailed Cash Flow Chart'!S19),0) -IF('Financial Goals (non-recurring)'!$D$4=4,IF('Detailed Cash Flow Chart'!U19="",0,'Detailed Cash Flow Chart'!U19),0) -IF('Financial Goals (non-recurring)'!$F$4=4,IF('Detailed Cash Flow Chart'!W19="",0,'Detailed Cash Flow Chart'!W19),0) -IF('Financial Goals (non-recurring)'!$H$4=4,IF('Detailed Cash Flow Chart'!Y19="",0,'Detailed Cash Flow Chart'!Y19),0) -IF('Financial Goals (non-recurring)'!$J$4=4,IF('Detailed Cash Flow Chart'!AA19="",0,'Detailed Cash Flow Chart'!AA19),0) -IF('Financial Goals (recurring)'!$B$3=4,IF('Detailed Cash Flow Chart'!AG19="",0,'Detailed Cash Flow Chart'!AG19),0) -IF('Financial Goals (recurring)'!$K$3=4,IF('Detailed Cash Flow Chart'!AN19="",0,'Detailed Cash Flow Chart'!AN19),0) -> 136931.3771 | AG19: =AE19 -IF('Financial Goals (non-recurring)'!$B$4=5,IF('Detailed Cash Flow Chart'!S19="",0,'Detailed Cash Flow Chart'!S19),0) -IF('Financial Goals (non-recurring)'!$D$4=5,IF('Detailed Cash Flow Chart'!U19="",0,'Detailed Cash Flow Chart'!U19),0) -IF('Financial Goals (non-recurring)'!$F$4=5,IF('Detailed Cash Flow Chart'!W19="",0,'Detailed Cash Flow Chart'!W19),0) -IF('Financial Goals (non-recurring)'!$H$4=5,IF('Detailed Cash Flow Chart'!Y19="",0,'Detailed Cash Flow Chart'!Y19),0) -IF('Financial Goals (non-recurring)'!$J$4=5,IF('Detailed Cash Flow Chart'!AA19="",0,'Detailed Cash Flow Chart'!AA19),0) -IF('Financial Goals (recurring)'!$B$3=5,IF('Detailed Cash Flow Chart'!AG19="",0,'Detailed Cash Flow Chart'!AG19),0) -IF('Financial Goals (recurring)'!$K$3=5,IF('Detailed Cash Flow Chart'!AN19="",0,'Detailed Cash Flow Chart'!AN19),0) -> 136931.3771 | AI19: =AG19 -IF('Financial Goals (non-recurring)'!$B$4=6,IF('Detailed Cash Flow Chart'!S19="",0,'Detailed Cash Flow Chart'!S19),0) -IF('Financial Goals (non-recurring)'!$D$4=6,IF('Detailed Cash Flow Chart'!U19="",0,'Detailed Cash Flow Chart'!U19),0) -IF('Financial Goals (non-recurring)'!$F$4=6,IF('Detailed Cash Flow Chart'!W19="",0,'Detailed Cash Flow Chart'!W19),0) -IF('Financial Goals (non-recurring)'!$H$4=6,IF('Detailed Cash Flow Chart'!Y19="",0,'Detailed Cash Flow Chart'!Y19),0) -IF('Financial Goals (non-recurring)'!$J$4=6,IF('Detailed Cash Flow Chart'!AA19="",0,'Detailed Cash Flow Chart'!AA19),0) -IF('Financial Goals (recurring)'!$B$3=6,IF('Detailed Cash Flow Chart'!AG19="",0,'Detailed Cash Flow Chart'!AG19),0) -IF('Financial Goals (recurring)'!$K$3=6,IF('Detailed Cash Flow Chart'!AN19="",0,'Detailed Cash Flow Chart'!AN19),0) -> 136931.3771 | AK19: =AI19 -IF('Financial Goals (non-recurring)'!$B$4=7,IF('Detailed Cash Flow Chart'!S19="",0,'Detailed Cash Flow Chart'!S19),0) -IF('Financial Goals (non-recurring)'!$D$4=7,IF('Detailed Cash Flow Chart'!U19="",0,'Detailed Cash Flow Chart'!U19),0) -IF('Financial Goals (non-recurring)'!$F$4=7,IF('Detailed Cash Flow Chart'!W19="",0,'Detailed Cash Flow Chart'!W19),0) -IF('Financial Goals (non-recurring)'!$H$4=7,IF('Detailed Cash Flow Chart'!Y19="",0,'Detailed Cash Flow Chart'!Y19),0) -IF('Financial Goals (non-recurring)'!$J$4=7,IF('Detailed Cash Flow Chart'!AA19="",0,'Detailed Cash Flow Chart'!AA19),0) -IF('Financial Goals (recurring)'!$B$3=7,IF('Detailed Cash Flow Chart'!AG19="",0,'Detailed Cash Flow Chart'!AG19),0) -IF('Financial Goals (recurring)'!$K$3=7,IF('Detailed Cash Flow Chart'!AN19="",0,'Detailed Cash Flow Chart'!AN19),0) -> 136931.3771
A20: =IF(ISERROR(C20),NA(),'Detailed Cash Flow Chart'!AJ20) -> 2030 | B20: ='Detailed Cash Flow Chart'!B20 -> 56 | C20: 459497.2986 | D20: 0 | E20: 0 | F20: 0 | G20: 0 | I20: ='Detailed Cash Flow Chart'!D20 -> 0 | J20: =IF(ISERROR(C20),NA(),'Detailed Cash Flow Chart'!C20) -> 129034.9411 | K20: 55000 | L20: =IF(ISERROR(C20),NA(),'Detailed Cash Flow Chart'!AQ20) -> 118154.0358 | M20: 275462.3575 | Y20: =IF('Detailed Cash Flow Chart'!E20=0,NA(),M20-'Detailed Cash Flow Chart'!E20) -> 157308.3217 | AA20: =Y20 -IF('Financial Goals (non-recurring)'!$B$4=2,IF('Detailed Cash Flow Chart'!S20="",0,'Detailed Cash Flow Chart'!S20),0) -IF('Financial Goals (non-recurring)'!$D$4=2,IF('Detailed Cash Flow Chart'!U20="",0,'Detailed Cash Flow Chart'!U20),0) -IF('Financial Goals (non-recurring)'!$F$4=2,IF('Detailed Cash Flow Chart'!W20="",0,'Detailed Cash Flow Chart'!W20),0) -IF('Financial Goals (non-recurring)'!$H$4=2,IF('Detailed Cash Flow Chart'!Y20="",0,'Detailed Cash Flow Chart'!Y20),0) -IF('Financial Goals (non-recurring)'!$J$4=2,IF('Detailed Cash Flow Chart'!AA20="",0,'Detailed Cash Flow Chart'!AA20),0) -IF('Financial Goals (recurring)'!$B$3=2,IF('Detailed Cash Flow Chart'!AG20="",0,'Detailed Cash Flow Chart'!AG20),0) -IF('Financial Goals (recurring)'!$K$3=2,IF('Detailed Cash Flow Chart'!AN20="",0,'Detailed Cash Flow Chart'!AN20),0) -> 157308.3217 | AC20: =AA20 -IF('Financial Goals (non-recurring)'!$B$4=3,IF('Detailed Cash Flow Chart'!S20="",0,'Detailed Cash Flow Chart'!S20),0) -IF('Financial Goals (non-recurring)'!$D$4=3,IF('Detailed Cash Flow Chart'!U20="",0,'Detailed Cash Flow Chart'!U20),0) -IF('Financial Goals (non-recurring)'!$F$4=3,IF('Detailed Cash Flow Chart'!W20="",0,'Detailed Cash Flow Chart'!W20),0) -IF('Financial Goals (non-recurring)'!$H$4=3,IF('Detailed Cash Flow Chart'!Y20="",0,'Detailed Cash Flow Chart'!Y20),0) -IF('Financial Goals (non-recurring)'!$J$4=3,IF('Detailed Cash Flow Chart'!AA20="",0,'Detailed Cash Flow Chart'!AA20),0) -IF('Financial Goals (recurring)'!$B$3=3,IF('Detailed Cash Flow Chart'!AG20="",0,'Detailed Cash Flow Chart'!AG20),0) -IF('Financial Goals (recurring)'!$K$3=3,IF('Detailed Cash Flow Chart'!AN20="",0,'Detailed Cash Flow Chart'!AN20),0) -> 157308.3217 | AE20: =AC20 -IF('Financial Goals (non-recurring)'!$B$4=4,IF('Detailed Cash Flow Chart'!S20="",0,'Detailed Cash Flow Chart'!S20),0) -IF('Financial Goals (non-recurring)'!$D$4=4,IF('Detailed Cash Flow Chart'!U20="",0,'Detailed Cash Flow Chart'!U20),0) -IF('Financial Goals (non-recurring)'!$F$4=4,IF('Detailed Cash Flow Chart'!W20="",0,'Detailed Cash Flow Chart'!W20),0) -IF('Financial Goals (non-recurring)'!$H$4=4,IF('Detailed Cash Flow Chart'!Y20="",0,'Detailed Cash Flow Chart'!Y20),0) -IF('Financial Goals (non-recurring)'!$J$4=4,IF('Detailed Cash Flow Chart'!AA20="",0,'Detailed Cash Flow Chart'!AA20),0) -IF('Financial Goals (recurring)'!$B$3=4,IF('Detailed Cash Flow Chart'!AG20="",0,'Detailed Cash Flow Chart'!AG20),0) -IF('Financial Goals (recurring)'!$K$3=4,IF('Detailed Cash Flow Chart'!AN20="",0,'Detailed Cash Flow Chart'!AN20),0) -> 157308.3217 | AG20: =AE20 -IF('Financial Goals (non-recurring)'!$B$4=5,IF('Detailed Cash Flow Chart'!S20="",0,'Detailed Cash Flow Chart'!S20),0) -IF('Financial Goals (non-recurring)'!$D$4=5,IF('Detailed Cash Flow Chart'!U20="",0,'Detailed Cash Flow Chart'!U20),0) -IF('Financial Goals (non-recurring)'!$F$4=5,IF('Detailed Cash Flow Chart'!W20="",0,'Detailed Cash Flow Chart'!W20),0) -IF('Financial Goals (non-recurring)'!$H$4=5,IF('Detailed Cash Flow Chart'!Y20="",0,'Detailed Cash Flow Chart'!Y20),0) -IF('Financial Goals (non-recurring)'!$J$4=5,IF('Detailed Cash Flow Chart'!AA20="",0,'Detailed Cash Flow Chart'!AA20),0) -IF('Financial Goals (recurring)'!$B$3=5,IF('Detailed Cash Flow Chart'!AG20="",0,'Detailed Cash Flow Chart'!AG20),0) -IF('Financial Goals (recurring)'!$K$3=5,IF('Detailed Cash Flow Chart'!AN20="",0,'Detailed Cash Flow Chart'!AN20),0) -> 157308.3217 | AI20: =AG20 -IF('Financial Goals (non-recurring)'!$B$4=6,IF('Detailed Cash Flow Chart'!S20="",0,'Detailed Cash Flow Chart'!S20),0) -IF('Financial Goals (non-recurring)'!$D$4=6,IF('Detailed Cash Flow Chart'!U20="",0,'Detailed Cash Flow Chart'!U20),0) -IF('Financial Goals (non-recurring)'!$F$4=6,IF('Detailed Cash Flow Chart'!W20="",0,'Detailed Cash Flow Chart'!W20),0) -IF('Financial Goals (non-recurring)'!$H$4=6,IF('Detailed Cash Flow Chart'!Y20="",0,'Detailed Cash Flow Chart'!Y20),0) -IF('Financial Goals (non-recurring)'!$J$4=6,IF('Detailed Cash Flow Chart'!AA20="",0,'Detailed Cash Flow Chart'!AA20),0) -IF('Financial Goals (recurring)'!$B$3=6,IF('Detailed Cash Flow Chart'!AG20="",0,'Detailed Cash Flow Chart'!AG20),0) -IF('Financial Goals (recurring)'!$K$3=6,IF('Detailed Cash Flow Chart'!AN20="",0,'Detailed Cash Flow Chart'!AN20),0) -> 157308.3217 | AK20: =AI20 -IF('Financial Goals (non-recurring)'!$B$4=7,IF('Detailed Cash Flow Chart'!S20="",0,'Detailed Cash Flow Chart'!S20),0) -IF('Financial Goals (non-recurring)'!$D$4=7,IF('Detailed Cash Flow Chart'!U20="",0,'Detailed Cash Flow Chart'!U20),0) -IF('Financial Goals (non-recurring)'!$F$4=7,IF('Detailed Cash Flow Chart'!W20="",0,'Detailed Cash Flow Chart'!W20),0) -IF('Financial Goals (non-recurring)'!$H$4=7,IF('Detailed Cash Flow Chart'!Y20="",0,'Detailed Cash Flow Chart'!Y20),0) -IF('Financial Goals (non-recurring)'!$J$4=7,IF('Detailed Cash Flow Chart'!AA20="",0,'Detailed Cash Flow Chart'!AA20),0) -IF('Financial Goals (recurring)'!$B$3=7,IF('Detailed Cash Flow Chart'!AG20="",0,'Detailed Cash Flow Chart'!AG20),0) -IF('Financial Goals (recurring)'!$K$3=7,IF('Detailed Cash Flow Chart'!AN20="",0,'Detailed Cash Flow Chart'!AN20),0) -> 157308.3217
A21: =IF(ISERROR(C21),NA(),'Detailed Cash Flow Chart'!AJ21) -> 2031 | B21: ='Detailed Cash Flow Chart'!B21 -> 57 | C21: 505447.0285 | D21: 0 | E21: 0 | F21: 0 | G21: 0 | I21: ='Detailed Cash Flow Chart'!D21 -> 0 | J21: =IF(ISERROR(C21),NA(),'Detailed Cash Flow Chart'!C21) -> 140648.0858 | L21: =IF(ISERROR(C21),NA(),'Detailed Cash Flow Chart'!AQ21) -> 129969.4394 | M21: 364798.9427 | O21: If there are too many red entries, this is an indication of | Y21: =IF('Detailed Cash Flow Chart'!E21=0,NA(),M21-'Detailed Cash Flow Chart'!E21) -> 234829.5032 | AA21: =Y21 -IF('Financial Goals (non-recurring)'!$B$4=2,IF('Detailed Cash Flow Chart'!S21="",0,'Detailed Cash Flow Chart'!S21),0) -IF('Financial Goals (non-recurring)'!$D$4=2,IF('Detailed Cash Flow Chart'!U21="",0,'Detailed Cash Flow Chart'!U21),0) -IF('Financial Goals (non-recurring)'!$F$4=2,IF('Detailed Cash Flow Chart'!W21="",0,'Detailed Cash Flow Chart'!W21),0) -IF('Financial Goals (non-recurring)'!$H$4=2,IF('Detailed Cash Flow Chart'!Y21="",0,'Detailed Cash Flow Chart'!Y21),0) -IF('Financial Goals (non-recurring)'!$J$4=2,IF('Detailed Cash Flow Chart'!AA21="",0,'Detailed Cash Flow Chart'!AA21),0) -IF('Financial Goals (recurring)'!$B$3=2,IF('Detailed Cash Flow Chart'!AG21="",0,'Detailed Cash Flow Chart'!AG21),0) -IF('Financial Goals (recurring)'!$K$3=2,IF('Detailed Cash Flow Chart'!AN21="",0,'Detailed Cash Flow Chart'!AN21),0) -> 234829.5032 | AC21: =AA21 -IF('Financial Goals (non-recurring)'!$B$4=3,IF('Detailed Cash Flow Chart'!S21="",0,'Detailed Cash Flow Chart'!S21),0) -IF('Financial Goals (non-recurring)'!$D$4=3,IF('Detailed Cash Flow Chart'!U21="",0,'Detailed Cash Flow Chart'!U21),0) -IF('Financial Goals (non-recurring)'!$F$4=3,IF('Detailed Cash Flow Chart'!W21="",0,'Detailed Cash Flow Chart'!W21),0) -IF('Financial Goals (non-recurring)'!$H$4=3,IF('Detailed Cash Flow Chart'!Y21="",0,'Detailed Cash Flow Chart'!Y21),0) -IF('Financial Goals (non-recurring)'!$J$4=3,IF('Detailed Cash Flow Chart'!AA21="",0,'Detailed Cash Flow Chart'!AA21),0) -IF('Financial Goals (recurring)'!$B$3=3,IF('Detailed Cash Flow Chart'!AG21="",0,'Detailed Cash Flow Chart'!AG21),0) -IF('Financial Goals (recurring)'!$K$3=3,IF('Detailed Cash Flow Chart'!AN21="",0,'Detailed Cash Flow Chart'!AN21),0) -> 234829.5032 | AE21: =AC21 -IF('Financial Goals (non-recurring)'!$B$4=4,IF('Detailed Cash Flow Chart'!S21="",0,'Detailed Cash Flow Chart'!S21),0) -IF('Financial Goals (non-recurring)'!$D$4=4,IF('Detailed Cash Flow Chart'!U21="",0,'Detailed Cash Flow Chart'!U21),0) -IF('Financial Goals (non-recurring)'!$F$4=4,IF('Detailed Cash Flow Chart'!W21="",0,'Detailed Cash Flow Chart'!W21),0) -IF('Financial Goals (non-recurring)'!$H$4=4,IF('Detailed Cash Flow Chart'!Y21="",0,'Detailed Cash Flow Chart'!Y21),0) -IF('Financial Goals (non-recurring)'!$J$4=4,IF('Detailed Cash Flow Chart'!AA21="",0,'Detailed Cash Flow Chart'!AA21),0) -IF('Financial Goals (recurring)'!$B$3=4,IF('Detailed Cash Flow Chart'!AG21="",0,'Detailed Cash Flow Chart'!AG21),0) -IF('Financial Goals (recurring)'!$K$3=4,IF('Detailed Cash Flow Chart'!AN21="",0,'Detailed Cash Flow Chart'!AN21),0) -> 234829.5032 | AG21: =AE21 -IF('Financial Goals (non-recurring)'!$B$4=5,IF('Detailed Cash Flow Chart'!S21="",0,'Detailed Cash Flow Chart'!S21),0) -IF('Financial Goals (non-recurring)'!$D$4=5,IF('Detailed Cash Flow Chart'!U21="",0,'Detailed Cash Flow Chart'!U21),0) -IF('Financial Goals (non-recurring)'!$F$4=5,IF('Detailed Cash Flow Chart'!W21="",0,'Detailed Cash Flow Chart'!W21),0) -IF('Financial Goals (non-recurring)'!$H$4=5,IF('Detailed Cash Flow Chart'!Y21="",0,'Detailed Cash Flow Chart'!Y21),0) -IF('Financial Goals (non-recurring)'!$J$4=5,IF('Detailed Cash Flow Chart'!AA21="",0,'Detailed Cash Flow Chart'!AA21),0) -IF('Financial Goals (recurring)'!$B$3=5,IF('Detailed Cash Flow Chart'!AG21="",0,'Detailed Cash Flow Chart'!AG21),0) -IF('Financial Goals (recurring)'!$K$3=5,IF('Detailed Cash Flow Chart'!AN21="",0,'Detailed Cash Flow Chart'!AN21),0) -> 234829.5032 | AI21: =AG21 -IF('Financial Goals (non-recurring)'!$B$4=6,IF('Detailed Cash Flow Chart'!S21="",0,'Detailed Cash Flow Chart'!S21),0) -IF('Financial Goals (non-recurring)'!$D$4=6,IF('Detailed Cash Flow Chart'!U21="",0,'Detailed Cash Flow Chart'!U21),0) -IF('Financial Goals (non-recurring)'!$F$4=6,IF('Detailed Cash Flow Chart'!W21="",0,'Detailed Cash Flow Chart'!W21),0) -IF('Financial Goals (non-recurring)'!$H$4=6,IF('Detailed Cash Flow Chart'!Y21="",0,'Detailed Cash Flow Chart'!Y21),0) -IF('Financial Goals (non-recurring)'!$J$4=6,IF('Detailed Cash Flow Chart'!AA21="",0,'Detailed Cash Flow Chart'!AA21),0) -IF('Financial Goals (recurring)'!$B$3=6,IF('Detailed Cash Flow Chart'!AG21="",0,'Detailed Cash Flow Chart'!AG21),0) -IF('Financial Goals (recurring)'!$K$3=6,IF('Detailed Cash Flow Chart'!AN21="",0,'Detailed Cash Flow Chart'!AN21),0) -> 234829.5032 | AK21: =AI21 -IF('Financial Goals (non-recurring)'!$B$4=7,IF('Detailed Cash Flow Chart'!S21="",0,'Detailed Cash Flow Chart'!S21),0) -IF('Financial Goals (non-recurring)'!$D$4=7,IF('Detailed Cash Flow Chart'!U21="",0,'Detailed Cash Flow Chart'!U21),0) -IF('Financial Goals (non-recurring)'!$F$4=7,IF('Detailed Cash Flow Chart'!W21="",0,'Detailed Cash Flow Chart'!W21),0) -IF('Financial Goals (non-recurring)'!$H$4=7,IF('Detailed Cash Flow Chart'!Y21="",0,'Detailed Cash Flow Chart'!Y21),0) -IF('Financial Goals (non-recurring)'!$J$4=7,IF('Detailed Cash Flow Chart'!AA21="",0,'Detailed Cash Flow Chart'!AA21),0) -IF('Financial Goals (recurring)'!$B$3=7,IF('Detailed Cash Flow Chart'!AG21="",0,'Detailed Cash Flow Chart'!AG21),0) -IF('Financial Goals (recurring)'!$K$3=7,IF('Detailed Cash Flow Chart'!AN21="",0,'Detailed Cash Flow Chart'!AN21),0) -> 234829.5032
A22: =IF(ISERROR(C22),NA(),'Detailed Cash Flow Chart'!AJ22) -> 2032 | B22: ='Detailed Cash Flow Chart'!B22 -> 58 | C22: 555991.7313 | D22: 0 | E22: 0 | F22: 0 | G22: 0 | I22: ='Detailed Cash Flow Chart'!D22 -> 0 | J22: =IF(ISERROR(C22),NA(),'Detailed Cash Flow Chart'!C22) -> 153306.4136 | L22: =IF(ISERROR(C22),NA(),'Detailed Cash Flow Chart'!AQ22) -> 142966.3834 | M22: 402685.3178 | O22: 1) high expenses, | Y22: =IF('Detailed Cash Flow Chart'!E22=0,NA(),M22-'Detailed Cash Flow Chart'!E22) -> 259718.9344 | AA22: =Y22 -IF('Financial Goals (non-recurring)'!$B$4=2,IF('Detailed Cash Flow Chart'!S22="",0,'Detailed Cash Flow Chart'!S22),0) -IF('Financial Goals (non-recurring)'!$D$4=2,IF('Detailed Cash Flow Chart'!U22="",0,'Detailed Cash Flow Chart'!U22),0) -IF('Financial Goals (non-recurring)'!$F$4=2,IF('Detailed Cash Flow Chart'!W22="",0,'Detailed Cash Flow Chart'!W22),0) -IF('Financial Goals (non-recurring)'!$H$4=2,IF('Detailed Cash Flow Chart'!Y22="",0,'Detailed Cash Flow Chart'!Y22),0) -IF('Financial Goals (non-recurring)'!$J$4=2,IF('Detailed Cash Flow Chart'!AA22="",0,'Detailed Cash Flow Chart'!AA22),0) -IF('Financial Goals (recurring)'!$B$3=2,IF('Detailed Cash Flow Chart'!AG22="",0,'Detailed Cash Flow Chart'!AG22),0) -IF('Financial Goals (recurring)'!$K$3=2,IF('Detailed Cash Flow Chart'!AN22="",0,'Detailed Cash Flow Chart'!AN22),0) -> 259718.9344 | AC22: =AA22 -IF('Financial Goals (non-recurring)'!$B$4=3,IF('Detailed Cash Flow Chart'!S22="",0,'Detailed Cash Flow Chart'!S22),0) -IF('Financial Goals (non-recurring)'!$D$4=3,IF('Detailed Cash Flow Chart'!U22="",0,'Detailed Cash Flow Chart'!U22),0) -IF('Financial Goals (non-recurring)'!$F$4=3,IF('Detailed Cash Flow Chart'!W22="",0,'Detailed Cash Flow Chart'!W22),0) -IF('Financial Goals (non-recurring)'!$H$4=3,IF('Detailed Cash Flow Chart'!Y22="",0,'Detailed Cash Flow Chart'!Y22),0) -IF('Financial Goals (non-recurring)'!$J$4=3,IF('Detailed Cash Flow Chart'!AA22="",0,'Detailed Cash Flow Chart'!AA22),0) -IF('Financial Goals (recurring)'!$B$3=3,IF('Detailed Cash Flow Chart'!AG22="",0,'Detailed Cash Flow Chart'!AG22),0) -IF('Financial Goals (recurring)'!$K$3=3,IF('Detailed Cash Flow Chart'!AN22="",0,'Detailed Cash Flow Chart'!AN22),0) -> 259718.9344 | AE22: =AC22 -IF('Financial Goals (non-recurring)'!$B$4=4,IF('Detailed Cash Flow Chart'!S22="",0,'Detailed Cash Flow Chart'!S22),0) -IF('Financial Goals (non-recurring)'!$D$4=4,IF('Detailed Cash Flow Chart'!U22="",0,'Detailed Cash Flow Chart'!U22),0) -IF('Financial Goals (non-recurring)'!$F$4=4,IF('Detailed Cash Flow Chart'!W22="",0,'Detailed Cash Flow Chart'!W22),0) -IF('Financial Goals (non-recurring)'!$H$4=4,IF('Detailed Cash Flow Chart'!Y22="",0,'Detailed Cash Flow Chart'!Y22),0) -IF('Financial Goals (non-recurring)'!$J$4=4,IF('Detailed Cash Flow Chart'!AA22="",0,'Detailed Cash Flow Chart'!AA22),0) -IF('Financial Goals (recurring)'!$B$3=4,IF('Detailed Cash Flow Chart'!AG22="",0,'Detailed Cash Flow Chart'!AG22),0) -IF('Financial Goals (recurring)'!$K$3=4,IF('Detailed Cash Flow Chart'!AN22="",0,'Detailed Cash Flow Chart'!AN22),0) -> 259718.9344 | AG22: =AE22 -IF('Financial Goals (non-recurring)'!$B$4=5,IF('Detailed Cash Flow Chart'!S22="",0,'Detailed Cash Flow Chart'!S22),0) -IF('Financial Goals (non-recurring)'!$D$4=5,IF('Detailed Cash Flow Chart'!U22="",0,'Detailed Cash Flow Chart'!U22),0) -IF('Financial Goals (non-recurring)'!$F$4=5,IF('Detailed Cash Flow Chart'!W22="",0,'Detailed Cash Flow Chart'!W22),0) -IF('Financial Goals (non-recurring)'!$H$4=5,IF('Detailed Cash Flow Chart'!Y22="",0,'Detailed Cash Flow Chart'!Y22),0) -IF('Financial Goals (non-recurring)'!$J$4=5,IF('Detailed Cash Flow Chart'!AA22="",0,'Detailed Cash Flow Chart'!AA22),0) -IF('Financial Goals (recurring)'!$B$3=5,IF('Detailed Cash Flow Chart'!AG22="",0,'Detailed Cash Flow Chart'!AG22),0) -IF('Financial Goals (recurring)'!$K$3=5,IF('Detailed Cash Flow Chart'!AN22="",0,'Detailed Cash Flow Chart'!AN22),0) -> 259718.9344 | AI22: =AG22 -IF('Financial Goals (non-recurring)'!$B$4=6,IF('Detailed Cash Flow Chart'!S22="",0,'Detailed Cash Flow Chart'!S22),0) -IF('Financial Goals (non-recurring)'!$D$4=6,IF('Detailed Cash Flow Chart'!U22="",0,'Detailed Cash Flow Chart'!U22),0) -IF('Financial Goals (non-recurring)'!$F$4=6,IF('Detailed Cash Flow Chart'!W22="",0,'Detailed Cash Flow Chart'!W22),0) -IF('Financial Goals (non-recurring)'!$H$4=6,IF('Detailed Cash Flow Chart'!Y22="",0,'Detailed Cash Flow Chart'!Y22),0) -IF('Financial Goals (non-recurring)'!$J$4=6,IF('Detailed Cash Flow Chart'!AA22="",0,'Detailed Cash Flow Chart'!AA22),0) -IF('Financial Goals (recurring)'!$B$3=6,IF('Detailed Cash Flow Chart'!AG22="",0,'Detailed Cash Flow Chart'!AG22),0) -IF('Financial Goals (recurring)'!$K$3=6,IF('Detailed Cash Flow Chart'!AN22="",0,'Detailed Cash Flow Chart'!AN22),0) -> 259718.9344 | AK22: =AI22 -IF('Financial Goals (non-recurring)'!$B$4=7,IF('Detailed Cash Flow Chart'!S22="",0,'Detailed Cash Flow Chart'!S22),0) -IF('Financial Goals (non-recurring)'!$D$4=7,IF('Detailed Cash Flow Chart'!U22="",0,'Detailed Cash Flow Chart'!U22),0) -IF('Financial Goals (non-recurring)'!$F$4=7,IF('Detailed Cash Flow Chart'!W22="",0,'Detailed Cash Flow Chart'!W22),0) -IF('Financial Goals (non-recurring)'!$H$4=7,IF('Detailed Cash Flow Chart'!Y22="",0,'Detailed Cash Flow Chart'!Y22),0) -IF('Financial Goals (non-recurring)'!$J$4=7,IF('Detailed Cash Flow Chart'!AA22="",0,'Detailed Cash Flow Chart'!AA22),0) -IF('Financial Goals (recurring)'!$B$3=7,IF('Detailed Cash Flow Chart'!AG22="",0,'Detailed Cash Flow Chart'!AG22),0) -IF('Financial Goals (recurring)'!$K$3=7,IF('Detailed Cash Flow Chart'!AN22="",0,'Detailed Cash Flow Chart'!AN22),0) -> 259718.9344
A23: =IF(ISERROR(C23),NA(),'Detailed Cash Flow Chart'!AJ23) -> 2033 | B23: ='Detailed Cash Flow Chart'!B23 -> 59 | C23: 611590.9045 | D23: 0 | E23: 0 | F23: 0 | G23: 0 | I23: ='Detailed Cash Flow Chart'!D23 -> 0 | J23: =IF(ISERROR(C23),NA(),'Detailed Cash Flow Chart'!C23) -> 167103.9908 | L23: =IF(ISERROR(C23),NA(),'Detailed Cash Flow Chart'!AQ23) -> 157263.0217 | M23: 444486.9137 | O23: 2) high debt | Y23: =IF('Detailed Cash Flow Chart'!E23=0,NA(),M23-'Detailed Cash Flow Chart'!E23) -> 287223.892 | AA23: =Y23 -IF('Financial Goals (non-recurring)'!$B$4=2,IF('Detailed Cash Flow Chart'!S23="",0,'Detailed Cash Flow Chart'!S23),0) -IF('Financial Goals (non-recurring)'!$D$4=2,IF('Detailed Cash Flow Chart'!U23="",0,'Detailed Cash Flow Chart'!U23),0) -IF('Financial Goals (non-recurring)'!$F$4=2,IF('Detailed Cash Flow Chart'!W23="",0,'Detailed Cash Flow Chart'!W23),0) -IF('Financial Goals (non-recurring)'!$H$4=2,IF('Detailed Cash Flow Chart'!Y23="",0,'Detailed Cash Flow Chart'!Y23),0) -IF('Financial Goals (non-recurring)'!$J$4=2,IF('Detailed Cash Flow Chart'!AA23="",0,'Detailed Cash Flow Chart'!AA23),0) -IF('Financial Goals (recurring)'!$B$3=2,IF('Detailed Cash Flow Chart'!AG23="",0,'Detailed Cash Flow Chart'!AG23),0) -IF('Financial Goals (recurring)'!$K$3=2,IF('Detailed Cash Flow Chart'!AN23="",0,'Detailed Cash Flow Chart'!AN23),0) -> 287223.892 | AC23: =AA23 -IF('Financial Goals (non-recurring)'!$B$4=3,IF('Detailed Cash Flow Chart'!S23="",0,'Detailed Cash Flow Chart'!S23),0) -IF('Financial Goals (non-recurring)'!$D$4=3,IF('Detailed Cash Flow Chart'!U23="",0,'Detailed Cash Flow Chart'!U23),0) -IF('Financial Goals (non-recurring)'!$F$4=3,IF('Detailed Cash Flow Chart'!W23="",0,'Detailed Cash Flow Chart'!W23),0) -IF('Financial Goals (non-recurring)'!$H$4=3,IF('Detailed Cash Flow Chart'!Y23="",0,'Detailed Cash Flow Chart'!Y23),0) -IF('Financial Goals (non-recurring)'!$J$4=3,IF('Detailed Cash Flow Chart'!AA23="",0,'Detailed Cash Flow Chart'!AA23),0) -IF('Financial Goals (recurring)'!$B$3=3,IF('Detailed Cash Flow Chart'!AG23="",0,'Detailed Cash Flow Chart'!AG23),0) -IF('Financial Goals (recurring)'!$K$3=3,IF('Detailed Cash Flow Chart'!AN23="",0,'Detailed Cash Flow Chart'!AN23),0) -> 287223.892 | AE23: =AC23 -IF('Financial Goals (non-recurring)'!$B$4=4,IF('Detailed Cash Flow Chart'!S23="",0,'Detailed Cash Flow Chart'!S23),0) -IF('Financial Goals (non-recurring)'!$D$4=4,IF('Detailed Cash Flow Chart'!U23="",0,'Detailed Cash Flow Chart'!U23),0) -IF('Financial Goals (non-recurring)'!$F$4=4,IF('Detailed Cash Flow Chart'!W23="",0,'Detailed Cash Flow Chart'!W23),0) -IF('Financial Goals (non-recurring)'!$H$4=4,IF('Detailed Cash Flow Chart'!Y23="",0,'Detailed Cash Flow Chart'!Y23),0) -IF('Financial Goals (non-recurring)'!$J$4=4,IF('Detailed Cash Flow Chart'!AA23="",0,'Detailed Cash Flow Chart'!AA23),0) -IF('Financial Goals (recurring)'!$B$3=4,IF('Detailed Cash Flow Chart'!AG23="",0,'Detailed Cash Flow Chart'!AG23),0) -IF('Financial Goals (recurring)'!$K$3=4,IF('Detailed Cash Flow Chart'!AN23="",0,'Detailed Cash Flow Chart'!AN23),0) -> 287223.892 | AG23: =AE23 -IF('Financial Goals (non-recurring)'!$B$4=5,IF('Detailed Cash Flow Chart'!S23="",0,'Detailed Cash Flow Chart'!S23),0) -IF('Financial Goals (non-recurring)'!$D$4=5,IF('Detailed Cash Flow Chart'!U23="",0,'Detailed Cash Flow Chart'!U23),0) -IF('Financial Goals (non-recurring)'!$F$4=5,IF('Detailed Cash Flow Chart'!W23="",0,'Detailed Cash Flow Chart'!W23),0) -IF('Financial Goals (non-recurring)'!$H$4=5,IF('Detailed Cash Flow Chart'!Y23="",0,'Detailed Cash Flow Chart'!Y23),0) -IF('Financial Goals (non-recurring)'!$J$4=5,IF('Detailed Cash Flow Chart'!AA23="",0,'Detailed Cash Flow Chart'!AA23),0) -IF('Financial Goals (recurring)'!$B$3=5,IF('Detailed Cash Flow Chart'!AG23="",0,'Detailed Cash Flow Chart'!AG23),0) -IF('Financial Goals (recurring)'!$K$3=5,IF('Detailed Cash Flow Chart'!AN23="",0,'Detailed Cash Flow Chart'!AN23),0) -> 287223.892 | AI23: =AG23 -IF('Financial Goals (non-recurring)'!$B$4=6,IF('Detailed Cash Flow Chart'!S23="",0,'Detailed Cash Flow Chart'!S23),0) -IF('Financial Goals (non-recurring)'!$D$4=6,IF('Detailed Cash Flow Chart'!U23="",0,'Detailed Cash Flow Chart'!U23),0) -IF('Financial Goals (non-recurring)'!$F$4=6,IF('Detailed Cash Flow Chart'!W23="",0,'Detailed Cash Flow Chart'!W23),0) -IF('Financial Goals (non-recurring)'!$H$4=6,IF('Detailed Cash Flow Chart'!Y23="",0,'Detailed Cash Flow Chart'!Y23),0) -IF('Financial Goals (non-recurring)'!$J$4=6,IF('Detailed Cash Flow Chart'!AA23="",0,'Detailed Cash Flow Chart'!AA23),0) -IF('Financial Goals (recurring)'!$B$3=6,IF('Detailed Cash Flow Chart'!AG23="",0,'Detailed Cash Flow Chart'!AG23),0) -IF('Financial Goals (recurring)'!$K$3=6,IF('Detailed Cash Flow Chart'!AN23="",0,'Detailed Cash Flow Chart'!AN23),0) -> 287223.892 | AK23: =AI23 -IF('Financial Goals (non-recurring)'!$B$4=7,IF('Detailed Cash Flow Chart'!S23="",0,'Detailed Cash Flow Chart'!S23),0) -IF('Financial Goals (non-recurring)'!$D$4=7,IF('Detailed Cash Flow Chart'!U23="",0,'Detailed Cash Flow Chart'!U23),0) -IF('Financial Goals (non-recurring)'!$F$4=7,IF('Detailed Cash Flow Chart'!W23="",0,'Detailed Cash Flow Chart'!W23),0) -IF('Financial Goals (non-recurring)'!$H$4=7,IF('Detailed Cash Flow Chart'!Y23="",0,'Detailed Cash Flow Chart'!Y23),0) -IF('Financial Goals (non-recurring)'!$J$4=7,IF('Detailed Cash Flow Chart'!AA23="",0,'Detailed Cash Flow Chart'!AA23),0) -IF('Financial Goals (recurring)'!$B$3=7,IF('Detailed Cash Flow Chart'!AG23="",0,'Detailed Cash Flow Chart'!AG23),0) -IF('Financial Goals (recurring)'!$K$3=7,IF('Detailed Cash Flow Chart'!AN23="",0,'Detailed Cash Flow Chart'!AN23),0) -> 287223.892
A24: =IF(ISERROR(C24),NA(),'Detailed Cash Flow Chart'!AJ24) -> 2034 | B24: ='Detailed Cash Flow Chart'!B24 -> 60 | C24: 672749.9949 | D24: 0 | E24: 0 | F24: 0 | G24: 0 | I24: ='Detailed Cash Flow Chart'!D24 -> 0 | J24: =IF(ISERROR(C24),NA(),'Detailed Cash Flow Chart'!C24) -> 182143.35 | L24: =IF(ISERROR(C24),NA(),'Detailed Cash Flow Chart'!AQ24) -> 172989.3239 | M24: 490606.645 | O24: 3) expecation not proportional to income. | Y24: =IF('Detailed Cash Flow Chart'!E24=0,NA(),M24-'Detailed Cash Flow Chart'!E24) -> 317617.3211 | AA24: =Y24 -IF('Financial Goals (non-recurring)'!$B$4=2,IF('Detailed Cash Flow Chart'!S24="",0,'Detailed Cash Flow Chart'!S24),0) -IF('Financial Goals (non-recurring)'!$D$4=2,IF('Detailed Cash Flow Chart'!U24="",0,'Detailed Cash Flow Chart'!U24),0) -IF('Financial Goals (non-recurring)'!$F$4=2,IF('Detailed Cash Flow Chart'!W24="",0,'Detailed Cash Flow Chart'!W24),0) -IF('Financial Goals (non-recurring)'!$H$4=2,IF('Detailed Cash Flow Chart'!Y24="",0,'Detailed Cash Flow Chart'!Y24),0) -IF('Financial Goals (non-recurring)'!$J$4=2,IF('Detailed Cash Flow Chart'!AA24="",0,'Detailed Cash Flow Chart'!AA24),0) -IF('Financial Goals (recurring)'!$B$3=2,IF('Detailed Cash Flow Chart'!AG24="",0,'Detailed Cash Flow Chart'!AG24),0) -IF('Financial Goals (recurring)'!$K$3=2,IF('Detailed Cash Flow Chart'!AN24="",0,'Detailed Cash Flow Chart'!AN24),0) -> 317617.3211 | AC24: =AA24 -IF('Financial Goals (non-recurring)'!$B$4=3,IF('Detailed Cash Flow Chart'!S24="",0,'Detailed Cash Flow Chart'!S24),0) -IF('Financial Goals (non-recurring)'!$D$4=3,IF('Detailed Cash Flow Chart'!U24="",0,'Detailed Cash Flow Chart'!U24),0) -IF('Financial Goals (non-recurring)'!$F$4=3,IF('Detailed Cash Flow Chart'!W24="",0,'Detailed Cash Flow Chart'!W24),0) -IF('Financial Goals (non-recurring)'!$H$4=3,IF('Detailed Cash Flow Chart'!Y24="",0,'Detailed Cash Flow Chart'!Y24),0) -IF('Financial Goals (non-recurring)'!$J$4=3,IF('Detailed Cash Flow Chart'!AA24="",0,'Detailed Cash Flow Chart'!AA24),0) -IF('Financial Goals (recurring)'!$B$3=3,IF('Detailed Cash Flow Chart'!AG24="",0,'Detailed Cash Flow Chart'!AG24),0) -IF('Financial Goals (recurring)'!$K$3=3,IF('Detailed Cash Flow Chart'!AN24="",0,'Detailed Cash Flow Chart'!AN24),0) -> 317617.3211 | AE24: =AC24 -IF('Financial Goals (non-recurring)'!$B$4=4,IF('Detailed Cash Flow Chart'!S24="",0,'Detailed Cash Flow Chart'!S24),0) -IF('Financial Goals (non-recurring)'!$D$4=4,IF('Detailed Cash Flow Chart'!U24="",0,'Detailed Cash Flow Chart'!U24),0) -IF('Financial Goals (non-recurring)'!$F$4=4,IF('Detailed Cash Flow Chart'!W24="",0,'Detailed Cash Flow Chart'!W24),0) -IF('Financial Goals (non-recurring)'!$H$4=4,IF('Detailed Cash Flow Chart'!Y24="",0,'Detailed Cash Flow Chart'!Y24),0) -IF('Financial Goals (non-recurring)'!$J$4=4,IF('Detailed Cash Flow Chart'!AA24="",0,'Detailed Cash Flow Chart'!AA24),0) -IF('Financial Goals (recurring)'!$B$3=4,IF('Detailed Cash Flow Chart'!AG24="",0,'Detailed Cash Flow Chart'!AG24),0) -IF('Financial Goals (recurring)'!$K$3=4,IF('Detailed Cash Flow Chart'!AN24="",0,'Detailed Cash Flow Chart'!AN24),0) -> 317617.3211 | AG24: =AE24 -IF('Financial Goals (non-recurring)'!$B$4=5,IF('Detailed Cash Flow Chart'!S24="",0,'Detailed Cash Flow Chart'!S24),0) -IF('Financial Goals (non-recurring)'!$D$4=5,IF('Detailed Cash Flow Chart'!U24="",0,'Detailed Cash Flow Chart'!U24),0) -IF('Financial Goals (non-recurring)'!$F$4=5,IF('Detailed Cash Flow Chart'!W24="",0,'Detailed Cash Flow Chart'!W24),0) -IF('Financial Goals (non-recurring)'!$H$4=5,IF('Detailed Cash Flow Chart'!Y24="",0,'Detailed Cash Flow Chart'!Y24),0) -IF('Financial Goals (non-recurring)'!$J$4=5,IF('Detailed Cash Flow Chart'!AA24="",0,'Detailed Cash Flow Chart'!AA24),0) -IF('Financial Goals (recurring)'!$B$3=5,IF('Detailed Cash Flow Chart'!AG24="",0,'Detailed Cash Flow Chart'!AG24),0) -IF('Financial Goals (recurring)'!$K$3=5,IF('Detailed Cash Flow Chart'!AN24="",0,'Detailed Cash Flow Chart'!AN24),0) -> 317617.3211 | AI24: =AG24 -IF('Financial Goals (non-recurring)'!$B$4=6,IF('Detailed Cash Flow Chart'!S24="",0,'Detailed Cash Flow Chart'!S24),0) -IF('Financial Goals (non-recurring)'!$D$4=6,IF('Detailed Cash Flow Chart'!U24="",0,'Detailed Cash Flow Chart'!U24),0) -IF('Financial Goals (non-recurring)'!$F$4=6,IF('Detailed Cash Flow Chart'!W24="",0,'Detailed Cash Flow Chart'!W24),0) -IF('Financial Goals (non-recurring)'!$H$4=6,IF('Detailed Cash Flow Chart'!Y24="",0,'Detailed Cash Flow Chart'!Y24),0) -IF('Financial Goals (non-recurring)'!$J$4=6,IF('Detailed Cash Flow Chart'!AA24="",0,'Detailed Cash Flow Chart'!AA24),0) -IF('Financial Goals (recurring)'!$B$3=6,IF('Detailed Cash Flow Chart'!AG24="",0,'Detailed Cash Flow Chart'!AG24),0) -IF('Financial Goals (recurring)'!$K$3=6,IF('Detailed Cash Flow Chart'!AN24="",0,'Detailed Cash Flow Chart'!AN24),0) -> 317617.3211 | AK24: =AI24 -IF('Financial Goals (non-recurring)'!$B$4=7,IF('Detailed Cash Flow Chart'!S24="",0,'Detailed Cash Flow Chart'!S24),0) -IF('Financial Goals (non-recurring)'!$D$4=7,IF('Detailed Cash Flow Chart'!U24="",0,'Detailed Cash Flow Chart'!U24),0) -IF('Financial Goals (non-recurring)'!$F$4=7,IF('Detailed Cash Flow Chart'!W24="",0,'Detailed Cash Flow Chart'!W24),0) -IF('Financial Goals (non-recurring)'!$H$4=7,IF('Detailed Cash Flow Chart'!Y24="",0,'Detailed Cash Flow Chart'!Y24),0) -IF('Financial Goals (non-recurring)'!$J$4=7,IF('Detailed Cash Flow Chart'!AA24="",0,'Detailed Cash Flow Chart'!AA24),0) -IF('Financial Goals (recurring)'!$B$3=7,IF('Detailed Cash Flow Chart'!AG24="",0,'Detailed Cash Flow Chart'!AG24),0) -IF('Financial Goals (recurring)'!$K$3=7,IF('Detailed Cash Flow Chart'!AN24="",0,'Detailed Cash Flow Chart'!AN24),0) -> 317617.3211
A25: =IF(ISERROR(C25),NA(),'Detailed Cash Flow Chart'!AJ25) -> 2035 | B25: ='Detailed Cash Flow Chart'!B25 -> 61 | C25: 740024.9944 | D25: 0 | E25: 0 | F25: 0 | G25: 0 | I25: ='Detailed Cash Flow Chart'!D25 -> 0 | J25: =IF(ISERROR(C25),NA(),'Detailed Cash Flow Chart'!C25) -> 198536.2514 | L25: =IF(ISERROR(C25),NA(),'Detailed Cash Flow Chart'!AQ25) -> 190288.2563 | M25: 541488.743 | O25: 4) many other issues! | Y25: =IF('Detailed Cash Flow Chart'!E25=0,NA(),M25-'Detailed Cash Flow Chart'!E25) -> 351200.4867 | AA25: =Y25 -IF('Financial Goals (non-recurring)'!$B$4=2,IF('Detailed Cash Flow Chart'!S25="",0,'Detailed Cash Flow Chart'!S25),0) -IF('Financial Goals (non-recurring)'!$D$4=2,IF('Detailed Cash Flow Chart'!U25="",0,'Detailed Cash Flow Chart'!U25),0) -IF('Financial Goals (non-recurring)'!$F$4=2,IF('Detailed Cash Flow Chart'!W25="",0,'Detailed Cash Flow Chart'!W25),0) -IF('Financial Goals (non-recurring)'!$H$4=2,IF('Detailed Cash Flow Chart'!Y25="",0,'Detailed Cash Flow Chart'!Y25),0) -IF('Financial Goals (non-recurring)'!$J$4=2,IF('Detailed Cash Flow Chart'!AA25="",0,'Detailed Cash Flow Chart'!AA25),0) -IF('Financial Goals (recurring)'!$B$3=2,IF('Detailed Cash Flow Chart'!AG25="",0,'Detailed Cash Flow Chart'!AG25),0) -IF('Financial Goals (recurring)'!$K$3=2,IF('Detailed Cash Flow Chart'!AN25="",0,'Detailed Cash Flow Chart'!AN25),0) -> 351200.4867 | AC25: =AA25 -IF('Financial Goals (non-recurring)'!$B$4=3,IF('Detailed Cash Flow Chart'!S25="",0,'Detailed Cash Flow Chart'!S25),0) -IF('Financial Goals (non-recurring)'!$D$4=3,IF('Detailed Cash Flow Chart'!U25="",0,'Detailed Cash Flow Chart'!U25),0) -IF('Financial Goals (non-recurring)'!$F$4=3,IF('Detailed Cash Flow Chart'!W25="",0,'Detailed Cash Flow Chart'!W25),0) -IF('Financial Goals (non-recurring)'!$H$4=3,IF('Detailed Cash Flow Chart'!Y25="",0,'Detailed Cash Flow Chart'!Y25),0) -IF('Financial Goals (non-recurring)'!$J$4=3,IF('Detailed Cash Flow Chart'!AA25="",0,'Detailed Cash Flow Chart'!AA25),0) -IF('Financial Goals (recurring)'!$B$3=3,IF('Detailed Cash Flow Chart'!AG25="",0,'Detailed Cash Flow Chart'!AG25),0) -IF('Financial Goals (recurring)'!$K$3=3,IF('Detailed Cash Flow Chart'!AN25="",0,'Detailed Cash Flow Chart'!AN25),0) -> 351200.4867 | AE25: =AC25 -IF('Financial Goals (non-recurring)'!$B$4=4,IF('Detailed Cash Flow Chart'!S25="",0,'Detailed Cash Flow Chart'!S25),0) -IF('Financial Goals (non-recurring)'!$D$4=4,IF('Detailed Cash Flow Chart'!U25="",0,'Detailed Cash Flow Chart'!U25),0) -IF('Financial Goals (non-recurring)'!$F$4=4,IF('Detailed Cash Flow Chart'!W25="",0,'Detailed Cash Flow Chart'!W25),0) -IF('Financial Goals (non-recurring)'!$H$4=4,IF('Detailed Cash Flow Chart'!Y25="",0,'Detailed Cash Flow Chart'!Y25),0) -IF('Financial Goals (non-recurring)'!$J$4=4,IF('Detailed Cash Flow Chart'!AA25="",0,'Detailed Cash Flow Chart'!AA25),0) -IF('Financial Goals (recurring)'!$B$3=4,IF('Detailed Cash Flow Chart'!AG25="",0,'Detailed Cash Flow Chart'!AG25),0) -IF('Financial Goals (recurring)'!$K$3=4,IF('Detailed Cash Flow Chart'!AN25="",0,'Detailed Cash Flow Chart'!AN25),0) -> 351200.4867 | AG25: =AE25 -IF('Financial Goals (non-recurring)'!$B$4=5,IF('Detailed Cash Flow Chart'!S25="",0,'Detailed Cash Flow Chart'!S25),0) -IF('Financial Goals (non-recurring)'!$D$4=5,IF('Detailed Cash Flow Chart'!U25="",0,'Detailed Cash Flow Chart'!U25),0) -IF('Financial Goals (non-recurring)'!$F$4=5,IF('Detailed Cash Flow Chart'!W25="",0,'Detailed Cash Flow Chart'!W25),0) -IF('Financial Goals (non-recurring)'!$H$4=5,IF('Detailed Cash Flow Chart'!Y25="",0,'Detailed Cash Flow Chart'!Y25),0) -IF('Financial Goals (non-recurring)'!$J$4=5,IF('Detailed Cash Flow Chart'!AA25="",0,'Detailed Cash Flow Chart'!AA25),0) -IF('Financial Goals (recurring)'!$B$3=5,IF('Detailed Cash Flow Chart'!AG25="",0,'Detailed Cash Flow Chart'!AG25),0) -IF('Financial Goals (recurring)'!$K$3=5,IF('Detailed Cash Flow Chart'!AN25="",0,'Detailed Cash Flow Chart'!AN25),0) -> 351200.4867 | AI25: =AG25 -IF('Financial Goals (non-recurring)'!$B$4=6,IF('Detailed Cash Flow Chart'!S25="",0,'Detailed Cash Flow Chart'!S25),0) -IF('Financial Goals (non-recurring)'!$D$4=6,IF('Detailed Cash Flow Chart'!U25="",0,'Detailed Cash Flow Chart'!U25),0) -IF('Financial Goals (non-recurring)'!$F$4=6,IF('Detailed Cash Flow Chart'!W25="",0,'Detailed Cash Flow Chart'!W25),0) -IF('Financial Goals (non-recurring)'!$H$4=6,IF('Detailed Cash Flow Chart'!Y25="",0,'Detailed Cash Flow Chart'!Y25),0) -IF('Financial Goals (non-recurring)'!$J$4=6,IF('Detailed Cash Flow Chart'!AA25="",0,'Detailed Cash Flow Chart'!AA25),0) -IF('Financial Goals (recurring)'!$B$3=6,IF('Detailed Cash Flow Chart'!AG25="",0,'Detailed Cash Flow Chart'!AG25),0) -IF('Financial Goals (recurring)'!$K$3=6,IF('Detailed Cash Flow Chart'!AN25="",0,'Detailed Cash Flow Chart'!AN25),0) -> 351200.4867 | AK25: =AI25 -IF('Financial Goals (non-recurring)'!$B$4=7,IF('Detailed Cash Flow Chart'!S25="",0,'Detailed Cash Flow Chart'!S25),0) -IF('Financial Goals (non-recurring)'!$D$4=7,IF('Detailed Cash Flow Chart'!U25="",0,'Detailed Cash Flow Chart'!U25),0) -IF('Financial Goals (non-recurring)'!$F$4=7,IF('Detailed Cash Flow Chart'!W25="",0,'Detailed Cash Flow Chart'!W25),0) -IF('Financial Goals (non-recurring)'!$H$4=7,IF('Detailed Cash Flow Chart'!Y25="",0,'Detailed Cash Flow Chart'!Y25),0) -IF('Financial Goals (non-recurring)'!$J$4=7,IF('Detailed Cash Flow Chart'!AA25="",0,'Detailed Cash Flow Chart'!AA25),0) -IF('Financial Goals (recurring)'!$B$3=7,IF('Detailed Cash Flow Chart'!AG25="",0,'Detailed Cash Flow Chart'!AG25),0) -IF('Financial Goals (recurring)'!$K$3=7,IF('Detailed Cash Flow Chart'!AN25="",0,'Detailed Cash Flow Chart'!AN25),0) -> 351200.4867
A26: =IF(ISERROR(C26),NA(),'Detailed Cash Flow Chart'!AJ26) -> 2036 | B26: ='Detailed Cash Flow Chart'!B26 -> 62 | C26: 814027.4939 | D26: 0 | E26: 0 | F26: 0 | G26: 0 | I26: ='Detailed Cash Flow Chart'!D26 -> 0 | J26: =IF(ISERROR(C26),NA(),'Detailed Cash Flow Chart'!C26) -> 216404.5141 | L26: =IF(ISERROR(C26),NA(),'Detailed Cash Flow Chart'!AQ26) -> 209317.0819 | M26: 597622.9798 | Y26: =IF('Detailed Cash Flow Chart'!E26=0,NA(),M26-'Detailed Cash Flow Chart'!E26) -> 388305.8979 | AA26: =Y26 -IF('Financial Goals (non-recurring)'!$B$4=2,IF('Detailed Cash Flow Chart'!S26="",0,'Detailed Cash Flow Chart'!S26),0) -IF('Financial Goals (non-recurring)'!$D$4=2,IF('Detailed Cash Flow Chart'!U26="",0,'Detailed Cash Flow Chart'!U26),0) -IF('Financial Goals (non-recurring)'!$F$4=2,IF('Detailed Cash Flow Chart'!W26="",0,'Detailed Cash Flow Chart'!W26),0) -IF('Financial Goals (non-recurring)'!$H$4=2,IF('Detailed Cash Flow Chart'!Y26="",0,'Detailed Cash Flow Chart'!Y26),0) -IF('Financial Goals (non-recurring)'!$J$4=2,IF('Detailed Cash Flow Chart'!AA26="",0,'Detailed Cash Flow Chart'!AA26),0) -IF('Financial Goals (recurring)'!$B$3=2,IF('Detailed Cash Flow Chart'!AG26="",0,'Detailed Cash Flow Chart'!AG26),0) -IF('Financial Goals (recurring)'!$K$3=2,IF('Detailed Cash Flow Chart'!AN26="",0,'Detailed Cash Flow Chart'!AN26),0) -> 388305.8979 | AC26: =AA26 -IF('Financial Goals (non-recurring)'!$B$4=3,IF('Detailed Cash Flow Chart'!S26="",0,'Detailed Cash Flow Chart'!S26),0) -IF('Financial Goals (non-recurring)'!$D$4=3,IF('Detailed Cash Flow Chart'!U26="",0,'Detailed Cash Flow Chart'!U26),0) -IF('Financial Goals (non-recurring)'!$F$4=3,IF('Detailed Cash Flow Chart'!W26="",0,'Detailed Cash Flow Chart'!W26),0) -IF('Financial Goals (non-recurring)'!$H$4=3,IF('Detailed Cash Flow Chart'!Y26="",0,'Detailed Cash Flow Chart'!Y26),0) -IF('Financial Goals (non-recurring)'!$J$4=3,IF('Detailed Cash Flow Chart'!AA26="",0,'Detailed Cash Flow Chart'!AA26),0) -IF('Financial Goals (recurring)'!$B$3=3,IF('Detailed Cash Flow Chart'!AG26="",0,'Detailed Cash Flow Chart'!AG26),0) -IF('Financial Goals (recurring)'!$K$3=3,IF('Detailed Cash Flow Chart'!AN26="",0,'Detailed Cash Flow Chart'!AN26),0) -> 388305.8979 | AE26: =AC26 -IF('Financial Goals (non-recurring)'!$B$4=4,IF('Detailed Cash Flow Chart'!S26="",0,'Detailed Cash Flow Chart'!S26),0) -IF('Financial Goals (non-recurring)'!$D$4=4,IF('Detailed Cash Flow Chart'!U26="",0,'Detailed Cash Flow Chart'!U26),0) -IF('Financial Goals (non-recurring)'!$F$4=4,IF('Detailed Cash Flow Chart'!W26="",0,'Detailed Cash Flow Chart'!W26),0) -IF('Financial Goals (non-recurring)'!$H$4=4,IF('Detailed Cash Flow Chart'!Y26="",0,'Detailed Cash Flow Chart'!Y26),0) -IF('Financial Goals (non-recurring)'!$J$4=4,IF('Detailed Cash Flow Chart'!AA26="",0,'Detailed Cash Flow Chart'!AA26),0) -IF('Financial Goals (recurring)'!$B$3=4,IF('Detailed Cash Flow Chart'!AG26="",0,'Detailed Cash Flow Chart'!AG26),0) -IF('Financial Goals (recurring)'!$K$3=4,IF('Detailed Cash Flow Chart'!AN26="",0,'Detailed Cash Flow Chart'!AN26),0) -> 388305.8979 | AG26: =AE26 -IF('Financial Goals (non-recurring)'!$B$4=5,IF('Detailed Cash Flow Chart'!S26="",0,'Detailed Cash Flow Chart'!S26),0) -IF('Financial Goals (non-recurring)'!$D$4=5,IF('Detailed Cash Flow Chart'!U26="",0,'Detailed Cash Flow Chart'!U26),0) -IF('Financial Goals (non-recurring)'!$F$4=5,IF('Detailed Cash Flow Chart'!W26="",0,'Detailed Cash Flow Chart'!W26),0) -IF('Financial Goals (non-recurring)'!$H$4=5,IF('Detailed Cash Flow Chart'!Y26="",0,'Detailed Cash Flow Chart'!Y26),0) -IF('Financial Goals (non-recurring)'!$J$4=5,IF('Detailed Cash Flow Chart'!AA26="",0,'Detailed Cash Flow Chart'!AA26),0) -IF('Financial Goals (recurring)'!$B$3=5,IF('Detailed Cash Flow Chart'!AG26="",0,'Detailed Cash Flow Chart'!AG26),0) -IF('Financial Goals (recurring)'!$K$3=5,IF('Detailed Cash Flow Chart'!AN26="",0,'Detailed Cash Flow Chart'!AN26),0) -> 388305.8979 | AI26: =AG26 -IF('Financial Goals (non-recurring)'!$B$4=6,IF('Detailed Cash Flow Chart'!S26="",0,'Detailed Cash Flow Chart'!S26),0) -IF('Financial Goals (non-recurring)'!$D$4=6,IF('Detailed Cash Flow Chart'!U26="",0,'Detailed Cash Flow Chart'!U26),0) -IF('Financial Goals (non-recurring)'!$F$4=6,IF('Detailed Cash Flow Chart'!W26="",0,'Detailed Cash Flow Chart'!W26),0) -IF('Financial Goals (non-recurring)'!$H$4=6,IF('Detailed Cash Flow Chart'!Y26="",0,'Detailed Cash Flow Chart'!Y26),0) -IF('Financial Goals (non-recurring)'!$J$4=6,IF('Detailed Cash Flow Chart'!AA26="",0,'Detailed Cash Flow Chart'!AA26),0) -IF('Financial Goals (recurring)'!$B$3=6,IF('Detailed Cash Flow Chart'!AG26="",0,'Detailed Cash Flow Chart'!AG26),0) -IF('Financial Goals (recurring)'!$K$3=6,IF('Detailed Cash Flow Chart'!AN26="",0,'Detailed Cash Flow Chart'!AN26),0) -> 388305.8979 | AK26: =AI26 -IF('Financial Goals (non-recurring)'!$B$4=7,IF('Detailed Cash Flow Chart'!S26="",0,'Detailed Cash Flow Chart'!S26),0) -IF('Financial Goals (non-recurring)'!$D$4=7,IF('Detailed Cash Flow Chart'!U26="",0,'Detailed Cash Flow Chart'!U26),0) -IF('Financial Goals (non-recurring)'!$F$4=7,IF('Detailed Cash Flow Chart'!W26="",0,'Detailed Cash Flow Chart'!W26),0) -IF('Financial Goals (non-recurring)'!$H$4=7,IF('Detailed Cash Flow Chart'!Y26="",0,'Detailed Cash Flow Chart'!Y26),0) -IF('Financial Goals (non-recurring)'!$J$4=7,IF('Detailed Cash Flow Chart'!AA26="",0,'Detailed Cash Flow Chart'!AA26),0) -IF('Financial Goals (recurring)'!$B$3=7,IF('Detailed Cash Flow Chart'!AG26="",0,'Detailed Cash Flow Chart'!AG26),0) -IF('Financial Goals (recurring)'!$K$3=7,IF('Detailed Cash Flow Chart'!AN26="",0,'Detailed Cash Flow Chart'!AN26),0) -> 388305.8979
A27: =IF(ISERROR(C27),NA(),'Detailed Cash Flow Chart'!AJ27) -> 2037 | B27: ='Detailed Cash Flow Chart'!B27 -> 63 | C27: 895430.2433 | D27: 0 | E27: 0 | F27: 0 | G27: 0 | I27: ='Detailed Cash Flow Chart'!D27 -> 0 | J27: =IF(ISERROR(C27),NA(),'Detailed Cash Flow Chart'!C27) -> 235880.9203 | L27: =IF(ISERROR(C27),NA(),'Detailed Cash Flow Chart'!AQ27) -> 230248.7901 | M27: 659549.3229 | O27: So you may need to consider changes to either your lifestyle or consider | Y27: =IF('Detailed Cash Flow Chart'!E27=0,NA(),M27-'Detailed Cash Flow Chart'!E27) -> 429300.5328 | AA27: =Y27 -IF('Financial Goals (non-recurring)'!$B$4=2,IF('Detailed Cash Flow Chart'!S27="",0,'Detailed Cash Flow Chart'!S27),0) -IF('Financial Goals (non-recurring)'!$D$4=2,IF('Detailed Cash Flow Chart'!U27="",0,'Detailed Cash Flow Chart'!U27),0) -IF('Financial Goals (non-recurring)'!$F$4=2,IF('Detailed Cash Flow Chart'!W27="",0,'Detailed Cash Flow Chart'!W27),0) -IF('Financial Goals (non-recurring)'!$H$4=2,IF('Detailed Cash Flow Chart'!Y27="",0,'Detailed Cash Flow Chart'!Y27),0) -IF('Financial Goals (non-recurring)'!$J$4=2,IF('Detailed Cash Flow Chart'!AA27="",0,'Detailed Cash Flow Chart'!AA27),0) -IF('Financial Goals (recurring)'!$B$3=2,IF('Detailed Cash Flow Chart'!AG27="",0,'Detailed Cash Flow Chart'!AG27),0) -IF('Financial Goals (recurring)'!$K$3=2,IF('Detailed Cash Flow Chart'!AN27="",0,'Detailed Cash Flow Chart'!AN27),0) -> 429300.5328 | AC27: =AA27 -IF('Financial Goals (non-recurring)'!$B$4=3,IF('Detailed Cash Flow Chart'!S27="",0,'Detailed Cash Flow Chart'!S27),0) -IF('Financial Goals (non-recurring)'!$D$4=3,IF('Detailed Cash Flow Chart'!U27="",0,'Detailed Cash Flow Chart'!U27),0) -IF('Financial Goals (non-recurring)'!$F$4=3,IF('Detailed Cash Flow Chart'!W27="",0,'Detailed Cash Flow Chart'!W27),0) -IF('Financial Goals (non-recurring)'!$H$4=3,IF('Detailed Cash Flow Chart'!Y27="",0,'Detailed Cash Flow Chart'!Y27),0) -IF('Financial Goals (non-recurring)'!$J$4=3,IF('Detailed Cash Flow Chart'!AA27="",0,'Detailed Cash Flow Chart'!AA27),0) -IF('Financial Goals (recurring)'!$B$3=3,IF('Detailed Cash Flow Chart'!AG27="",0,'Detailed Cash Flow Chart'!AG27),0) -IF('Financial Goals (recurring)'!$K$3=3,IF('Detailed Cash Flow Chart'!AN27="",0,'Detailed Cash Flow Chart'!AN27),0) -> 429300.5328 | AE27: =AC27 -IF('Financial Goals (non-recurring)'!$B$4=4,IF('Detailed Cash Flow Chart'!S27="",0,'Detailed Cash Flow Chart'!S27),0) -IF('Financial Goals (non-recurring)'!$D$4=4,IF('Detailed Cash Flow Chart'!U27="",0,'Detailed Cash Flow Chart'!U27),0) -IF('Financial Goals (non-recurring)'!$F$4=4,IF('Detailed Cash Flow Chart'!W27="",0,'Detailed Cash Flow Chart'!W27),0) -IF('Financial Goals (non-recurring)'!$H$4=4,IF('Detailed Cash Flow Chart'!Y27="",0,'Detailed Cash Flow Chart'!Y27),0) -IF('Financial Goals (non-recurring)'!$J$4=4,IF('Detailed Cash Flow Chart'!AA27="",0,'Detailed Cash Flow Chart'!AA27),0) -IF('Financial Goals (recurring)'!$B$3=4,IF('Detailed Cash Flow Chart'!AG27="",0,'Detailed Cash Flow Chart'!AG27),0) -IF('Financial Goals (recurring)'!$K$3=4,IF('Detailed Cash Flow Chart'!AN27="",0,'Detailed Cash Flow Chart'!AN27),0) -> 429300.5328 | AG27: =AE27 -IF('Financial Goals (non-recurring)'!$B$4=5,IF('Detailed Cash Flow Chart'!S27="",0,'Detailed Cash Flow Chart'!S27),0) -IF('Financial Goals (non-recurring)'!$D$4=5,IF('Detailed Cash Flow Chart'!U27="",0,'Detailed Cash Flow Chart'!U27),0) -IF('Financial Goals (non-recurring)'!$F$4=5,IF('Detailed Cash Flow Chart'!W27="",0,'Detailed Cash Flow Chart'!W27),0) -IF('Financial Goals (non-recurring)'!$H$4=5,IF('Detailed Cash Flow Chart'!Y27="",0,'Detailed Cash Flow Chart'!Y27),0) -IF('Financial Goals (non-recurring)'!$J$4=5,IF('Detailed Cash Flow Chart'!AA27="",0,'Detailed Cash Flow Chart'!AA27),0) -IF('Financial Goals (recurring)'!$B$3=5,IF('Detailed Cash Flow Chart'!AG27="",0,'Detailed Cash Flow Chart'!AG27),0) -IF('Financial Goals (recurring)'!$K$3=5,IF('Detailed Cash Flow Chart'!AN27="",0,'Detailed Cash Flow Chart'!AN27),0) -> 429300.5328 | AI27: =AG27 -IF('Financial Goals (non-recurring)'!$B$4=6,IF('Detailed Cash Flow Chart'!S27="",0,'Detailed Cash Flow Chart'!S27),0) -IF('Financial Goals (non-recurring)'!$D$4=6,IF('Detailed Cash Flow Chart'!U27="",0,'Detailed Cash Flow Chart'!U27),0) -IF('Financial Goals (non-recurring)'!$F$4=6,IF('Detailed Cash Flow Chart'!W27="",0,'Detailed Cash Flow Chart'!W27),0) -IF('Financial Goals (non-recurring)'!$H$4=6,IF('Detailed Cash Flow Chart'!Y27="",0,'Detailed Cash Flow Chart'!Y27),0) -IF('Financial Goals (non-recurring)'!$J$4=6,IF('Detailed Cash Flow Chart'!AA27="",0,'Detailed Cash Flow Chart'!AA27),0) -IF('Financial Goals (recurring)'!$B$3=6,IF('Detailed Cash Flow Chart'!AG27="",0,'Detailed Cash Flow Chart'!AG27),0) -IF('Financial Goals (recurring)'!$K$3=6,IF('Detailed Cash Flow Chart'!AN27="",0,'Detailed Cash Flow Chart'!AN27),0) -> 429300.5328 | AK27: =AI27 -IF('Financial Goals (non-recurring)'!$B$4=7,IF('Detailed Cash Flow Chart'!S27="",0,'Detailed Cash Flow Chart'!S27),0) -IF('Financial Goals (non-recurring)'!$D$4=7,IF('Detailed Cash Flow Chart'!U27="",0,'Detailed Cash Flow Chart'!U27),0) -IF('Financial Goals (non-recurring)'!$F$4=7,IF('Detailed Cash Flow Chart'!W27="",0,'Detailed Cash Flow Chart'!W27),0) -IF('Financial Goals (non-recurring)'!$H$4=7,IF('Detailed Cash Flow Chart'!Y27="",0,'Detailed Cash Flow Chart'!Y27),0) -IF('Financial Goals (non-recurring)'!$J$4=7,IF('Detailed Cash Flow Chart'!AA27="",0,'Detailed Cash Flow Chart'!AA27),0) -IF('Financial Goals (recurring)'!$B$3=7,IF('Detailed Cash Flow Chart'!AG27="",0,'Detailed Cash Flow Chart'!AG27),0) -IF('Financial Goals (recurring)'!$K$3=7,IF('Detailed Cash Flow Chart'!AN27="",0,'Detailed Cash Flow Chart'!AN27),0) -> 429300.5328
A28: =IF(ISERROR(C28),NA(),'Detailed Cash Flow Chart'!AJ28) -> 2038 | B28: ='Detailed Cash Flow Chart'!B28 -> 64 | C28: 984973.2676 | D28: 0 | E28: 0 | F28: 0 | G28: 0 | I28: ='Detailed Cash Flow Chart'!D28 -> 0 | J28: =IF(ISERROR(C28),NA(),'Detailed Cash Flow Chart'!C28) -> 257110.2032 | L28: =IF(ISERROR(C28),NA(),'Detailed Cash Flow Chart'!AQ28) -> 253273.6691 | M28: 727863.0644 | O28: changing your goal parameters like duration, corpus, time of investment etc. | Y28: =IF('Detailed Cash Flow Chart'!E28=0,NA(),M28-'Detailed Cash Flow Chart'!E28) -> 474589.3953 | AA28: =Y28 -IF('Financial Goals (non-recurring)'!$B$4=2,IF('Detailed Cash Flow Chart'!S28="",0,'Detailed Cash Flow Chart'!S28),0) -IF('Financial Goals (non-recurring)'!$D$4=2,IF('Detailed Cash Flow Chart'!U28="",0,'Detailed Cash Flow Chart'!U28),0) -IF('Financial Goals (non-recurring)'!$F$4=2,IF('Detailed Cash Flow Chart'!W28="",0,'Detailed Cash Flow Chart'!W28),0) -IF('Financial Goals (non-recurring)'!$H$4=2,IF('Detailed Cash Flow Chart'!Y28="",0,'Detailed Cash Flow Chart'!Y28),0) -IF('Financial Goals (non-recurring)'!$J$4=2,IF('Detailed Cash Flow Chart'!AA28="",0,'Detailed Cash Flow Chart'!AA28),0) -IF('Financial Goals (recurring)'!$B$3=2,IF('Detailed Cash Flow Chart'!AG28="",0,'Detailed Cash Flow Chart'!AG28),0) -IF('Financial Goals (recurring)'!$K$3=2,IF('Detailed Cash Flow Chart'!AN28="",0,'Detailed Cash Flow Chart'!AN28),0) -> 474589.3953 | AC28: =AA28 -IF('Financial Goals (non-recurring)'!$B$4=3,IF('Detailed Cash Flow Chart'!S28="",0,'Detailed Cash Flow Chart'!S28),0) -IF('Financial Goals (non-recurring)'!$D$4=3,IF('Detailed Cash Flow Chart'!U28="",0,'Detailed Cash Flow Chart'!U28),0) -IF('Financial Goals (non-recurring)'!$F$4=3,IF('Detailed Cash Flow Chart'!W28="",0,'Detailed Cash Flow Chart'!W28),0) -IF('Financial Goals (non-recurring)'!$H$4=3,IF('Detailed Cash Flow Chart'!Y28="",0,'Detailed Cash Flow Chart'!Y28),0) -IF('Financial Goals (non-recurring)'!$J$4=3,IF('Detailed Cash Flow Chart'!AA28="",0,'Detailed Cash Flow Chart'!AA28),0) -IF('Financial Goals (recurring)'!$B$3=3,IF('Detailed Cash Flow Chart'!AG28="",0,'Detailed Cash Flow Chart'!AG28),0) -IF('Financial Goals (recurring)'!$K$3=3,IF('Detailed Cash Flow Chart'!AN28="",0,'Detailed Cash Flow Chart'!AN28),0) -> 474589.3953 | AE28: =AC28 -IF('Financial Goals (non-recurring)'!$B$4=4,IF('Detailed Cash Flow Chart'!S28="",0,'Detailed Cash Flow Chart'!S28),0) -IF('Financial Goals (non-recurring)'!$D$4=4,IF('Detailed Cash Flow Chart'!U28="",0,'Detailed Cash Flow Chart'!U28),0) -IF('Financial Goals (non-recurring)'!$F$4=4,IF('Detailed Cash Flow Chart'!W28="",0,'Detailed Cash Flow Chart'!W28),0) -IF('Financial Goals (non-recurring)'!$H$4=4,IF('Detailed Cash Flow Chart'!Y28="",0,'Detailed Cash Flow Chart'!Y28),0) -IF('Financial Goals (non-recurring)'!$J$4=4,IF('Detailed Cash Flow Chart'!AA28="",0,'Detailed Cash Flow Chart'!AA28),0) -IF('Financial Goals (recurring)'!$B$3=4,IF('Detailed Cash Flow Chart'!AG28="",0,'Detailed Cash Flow Chart'!AG28),0) -IF('Financial Goals (recurring)'!$K$3=4,IF('Detailed Cash Flow Chart'!AN28="",0,'Detailed Cash Flow Chart'!AN28),0) -> 474589.3953 | AG28: =AE28 -IF('Financial Goals (non-recurring)'!$B$4=5,IF('Detailed Cash Flow Chart'!S28="",0,'Detailed Cash Flow Chart'!S28),0) -IF('Financial Goals (non-recurring)'!$D$4=5,IF('Detailed Cash Flow Chart'!U28="",0,'Detailed Cash Flow Chart'!U28),0) -IF('Financial Goals (non-recurring)'!$F$4=5,IF('Detailed Cash Flow Chart'!W28="",0,'Detailed Cash Flow Chart'!W28),0) -IF('Financial Goals (non-recurring)'!$H$4=5,IF('Detailed Cash Flow Chart'!Y28="",0,'Detailed Cash Flow Chart'!Y28),0) -IF('Financial Goals (non-recurring)'!$J$4=5,IF('Detailed Cash Flow Chart'!AA28="",0,'Detailed Cash Flow Chart'!AA28),0) -IF('Financial Goals (recurring)'!$B$3=5,IF('Detailed Cash Flow Chart'!AG28="",0,'Detailed Cash Flow Chart'!AG28),0) -IF('Financial Goals (recurring)'!$K$3=5,IF('Detailed Cash Flow Chart'!AN28="",0,'Detailed Cash Flow Chart'!AN28),0) -> 474589.3953 | AI28: =AG28 -IF('Financial Goals (non-recurring)'!$B$4=6,IF('Detailed Cash Flow Chart'!S28="",0,'Detailed Cash Flow Chart'!S28),0) -IF('Financial Goals (non-recurring)'!$D$4=6,IF('Detailed Cash Flow Chart'!U28="",0,'Detailed Cash Flow Chart'!U28),0) -IF('Financial Goals (non-recurring)'!$F$4=6,IF('Detailed Cash Flow Chart'!W28="",0,'Detailed Cash Flow Chart'!W28),0) -IF('Financial Goals (non-recurring)'!$H$4=6,IF('Detailed Cash Flow Chart'!Y28="",0,'Detailed Cash Flow Chart'!Y28),0) -IF('Financial Goals (non-recurring)'!$J$4=6,IF('Detailed Cash Flow Chart'!AA28="",0,'Detailed Cash Flow Chart'!AA28),0) -IF('Financial Goals (recurring)'!$B$3=6,IF('Detailed Cash Flow Chart'!AG28="",0,'Detailed Cash Flow Chart'!AG28),0) -IF('Financial Goals (recurring)'!$K$3=6,IF('Detailed Cash Flow Chart'!AN28="",0,'Detailed Cash Flow Chart'!AN28),0) -> 474589.3953 | AK28: =AI28 -IF('Financial Goals (non-recurring)'!$B$4=7,IF('Detailed Cash Flow Chart'!S28="",0,'Detailed Cash Flow Chart'!S28),0) -IF('Financial Goals (non-recurring)'!$D$4=7,IF('Detailed Cash Flow Chart'!U28="",0,'Detailed Cash Flow Chart'!U28),0) -IF('Financial Goals (non-recurring)'!$F$4=7,IF('Detailed Cash Flow Chart'!W28="",0,'Detailed Cash Flow Chart'!W28),0) -IF('Financial Goals (non-recurring)'!$H$4=7,IF('Detailed Cash Flow Chart'!Y28="",0,'Detailed Cash Flow Chart'!Y28),0) -IF('Financial Goals (non-recurring)'!$J$4=7,IF('Detailed Cash Flow Chart'!AA28="",0,'Detailed Cash Flow Chart'!AA28),0) -IF('Financial Goals (recurring)'!$B$3=7,IF('Detailed Cash Flow Chart'!AG28="",0,'Detailed Cash Flow Chart'!AG28),0) -IF('Financial Goals (recurring)'!$K$3=7,IF('Detailed Cash Flow Chart'!AN28="",0,'Detailed Cash Flow Chart'!AN28),0) -> 474589.3953
A29: =IF(ISERROR(C29),NA(),'Detailed Cash Flow Chart'!AJ29) -> 2039 | B29: ='Detailed Cash Flow Chart'!B29 -> 65 | C29: 1083470.594 | D29: 0 | E29: 0 | F29: 0 | G29: 0 | I29: ='Detailed Cash Flow Chart'!D29 -> 280250.1215 | J29: =IF(ISERROR(C29),NA(),'Detailed Cash Flow Chart'!C29) -> 280250.1215 | L29: =IF(ISERROR(C29),NA(),'Detailed Cash Flow Chart'!AQ29) -> 0 | M29: 1083470.594 | Y29: =IF('Detailed Cash Flow Chart'!E29=0,NA(),M29-'Detailed Cash Flow Chart'!E29) ->  | AA29: =Y29 -IF('Financial Goals (non-recurring)'!$B$4=2,IF('Detailed Cash Flow Chart'!S29="",0,'Detailed Cash Flow Chart'!S29),0) -IF('Financial Goals (non-recurring)'!$D$4=2,IF('Detailed Cash Flow Chart'!U29="",0,'Detailed Cash Flow Chart'!U29),0) -IF('Financial Goals (non-recurring)'!$F$4=2,IF('Detailed Cash Flow Chart'!W29="",0,'Detailed Cash Flow Chart'!W29),0) -IF('Financial Goals (non-recurring)'!$H$4=2,IF('Detailed Cash Flow Chart'!Y29="",0,'Detailed Cash Flow Chart'!Y29),0) -IF('Financial Goals (non-recurring)'!$J$4=2,IF('Detailed Cash Flow Chart'!AA29="",0,'Detailed Cash Flow Chart'!AA29),0) -IF('Financial Goals (recurring)'!$B$3=2,IF('Detailed Cash Flow Chart'!AG29="",0,'Detailed Cash Flow Chart'!AG29),0) -IF('Financial Goals (recurring)'!$K$3=2,IF('Detailed Cash Flow Chart'!AN29="",0,'Detailed Cash Flow Chart'!AN29),0) ->  | AC29: =AA29 -IF('Financial Goals (non-recurring)'!$B$4=3,IF('Detailed Cash Flow Chart'!S29="",0,'Detailed Cash Flow Chart'!S29),0) -IF('Financial Goals (non-recurring)'!$D$4=3,IF('Detailed Cash Flow Chart'!U29="",0,'Detailed Cash Flow Chart'!U29),0) -IF('Financial Goals (non-recurring)'!$F$4=3,IF('Detailed Cash Flow Chart'!W29="",0,'Detailed Cash Flow Chart'!W29),0) -IF('Financial Goals (non-recurring)'!$H$4=3,IF('Detailed Cash Flow Chart'!Y29="",0,'Detailed Cash Flow Chart'!Y29),0) -IF('Financial Goals (non-recurring)'!$J$4=3,IF('Detailed Cash Flow Chart'!AA29="",0,'Detailed Cash Flow Chart'!AA29),0) -IF('Financial Goals (recurring)'!$B$3=3,IF('Detailed Cash Flow Chart'!AG29="",0,'Detailed Cash Flow Chart'!AG29),0) -IF('Financial Goals (recurring)'!$K$3=3,IF('Detailed Cash Flow Chart'!AN29="",0,'Detailed Cash Flow Chart'!AN29),0) ->  | AE29: =AC29 -IF('Financial Goals (non-recurring)'!$B$4=4,IF('Detailed Cash Flow Chart'!S29="",0,'Detailed Cash Flow Chart'!S29),0) -IF('Financial Goals (non-recurring)'!$D$4=4,IF('Detailed Cash Flow Chart'!U29="",0,'Detailed Cash Flow Chart'!U29),0) -IF('Financial Goals (non-recurring)'!$F$4=4,IF('Detailed Cash Flow Chart'!W29="",0,'Detailed Cash Flow Chart'!W29),0) -IF('Financial Goals (non-recurring)'!$H$4=4,IF('Detailed Cash Flow Chart'!Y29="",0,'Detailed Cash Flow Chart'!Y29),0) -IF('Financial Goals (non-recurring)'!$J$4=4,IF('Detailed Cash Flow Chart'!AA29="",0,'Detailed Cash Flow Chart'!AA29),0) -IF('Financial Goals (recurring)'!$B$3=4,IF('Detailed Cash Flow Chart'!AG29="",0,'Detailed Cash Flow Chart'!AG29),0) -IF('Financial Goals (recurring)'!$K$3=4,IF('Detailed Cash Flow Chart'!AN29="",0,'Detailed Cash Flow Chart'!AN29),0) ->  | AG29: =AE29 -IF('Financial Goals (non-recurring)'!$B$4=5,IF('Detailed Cash Flow Chart'!S29="",0,'Detailed Cash Flow Chart'!S29),0) -IF('Financial Goals (non-recurring)'!$D$4=5,IF('Detailed Cash Flow Chart'!U29="",0,'Detailed Cash Flow Chart'!U29),0) -IF('Financial Goals (non-recurring)'!$F$4=5,IF('Detailed Cash Flow Chart'!W29="",0,'Detailed Cash Flow Chart'!W29),0) -IF('Financial Goals (non-recurring)'!$H$4=5,IF('Detailed Cash Flow Chart'!Y29="",0,'Detailed Cash Flow Chart'!Y29),0) -IF('Financial Goals (non-recurring)'!$J$4=5,IF('Detailed Cash Flow Chart'!AA29="",0,'Detailed Cash Flow Chart'!AA29),0) -IF('Financial Goals (recurring)'!$B$3=5,IF('Detailed Cash Flow Chart'!AG29="",0,'Detailed Cash Flow Chart'!AG29),0) -IF('Financial Goals (recurring)'!$K$3=5,IF('Detailed Cash Flow Chart'!AN29="",0,'Detailed Cash Flow Chart'!AN29),0) ->  | AI29: =AG29 -IF('Financial Goals (non-recurring)'!$B$4=6,IF('Detailed Cash Flow Chart'!S29="",0,'Detailed Cash Flow Chart'!S29),0) -IF('Financial Goals (non-recurring)'!$D$4=6,IF('Detailed Cash Flow Chart'!U29="",0,'Detailed Cash Flow Chart'!U29),0) -IF('Financial Goals (non-recurring)'!$F$4=6,IF('Detailed Cash Flow Chart'!W29="",0,'Detailed Cash Flow Chart'!W29),0) -IF('Financial Goals (non-recurring)'!$H$4=6,IF('Detailed Cash Flow Chart'!Y29="",0,'Detailed Cash Flow Chart'!Y29),0) -IF('Financial Goals (non-recurring)'!$J$4=6,IF('Detailed Cash Flow Chart'!AA29="",0,'Detailed Cash Flow Chart'!AA29),0) -IF('Financial Goals (recurring)'!$B$3=6,IF('Detailed Cash Flow Chart'!AG29="",0,'Detailed Cash Flow Chart'!AG29),0) -IF('Financial Goals (recurring)'!$K$3=6,IF('Detailed Cash Flow Chart'!AN29="",0,'Detailed Cash Flow Chart'!AN29),0) ->  | AK29: =AI29 -IF('Financial Goals (non-recurring)'!$B$4=7,IF('Detailed Cash Flow Chart'!S29="",0,'Detailed Cash Flow Chart'!S29),0) -IF('Financial Goals (non-recurring)'!$D$4=7,IF('Detailed Cash Flow Chart'!U29="",0,'Detailed Cash Flow Chart'!U29),0) -IF('Financial Goals (non-recurring)'!$F$4=7,IF('Detailed Cash Flow Chart'!W29="",0,'Detailed Cash Flow Chart'!W29),0) -IF('Financial Goals (non-recurring)'!$H$4=7,IF('Detailed Cash Flow Chart'!Y29="",0,'Detailed Cash Flow Chart'!Y29),0) -IF('Financial Goals (non-recurring)'!$J$4=7,IF('Detailed Cash Flow Chart'!AA29="",0,'Detailed Cash Flow Chart'!AA29),0) -IF('Financial Goals (recurring)'!$B$3=7,IF('Detailed Cash Flow Chart'!AG29="",0,'Detailed Cash Flow Chart'!AG29),0) -IF('Financial Goals (recurring)'!$K$3=7,IF('Detailed Cash Flow Chart'!AN29="",0,'Detailed Cash Flow Chart'!AN29),0) -> 
A30: =IF(ISERROR(C30),NA(),'Detailed Cash Flow Chart'!AJ30) ->  | B30: ='Detailed Cash Flow Chart'!B30 -> 66 | I30: ='Detailed Cash Flow Chart'!D30 -> 305472.6324 | J30: =IF(ISERROR(C30),NA(),'Detailed Cash Flow Chart'!C30) ->  | L30: =IF(ISERROR(C30),NA(),'Detailed Cash Flow Chart'!AQ30) ->  | O30: Please remember, at all times, use reasonable rate of returns. | Y30: =IF('Detailed Cash Flow Chart'!E30=0,NA(),M30-'Detailed Cash Flow Chart'!E30) ->  | AA30: =Y30 -IF('Financial Goals (non-recurring)'!$B$4=2,IF('Detailed Cash Flow Chart'!S30="",0,'Detailed Cash Flow Chart'!S30),0) -IF('Financial Goals (non-recurring)'!$D$4=2,IF('Detailed Cash Flow Chart'!U30="",0,'Detailed Cash Flow Chart'!U30),0) -IF('Financial Goals (non-recurring)'!$F$4=2,IF('Detailed Cash Flow Chart'!W30="",0,'Detailed Cash Flow Chart'!W30),0) -IF('Financial Goals (non-recurring)'!$H$4=2,IF('Detailed Cash Flow Chart'!Y30="",0,'Detailed Cash Flow Chart'!Y30),0) -IF('Financial Goals (non-recurring)'!$J$4=2,IF('Detailed Cash Flow Chart'!AA30="",0,'Detailed Cash Flow Chart'!AA30),0) -IF('Financial Goals (recurring)'!$B$3=2,IF('Detailed Cash Flow Chart'!AG30="",0,'Detailed Cash Flow Chart'!AG30),0) -IF('Financial Goals (recurring)'!$K$3=2,IF('Detailed Cash Flow Chart'!AN30="",0,'Detailed Cash Flow Chart'!AN30),0) ->  | AC30: =AA30 -IF('Financial Goals (non-recurring)'!$B$4=3,IF('Detailed Cash Flow Chart'!S30="",0,'Detailed Cash Flow Chart'!S30),0) -IF('Financial Goals (non-recurring)'!$D$4=3,IF('Detailed Cash Flow Chart'!U30="",0,'Detailed Cash Flow Chart'!U30),0) -IF('Financial Goals (non-recurring)'!$F$4=3,IF('Detailed Cash Flow Chart'!W30="",0,'Detailed Cash Flow Chart'!W30),0) -IF('Financial Goals (non-recurring)'!$H$4=3,IF('Detailed Cash Flow Chart'!Y30="",0,'Detailed Cash Flow Chart'!Y30),0) -IF('Financial Goals (non-recurring)'!$J$4=3,IF('Detailed Cash Flow Chart'!AA30="",0,'Detailed Cash Flow Chart'!AA30),0) -IF('Financial Goals (recurring)'!$B$3=3,IF('Detailed Cash Flow Chart'!AG30="",0,'Detailed Cash Flow Chart'!AG30),0) -IF('Financial Goals (recurring)'!$K$3=3,IF('Detailed Cash Flow Chart'!AN30="",0,'Detailed Cash Flow Chart'!AN30),0) ->  | AE30: =AC30 -IF('Financial Goals (non-recurring)'!$B$4=4,IF('Detailed Cash Flow Chart'!S30="",0,'Detailed Cash Flow Chart'!S30),0) -IF('Financial Goals (non-recurring)'!$D$4=4,IF('Detailed Cash Flow Chart'!U30="",0,'Detailed Cash Flow Chart'!U30),0) -IF('Financial Goals (non-recurring)'!$F$4=4,IF('Detailed Cash Flow Chart'!W30="",0,'Detailed Cash Flow Chart'!W30),0) -IF('Financial Goals (non-recurring)'!$H$4=4,IF('Detailed Cash Flow Chart'!Y30="",0,'Detailed Cash Flow Chart'!Y30),0) -IF('Financial Goals (non-recurring)'!$J$4=4,IF('Detailed Cash Flow Chart'!AA30="",0,'Detailed Cash Flow Chart'!AA30),0) -IF('Financial Goals (recurring)'!$B$3=4,IF('Detailed Cash Flow Chart'!AG30="",0,'Detailed Cash Flow Chart'!AG30),0) -IF('Financial Goals (recurring)'!$K$3=4,IF('Detailed Cash Flow Chart'!AN30="",0,'Detailed Cash Flow Chart'!AN30),0) ->  | AG30: =AE30 -IF('Financial Goals (non-recurring)'!$B$4=5,IF('Detailed Cash Flow Chart'!S30="",0,'Detailed Cash Flow Chart'!S30),0) -IF('Financial Goals (non-recurring)'!$D$4=5,IF('Detailed Cash Flow Chart'!U30="",0,'Detailed Cash Flow Chart'!U30),0) -IF('Financial Goals (non-recurring)'!$F$4=5,IF('Detailed Cash Flow Chart'!W30="",0,'Detailed Cash Flow Chart'!W30),0) -IF('Financial Goals (non-recurring)'!$H$4=5,IF('Detailed Cash Flow Chart'!Y30="",0,'Detailed Cash Flow Chart'!Y30),0) -IF('Financial Goals (non-recurring)'!$J$4=5,IF('Detailed Cash Flow Chart'!AA30="",0,'Detailed Cash Flow Chart'!AA30),0) -IF('Financial Goals (recurring)'!$B$3=5,IF('Detailed Cash Flow Chart'!AG30="",0,'Detailed Cash Flow Chart'!AG30),0) -IF('Financial Goals (recurring)'!$K$3=5,IF('Detailed Cash Flow Chart'!AN30="",0,'Detailed Cash Flow Chart'!AN30),0) ->  | AI30: =AG30 -IF('Financial Goals (non-recurring)'!$B$4=6,IF('Detailed Cash Flow Chart'!S30="",0,'Detailed Cash Flow Chart'!S30),0) -IF('Financial Goals (non-recurring)'!$D$4=6,IF('Detailed Cash Flow Chart'!U30="",0,'Detailed Cash Flow Chart'!U30),0) -IF('Financial Goals (non-recurring)'!$F$4=6,IF('Detailed Cash Flow Chart'!W30="",0,'Detailed Cash Flow Chart'!W30),0) -IF('Financial Goals (non-recurring)'!$H$4=6,IF('Detailed Cash Flow Chart'!Y30="",0,'Detailed Cash Flow Chart'!Y30),0) -IF('Financial Goals (non-recurring)'!$J$4=6,IF('Detailed Cash Flow Chart'!AA30="",0,'Detailed Cash Flow Chart'!AA30),0) -IF('Financial Goals (recurring)'!$B$3=6,IF('Detailed Cash Flow Chart'!AG30="",0,'Detailed Cash Flow Chart'!AG30),0) -IF('Financial Goals (recurring)'!$K$3=6,IF('Detailed Cash Flow Chart'!AN30="",0,'Detailed Cash Flow Chart'!AN30),0) ->  | AK30: =AI30 -IF('Financial Goals (non-recurring)'!$B$4=7,IF('Detailed Cash Flow Chart'!S30="",0,'Detailed Cash Flow Chart'!S30),0) -IF('Financial Goals (non-recurring)'!$D$4=7,IF('Detailed Cash Flow Chart'!U30="",0,'Detailed Cash Flow Chart'!U30),0) -IF('Financial Goals (non-recurring)'!$F$4=7,IF('Detailed Cash Flow Chart'!W30="",0,'Detailed Cash Flow Chart'!W30),0) -IF('Financial Goals (non-recurring)'!$H$4=7,IF('Detailed Cash Flow Chart'!Y30="",0,'Detailed Cash Flow Chart'!Y30),0) -IF('Financial Goals (non-recurring)'!$J$4=7,IF('Detailed Cash Flow Chart'!AA30="",0,'Detailed Cash Flow Chart'!AA30),0) -IF('Financial Goals (recurring)'!$B$3=7,IF('Detailed Cash Flow Chart'!AG30="",0,'Detailed Cash Flow Chart'!AG30),0) -IF('Financial Goals (recurring)'!$K$3=7,IF('Detailed Cash Flow Chart'!AN30="",0,'Detailed Cash Flow Chart'!AN30),0) -> 
A31: =IF(ISERROR(C31),NA(),'Detailed Cash Flow Chart'!AJ31) ->  | B31: ='Detailed Cash Flow Chart'!B31 -> 67 | I31: ='Detailed Cash Flow Chart'!D31 -> 332965.1693 | J31: =IF(ISERROR(C31),NA(),'Detailed Cash Flow Chart'!C31) ->  | L31: =IF(ISERROR(C31),NA(),'Detailed Cash Flow Chart'!AQ31) ->  | Y31: =IF('Detailed Cash Flow Chart'!E31=0,NA(),M31-'Detailed Cash Flow Chart'!E31) ->  | AA31: =Y31 -IF('Financial Goals (non-recurring)'!$B$4=2,IF('Detailed Cash Flow Chart'!S31="",0,'Detailed Cash Flow Chart'!S31),0) -IF('Financial Goals (non-recurring)'!$D$4=2,IF('Detailed Cash Flow Chart'!U31="",0,'Detailed Cash Flow Chart'!U31),0) -IF('Financial Goals (non-recurring)'!$F$4=2,IF('Detailed Cash Flow Chart'!W31="",0,'Detailed Cash Flow Chart'!W31),0) -IF('Financial Goals (non-recurring)'!$H$4=2,IF('Detailed Cash Flow Chart'!Y31="",0,'Detailed Cash Flow Chart'!Y31),0) -IF('Financial Goals (non-recurring)'!$J$4=2,IF('Detailed Cash Flow Chart'!AA31="",0,'Detailed Cash Flow Chart'!AA31),0) -IF('Financial Goals (recurring)'!$B$3=2,IF('Detailed Cash Flow Chart'!AG31="",0,'Detailed Cash Flow Chart'!AG31),0) -IF('Financial Goals (recurring)'!$K$3=2,IF('Detailed Cash Flow Chart'!AN31="",0,'Detailed Cash Flow Chart'!AN31),0) ->  | AC31: =AA31 -IF('Financial Goals (non-recurring)'!$B$4=3,IF('Detailed Cash Flow Chart'!S31="",0,'Detailed Cash Flow Chart'!S31),0) -IF('Financial Goals (non-recurring)'!$D$4=3,IF('Detailed Cash Flow Chart'!U31="",0,'Detailed Cash Flow Chart'!U31),0) -IF('Financial Goals (non-recurring)'!$F$4=3,IF('Detailed Cash Flow Chart'!W31="",0,'Detailed Cash Flow Chart'!W31),0) -IF('Financial Goals (non-recurring)'!$H$4=3,IF('Detailed Cash Flow Chart'!Y31="",0,'Detailed Cash Flow Chart'!Y31),0) -IF('Financial Goals (non-recurring)'!$J$4=3,IF('Detailed Cash Flow Chart'!AA31="",0,'Detailed Cash Flow Chart'!AA31),0) -IF('Financial Goals (recurring)'!$B$3=3,IF('Detailed Cash Flow Chart'!AG31="",0,'Detailed Cash Flow Chart'!AG31),0) -IF('Financial Goals (recurring)'!$K$3=3,IF('Detailed Cash Flow Chart'!AN31="",0,'Detailed Cash Flow Chart'!AN31),0) ->  | AE31: =AC31 -IF('Financial Goals (non-recurring)'!$B$4=4,IF('Detailed Cash Flow Chart'!S31="",0,'Detailed Cash Flow Chart'!S31),0) -IF('Financial Goals (non-recurring)'!$D$4=4,IF('Detailed Cash Flow Chart'!U31="",0,'Detailed Cash Flow Chart'!U31),0) -IF('Financial Goals (non-recurring)'!$F$4=4,IF('Detailed Cash Flow Chart'!W31="",0,'Detailed Cash Flow Chart'!W31),0) -IF('Financial Goals (non-recurring)'!$H$4=4,IF('Detailed Cash Flow Chart'!Y31="",0,'Detailed Cash Flow Chart'!Y31),0) -IF('Financial Goals (non-recurring)'!$J$4=4,IF('Detailed Cash Flow Chart'!AA31="",0,'Detailed Cash Flow Chart'!AA31),0) -IF('Financial Goals (recurring)'!$B$3=4,IF('Detailed Cash Flow Chart'!AG31="",0,'Detailed Cash Flow Chart'!AG31),0) -IF('Financial Goals (recurring)'!$K$3=4,IF('Detailed Cash Flow Chart'!AN31="",0,'Detailed Cash Flow Chart'!AN31),0) ->  | AG31: =AE31 -IF('Financial Goals (non-recurring)'!$B$4=5,IF('Detailed Cash Flow Chart'!S31="",0,'Detailed Cash Flow Chart'!S31),0) -IF('Financial Goals (non-recurring)'!$D$4=5,IF('Detailed Cash Flow Chart'!U31="",0,'Detailed Cash Flow Chart'!U31),0) -IF('Financial Goals (non-recurring)'!$F$4=5,IF('Detailed Cash Flow Chart'!W31="",0,'Detailed Cash Flow Chart'!W31),0) -IF('Financial Goals (non-recurring)'!$H$4=5,IF('Detailed Cash Flow Chart'!Y31="",0,'Detailed Cash Flow Chart'!Y31),0) -IF('Financial Goals (non-recurring)'!$J$4=5,IF('Detailed Cash Flow Chart'!AA31="",0,'Detailed Cash Flow Chart'!AA31),0) -IF('Financial Goals (recurring)'!$B$3=5,IF('Detailed Cash Flow Chart'!AG31="",0,'Detailed Cash Flow Chart'!AG31),0) -IF('Financial Goals (recurring)'!$K$3=5,IF('Detailed Cash Flow Chart'!AN31="",0,'Detailed Cash Flow Chart'!AN31),0) ->  | AI31: =AG31 -IF('Financial Goals (non-recurring)'!$B$4=6,IF('Detailed Cash Flow Chart'!S31="",0,'Detailed Cash Flow Chart'!S31),0) -IF('Financial Goals (non-recurring)'!$D$4=6,IF('Detailed Cash Flow Chart'!U31="",0,'Detailed Cash Flow Chart'!U31),0) -IF('Financial Goals (non-recurring)'!$F$4=6,IF('Detailed Cash Flow Chart'!W31="",0,'Detailed Cash Flow Chart'!W31),0) -IF('Financial Goals (non-recurring)'!$H$4=6,IF('Detailed Cash Flow Chart'!Y31="",0,'Detailed Cash Flow Chart'!Y31),0) -IF('Financial Goals (non-recurring)'!$J$4=6,IF('Detailed Cash Flow Chart'!AA31="",0,'Detailed Cash Flow Chart'!AA31),0) -IF('Financial Goals (recurring)'!$B$3=6,IF('Detailed Cash Flow Chart'!AG31="",0,'Detailed Cash Flow Chart'!AG31),0) -IF('Financial Goals (recurring)'!$K$3=6,IF('Detailed Cash Flow Chart'!AN31="",0,'Detailed Cash Flow Chart'!AN31),0) ->  | AK31: =AI31 -IF('Financial Goals (non-recurring)'!$B$4=7,IF('Detailed Cash Flow Chart'!S31="",0,'Detailed Cash Flow Chart'!S31),0) -IF('Financial Goals (non-recurring)'!$D$4=7,IF('Detailed Cash Flow Chart'!U31="",0,'Detailed Cash Flow Chart'!U31),0) -IF('Financial Goals (non-recurring)'!$F$4=7,IF('Detailed Cash Flow Chart'!W31="",0,'Detailed Cash Flow Chart'!W31),0) -IF('Financial Goals (non-recurring)'!$H$4=7,IF('Detailed Cash Flow Chart'!Y31="",0,'Detailed Cash Flow Chart'!Y31),0) -IF('Financial Goals (non-recurring)'!$J$4=7,IF('Detailed Cash Flow Chart'!AA31="",0,'Detailed Cash Flow Chart'!AA31),0) -IF('Financial Goals (recurring)'!$B$3=7,IF('Detailed Cash Flow Chart'!AG31="",0,'Detailed Cash Flow Chart'!AG31),0) -IF('Financial Goals (recurring)'!$K$3=7,IF('Detailed Cash Flow Chart'!AN31="",0,'Detailed Cash Flow Chart'!AN31),0) -> 
A32: =IF(ISERROR(C32),NA(),'Detailed Cash Flow Chart'!AJ32) ->  | B32: ='Detailed Cash Flow Chart'!B32 -> 68 | I32: ='Detailed Cash Flow Chart'!D32 -> 362932.0345 | J32: =IF(ISERROR(C32),NA(),'Detailed Cash Flow Chart'!C32) ->  | L32: =IF(ISERROR(C32),NA(),'Detailed Cash Flow Chart'!AQ32) ->  | O32: Kindly do not hesistate to seek professional help! | Y32: =IF('Detailed Cash Flow Chart'!E32=0,NA(),M32-'Detailed Cash Flow Chart'!E32) ->  | AA32: =Y32 -IF('Financial Goals (non-recurring)'!$B$4=2,IF('Detailed Cash Flow Chart'!S32="",0,'Detailed Cash Flow Chart'!S32),0) -IF('Financial Goals (non-recurring)'!$D$4=2,IF('Detailed Cash Flow Chart'!U32="",0,'Detailed Cash Flow Chart'!U32),0) -IF('Financial Goals (non-recurring)'!$F$4=2,IF('Detailed Cash Flow Chart'!W32="",0,'Detailed Cash Flow Chart'!W32),0) -IF('Financial Goals (non-recurring)'!$H$4=2,IF('Detailed Cash Flow Chart'!Y32="",0,'Detailed Cash Flow Chart'!Y32),0) -IF('Financial Goals (non-recurring)'!$J$4=2,IF('Detailed Cash Flow Chart'!AA32="",0,'Detailed Cash Flow Chart'!AA32),0) -IF('Financial Goals (recurring)'!$B$3=2,IF('Detailed Cash Flow Chart'!AG32="",0,'Detailed Cash Flow Chart'!AG32),0) -IF('Financial Goals (recurring)'!$K$3=2,IF('Detailed Cash Flow Chart'!AN32="",0,'Detailed Cash Flow Chart'!AN32),0) ->  | AC32: =AA32 -IF('Financial Goals (non-recurring)'!$B$4=3,IF('Detailed Cash Flow Chart'!S32="",0,'Detailed Cash Flow Chart'!S32),0) -IF('Financial Goals (non-recurring)'!$D$4=3,IF('Detailed Cash Flow Chart'!U32="",0,'Detailed Cash Flow Chart'!U32),0) -IF('Financial Goals (non-recurring)'!$F$4=3,IF('Detailed Cash Flow Chart'!W32="",0,'Detailed Cash Flow Chart'!W32),0) -IF('Financial Goals (non-recurring)'!$H$4=3,IF('Detailed Cash Flow Chart'!Y32="",0,'Detailed Cash Flow Chart'!Y32),0) -IF('Financial Goals (non-recurring)'!$J$4=3,IF('Detailed Cash Flow Chart'!AA32="",0,'Detailed Cash Flow Chart'!AA32),0) -IF('Financial Goals (recurring)'!$B$3=3,IF('Detailed Cash Flow Chart'!AG32="",0,'Detailed Cash Flow Chart'!AG32),0) -IF('Financial Goals (recurring)'!$K$3=3,IF('Detailed Cash Flow Chart'!AN32="",0,'Detailed Cash Flow Chart'!AN32),0) ->  | AE32: =AC32 -IF('Financial Goals (non-recurring)'!$B$4=4,IF('Detailed Cash Flow Chart'!S32="",0,'Detailed Cash Flow Chart'!S32),0) -IF('Financial Goals (non-recurring)'!$D$4=4,IF('Detailed Cash Flow Chart'!U32="",0,'Detailed Cash Flow Chart'!U32),0) -IF('Financial Goals (non-recurring)'!$F$4=4,IF('Detailed Cash Flow Chart'!W32="",0,'Detailed Cash Flow Chart'!W32),0) -IF('Financial Goals (non-recurring)'!$H$4=4,IF('Detailed Cash Flow Chart'!Y32="",0,'Detailed Cash Flow Chart'!Y32),0) -IF('Financial Goals (non-recurring)'!$J$4=4,IF('Detailed Cash Flow Chart'!AA32="",0,'Detailed Cash Flow Chart'!AA32),0) -IF('Financial Goals (recurring)'!$B$3=4,IF('Detailed Cash Flow Chart'!AG32="",0,'Detailed Cash Flow Chart'!AG32),0) -IF('Financial Goals (recurring)'!$K$3=4,IF('Detailed Cash Flow Chart'!AN32="",0,'Detailed Cash Flow Chart'!AN32),0) ->  | AG32: =AE32 -IF('Financial Goals (non-recurring)'!$B$4=5,IF('Detailed Cash Flow Chart'!S32="",0,'Detailed Cash Flow Chart'!S32),0) -IF('Financial Goals (non-recurring)'!$D$4=5,IF('Detailed Cash Flow Chart'!U32="",0,'Detailed Cash Flow Chart'!U32),0) -IF('Financial Goals (non-recurring)'!$F$4=5,IF('Detailed Cash Flow Chart'!W32="",0,'Detailed Cash Flow Chart'!W32),0) -IF('Financial Goals (non-recurring)'!$H$4=5,IF('Detailed Cash Flow Chart'!Y32="",0,'Detailed Cash Flow Chart'!Y32),0) -IF('Financial Goals (non-recurring)'!$J$4=5,IF('Detailed Cash Flow Chart'!AA32="",0,'Detailed Cash Flow Chart'!AA32),0) -IF('Financial Goals (recurring)'!$B$3=5,IF('Detailed Cash Flow Chart'!AG32="",0,'Detailed Cash Flow Chart'!AG32),0) -IF('Financial Goals (recurring)'!$K$3=5,IF('Detailed Cash Flow Chart'!AN32="",0,'Detailed Cash Flow Chart'!AN32),0) ->  | AI32: =AG32 -IF('Financial Goals (non-recurring)'!$B$4=6,IF('Detailed Cash Flow Chart'!S32="",0,'Detailed Cash Flow Chart'!S32),0) -IF('Financial Goals (non-recurring)'!$D$4=6,IF('Detailed Cash Flow Chart'!U32="",0,'Detailed Cash Flow Chart'!U32),0) -IF('Financial Goals (non-recurring)'!$F$4=6,IF('Detailed Cash Flow Chart'!W32="",0,'Detailed Cash Flow Chart'!W32),0) -IF('Financial Goals (non-recurring)'!$H$4=6,IF('Detailed Cash Flow Chart'!Y32="",0,'Detailed Cash Flow Chart'!Y32),0) -IF('Financial Goals (non-recurring)'!$J$4=6,IF('Detailed Cash Flow Chart'!AA32="",0,'Detailed Cash Flow Chart'!AA32),0) -IF('Financial Goals (recurring)'!$B$3=6,IF('Detailed Cash Flow Chart'!AG32="",0,'Detailed Cash Flow Chart'!AG32),0) -IF('Financial Goals (recurring)'!$K$3=6,IF('Detailed Cash Flow Chart'!AN32="",0,'Detailed Cash Flow Chart'!AN32),0) ->  | AK32: =AI32 -IF('Financial Goals (non-recurring)'!$B$4=7,IF('Detailed Cash Flow Chart'!S32="",0,'Detailed Cash Flow Chart'!S32),0) -IF('Financial Goals (non-recurring)'!$D$4=7,IF('Detailed Cash Flow Chart'!U32="",0,'Detailed Cash Flow Chart'!U32),0) -IF('Financial Goals (non-recurring)'!$F$4=7,IF('Detailed Cash Flow Chart'!W32="",0,'Detailed Cash Flow Chart'!W32),0) -IF('Financial Goals (non-recurring)'!$H$4=7,IF('Detailed Cash Flow Chart'!Y32="",0,'Detailed Cash Flow Chart'!Y32),0) -IF('Financial Goals (non-recurring)'!$J$4=7,IF('Detailed Cash Flow Chart'!AA32="",0,'Detailed Cash Flow Chart'!AA32),0) -IF('Financial Goals (recurring)'!$B$3=7,IF('Detailed Cash Flow Chart'!AG32="",0,'Detailed Cash Flow Chart'!AG32),0) -IF('Financial Goals (recurring)'!$K$3=7,IF('Detailed Cash Flow Chart'!AN32="",0,'Detailed Cash Flow Chart'!AN32),0) -> 
A33: =IF(ISERROR(C33),NA(),'Detailed Cash Flow Chart'!AJ33) ->  | B33: ='Detailed Cash Flow Chart'!B33 -> 69 | I33: ='Detailed Cash Flow Chart'!D33 -> 395595.9177 | J33: =IF(ISERROR(C33),NA(),'Detailed Cash Flow Chart'!C33) ->  | L33: =IF(ISERROR(C33),NA(),'Detailed Cash Flow Chart'!AQ33) ->  | Y33: =IF('Detailed Cash Flow Chart'!E33=0,NA(),M33-'Detailed Cash Flow Chart'!E33) ->  | AA33: =Y33 -IF('Financial Goals (non-recurring)'!$B$4=2,IF('Detailed Cash Flow Chart'!S33="",0,'Detailed Cash Flow Chart'!S33),0) -IF('Financial Goals (non-recurring)'!$D$4=2,IF('Detailed Cash Flow Chart'!U33="",0,'Detailed Cash Flow Chart'!U33),0) -IF('Financial Goals (non-recurring)'!$F$4=2,IF('Detailed Cash Flow Chart'!W33="",0,'Detailed Cash Flow Chart'!W33),0) -IF('Financial Goals (non-recurring)'!$H$4=2,IF('Detailed Cash Flow Chart'!Y33="",0,'Detailed Cash Flow Chart'!Y33),0) -IF('Financial Goals (non-recurring)'!$J$4=2,IF('Detailed Cash Flow Chart'!AA33="",0,'Detailed Cash Flow Chart'!AA33),0) -IF('Financial Goals (recurring)'!$B$3=2,IF('Detailed Cash Flow Chart'!AG33="",0,'Detailed Cash Flow Chart'!AG33),0) -IF('Financial Goals (recurring)'!$K$3=2,IF('Detailed Cash Flow Chart'!AN33="",0,'Detailed Cash Flow Chart'!AN33),0) ->  | AC33: =AA33 -IF('Financial Goals (non-recurring)'!$B$4=3,IF('Detailed Cash Flow Chart'!S33="",0,'Detailed Cash Flow Chart'!S33),0) -IF('Financial Goals (non-recurring)'!$D$4=3,IF('Detailed Cash Flow Chart'!U33="",0,'Detailed Cash Flow Chart'!U33),0) -IF('Financial Goals (non-recurring)'!$F$4=3,IF('Detailed Cash Flow Chart'!W33="",0,'Detailed Cash Flow Chart'!W33),0) -IF('Financial Goals (non-recurring)'!$H$4=3,IF('Detailed Cash Flow Chart'!Y33="",0,'Detailed Cash Flow Chart'!Y33),0) -IF('Financial Goals (non-recurring)'!$J$4=3,IF('Detailed Cash Flow Chart'!AA33="",0,'Detailed Cash Flow Chart'!AA33),0) -IF('Financial Goals (recurring)'!$B$3=3,IF('Detailed Cash Flow Chart'!AG33="",0,'Detailed Cash Flow Chart'!AG33),0) -IF('Financial Goals (recurring)'!$K$3=3,IF('Detailed Cash Flow Chart'!AN33="",0,'Detailed Cash Flow Chart'!AN33),0) ->  | AE33: =AC33 -IF('Financial Goals (non-recurring)'!$B$4=4,IF('Detailed Cash Flow Chart'!S33="",0,'Detailed Cash Flow Chart'!S33),0) -IF('Financial Goals (non-recurring)'!$D$4=4,IF('Detailed Cash Flow Chart'!U33="",0,'Detailed Cash Flow Chart'!U33),0) -IF('Financial Goals (non-recurring)'!$F$4=4,IF('Detailed Cash Flow Chart'!W33="",0,'Detailed Cash Flow Chart'!W33),0) -IF('Financial Goals (non-recurring)'!$H$4=4,IF('Detailed Cash Flow Chart'!Y33="",0,'Detailed Cash Flow Chart'!Y33),0) -IF('Financial Goals (non-recurring)'!$J$4=4,IF('Detailed Cash Flow Chart'!AA33="",0,'Detailed Cash Flow Chart'!AA33),0) -IF('Financial Goals (recurring)'!$B$3=4,IF('Detailed Cash Flow Chart'!AG33="",0,'Detailed Cash Flow Chart'!AG33),0) -IF('Financial Goals (recurring)'!$K$3=4,IF('Detailed Cash Flow Chart'!AN33="",0,'Detailed Cash Flow Chart'!AN33),0) ->  | AG33: =AE33 -IF('Financial Goals (non-recurring)'!$B$4=5,IF('Detailed Cash Flow Chart'!S33="",0,'Detailed Cash Flow Chart'!S33),0) -IF('Financial Goals (non-recurring)'!$D$4=5,IF('Detailed Cash Flow Chart'!U33="",0,'Detailed Cash Flow Chart'!U33),0) -IF('Financial Goals (non-recurring)'!$F$4=5,IF('Detailed Cash Flow Chart'!W33="",0,'Detailed Cash Flow Chart'!W33),0) -IF('Financial Goals (non-recurring)'!$H$4=5,IF('Detailed Cash Flow Chart'!Y33="",0,'Detailed Cash Flow Chart'!Y33),0) -IF('Financial Goals (non-recurring)'!$J$4=5,IF('Detailed Cash Flow Chart'!AA33="",0,'Detailed Cash Flow Chart'!AA33),0) -IF('Financial Goals (recurring)'!$B$3=5,IF('Detailed Cash Flow Chart'!AG33="",0,'Detailed Cash Flow Chart'!AG33),0) -IF('Financial Goals (recurring)'!$K$3=5,IF('Detailed Cash Flow Chart'!AN33="",0,'Detailed Cash Flow Chart'!AN33),0) ->  | AI33: =AG33 -IF('Financial Goals (non-recurring)'!$B$4=6,IF('Detailed Cash Flow Chart'!S33="",0,'Detailed Cash Flow Chart'!S33),0) -IF('Financial Goals (non-recurring)'!$D$4=6,IF('Detailed Cash Flow Chart'!U33="",0,'Detailed Cash Flow Chart'!U33),0) -IF('Financial Goals (non-recurring)'!$F$4=6,IF('Detailed Cash Flow Chart'!W33="",0,'Detailed Cash Flow Chart'!W33),0) -IF('Financial Goals (non-recurring)'!$H$4=6,IF('Detailed Cash Flow Chart'!Y33="",0,'Detailed Cash Flow Chart'!Y33),0) -IF('Financial Goals (non-recurring)'!$J$4=6,IF('Detailed Cash Flow Chart'!AA33="",0,'Detailed Cash Flow Chart'!AA33),0) -IF('Financial Goals (recurring)'!$B$3=6,IF('Detailed Cash Flow Chart'!AG33="",0,'Detailed Cash Flow Chart'!AG33),0) -IF('Financial Goals (recurring)'!$K$3=6,IF('Detailed Cash Flow Chart'!AN33="",0,'Detailed Cash Flow Chart'!AN33),0) ->  | AK33: =AI33 -IF('Financial Goals (non-recurring)'!$B$4=7,IF('Detailed Cash Flow Chart'!S33="",0,'Detailed Cash Flow Chart'!S33),0) -IF('Financial Goals (non-recurring)'!$D$4=7,IF('Detailed Cash Flow Chart'!U33="",0,'Detailed Cash Flow Chart'!U33),0) -IF('Financial Goals (non-recurring)'!$F$4=7,IF('Detailed Cash Flow Chart'!W33="",0,'Detailed Cash Flow Chart'!W33),0) -IF('Financial Goals (non-recurring)'!$H$4=7,IF('Detailed Cash Flow Chart'!Y33="",0,'Detailed Cash Flow Chart'!Y33),0) -IF('Financial Goals (non-recurring)'!$J$4=7,IF('Detailed Cash Flow Chart'!AA33="",0,'Detailed Cash Flow Chart'!AA33),0) -IF('Financial Goals (recurring)'!$B$3=7,IF('Detailed Cash Flow Chart'!AG33="",0,'Detailed Cash Flow Chart'!AG33),0) -IF('Financial Goals (recurring)'!$K$3=7,IF('Detailed Cash Flow Chart'!AN33="",0,'Detailed Cash Flow Chart'!AN33),0) -> 
A34: =IF(ISERROR(C34),NA(),'Detailed Cash Flow Chart'!AJ34) ->  | B34: ='Detailed Cash Flow Chart'!B34 -> 70 | I34: ='Detailed Cash Flow Chart'!D34 -> 431199.5502 | J34: =IF(ISERROR(C34),NA(),'Detailed Cash Flow Chart'!C34) ->  | L34: =IF(ISERROR(C34),NA(),'Detailed Cash Flow Chart'!AQ34) ->  | Y34: =IF('Detailed Cash Flow Chart'!E34=0,NA(),M34-'Detailed Cash Flow Chart'!E34) ->  | AA34: =Y34 -IF('Financial Goals (non-recurring)'!$B$4=2,IF('Detailed Cash Flow Chart'!S34="",0,'Detailed Cash Flow Chart'!S34),0) -IF('Financial Goals (non-recurring)'!$D$4=2,IF('Detailed Cash Flow Chart'!U34="",0,'Detailed Cash Flow Chart'!U34),0) -IF('Financial Goals (non-recurring)'!$F$4=2,IF('Detailed Cash Flow Chart'!W34="",0,'Detailed Cash Flow Chart'!W34),0) -IF('Financial Goals (non-recurring)'!$H$4=2,IF('Detailed Cash Flow Chart'!Y34="",0,'Detailed Cash Flow Chart'!Y34),0) -IF('Financial Goals (non-recurring)'!$J$4=2,IF('Detailed Cash Flow Chart'!AA34="",0,'Detailed Cash Flow Chart'!AA34),0) -IF('Financial Goals (recurring)'!$B$3=2,IF('Detailed Cash Flow Chart'!AG34="",0,'Detailed Cash Flow Chart'!AG34),0) -IF('Financial Goals (recurring)'!$K$3=2,IF('Detailed Cash Flow Chart'!AN34="",0,'Detailed Cash Flow Chart'!AN34),0) ->  | AC34: =AA34 -IF('Financial Goals (non-recurring)'!$B$4=3,IF('Detailed Cash Flow Chart'!S34="",0,'Detailed Cash Flow Chart'!S34),0) -IF('Financial Goals (non-recurring)'!$D$4=3,IF('Detailed Cash Flow Chart'!U34="",0,'Detailed Cash Flow Chart'!U34),0) -IF('Financial Goals (non-recurring)'!$F$4=3,IF('Detailed Cash Flow Chart'!W34="",0,'Detailed Cash Flow Chart'!W34),0) -IF('Financial Goals (non-recurring)'!$H$4=3,IF('Detailed Cash Flow Chart'!Y34="",0,'Detailed Cash Flow Chart'!Y34),0) -IF('Financial Goals (non-recurring)'!$J$4=3,IF('Detailed Cash Flow Chart'!AA34="",0,'Detailed Cash Flow Chart'!AA34),0) -IF('Financial Goals (recurring)'!$B$3=3,IF('Detailed Cash Flow Chart'!AG34="",0,'Detailed Cash Flow Chart'!AG34),0) -IF('Financial Goals (recurring)'!$K$3=3,IF('Detailed Cash Flow Chart'!AN34="",0,'Detailed Cash Flow Chart'!AN34),0) ->  | AE34: =AC34 -IF('Financial Goals (non-recurring)'!$B$4=4,IF('Detailed Cash Flow Chart'!S34="",0,'Detailed Cash Flow Chart'!S34),0) -IF('Financial Goals (non-recurring)'!$D$4=4,IF('Detailed Cash Flow Chart'!U34="",0,'Detailed Cash Flow Chart'!U34),0) -IF('Financial Goals (non-recurring)'!$F$4=4,IF('Detailed Cash Flow Chart'!W34="",0,'Detailed Cash Flow Chart'!W34),0) -IF('Financial Goals (non-recurring)'!$H$4=4,IF('Detailed Cash Flow Chart'!Y34="",0,'Detailed Cash Flow Chart'!Y34),0) -IF('Financial Goals (non-recurring)'!$J$4=4,IF('Detailed Cash Flow Chart'!AA34="",0,'Detailed Cash Flow Chart'!AA34),0) -IF('Financial Goals (recurring)'!$B$3=4,IF('Detailed Cash Flow Chart'!AG34="",0,'Detailed Cash Flow Chart'!AG34),0) -IF('Financial Goals (recurring)'!$K$3=4,IF('Detailed Cash Flow Chart'!AN34="",0,'Detailed Cash Flow Chart'!AN34),0) ->  | AG34: =AE34 -IF('Financial Goals (non-recurring)'!$B$4=5,IF('Detailed Cash Flow Chart'!S34="",0,'Detailed Cash Flow Chart'!S34),0) -IF('Financial Goals (non-recurring)'!$D$4=5,IF('Detailed Cash Flow Chart'!U34="",0,'Detailed Cash Flow Chart'!U34),0) -IF('Financial Goals (non-recurring)'!$F$4=5,IF('Detailed Cash Flow Chart'!W34="",0,'Detailed Cash Flow Chart'!W34),0) -IF('Financial Goals (non-recurring)'!$H$4=5,IF('Detailed Cash Flow Chart'!Y34="",0,'Detailed Cash Flow Chart'!Y34),0) -IF('Financial Goals (non-recurring)'!$J$4=5,IF('Detailed Cash Flow Chart'!AA34="",0,'Detailed Cash Flow Chart'!AA34),0) -IF('Financial Goals (recurring)'!$B$3=5,IF('Detailed Cash Flow Chart'!AG34="",0,'Detailed Cash Flow Chart'!AG34),0) -IF('Financial Goals (recurring)'!$K$3=5,IF('Detailed Cash Flow Chart'!AN34="",0,'Detailed Cash Flow Chart'!AN34),0) ->  | AI34: =AG34 -IF('Financial Goals (non-recurring)'!$B$4=6,IF('Detailed Cash Flow Chart'!S34="",0,'Detailed Cash Flow Chart'!S34),0) -IF('Financial Goals (non-recurring)'!$D$4=6,IF('Detailed Cash Flow Chart'!U34="",0,'Detailed Cash Flow Chart'!U34),0) -IF('Financial Goals (non-recurring)'!$F$4=6,IF('Detailed Cash Flow Chart'!W34="",0,'Detailed Cash Flow Chart'!W34),0) -IF('Financial Goals (non-recurring)'!$H$4=6,IF('Detailed Cash Flow Chart'!Y34="",0,'Detailed Cash Flow Chart'!Y34),0) -IF('Financial Goals (non-recurring)'!$J$4=6,IF('Detailed Cash Flow Chart'!AA34="",0,'Detailed Cash Flow Chart'!AA34),0) -IF('Financial Goals (recurring)'!$B$3=6,IF('Detailed Cash Flow Chart'!AG34="",0,'Detailed Cash Flow Chart'!AG34),0) -IF('Financial Goals (recurring)'!$K$3=6,IF('Detailed Cash Flow Chart'!AN34="",0,'Detailed Cash Flow Chart'!AN34),0) ->  | AK34: =AI34 -IF('Financial Goals (non-recurring)'!$B$4=7,IF('Detailed Cash Flow Chart'!S34="",0,'Detailed Cash Flow Chart'!S34),0) -IF('Financial Goals (non-recurring)'!$D$4=7,IF('Detailed Cash Flow Chart'!U34="",0,'Detailed Cash Flow Chart'!U34),0) -IF('Financial Goals (non-recurring)'!$F$4=7,IF('Detailed Cash Flow Chart'!W34="",0,'Detailed Cash Flow Chart'!W34),0) -IF('Financial Goals (non-recurring)'!$H$4=7,IF('Detailed Cash Flow Chart'!Y34="",0,'Detailed Cash Flow Chart'!Y34),0) -IF('Financial Goals (non-recurring)'!$J$4=7,IF('Detailed Cash Flow Chart'!AA34="",0,'Detailed Cash Flow Chart'!AA34),0) -IF('Financial Goals (recurring)'!$B$3=7,IF('Detailed Cash Flow Chart'!AG34="",0,'Detailed Cash Flow Chart'!AG34),0) -IF('Financial Goals (recurring)'!$K$3=7,IF('Detailed Cash Flow Chart'!AN34="",0,'Detailed Cash Flow Chart'!AN34),0) -> 
A35: =IF(ISERROR(C35),NA(),'Detailed Cash Flow Chart'!AJ35) ->  | B35: ='Detailed Cash Flow Chart'!B35 -> 71 | I35: ='Detailed Cash Flow Chart'!D35 -> 470007.5098 | J35: =IF(ISERROR(C35),NA(),'Detailed Cash Flow Chart'!C35) ->  | L35: =IF(ISERROR(C35),NA(),'Detailed Cash Flow Chart'!AQ35) ->  | Y35: =IF('Detailed Cash Flow Chart'!E35=0,NA(),M35-'Detailed Cash Flow Chart'!E35) ->  | AA35: =Y35 -IF('Financial Goals (non-recurring)'!$B$4=2,IF('Detailed Cash Flow Chart'!S35="",0,'Detailed Cash Flow Chart'!S35),0) -IF('Financial Goals (non-recurring)'!$D$4=2,IF('Detailed Cash Flow Chart'!U35="",0,'Detailed Cash Flow Chart'!U35),0) -IF('Financial Goals (non-recurring)'!$F$4=2,IF('Detailed Cash Flow Chart'!W35="",0,'Detailed Cash Flow Chart'!W35),0) -IF('Financial Goals (non-recurring)'!$H$4=2,IF('Detailed Cash Flow Chart'!Y35="",0,'Detailed Cash Flow Chart'!Y35),0) -IF('Financial Goals (non-recurring)'!$J$4=2,IF('Detailed Cash Flow Chart'!AA35="",0,'Detailed Cash Flow Chart'!AA35),0) -IF('Financial Goals (recurring)'!$B$3=2,IF('Detailed Cash Flow Chart'!AG35="",0,'Detailed Cash Flow Chart'!AG35),0) -IF('Financial Goals (recurring)'!$K$3=2,IF('Detailed Cash Flow Chart'!AN35="",0,'Detailed Cash Flow Chart'!AN35),0) ->  | AC35: =AA35 -IF('Financial Goals (non-recurring)'!$B$4=3,IF('Detailed Cash Flow Chart'!S35="",0,'Detailed Cash Flow Chart'!S35),0) -IF('Financial Goals (non-recurring)'!$D$4=3,IF('Detailed Cash Flow Chart'!U35="",0,'Detailed Cash Flow Chart'!U35),0) -IF('Financial Goals (non-recurring)'!$F$4=3,IF('Detailed Cash Flow Chart'!W35="",0,'Detailed Cash Flow Chart'!W35),0) -IF('Financial Goals (non-recurring)'!$H$4=3,IF('Detailed Cash Flow Chart'!Y35="",0,'Detailed Cash Flow Chart'!Y35),0) -IF('Financial Goals (non-recurring)'!$J$4=3,IF('Detailed Cash Flow Chart'!AA35="",0,'Detailed Cash Flow Chart'!AA35),0) -IF('Financial Goals (recurring)'!$B$3=3,IF('Detailed Cash Flow Chart'!AG35="",0,'Detailed Cash Flow Chart'!AG35),0) -IF('Financial Goals (recurring)'!$K$3=3,IF('Detailed Cash Flow Chart'!AN35="",0,'Detailed Cash Flow Chart'!AN35),0) ->  | AE35: =AC35 -IF('Financial Goals (non-recurring)'!$B$4=4,IF('Detailed Cash Flow Chart'!S35="",0,'Detailed Cash Flow Chart'!S35),0) -IF('Financial Goals (non-recurring)'!$D$4=4,IF('Detailed Cash Flow Chart'!U35="",0,'Detailed Cash Flow Chart'!U35),0) -IF('Financial Goals (non-recurring)'!$F$4=4,IF('Detailed Cash Flow Chart'!W35="",0,'Detailed Cash Flow Chart'!W35),0) -IF('Financial Goals (non-recurring)'!$H$4=4,IF('Detailed Cash Flow Chart'!Y35="",0,'Detailed Cash Flow Chart'!Y35),0) -IF('Financial Goals (non-recurring)'!$J$4=4,IF('Detailed Cash Flow Chart'!AA35="",0,'Detailed Cash Flow Chart'!AA35),0) -IF('Financial Goals (recurring)'!$B$3=4,IF('Detailed Cash Flow Chart'!AG35="",0,'Detailed Cash Flow Chart'!AG35),0) -IF('Financial Goals (recurring)'!$K$3=4,IF('Detailed Cash Flow Chart'!AN35="",0,'Detailed Cash Flow Chart'!AN35),0) ->  | AG35: =AE35 -IF('Financial Goals (non-recurring)'!$B$4=5,IF('Detailed Cash Flow Chart'!S35="",0,'Detailed Cash Flow Chart'!S35),0) -IF('Financial Goals (non-recurring)'!$D$4=5,IF('Detailed Cash Flow Chart'!U35="",0,'Detailed Cash Flow Chart'!U35),0) -IF('Financial Goals (non-recurring)'!$F$4=5,IF('Detailed Cash Flow Chart'!W35="",0,'Detailed Cash Flow Chart'!W35),0) -IF('Financial Goals (non-recurring)'!$H$4=5,IF('Detailed Cash Flow Chart'!Y35="",0,'Detailed Cash Flow Chart'!Y35),0) -IF('Financial Goals (non-recurring)'!$J$4=5,IF('Detailed Cash Flow Chart'!AA35="",0,'Detailed Cash Flow Chart'!AA35),0) -IF('Financial Goals (recurring)'!$B$3=5,IF('Detailed Cash Flow Chart'!AG35="",0,'Detailed Cash Flow Chart'!AG35),0) -IF('Financial Goals (recurring)'!$K$3=5,IF('Detailed Cash Flow Chart'!AN35="",0,'Detailed Cash Flow Chart'!AN35),0) ->  | AI35: =AG35 -IF('Financial Goals (non-recurring)'!$B$4=6,IF('Detailed Cash Flow Chart'!S35="",0,'Detailed Cash Flow Chart'!S35),0) -IF('Financial Goals (non-recurring)'!$D$4=6,IF('Detailed Cash Flow Chart'!U35="",0,'Detailed Cash Flow Chart'!U35),0) -IF('Financial Goals (non-recurring)'!$F$4=6,IF('Detailed Cash Flow Chart'!W35="",0,'Detailed Cash Flow Chart'!W35),0) -IF('Financial Goals (non-recurring)'!$H$4=6,IF('Detailed Cash Flow Chart'!Y35="",0,'Detailed Cash Flow Chart'!Y35),0) -IF('Financial Goals (non-recurring)'!$J$4=6,IF('Detailed Cash Flow Chart'!AA35="",0,'Detailed Cash Flow Chart'!AA35),0) -IF('Financial Goals (recurring)'!$B$3=6,IF('Detailed Cash Flow Chart'!AG35="",0,'Detailed Cash Flow Chart'!AG35),0) -IF('Financial Goals (recurring)'!$K$3=6,IF('Detailed Cash Flow Chart'!AN35="",0,'Detailed Cash Flow Chart'!AN35),0) ->  | AK35: =AI35 -IF('Financial Goals (non-recurring)'!$B$4=7,IF('Detailed Cash Flow Chart'!S35="",0,'Detailed Cash Flow Chart'!S35),0) -IF('Financial Goals (non-recurring)'!$D$4=7,IF('Detailed Cash Flow Chart'!U35="",0,'Detailed Cash Flow Chart'!U35),0) -IF('Financial Goals (non-recurring)'!$F$4=7,IF('Detailed Cash Flow Chart'!W35="",0,'Detailed Cash Flow Chart'!W35),0) -IF('Financial Goals (non-recurring)'!$H$4=7,IF('Detailed Cash Flow Chart'!Y35="",0,'Detailed Cash Flow Chart'!Y35),0) -IF('Financial Goals (non-recurring)'!$J$4=7,IF('Detailed Cash Flow Chart'!AA35="",0,'Detailed Cash Flow Chart'!AA35),0) -IF('Financial Goals (recurring)'!$B$3=7,IF('Detailed Cash Flow Chart'!AG35="",0,'Detailed Cash Flow Chart'!AG35),0) -IF('Financial Goals (recurring)'!$K$3=7,IF('Detailed Cash Flow Chart'!AN35="",0,'Detailed Cash Flow Chart'!AN35),0) -> 
A36: =IF(ISERROR(C36),NA(),'Detailed Cash Flow Chart'!AJ36) ->  | B36: ='Detailed Cash Flow Chart'!B36 -> 72 | I36: ='Detailed Cash Flow Chart'!D36 -> 512308.1856 | J36: =IF(ISERROR(C36),NA(),'Detailed Cash Flow Chart'!C36) ->  | K36: =IF(A36>=emistart,IF(A36<=emiend,emi,NA()),NA()) ->  | L36: =IF(ISERROR(C36),NA(),'Detailed Cash Flow Chart'!AQ36) ->  | Y36: =IF('Detailed Cash Flow Chart'!E36=0,NA(),M36-'Detailed Cash Flow Chart'!E36) ->  | AA36: =Y36 -IF('Financial Goals (non-recurring)'!$B$4=2,IF('Detailed Cash Flow Chart'!S36="",0,'Detailed Cash Flow Chart'!S36),0) -IF('Financial Goals (non-recurring)'!$D$4=2,IF('Detailed Cash Flow Chart'!U36="",0,'Detailed Cash Flow Chart'!U36),0) -IF('Financial Goals (non-recurring)'!$F$4=2,IF('Detailed Cash Flow Chart'!W36="",0,'Detailed Cash Flow Chart'!W36),0) -IF('Financial Goals (non-recurring)'!$H$4=2,IF('Detailed Cash Flow Chart'!Y36="",0,'Detailed Cash Flow Chart'!Y36),0) -IF('Financial Goals (non-recurring)'!$J$4=2,IF('Detailed Cash Flow Chart'!AA36="",0,'Detailed Cash Flow Chart'!AA36),0) -IF('Financial Goals (recurring)'!$B$3=2,IF('Detailed Cash Flow Chart'!AG36="",0,'Detailed Cash Flow Chart'!AG36),0) -IF('Financial Goals (recurring)'!$K$3=2,IF('Detailed Cash Flow Chart'!AN36="",0,'Detailed Cash Flow Chart'!AN36),0) ->  | AC36: =AA36 -IF('Financial Goals (non-recurring)'!$B$4=3,IF('Detailed Cash Flow Chart'!S36="",0,'Detailed Cash Flow Chart'!S36),0) -IF('Financial Goals (non-recurring)'!$D$4=3,IF('Detailed Cash Flow Chart'!U36="",0,'Detailed Cash Flow Chart'!U36),0) -IF('Financial Goals (non-recurring)'!$F$4=3,IF('Detailed Cash Flow Chart'!W36="",0,'Detailed Cash Flow Chart'!W36),0) -IF('Financial Goals (non-recurring)'!$H$4=3,IF('Detailed Cash Flow Chart'!Y36="",0,'Detailed Cash Flow Chart'!Y36),0) -IF('Financial Goals (non-recurring)'!$J$4=3,IF('Detailed Cash Flow Chart'!AA36="",0,'Detailed Cash Flow Chart'!AA36),0) -IF('Financial Goals (recurring)'!$B$3=3,IF('Detailed Cash Flow Chart'!AG36="",0,'Detailed Cash Flow Chart'!AG36),0) -IF('Financial Goals (recurring)'!$K$3=3,IF('Detailed Cash Flow Chart'!AN36="",0,'Detailed Cash Flow Chart'!AN36),0) ->  | AE36: =AC36 -IF('Financial Goals (non-recurring)'!$B$4=4,IF('Detailed Cash Flow Chart'!S36="",0,'Detailed Cash Flow Chart'!S36),0) -IF('Financial Goals (non-recurring)'!$D$4=4,IF('Detailed Cash Flow Chart'!U36="",0,'Detailed Cash Flow Chart'!U36),0) -IF('Financial Goals (non-recurring)'!$F$4=4,IF('Detailed Cash Flow Chart'!W36="",0,'Detailed Cash Flow Chart'!W36),0) -IF('Financial Goals (non-recurring)'!$H$4=4,IF('Detailed Cash Flow Chart'!Y36="",0,'Detailed Cash Flow Chart'!Y36),0) -IF('Financial Goals (non-recurring)'!$J$4=4,IF('Detailed Cash Flow Chart'!AA36="",0,'Detailed Cash Flow Chart'!AA36),0) -IF('Financial Goals (recurring)'!$B$3=4,IF('Detailed Cash Flow Chart'!AG36="",0,'Detailed Cash Flow Chart'!AG36),0) -IF('Financial Goals (recurring)'!$K$3=4,IF('Detailed Cash Flow Chart'!AN36="",0,'Detailed Cash Flow Chart'!AN36),0) ->  | AG36: =AE36 -IF('Financial Goals (non-recurring)'!$B$4=5,IF('Detailed Cash Flow Chart'!S36="",0,'Detailed Cash Flow Chart'!S36),0) -IF('Financial Goals (non-recurring)'!$D$4=5,IF('Detailed Cash Flow Chart'!U36="",0,'Detailed Cash Flow Chart'!U36),0) -IF('Financial Goals (non-recurring)'!$F$4=5,IF('Detailed Cash Flow Chart'!W36="",0,'Detailed Cash Flow Chart'!W36),0) -IF('Financial Goals (non-recurring)'!$H$4=5,IF('Detailed Cash Flow Chart'!Y36="",0,'Detailed Cash Flow Chart'!Y36),0) -IF('Financial Goals (non-recurring)'!$J$4=5,IF('Detailed Cash Flow Chart'!AA36="",0,'Detailed Cash Flow Chart'!AA36),0) -IF('Financial Goals (recurring)'!$B$3=5,IF('Detailed Cash Flow Chart'!AG36="",0,'Detailed Cash Flow Chart'!AG36),0) -IF('Financial Goals (recurring)'!$K$3=5,IF('Detailed Cash Flow Chart'!AN36="",0,'Detailed Cash Flow Chart'!AN36),0) ->  | AI36: =AG36 -IF('Financial Goals (non-recurring)'!$B$4=6,IF('Detailed Cash Flow Chart'!S36="",0,'Detailed Cash Flow Chart'!S36),0) -IF('Financial Goals (non-recurring)'!$D$4=6,IF('Detailed Cash Flow Chart'!U36="",0,'Detailed Cash Flow Chart'!U36),0) -IF('Financial Goals (non-recurring)'!$F$4=6,IF('Detailed Cash Flow Chart'!W36="",0,'Detailed Cash Flow Chart'!W36),0) -IF('Financial Goals (non-recurring)'!$H$4=6,IF('Detailed Cash Flow Chart'!Y36="",0,'Detailed Cash Flow Chart'!Y36),0) -IF('Financial Goals (non-recurring)'!$J$4=6,IF('Detailed Cash Flow Chart'!AA36="",0,'Detailed Cash Flow Chart'!AA36),0) -IF('Financial Goals (recurring)'!$B$3=6,IF('Detailed Cash Flow Chart'!AG36="",0,'Detailed Cash Flow Chart'!AG36),0) -IF('Financial Goals (recurring)'!$K$3=6,IF('Detailed Cash Flow Chart'!AN36="",0,'Detailed Cash Flow Chart'!AN36),0) ->  | AK36: =AI36 -IF('Financial Goals (non-recurring)'!$B$4=7,IF('Detailed Cash Flow Chart'!S36="",0,'Detailed Cash Flow Chart'!S36),0) -IF('Financial Goals (non-recurring)'!$D$4=7,IF('Detailed Cash Flow Chart'!U36="",0,'Detailed Cash Flow Chart'!U36),0) -IF('Financial Goals (non-recurring)'!$F$4=7,IF('Detailed Cash Flow Chart'!W36="",0,'Detailed Cash Flow Chart'!W36),0) -IF('Financial Goals (non-recurring)'!$H$4=7,IF('Detailed Cash Flow Chart'!Y36="",0,'Detailed Cash Flow Chart'!Y36),0) -IF('Financial Goals (non-recurring)'!$J$4=7,IF('Detailed Cash Flow Chart'!AA36="",0,'Detailed Cash Flow Chart'!AA36),0) -IF('Financial Goals (recurring)'!$B$3=7,IF('Detailed Cash Flow Chart'!AG36="",0,'Detailed Cash Flow Chart'!AG36),0) -IF('Financial Goals (recurring)'!$K$3=7,IF('Detailed Cash Flow Chart'!AN36="",0,'Detailed Cash Flow Chart'!AN36),0) -> 
A37: =IF(ISERROR(C37),NA(),'Detailed Cash Flow Chart'!AJ37) ->  | B37: ='Detailed Cash Flow Chart'!B37 -> 73 | C37: =IF(A36<(y+wy+1),C36+C36*inc,NA()) ->  | I37: ='Detailed Cash Flow Chart'!D37 -> 558415.9224 | J37: =IF(ISERROR(C37),NA(),'Detailed Cash Flow Chart'!C37) ->  | L37: =IF(ISERROR(C37),NA(),'Detailed Cash Flow Chart'!AQ37) ->  | Y37: =IF('Detailed Cash Flow Chart'!E37=0,NA(),M37-'Detailed Cash Flow Chart'!E37) ->  | AA37: =Y37 -IF('Financial Goals (non-recurring)'!$B$4=2,IF('Detailed Cash Flow Chart'!S37="",0,'Detailed Cash Flow Chart'!S37),0) -IF('Financial Goals (non-recurring)'!$D$4=2,IF('Detailed Cash Flow Chart'!U37="",0,'Detailed Cash Flow Chart'!U37),0) -IF('Financial Goals (non-recurring)'!$F$4=2,IF('Detailed Cash Flow Chart'!W37="",0,'Detailed Cash Flow Chart'!W37),0) -IF('Financial Goals (non-recurring)'!$H$4=2,IF('Detailed Cash Flow Chart'!Y37="",0,'Detailed Cash Flow Chart'!Y37),0) -IF('Financial Goals (non-recurring)'!$J$4=2,IF('Detailed Cash Flow Chart'!AA37="",0,'Detailed Cash Flow Chart'!AA37),0) -IF('Financial Goals (recurring)'!$B$3=2,IF('Detailed Cash Flow Chart'!AG37="",0,'Detailed Cash Flow Chart'!AG37),0) -IF('Financial Goals (recurring)'!$K$3=2,IF('Detailed Cash Flow Chart'!AN37="",0,'Detailed Cash Flow Chart'!AN37),0) ->  | AC37: =AA37 -IF('Financial Goals (non-recurring)'!$B$4=3,IF('Detailed Cash Flow Chart'!S37="",0,'Detailed Cash Flow Chart'!S37),0) -IF('Financial Goals (non-recurring)'!$D$4=3,IF('Detailed Cash Flow Chart'!U37="",0,'Detailed Cash Flow Chart'!U37),0) -IF('Financial Goals (non-recurring)'!$F$4=3,IF('Detailed Cash Flow Chart'!W37="",0,'Detailed Cash Flow Chart'!W37),0) -IF('Financial Goals (non-recurring)'!$H$4=3,IF('Detailed Cash Flow Chart'!Y37="",0,'Detailed Cash Flow Chart'!Y37),0) -IF('Financial Goals (non-recurring)'!$J$4=3,IF('Detailed Cash Flow Chart'!AA37="",0,'Detailed Cash Flow Chart'!AA37),0) -IF('Financial Goals (recurring)'!$B$3=3,IF('Detailed Cash Flow Chart'!AG37="",0,'Detailed Cash Flow Chart'!AG37),0) -IF('Financial Goals (recurring)'!$K$3=3,IF('Detailed Cash Flow Chart'!AN37="",0,'Detailed Cash Flow Chart'!AN37),0) ->  | AE37: =AC37 -IF('Financial Goals (non-recurring)'!$B$4=4,IF('Detailed Cash Flow Chart'!S37="",0,'Detailed Cash Flow Chart'!S37),0) -IF('Financial Goals (non-recurring)'!$D$4=4,IF('Detailed Cash Flow Chart'!U37="",0,'Detailed Cash Flow Chart'!U37),0) -IF('Financial Goals (non-recurring)'!$F$4=4,IF('Detailed Cash Flow Chart'!W37="",0,'Detailed Cash Flow Chart'!W37),0) -IF('Financial Goals (non-recurring)'!$H$4=4,IF('Detailed Cash Flow Chart'!Y37="",0,'Detailed Cash Flow Chart'!Y37),0) -IF('Financial Goals (non-recurring)'!$J$4=4,IF('Detailed Cash Flow Chart'!AA37="",0,'Detailed Cash Flow Chart'!AA37),0) -IF('Financial Goals (recurring)'!$B$3=4,IF('Detailed Cash Flow Chart'!AG37="",0,'Detailed Cash Flow Chart'!AG37),0) -IF('Financial Goals (recurring)'!$K$3=4,IF('Detailed Cash Flow Chart'!AN37="",0,'Detailed Cash Flow Chart'!AN37),0) ->  | AG37: =AE37 -IF('Financial Goals (non-recurring)'!$B$4=5,IF('Detailed Cash Flow Chart'!S37="",0,'Detailed Cash Flow Chart'!S37),0) -IF('Financial Goals (non-recurring)'!$D$4=5,IF('Detailed Cash Flow Chart'!U37="",0,'Detailed Cash Flow Chart'!U37),0) -IF('Financial Goals (non-recurring)'!$F$4=5,IF('Detailed Cash Flow Chart'!W37="",0,'Detailed Cash Flow Chart'!W37),0) -IF('Financial Goals (non-recurring)'!$H$4=5,IF('Detailed Cash Flow Chart'!Y37="",0,'Detailed Cash Flow Chart'!Y37),0) -IF('Financial Goals (non-recurring)'!$J$4=5,IF('Detailed Cash Flow Chart'!AA37="",0,'Detailed Cash Flow Chart'!AA37),0) -IF('Financial Goals (recurring)'!$B$3=5,IF('Detailed Cash Flow Chart'!AG37="",0,'Detailed Cash Flow Chart'!AG37),0) -IF('Financial Goals (recurring)'!$K$3=5,IF('Detailed Cash Flow Chart'!AN37="",0,'Detailed Cash Flow Chart'!AN37),0) ->  | AI37: =AG37 -IF('Financial Goals (non-recurring)'!$B$4=6,IF('Detailed Cash Flow Chart'!S37="",0,'Detailed Cash Flow Chart'!S37),0) -IF('Financial Goals (non-recurring)'!$D$4=6,IF('Detailed Cash Flow Chart'!U37="",0,'Detailed Cash Flow Chart'!U37),0) -IF('Financial Goals (non-recurring)'!$F$4=6,IF('Detailed Cash Flow Chart'!W37="",0,'Detailed Cash Flow Chart'!W37),0) -IF('Financial Goals (non-recurring)'!$H$4=6,IF('Detailed Cash Flow Chart'!Y37="",0,'Detailed Cash Flow Chart'!Y37),0) -IF('Financial Goals (non-recurring)'!$J$4=6,IF('Detailed Cash Flow Chart'!AA37="",0,'Detailed Cash Flow Chart'!AA37),0) -IF('Financial Goals (recurring)'!$B$3=6,IF('Detailed Cash Flow Chart'!AG37="",0,'Detailed Cash Flow Chart'!AG37),0) -IF('Financial Goals (recurring)'!$K$3=6,IF('Detailed Cash Flow Chart'!AN37="",0,'Detailed Cash Flow Chart'!AN37),0) ->  | AK37: =AI37 -IF('Financial Goals (non-recurring)'!$B$4=7,IF('Detailed Cash Flow Chart'!S37="",0,'Detailed Cash Flow Chart'!S37),0) -IF('Financial Goals (non-recurring)'!$D$4=7,IF('Detailed Cash Flow Chart'!U37="",0,'Detailed Cash Flow Chart'!U37),0) -IF('Financial Goals (non-recurring)'!$F$4=7,IF('Detailed Cash Flow Chart'!W37="",0,'Detailed Cash Flow Chart'!W37),0) -IF('Financial Goals (non-recurring)'!$H$4=7,IF('Detailed Cash Flow Chart'!Y37="",0,'Detailed Cash Flow Chart'!Y37),0) -IF('Financial Goals (non-recurring)'!$J$4=7,IF('Detailed Cash Flow Chart'!AA37="",0,'Detailed Cash Flow Chart'!AA37),0) -IF('Financial Goals (recurring)'!$B$3=7,IF('Detailed Cash Flow Chart'!AG37="",0,'Detailed Cash Flow Chart'!AG37),0) -IF('Financial Goals (recurring)'!$K$3=7,IF('Detailed Cash Flow Chart'!AN37="",0,'Detailed Cash Flow Chart'!AN37),0) -> 
A38: =IF(ISERROR(C38),NA(),'Detailed Cash Flow Chart'!AJ38) ->  | B38: ='Detailed Cash Flow Chart'!B38 -> 74 | I38: ='Detailed Cash Flow Chart'!D38 -> 608673.3554 | J38: =IF(ISERROR(C38),NA(),'Detailed Cash Flow Chart'!C38) ->  | L38: =IF(ISERROR(C38),NA(),'Detailed Cash Flow Chart'!AQ38) ->  | Y38: =IF('Detailed Cash Flow Chart'!E38=0,NA(),M38-'Detailed Cash Flow Chart'!E38) ->  | AA38: =Y38 -IF('Financial Goals (non-recurring)'!$B$4=2,IF('Detailed Cash Flow Chart'!S38="",0,'Detailed Cash Flow Chart'!S38),0) -IF('Financial Goals (non-recurring)'!$D$4=2,IF('Detailed Cash Flow Chart'!U38="",0,'Detailed Cash Flow Chart'!U38),0) -IF('Financial Goals (non-recurring)'!$F$4=2,IF('Detailed Cash Flow Chart'!W38="",0,'Detailed Cash Flow Chart'!W38),0) -IF('Financial Goals (non-recurring)'!$H$4=2,IF('Detailed Cash Flow Chart'!Y38="",0,'Detailed Cash Flow Chart'!Y38),0) -IF('Financial Goals (non-recurring)'!$J$4=2,IF('Detailed Cash Flow Chart'!AA38="",0,'Detailed Cash Flow Chart'!AA38),0) -IF('Financial Goals (recurring)'!$B$3=2,IF('Detailed Cash Flow Chart'!AG38="",0,'Detailed Cash Flow Chart'!AG38),0) -IF('Financial Goals (recurring)'!$K$3=2,IF('Detailed Cash Flow Chart'!AN38="",0,'Detailed Cash Flow Chart'!AN38),0) ->  | AC38: =AA38 -IF('Financial Goals (non-recurring)'!$B$4=3,IF('Detailed Cash Flow Chart'!S38="",0,'Detailed Cash Flow Chart'!S38),0) -IF('Financial Goals (non-recurring)'!$D$4=3,IF('Detailed Cash Flow Chart'!U38="",0,'Detailed Cash Flow Chart'!U38),0) -IF('Financial Goals (non-recurring)'!$F$4=3,IF('Detailed Cash Flow Chart'!W38="",0,'Detailed Cash Flow Chart'!W38),0) -IF('Financial Goals (non-recurring)'!$H$4=3,IF('Detailed Cash Flow Chart'!Y38="",0,'Detailed Cash Flow Chart'!Y38),0) -IF('Financial Goals (non-recurring)'!$J$4=3,IF('Detailed Cash Flow Chart'!AA38="",0,'Detailed Cash Flow Chart'!AA38),0) -IF('Financial Goals (recurring)'!$B$3=3,IF('Detailed Cash Flow Chart'!AG38="",0,'Detailed Cash Flow Chart'!AG38),0) -IF('Financial Goals (recurring)'!$K$3=3,IF('Detailed Cash Flow Chart'!AN38="",0,'Detailed Cash Flow Chart'!AN38),0) ->  | AE38: =AC38 -IF('Financial Goals (non-recurring)'!$B$4=4,IF('Detailed Cash Flow Chart'!S38="",0,'Detailed Cash Flow Chart'!S38),0) -IF('Financial Goals (non-recurring)'!$D$4=4,IF('Detailed Cash Flow Chart'!U38="",0,'Detailed Cash Flow Chart'!U38),0) -IF('Financial Goals (non-recurring)'!$F$4=4,IF('Detailed Cash Flow Chart'!W38="",0,'Detailed Cash Flow Chart'!W38),0) -IF('Financial Goals (non-recurring)'!$H$4=4,IF('Detailed Cash Flow Chart'!Y38="",0,'Detailed Cash Flow Chart'!Y38),0) -IF('Financial Goals (non-recurring)'!$J$4=4,IF('Detailed Cash Flow Chart'!AA38="",0,'Detailed Cash Flow Chart'!AA38),0) -IF('Financial Goals (recurring)'!$B$3=4,IF('Detailed Cash Flow Chart'!AG38="",0,'Detailed Cash Flow Chart'!AG38),0) -IF('Financial Goals (recurring)'!$K$3=4,IF('Detailed Cash Flow Chart'!AN38="",0,'Detailed Cash Flow Chart'!AN38),0) ->  | AG38: =AE38 -IF('Financial Goals (non-recurring)'!$B$4=5,IF('Detailed Cash Flow Chart'!S38="",0,'Detailed Cash Flow Chart'!S38),0) -IF('Financial Goals (non-recurring)'!$D$4=5,IF('Detailed Cash Flow Chart'!U38="",0,'Detailed Cash Flow Chart'!U38),0) -IF('Financial Goals (non-recurring)'!$F$4=5,IF('Detailed Cash Flow Chart'!W38="",0,'Detailed Cash Flow Chart'!W38),0) -IF('Financial Goals (non-recurring)'!$H$4=5,IF('Detailed Cash Flow Chart'!Y38="",0,'Detailed Cash Flow Chart'!Y38),0) -IF('Financial Goals (non-recurring)'!$J$4=5,IF('Detailed Cash Flow Chart'!AA38="",0,'Detailed Cash Flow Chart'!AA38),0) -IF('Financial Goals (recurring)'!$B$3=5,IF('Detailed Cash Flow Chart'!AG38="",0,'Detailed Cash Flow Chart'!AG38),0) -IF('Financial Goals (recurring)'!$K$3=5,IF('Detailed Cash Flow Chart'!AN38="",0,'Detailed Cash Flow Chart'!AN38),0) ->  | AI38: =AG38 -IF('Financial Goals (non-recurring)'!$B$4=6,IF('Detailed Cash Flow Chart'!S38="",0,'Detailed Cash Flow Chart'!S38),0) -IF('Financial Goals (non-recurring)'!$D$4=6,IF('Detailed Cash Flow Chart'!U38="",0,'Detailed Cash Flow Chart'!U38),0) -IF('Financial Goals (non-recurring)'!$F$4=6,IF('Detailed Cash Flow Chart'!W38="",0,'Detailed Cash Flow Chart'!W38),0) -IF('Financial Goals (non-recurring)'!$H$4=6,IF('Detailed Cash Flow Chart'!Y38="",0,'Detailed Cash Flow Chart'!Y38),0) -IF('Financial Goals (non-recurring)'!$J$4=6,IF('Detailed Cash Flow Chart'!AA38="",0,'Detailed Cash Flow Chart'!AA38),0) -IF('Financial Goals (recurring)'!$B$3=6,IF('Detailed Cash Flow Chart'!AG38="",0,'Detailed Cash Flow Chart'!AG38),0) -IF('Financial Goals (recurring)'!$K$3=6,IF('Detailed Cash Flow Chart'!AN38="",0,'Detailed Cash Flow Chart'!AN38),0) ->  | AK38: =AI38 -IF('Financial Goals (non-recurring)'!$B$4=7,IF('Detailed Cash Flow Chart'!S38="",0,'Detailed Cash Flow Chart'!S38),0) -IF('Financial Goals (non-recurring)'!$D$4=7,IF('Detailed Cash Flow Chart'!U38="",0,'Detailed Cash Flow Chart'!U38),0) -IF('Financial Goals (non-recurring)'!$F$4=7,IF('Detailed Cash Flow Chart'!W38="",0,'Detailed Cash Flow Chart'!W38),0) -IF('Financial Goals (non-recurring)'!$H$4=7,IF('Detailed Cash Flow Chart'!Y38="",0,'Detailed Cash Flow Chart'!Y38),0) -IF('Financial Goals (non-recurring)'!$J$4=7,IF('Detailed Cash Flow Chart'!AA38="",0,'Detailed Cash Flow Chart'!AA38),0) -IF('Financial Goals (recurring)'!$B$3=7,IF('Detailed Cash Flow Chart'!AG38="",0,'Detailed Cash Flow Chart'!AG38),0) -IF('Financial Goals (recurring)'!$K$3=7,IF('Detailed Cash Flow Chart'!AN38="",0,'Detailed Cash Flow Chart'!AN38),0) -> 
A39: =IF(ISERROR(C39),NA(),'Detailed Cash Flow Chart'!AJ39) ->  | B39: ='Detailed Cash Flow Chart'!B39 -> 75 | I39: ='Detailed Cash Flow Chart'!D39 -> 663453.9574 | J39: =IF(ISERROR(C39),NA(),'Detailed Cash Flow Chart'!C39) ->  | L39: =IF(ISERROR(C39),NA(),'Detailed Cash Flow Chart'!AQ39) ->  | Y39: =IF('Detailed Cash Flow Chart'!E39=0,NA(),M39-'Detailed Cash Flow Chart'!E39) ->  | AA39: =Y39 -IF('Financial Goals (non-recurring)'!$B$4=2,IF('Detailed Cash Flow Chart'!S39="",0,'Detailed Cash Flow Chart'!S39),0) -IF('Financial Goals (non-recurring)'!$D$4=2,IF('Detailed Cash Flow Chart'!U39="",0,'Detailed Cash Flow Chart'!U39),0) -IF('Financial Goals (non-recurring)'!$F$4=2,IF('Detailed Cash Flow Chart'!W39="",0,'Detailed Cash Flow Chart'!W39),0) -IF('Financial Goals (non-recurring)'!$H$4=2,IF('Detailed Cash Flow Chart'!Y39="",0,'Detailed Cash Flow Chart'!Y39),0) -IF('Financial Goals (non-recurring)'!$J$4=2,IF('Detailed Cash Flow Chart'!AA39="",0,'Detailed Cash Flow Chart'!AA39),0) -IF('Financial Goals (recurring)'!$B$3=2,IF('Detailed Cash Flow Chart'!AG39="",0,'Detailed Cash Flow Chart'!AG39),0) -IF('Financial Goals (recurring)'!$K$3=2,IF('Detailed Cash Flow Chart'!AN39="",0,'Detailed Cash Flow Chart'!AN39),0) ->  | AC39: =AA39 -IF('Financial Goals (non-recurring)'!$B$4=3,IF('Detailed Cash Flow Chart'!S39="",0,'Detailed Cash Flow Chart'!S39),0) -IF('Financial Goals (non-recurring)'!$D$4=3,IF('Detailed Cash Flow Chart'!U39="",0,'Detailed Cash Flow Chart'!U39),0) -IF('Financial Goals (non-recurring)'!$F$4=3,IF('Detailed Cash Flow Chart'!W39="",0,'Detailed Cash Flow Chart'!W39),0) -IF('Financial Goals (non-recurring)'!$H$4=3,IF('Detailed Cash Flow Chart'!Y39="",0,'Detailed Cash Flow Chart'!Y39),0) -IF('Financial Goals (non-recurring)'!$J$4=3,IF('Detailed Cash Flow Chart'!AA39="",0,'Detailed Cash Flow Chart'!AA39),0) -IF('Financial Goals (recurring)'!$B$3=3,IF('Detailed Cash Flow Chart'!AG39="",0,'Detailed Cash Flow Chart'!AG39),0) -IF('Financial Goals (recurring)'!$K$3=3,IF('Detailed Cash Flow Chart'!AN39="",0,'Detailed Cash Flow Chart'!AN39),0) ->  | AE39: =AC39 -IF('Financial Goals (non-recurring)'!$B$4=4,IF('Detailed Cash Flow Chart'!S39="",0,'Detailed Cash Flow Chart'!S39),0) -IF('Financial Goals (non-recurring)'!$D$4=4,IF('Detailed Cash Flow Chart'!U39="",0,'Detailed Cash Flow Chart'!U39),0) -IF('Financial Goals (non-recurring)'!$F$4=4,IF('Detailed Cash Flow Chart'!W39="",0,'Detailed Cash Flow Chart'!W39),0) -IF('Financial Goals (non-recurring)'!$H$4=4,IF('Detailed Cash Flow Chart'!Y39="",0,'Detailed Cash Flow Chart'!Y39),0) -IF('Financial Goals (non-recurring)'!$J$4=4,IF('Detailed Cash Flow Chart'!AA39="",0,'Detailed Cash Flow Chart'!AA39),0) -IF('Financial Goals (recurring)'!$B$3=4,IF('Detailed Cash Flow Chart'!AG39="",0,'Detailed Cash Flow Chart'!AG39),0) -IF('Financial Goals (recurring)'!$K$3=4,IF('Detailed Cash Flow Chart'!AN39="",0,'Detailed Cash Flow Chart'!AN39),0) ->  | AG39: =AE39 -IF('Financial Goals (non-recurring)'!$B$4=5,IF('Detailed Cash Flow Chart'!S39="",0,'Detailed Cash Flow Chart'!S39),0) -IF('Financial Goals (non-recurring)'!$D$4=5,IF('Detailed Cash Flow Chart'!U39="",0,'Detailed Cash Flow Chart'!U39),0) -IF('Financial Goals (non-recurring)'!$F$4=5,IF('Detailed Cash Flow Chart'!W39="",0,'Detailed Cash Flow Chart'!W39),0) -IF('Financial Goals (non-recurring)'!$H$4=5,IF('Detailed Cash Flow Chart'!Y39="",0,'Detailed Cash Flow Chart'!Y39),0) -IF('Financial Goals (non-recurring)'!$J$4=5,IF('Detailed Cash Flow Chart'!AA39="",0,'Detailed Cash Flow Chart'!AA39),0) -IF('Financial Goals (recurring)'!$B$3=5,IF('Detailed Cash Flow Chart'!AG39="",0,'Detailed Cash Flow Chart'!AG39),0) -IF('Financial Goals (recurring)'!$K$3=5,IF('Detailed Cash Flow Chart'!AN39="",0,'Detailed Cash Flow Chart'!AN39),0) ->  | AI39: =AG39 -IF('Financial Goals (non-recurring)'!$B$4=6,IF('Detailed Cash Flow Chart'!S39="",0,'Detailed Cash Flow Chart'!S39),0) -IF('Financial Goals (non-recurring)'!$D$4=6,IF('Detailed Cash Flow Chart'!U39="",0,'Detailed Cash Flow Chart'!U39),0) -IF('Financial Goals (non-recurring)'!$F$4=6,IF('Detailed Cash Flow Chart'!W39="",0,'Detailed Cash Flow Chart'!W39),0) -IF('Financial Goals (non-recurring)'!$H$4=6,IF('Detailed Cash Flow Chart'!Y39="",0,'Detailed Cash Flow Chart'!Y39),0) -IF('Financial Goals (non-recurring)'!$J$4=6,IF('Detailed Cash Flow Chart'!AA39="",0,'Detailed Cash Flow Chart'!AA39),0) -IF('Financial Goals (recurring)'!$B$3=6,IF('Detailed Cash Flow Chart'!AG39="",0,'Detailed Cash Flow Chart'!AG39),0) -IF('Financial Goals (recurring)'!$K$3=6,IF('Detailed Cash Flow Chart'!AN39="",0,'Detailed Cash Flow Chart'!AN39),0) ->  | AK39: =AI39 -IF('Financial Goals (non-recurring)'!$B$4=7,IF('Detailed Cash Flow Chart'!S39="",0,'Detailed Cash Flow Chart'!S39),0) -IF('Financial Goals (non-recurring)'!$D$4=7,IF('Detailed Cash Flow Chart'!U39="",0,'Detailed Cash Flow Chart'!U39),0) -IF('Financial Goals (non-recurring)'!$F$4=7,IF('Detailed Cash Flow Chart'!W39="",0,'Detailed Cash Flow Chart'!W39),0) -IF('Financial Goals (non-recurring)'!$H$4=7,IF('Detailed Cash Flow Chart'!Y39="",0,'Detailed Cash Flow Chart'!Y39),0) -IF('Financial Goals (non-recurring)'!$J$4=7,IF('Detailed Cash Flow Chart'!AA39="",0,'Detailed Cash Flow Chart'!AA39),0) -IF('Financial Goals (recurring)'!$B$3=7,IF('Detailed Cash Flow Chart'!AG39="",0,'Detailed Cash Flow Chart'!AG39),0) -IF('Financial Goals (recurring)'!$K$3=7,IF('Detailed Cash Flow Chart'!AN39="",0,'Detailed Cash Flow Chart'!AN39),0) -> 
A40: =IF(ISERROR(C40),NA(),'Detailed Cash Flow Chart'!AJ40) ->  | B40: ='Detailed Cash Flow Chart'!B40 -> 76 | I40: ='Detailed Cash Flow Chart'!D40 -> 723164.8135 | J40: =IF(ISERROR(C40),NA(),'Detailed Cash Flow Chart'!C40) ->  | L40: =IF(ISERROR(C40),NA(),'Detailed Cash Flow Chart'!AQ40) ->  | Y40: =IF('Detailed Cash Flow Chart'!E40=0,NA(),M40-'Detailed Cash Flow Chart'!E40) ->  | AA40: =Y40 -IF('Financial Goals (non-recurring)'!$B$4=2,IF('Detailed Cash Flow Chart'!S40="",0,'Detailed Cash Flow Chart'!S40),0) -IF('Financial Goals (non-recurring)'!$D$4=2,IF('Detailed Cash Flow Chart'!U40="",0,'Detailed Cash Flow Chart'!U40),0) -IF('Financial Goals (non-recurring)'!$F$4=2,IF('Detailed Cash Flow Chart'!W40="",0,'Detailed Cash Flow Chart'!W40),0) -IF('Financial Goals (non-recurring)'!$H$4=2,IF('Detailed Cash Flow Chart'!Y40="",0,'Detailed Cash Flow Chart'!Y40),0) -IF('Financial Goals (non-recurring)'!$J$4=2,IF('Detailed Cash Flow Chart'!AA40="",0,'Detailed Cash Flow Chart'!AA40),0) -IF('Financial Goals (recurring)'!$B$3=2,IF('Detailed Cash Flow Chart'!AG40="",0,'Detailed Cash Flow Chart'!AG40),0) -IF('Financial Goals (recurring)'!$K$3=2,IF('Detailed Cash Flow Chart'!AN40="",0,'Detailed Cash Flow Chart'!AN40),0) ->  | AC40: =AA40 -IF('Financial Goals (non-recurring)'!$B$4=3,IF('Detailed Cash Flow Chart'!S40="",0,'Detailed Cash Flow Chart'!S40),0) -IF('Financial Goals (non-recurring)'!$D$4=3,IF('Detailed Cash Flow Chart'!U40="",0,'Detailed Cash Flow Chart'!U40),0) -IF('Financial Goals (non-recurring)'!$F$4=3,IF('Detailed Cash Flow Chart'!W40="",0,'Detailed Cash Flow Chart'!W40),0) -IF('Financial Goals (non-recurring)'!$H$4=3,IF('Detailed Cash Flow Chart'!Y40="",0,'Detailed Cash Flow Chart'!Y40),0) -IF('Financial Goals (non-recurring)'!$J$4=3,IF('Detailed Cash Flow Chart'!AA40="",0,'Detailed Cash Flow Chart'!AA40),0) -IF('Financial Goals (recurring)'!$B$3=3,IF('Detailed Cash Flow Chart'!AG40="",0,'Detailed Cash Flow Chart'!AG40),0) -IF('Financial Goals (recurring)'!$K$3=3,IF('Detailed Cash Flow Chart'!AN40="",0,'Detailed Cash Flow Chart'!AN40),0) ->  | AE40: =AC40 -IF('Financial Goals (non-recurring)'!$B$4=4,IF('Detailed Cash Flow Chart'!S40="",0,'Detailed Cash Flow Chart'!S40),0) -IF('Financial Goals (non-recurring)'!$D$4=4,IF('Detailed Cash Flow Chart'!U40="",0,'Detailed Cash Flow Chart'!U40),0) -IF('Financial Goals (non-recurring)'!$F$4=4,IF('Detailed Cash Flow Chart'!W40="",0,'Detailed Cash Flow Chart'!W40),0) -IF('Financial Goals (non-recurring)'!$H$4=4,IF('Detailed Cash Flow Chart'!Y40="",0,'Detailed Cash Flow Chart'!Y40),0) -IF('Financial Goals (non-recurring)'!$J$4=4,IF('Detailed Cash Flow Chart'!AA40="",0,'Detailed Cash Flow Chart'!AA40),0) -IF('Financial Goals (recurring)'!$B$3=4,IF('Detailed Cash Flow Chart'!AG40="",0,'Detailed Cash Flow Chart'!AG40),0) -IF('Financial Goals (recurring)'!$K$3=4,IF('Detailed Cash Flow Chart'!AN40="",0,'Detailed Cash Flow Chart'!AN40),0) ->  | AG40: =AE40 -IF('Financial Goals (non-recurring)'!$B$4=5,IF('Detailed Cash Flow Chart'!S40="",0,'Detailed Cash Flow Chart'!S40),0) -IF('Financial Goals (non-recurring)'!$D$4=5,IF('Detailed Cash Flow Chart'!U40="",0,'Detailed Cash Flow Chart'!U40),0) -IF('Financial Goals (non-recurring)'!$F$4=5,IF('Detailed Cash Flow Chart'!W40="",0,'Detailed Cash Flow Chart'!W40),0) -IF('Financial Goals (non-recurring)'!$H$4=5,IF('Detailed Cash Flow Chart'!Y40="",0,'Detailed Cash Flow Chart'!Y40),0) -IF('Financial Goals (non-recurring)'!$J$4=5,IF('Detailed Cash Flow Chart'!AA40="",0,'Detailed Cash Flow Chart'!AA40),0) -IF('Financial Goals (recurring)'!$B$3=5,IF('Detailed Cash Flow Chart'!AG40="",0,'Detailed Cash Flow Chart'!AG40),0) -IF('Financial Goals (recurring)'!$K$3=5,IF('Detailed Cash Flow Chart'!AN40="",0,'Detailed Cash Flow Chart'!AN40),0) ->  | AI40: =AG40 -IF('Financial Goals (non-recurring)'!$B$4=6,IF('Detailed Cash Flow Chart'!S40="",0,'Detailed Cash Flow Chart'!S40),0) -IF('Financial Goals (non-recurring)'!$D$4=6,IF('Detailed Cash Flow Chart'!U40="",0,'Detailed Cash Flow Chart'!U40),0) -IF('Financial Goals (non-recurring)'!$F$4=6,IF('Detailed Cash Flow Chart'!W40="",0,'Detailed Cash Flow Chart'!W40),0) -IF('Financial Goals (non-recurring)'!$H$4=6,IF('Detailed Cash Flow Chart'!Y40="",0,'Detailed Cash Flow Chart'!Y40),0) -IF('Financial Goals (non-recurring)'!$J$4=6,IF('Detailed Cash Flow Chart'!AA40="",0,'Detailed Cash Flow Chart'!AA40),0) -IF('Financial Goals (recurring)'!$B$3=6,IF('Detailed Cash Flow Chart'!AG40="",0,'Detailed Cash Flow Chart'!AG40),0) -IF('Financial Goals (recurring)'!$K$3=6,IF('Detailed Cash Flow Chart'!AN40="",0,'Detailed Cash Flow Chart'!AN40),0) ->  | AK40: =AI40 -IF('Financial Goals (non-recurring)'!$B$4=7,IF('Detailed Cash Flow Chart'!S40="",0,'Detailed Cash Flow Chart'!S40),0) -IF('Financial Goals (non-recurring)'!$D$4=7,IF('Detailed Cash Flow Chart'!U40="",0,'Detailed Cash Flow Chart'!U40),0) -IF('Financial Goals (non-recurring)'!$F$4=7,IF('Detailed Cash Flow Chart'!W40="",0,'Detailed Cash Flow Chart'!W40),0) -IF('Financial Goals (non-recurring)'!$H$4=7,IF('Detailed Cash Flow Chart'!Y40="",0,'Detailed Cash Flow Chart'!Y40),0) -IF('Financial Goals (non-recurring)'!$J$4=7,IF('Detailed Cash Flow Chart'!AA40="",0,'Detailed Cash Flow Chart'!AA40),0) -IF('Financial Goals (recurring)'!$B$3=7,IF('Detailed Cash Flow Chart'!AG40="",0,'Detailed Cash Flow Chart'!AG40),0) -IF('Financial Goals (recurring)'!$K$3=7,IF('Detailed Cash Flow Chart'!AN40="",0,'Detailed Cash Flow Chart'!AN40),0) -> 
A41: =IF(ISERROR(C41),NA(),'Detailed Cash Flow Chart'!AJ41) ->  | B41: ='Detailed Cash Flow Chart'!B41 -> 77 | I41: ='Detailed Cash Flow Chart'!D41 -> 788249.6467 | J41: =IF(ISERROR(C41),NA(),'Detailed Cash Flow Chart'!C41) ->  | L41: =IF(ISERROR(C41),NA(),'Detailed Cash Flow Chart'!AQ41) ->  | Y41: =IF('Detailed Cash Flow Chart'!E41=0,NA(),M41-'Detailed Cash Flow Chart'!E41) ->  | AA41: =Y41 -IF('Financial Goals (non-recurring)'!$B$4=2,IF('Detailed Cash Flow Chart'!S41="",0,'Detailed Cash Flow Chart'!S41),0) -IF('Financial Goals (non-recurring)'!$D$4=2,IF('Detailed Cash Flow Chart'!U41="",0,'Detailed Cash Flow Chart'!U41),0) -IF('Financial Goals (non-recurring)'!$F$4=2,IF('Detailed Cash Flow Chart'!W41="",0,'Detailed Cash Flow Chart'!W41),0) -IF('Financial Goals (non-recurring)'!$H$4=2,IF('Detailed Cash Flow Chart'!Y41="",0,'Detailed Cash Flow Chart'!Y41),0) -IF('Financial Goals (non-recurring)'!$J$4=2,IF('Detailed Cash Flow Chart'!AA41="",0,'Detailed Cash Flow Chart'!AA41),0) -IF('Financial Goals (recurring)'!$B$3=2,IF('Detailed Cash Flow Chart'!AG41="",0,'Detailed Cash Flow Chart'!AG41),0) -IF('Financial Goals (recurring)'!$K$3=2,IF('Detailed Cash Flow Chart'!AN41="",0,'Detailed Cash Flow Chart'!AN41),0) ->  | AC41: =AA41 -IF('Financial Goals (non-recurring)'!$B$4=3,IF('Detailed Cash Flow Chart'!S41="",0,'Detailed Cash Flow Chart'!S41),0) -IF('Financial Goals (non-recurring)'!$D$4=3,IF('Detailed Cash Flow Chart'!U41="",0,'Detailed Cash Flow Chart'!U41),0) -IF('Financial Goals (non-recurring)'!$F$4=3,IF('Detailed Cash Flow Chart'!W41="",0,'Detailed Cash Flow Chart'!W41),0) -IF('Financial Goals (non-recurring)'!$H$4=3,IF('Detailed Cash Flow Chart'!Y41="",0,'Detailed Cash Flow Chart'!Y41),0) -IF('Financial Goals (non-recurring)'!$J$4=3,IF('Detailed Cash Flow Chart'!AA41="",0,'Detailed Cash Flow Chart'!AA41),0) -IF('Financial Goals (recurring)'!$B$3=3,IF('Detailed Cash Flow Chart'!AG41="",0,'Detailed Cash Flow Chart'!AG41),0) -IF('Financial Goals (recurring)'!$K$3=3,IF('Detailed Cash Flow Chart'!AN41="",0,'Detailed Cash Flow Chart'!AN41),0) ->  | AE41: =AC41 -IF('Financial Goals (non-recurring)'!$B$4=4,IF('Detailed Cash Flow Chart'!S41="",0,'Detailed Cash Flow Chart'!S41),0) -IF('Financial Goals (non-recurring)'!$D$4=4,IF('Detailed Cash Flow Chart'!U41="",0,'Detailed Cash Flow Chart'!U41),0) -IF('Financial Goals (non-recurring)'!$F$4=4,IF('Detailed Cash Flow Chart'!W41="",0,'Detailed Cash Flow Chart'!W41),0) -IF('Financial Goals (non-recurring)'!$H$4=4,IF('Detailed Cash Flow Chart'!Y41="",0,'Detailed Cash Flow Chart'!Y41),0) -IF('Financial Goals (non-recurring)'!$J$4=4,IF('Detailed Cash Flow Chart'!AA41="",0,'Detailed Cash Flow Chart'!AA41),0) -IF('Financial Goals (recurring)'!$B$3=4,IF('Detailed Cash Flow Chart'!AG41="",0,'Detailed Cash Flow Chart'!AG41),0) -IF('Financial Goals (recurring)'!$K$3=4,IF('Detailed Cash Flow Chart'!AN41="",0,'Detailed Cash Flow Chart'!AN41),0) ->  | AG41: =AE41 -IF('Financial Goals (non-recurring)'!$B$4=5,IF('Detailed Cash Flow Chart'!S41="",0,'Detailed Cash Flow Chart'!S41),0) -IF('Financial Goals (non-recurring)'!$D$4=5,IF('Detailed Cash Flow Chart'!U41="",0,'Detailed Cash Flow Chart'!U41),0) -IF('Financial Goals (non-recurring)'!$F$4=5,IF('Detailed Cash Flow Chart'!W41="",0,'Detailed Cash Flow Chart'!W41),0) -IF('Financial Goals (non-recurring)'!$H$4=5,IF('Detailed Cash Flow Chart'!Y41="",0,'Detailed Cash Flow Chart'!Y41),0) -IF('Financial Goals (non-recurring)'!$J$4=5,IF('Detailed Cash Flow Chart'!AA41="",0,'Detailed Cash Flow Chart'!AA41),0) -IF('Financial Goals (recurring)'!$B$3=5,IF('Detailed Cash Flow Chart'!AG41="",0,'Detailed Cash Flow Chart'!AG41),0) -IF('Financial Goals (recurring)'!$K$3=5,IF('Detailed Cash Flow Chart'!AN41="",0,'Detailed Cash Flow Chart'!AN41),0) ->  | AI41: =AG41 -IF('Financial Goals (non-recurring)'!$B$4=6,IF('Detailed Cash Flow Chart'!S41="",0,'Detailed Cash Flow Chart'!S41),0) -IF('Financial Goals (non-recurring)'!$D$4=6,IF('Detailed Cash Flow Chart'!U41="",0,'Detailed Cash Flow Chart'!U41),0) -IF('Financial Goals (non-recurring)'!$F$4=6,IF('Detailed Cash Flow Chart'!W41="",0,'Detailed Cash Flow Chart'!W41),0) -IF('Financial Goals (non-recurring)'!$H$4=6,IF('Detailed Cash Flow Chart'!Y41="",0,'Detailed Cash Flow Chart'!Y41),0) -IF('Financial Goals (non-recurring)'!$J$4=6,IF('Detailed Cash Flow Chart'!AA41="",0,'Detailed Cash Flow Chart'!AA41),0) -IF('Financial Goals (recurring)'!$B$3=6,IF('Detailed Cash Flow Chart'!AG41="",0,'Detailed Cash Flow Chart'!AG41),0) -IF('Financial Goals (recurring)'!$K$3=6,IF('Detailed Cash Flow Chart'!AN41="",0,'Detailed Cash Flow Chart'!AN41),0) ->  | AK41: =AI41 -IF('Financial Goals (non-recurring)'!$B$4=7,IF('Detailed Cash Flow Chart'!S41="",0,'Detailed Cash Flow Chart'!S41),0) -IF('Financial Goals (non-recurring)'!$D$4=7,IF('Detailed Cash Flow Chart'!U41="",0,'Detailed Cash Flow Chart'!U41),0) -IF('Financial Goals (non-recurring)'!$F$4=7,IF('Detailed Cash Flow Chart'!W41="",0,'Detailed Cash Flow Chart'!W41),0) -IF('Financial Goals (non-recurring)'!$H$4=7,IF('Detailed Cash Flow Chart'!Y41="",0,'Detailed Cash Flow Chart'!Y41),0) -IF('Financial Goals (non-recurring)'!$J$4=7,IF('Detailed Cash Flow Chart'!AA41="",0,'Detailed Cash Flow Chart'!AA41),0) -IF('Financial Goals (recurring)'!$B$3=7,IF('Detailed Cash Flow Chart'!AG41="",0,'Detailed Cash Flow Chart'!AG41),0) -IF('Financial Goals (recurring)'!$K$3=7,IF('Detailed Cash Flow Chart'!AN41="",0,'Detailed Cash Flow Chart'!AN41),0) -> 
A42: =IF(ISERROR(C42),NA(),'Detailed Cash Flow Chart'!AJ42) ->  | B42: ='Detailed Cash Flow Chart'!B42 -> 78 | I42: ='Detailed Cash Flow Chart'!D42 -> 859192.1149 | J42: =IF(ISERROR(C42),NA(),'Detailed Cash Flow Chart'!C42) ->  | L42: =IF(ISERROR(C42),NA(),'Detailed Cash Flow Chart'!AQ42) ->  | Y42: =IF('Detailed Cash Flow Chart'!E42=0,NA(),M42-'Detailed Cash Flow Chart'!E42) ->  | AA42: =Y42 -IF('Financial Goals (non-recurring)'!$B$4=2,IF('Detailed Cash Flow Chart'!S42="",0,'Detailed Cash Flow Chart'!S42),0) -IF('Financial Goals (non-recurring)'!$D$4=2,IF('Detailed Cash Flow Chart'!U42="",0,'Detailed Cash Flow Chart'!U42),0) -IF('Financial Goals (non-recurring)'!$F$4=2,IF('Detailed Cash Flow Chart'!W42="",0,'Detailed Cash Flow Chart'!W42),0) -IF('Financial Goals (non-recurring)'!$H$4=2,IF('Detailed Cash Flow Chart'!Y42="",0,'Detailed Cash Flow Chart'!Y42),0) -IF('Financial Goals (non-recurring)'!$J$4=2,IF('Detailed Cash Flow Chart'!AA42="",0,'Detailed Cash Flow Chart'!AA42),0) -IF('Financial Goals (recurring)'!$B$3=2,IF('Detailed Cash Flow Chart'!AG42="",0,'Detailed Cash Flow Chart'!AG42),0) -IF('Financial Goals (recurring)'!$K$3=2,IF('Detailed Cash Flow Chart'!AN42="",0,'Detailed Cash Flow Chart'!AN42),0) ->  | AC42: =AA42 -IF('Financial Goals (non-recurring)'!$B$4=3,IF('Detailed Cash Flow Chart'!S42="",0,'Detailed Cash Flow Chart'!S42),0) -IF('Financial Goals (non-recurring)'!$D$4=3,IF('Detailed Cash Flow Chart'!U42="",0,'Detailed Cash Flow Chart'!U42),0) -IF('Financial Goals (non-recurring)'!$F$4=3,IF('Detailed Cash Flow Chart'!W42="",0,'Detailed Cash Flow Chart'!W42),0) -IF('Financial Goals (non-recurring)'!$H$4=3,IF('Detailed Cash Flow Chart'!Y42="",0,'Detailed Cash Flow Chart'!Y42),0) -IF('Financial Goals (non-recurring)'!$J$4=3,IF('Detailed Cash Flow Chart'!AA42="",0,'Detailed Cash Flow Chart'!AA42),0) -IF('Financial Goals (recurring)'!$B$3=3,IF('Detailed Cash Flow Chart'!AG42="",0,'Detailed Cash Flow Chart'!AG42),0) -IF('Financial Goals (recurring)'!$K$3=3,IF('Detailed Cash Flow Chart'!AN42="",0,'Detailed Cash Flow Chart'!AN42),0) ->  | AE42: =AC42 -IF('Financial Goals (non-recurring)'!$B$4=4,IF('Detailed Cash Flow Chart'!S42="",0,'Detailed Cash Flow Chart'!S42),0) -IF('Financial Goals (non-recurring)'!$D$4=4,IF('Detailed Cash Flow Chart'!U42="",0,'Detailed Cash Flow Chart'!U42),0) -IF('Financial Goals (non-recurring)'!$F$4=4,IF('Detailed Cash Flow Chart'!W42="",0,'Detailed Cash Flow Chart'!W42),0) -IF('Financial Goals (non-recurring)'!$H$4=4,IF('Detailed Cash Flow Chart'!Y42="",0,'Detailed Cash Flow Chart'!Y42),0) -IF('Financial Goals (non-recurring)'!$J$4=4,IF('Detailed Cash Flow Chart'!AA42="",0,'Detailed Cash Flow Chart'!AA42),0) -IF('Financial Goals (recurring)'!$B$3=4,IF('Detailed Cash Flow Chart'!AG42="",0,'Detailed Cash Flow Chart'!AG42),0) -IF('Financial Goals (recurring)'!$K$3=4,IF('Detailed Cash Flow Chart'!AN42="",0,'Detailed Cash Flow Chart'!AN42),0) ->  | AG42: =AE42 -IF('Financial Goals (non-recurring)'!$B$4=5,IF('Detailed Cash Flow Chart'!S42="",0,'Detailed Cash Flow Chart'!S42),0) -IF('Financial Goals (non-recurring)'!$D$4=5,IF('Detailed Cash Flow Chart'!U42="",0,'Detailed Cash Flow Chart'!U42),0) -IF('Financial Goals (non-recurring)'!$F$4=5,IF('Detailed Cash Flow Chart'!W42="",0,'Detailed Cash Flow Chart'!W42),0) -IF('Financial Goals (non-recurring)'!$H$4=5,IF('Detailed Cash Flow Chart'!Y42="",0,'Detailed Cash Flow Chart'!Y42),0) -IF('Financial Goals (non-recurring)'!$J$4=5,IF('Detailed Cash Flow Chart'!AA42="",0,'Detailed Cash Flow Chart'!AA42),0) -IF('Financial Goals (recurring)'!$B$3=5,IF('Detailed Cash Flow Chart'!AG42="",0,'Detailed Cash Flow Chart'!AG42),0) -IF('Financial Goals (recurring)'!$K$3=5,IF('Detailed Cash Flow Chart'!AN42="",0,'Detailed Cash Flow Chart'!AN42),0) ->  | AI42: =AG42 -IF('Financial Goals (non-recurring)'!$B$4=6,IF('Detailed Cash Flow Chart'!S42="",0,'Detailed Cash Flow Chart'!S42),0) -IF('Financial Goals (non-recurring)'!$D$4=6,IF('Detailed Cash Flow Chart'!U42="",0,'Detailed Cash Flow Chart'!U42),0) -IF('Financial Goals (non-recurring)'!$F$4=6,IF('Detailed Cash Flow Chart'!W42="",0,'Detailed Cash Flow Chart'!W42),0) -IF('Financial Goals (non-recurring)'!$H$4=6,IF('Detailed Cash Flow Chart'!Y42="",0,'Detailed Cash Flow Chart'!Y42),0) -IF('Financial Goals (non-recurring)'!$J$4=6,IF('Detailed Cash Flow Chart'!AA42="",0,'Detailed Cash Flow Chart'!AA42),0) -IF('Financial Goals (recurring)'!$B$3=6,IF('Detailed Cash Flow Chart'!AG42="",0,'Detailed Cash Flow Chart'!AG42),0) -IF('Financial Goals (recurring)'!$K$3=6,IF('Detailed Cash Flow Chart'!AN42="",0,'Detailed Cash Flow Chart'!AN42),0) ->  | AK42: =AI42 -IF('Financial Goals (non-recurring)'!$B$4=7,IF('Detailed Cash Flow Chart'!S42="",0,'Detailed Cash Flow Chart'!S42),0) -IF('Financial Goals (non-recurring)'!$D$4=7,IF('Detailed Cash Flow Chart'!U42="",0,'Detailed Cash Flow Chart'!U42),0) -IF('Financial Goals (non-recurring)'!$F$4=7,IF('Detailed Cash Flow Chart'!W42="",0,'Detailed Cash Flow Chart'!W42),0) -IF('Financial Goals (non-recurring)'!$H$4=7,IF('Detailed Cash Flow Chart'!Y42="",0,'Detailed Cash Flow Chart'!Y42),0) -IF('Financial Goals (non-recurring)'!$J$4=7,IF('Detailed Cash Flow Chart'!AA42="",0,'Detailed Cash Flow Chart'!AA42),0) -IF('Financial Goals (recurring)'!$B$3=7,IF('Detailed Cash Flow Chart'!AG42="",0,'Detailed Cash Flow Chart'!AG42),0) -IF('Financial Goals (recurring)'!$K$3=7,IF('Detailed Cash Flow Chart'!AN42="",0,'Detailed Cash Flow Chart'!AN42),0) -> 
A43: =IF(ISERROR(C43),NA(),'Detailed Cash Flow Chart'!AJ43) ->  | B43: ='Detailed Cash Flow Chart'!B43 -> 79 | I43: ='Detailed Cash Flow Chart'!D43 -> 936519.4053 | J43: =IF(ISERROR(C43),NA(),'Detailed Cash Flow Chart'!C43) ->  | L43: =IF(ISERROR(C43),NA(),'Detailed Cash Flow Chart'!AQ43) ->  | Y43: =IF('Detailed Cash Flow Chart'!E43=0,NA(),M43-'Detailed Cash Flow Chart'!E43) ->  | AA43: =Y43 -IF('Financial Goals (non-recurring)'!$B$4=2,IF('Detailed Cash Flow Chart'!S43="",0,'Detailed Cash Flow Chart'!S43),0) -IF('Financial Goals (non-recurring)'!$D$4=2,IF('Detailed Cash Flow Chart'!U43="",0,'Detailed Cash Flow Chart'!U43),0) -IF('Financial Goals (non-recurring)'!$F$4=2,IF('Detailed Cash Flow Chart'!W43="",0,'Detailed Cash Flow Chart'!W43),0) -IF('Financial Goals (non-recurring)'!$H$4=2,IF('Detailed Cash Flow Chart'!Y43="",0,'Detailed Cash Flow Chart'!Y43),0) -IF('Financial Goals (non-recurring)'!$J$4=2,IF('Detailed Cash Flow Chart'!AA43="",0,'Detailed Cash Flow Chart'!AA43),0) -IF('Financial Goals (recurring)'!$B$3=2,IF('Detailed Cash Flow Chart'!AG43="",0,'Detailed Cash Flow Chart'!AG43),0) -IF('Financial Goals (recurring)'!$K$3=2,IF('Detailed Cash Flow Chart'!AN43="",0,'Detailed Cash Flow Chart'!AN43),0) ->  | AC43: =AA43 -IF('Financial Goals (non-recurring)'!$B$4=3,IF('Detailed Cash Flow Chart'!S43="",0,'Detailed Cash Flow Chart'!S43),0) -IF('Financial Goals (non-recurring)'!$D$4=3,IF('Detailed Cash Flow Chart'!U43="",0,'Detailed Cash Flow Chart'!U43),0) -IF('Financial Goals (non-recurring)'!$F$4=3,IF('Detailed Cash Flow Chart'!W43="",0,'Detailed Cash Flow Chart'!W43),0) -IF('Financial Goals (non-recurring)'!$H$4=3,IF('Detailed Cash Flow Chart'!Y43="",0,'Detailed Cash Flow Chart'!Y43),0) -IF('Financial Goals (non-recurring)'!$J$4=3,IF('Detailed Cash Flow Chart'!AA43="",0,'Detailed Cash Flow Chart'!AA43),0) -IF('Financial Goals (recurring)'!$B$3=3,IF('Detailed Cash Flow Chart'!AG43="",0,'Detailed Cash Flow Chart'!AG43),0) -IF('Financial Goals (recurring)'!$K$3=3,IF('Detailed Cash Flow Chart'!AN43="",0,'Detailed Cash Flow Chart'!AN43),0) ->  | AE43: =AC43 -IF('Financial Goals (non-recurring)'!$B$4=4,IF('Detailed Cash Flow Chart'!S43="",0,'Detailed Cash Flow Chart'!S43),0) -IF('Financial Goals (non-recurring)'!$D$4=4,IF('Detailed Cash Flow Chart'!U43="",0,'Detailed Cash Flow Chart'!U43),0) -IF('Financial Goals (non-recurring)'!$F$4=4,IF('Detailed Cash Flow Chart'!W43="",0,'Detailed Cash Flow Chart'!W43),0) -IF('Financial Goals (non-recurring)'!$H$4=4,IF('Detailed Cash Flow Chart'!Y43="",0,'Detailed Cash Flow Chart'!Y43),0) -IF('Financial Goals (non-recurring)'!$J$4=4,IF('Detailed Cash Flow Chart'!AA43="",0,'Detailed Cash Flow Chart'!AA43),0) -IF('Financial Goals (recurring)'!$B$3=4,IF('Detailed Cash Flow Chart'!AG43="",0,'Detailed Cash Flow Chart'!AG43),0) -IF('Financial Goals (recurring)'!$K$3=4,IF('Detailed Cash Flow Chart'!AN43="",0,'Detailed Cash Flow Chart'!AN43),0) ->  | AG43: =AE43 -IF('Financial Goals (non-recurring)'!$B$4=5,IF('Detailed Cash Flow Chart'!S43="",0,'Detailed Cash Flow Chart'!S43),0) -IF('Financial Goals (non-recurring)'!$D$4=5,IF('Detailed Cash Flow Chart'!U43="",0,'Detailed Cash Flow Chart'!U43),0) -IF('Financial Goals (non-recurring)'!$F$4=5,IF('Detailed Cash Flow Chart'!W43="",0,'Detailed Cash Flow Chart'!W43),0) -IF('Financial Goals (non-recurring)'!$H$4=5,IF('Detailed Cash Flow Chart'!Y43="",0,'Detailed Cash Flow Chart'!Y43),0) -IF('Financial Goals (non-recurring)'!$J$4=5,IF('Detailed Cash Flow Chart'!AA43="",0,'Detailed Cash Flow Chart'!AA43),0) -IF('Financial Goals (recurring)'!$B$3=5,IF('Detailed Cash Flow Chart'!AG43="",0,'Detailed Cash Flow Chart'!AG43),0) -IF('Financial Goals (recurring)'!$K$3=5,IF('Detailed Cash Flow Chart'!AN43="",0,'Detailed Cash Flow Chart'!AN43),0) ->  | AI43: =AG43 -IF('Financial Goals (non-recurring)'!$B$4=6,IF('Detailed Cash Flow Chart'!S43="",0,'Detailed Cash Flow Chart'!S43),0) -IF('Financial Goals (non-recurring)'!$D$4=6,IF('Detailed Cash Flow Chart'!U43="",0,'Detailed Cash Flow Chart'!U43),0) -IF('Financial Goals (non-recurring)'!$F$4=6,IF('Detailed Cash Flow Chart'!W43="",0,'Detailed Cash Flow Chart'!W43),0) -IF('Financial Goals (non-recurring)'!$H$4=6,IF('Detailed Cash Flow Chart'!Y43="",0,'Detailed Cash Flow Chart'!Y43),0) -IF('Financial Goals (non-recurring)'!$J$4=6,IF('Detailed Cash Flow Chart'!AA43="",0,'Detailed Cash Flow Chart'!AA43),0) -IF('Financial Goals (recurring)'!$B$3=6,IF('Detailed Cash Flow Chart'!AG43="",0,'Detailed Cash Flow Chart'!AG43),0) -IF('Financial Goals (recurring)'!$K$3=6,IF('Detailed Cash Flow Chart'!AN43="",0,'Detailed Cash Flow Chart'!AN43),0) ->  | AK43: =AI43 -IF('Financial Goals (non-recurring)'!$B$4=7,IF('Detailed Cash Flow Chart'!S43="",0,'Detailed Cash Flow Chart'!S43),0) -IF('Financial Goals (non-recurring)'!$D$4=7,IF('Detailed Cash Flow Chart'!U43="",0,'Detailed Cash Flow Chart'!U43),0) -IF('Financial Goals (non-recurring)'!$F$4=7,IF('Detailed Cash Flow Chart'!W43="",0,'Detailed Cash Flow Chart'!W43),0) -IF('Financial Goals (non-recurring)'!$H$4=7,IF('Detailed Cash Flow Chart'!Y43="",0,'Detailed Cash Flow Chart'!Y43),0) -IF('Financial Goals (non-recurring)'!$J$4=7,IF('Detailed Cash Flow Chart'!AA43="",0,'Detailed Cash Flow Chart'!AA43),0) -IF('Financial Goals (recurring)'!$B$3=7,IF('Detailed Cash Flow Chart'!AG43="",0,'Detailed Cash Flow Chart'!AG43),0) -IF('Financial Goals (recurring)'!$K$3=7,IF('Detailed Cash Flow Chart'!AN43="",0,'Detailed Cash Flow Chart'!AN43),0) -> 
A44: =IF(ISERROR(C44),NA(),'Detailed Cash Flow Chart'!AJ44) ->  | B44: ='Detailed Cash Flow Chart'!B44 -> 80 | I44: ='Detailed Cash Flow Chart'!D44 -> 1020806.152 | J44: =IF(ISERROR(C44),NA(),'Detailed Cash Flow Chart'!C44) ->  | L44: =IF(ISERROR(C44),NA(),'Detailed Cash Flow Chart'!AQ44) ->  | Y44: =IF('Detailed Cash Flow Chart'!E44=0,NA(),M44-'Detailed Cash Flow Chart'!E44) ->  | AA44: =Y44 -IF('Financial Goals (non-recurring)'!$B$4=2,IF('Detailed Cash Flow Chart'!S44="",0,'Detailed Cash Flow Chart'!S44),0) -IF('Financial Goals (non-recurring)'!$D$4=2,IF('Detailed Cash Flow Chart'!U44="",0,'Detailed Cash Flow Chart'!U44),0) -IF('Financial Goals (non-recurring)'!$F$4=2,IF('Detailed Cash Flow Chart'!W44="",0,'Detailed Cash Flow Chart'!W44),0) -IF('Financial Goals (non-recurring)'!$H$4=2,IF('Detailed Cash Flow Chart'!Y44="",0,'Detailed Cash Flow Chart'!Y44),0) -IF('Financial Goals (non-recurring)'!$J$4=2,IF('Detailed Cash Flow Chart'!AA44="",0,'Detailed Cash Flow Chart'!AA44),0) -IF('Financial Goals (recurring)'!$B$3=2,IF('Detailed Cash Flow Chart'!AG44="",0,'Detailed Cash Flow Chart'!AG44),0) -IF('Financial Goals (recurring)'!$K$3=2,IF('Detailed Cash Flow Chart'!AN44="",0,'Detailed Cash Flow Chart'!AN44),0) ->  | AC44: =AA44 -IF('Financial Goals (non-recurring)'!$B$4=3,IF('Detailed Cash Flow Chart'!S44="",0,'Detailed Cash Flow Chart'!S44),0) -IF('Financial Goals (non-recurring)'!$D$4=3,IF('Detailed Cash Flow Chart'!U44="",0,'Detailed Cash Flow Chart'!U44),0) -IF('Financial Goals (non-recurring)'!$F$4=3,IF('Detailed Cash Flow Chart'!W44="",0,'Detailed Cash Flow Chart'!W44),0) -IF('Financial Goals (non-recurring)'!$H$4=3,IF('Detailed Cash Flow Chart'!Y44="",0,'Detailed Cash Flow Chart'!Y44),0) -IF('Financial Goals (non-recurring)'!$J$4=3,IF('Detailed Cash Flow Chart'!AA44="",0,'Detailed Cash Flow Chart'!AA44),0) -IF('Financial Goals (recurring)'!$B$3=3,IF('Detailed Cash Flow Chart'!AG44="",0,'Detailed Cash Flow Chart'!AG44),0) -IF('Financial Goals (recurring)'!$K$3=3,IF('Detailed Cash Flow Chart'!AN44="",0,'Detailed Cash Flow Chart'!AN44),0) ->  | AE44: =AC44 -IF('Financial Goals (non-recurring)'!$B$4=4,IF('Detailed Cash Flow Chart'!S44="",0,'Detailed Cash Flow Chart'!S44),0) -IF('Financial Goals (non-recurring)'!$D$4=4,IF('Detailed Cash Flow Chart'!U44="",0,'Detailed Cash Flow Chart'!U44),0) -IF('Financial Goals (non-recurring)'!$F$4=4,IF('Detailed Cash Flow Chart'!W44="",0,'Detailed Cash Flow Chart'!W44),0) -IF('Financial Goals (non-recurring)'!$H$4=4,IF('Detailed Cash Flow Chart'!Y44="",0,'Detailed Cash Flow Chart'!Y44),0) -IF('Financial Goals (non-recurring)'!$J$4=4,IF('Detailed Cash Flow Chart'!AA44="",0,'Detailed Cash Flow Chart'!AA44),0) -IF('Financial Goals (recurring)'!$B$3=4,IF('Detailed Cash Flow Chart'!AG44="",0,'Detailed Cash Flow Chart'!AG44),0) -IF('Financial Goals (recurring)'!$K$3=4,IF('Detailed Cash Flow Chart'!AN44="",0,'Detailed Cash Flow Chart'!AN44),0) ->  | AG44: =AE44 -IF('Financial Goals (non-recurring)'!$B$4=5,IF('Detailed Cash Flow Chart'!S44="",0,'Detailed Cash Flow Chart'!S44),0) -IF('Financial Goals (non-recurring)'!$D$4=5,IF('Detailed Cash Flow Chart'!U44="",0,'Detailed Cash Flow Chart'!U44),0) -IF('Financial Goals (non-recurring)'!$F$4=5,IF('Detailed Cash Flow Chart'!W44="",0,'Detailed Cash Flow Chart'!W44),0) -IF('Financial Goals (non-recurring)'!$H$4=5,IF('Detailed Cash Flow Chart'!Y44="",0,'Detailed Cash Flow Chart'!Y44),0) -IF('Financial Goals (non-recurring)'!$J$4=5,IF('Detailed Cash Flow Chart'!AA44="",0,'Detailed Cash Flow Chart'!AA44),0) -IF('Financial Goals (recurring)'!$B$3=5,IF('Detailed Cash Flow Chart'!AG44="",0,'Detailed Cash Flow Chart'!AG44),0) -IF('Financial Goals (recurring)'!$K$3=5,IF('Detailed Cash Flow Chart'!AN44="",0,'Detailed Cash Flow Chart'!AN44),0) ->  | AI44: =AG44 -IF('Financial Goals (non-recurring)'!$B$4=6,IF('Detailed Cash Flow Chart'!S44="",0,'Detailed Cash Flow Chart'!S44),0) -IF('Financial Goals (non-recurring)'!$D$4=6,IF('Detailed Cash Flow Chart'!U44="",0,'Detailed Cash Flow Chart'!U44),0) -IF('Financial Goals (non-recurring)'!$F$4=6,IF('Detailed Cash Flow Chart'!W44="",0,'Detailed Cash Flow Chart'!W44),0) -IF('Financial Goals (non-recurring)'!$H$4=6,IF('Detailed Cash Flow Chart'!Y44="",0,'Detailed Cash Flow Chart'!Y44),0) -IF('Financial Goals (non-recurring)'!$J$4=6,IF('Detailed Cash Flow Chart'!AA44="",0,'Detailed Cash Flow Chart'!AA44),0) -IF('Financial Goals (recurring)'!$B$3=6,IF('Detailed Cash Flow Chart'!AG44="",0,'Detailed Cash Flow Chart'!AG44),0) -IF('Financial Goals (recurring)'!$K$3=6,IF('Detailed Cash Flow Chart'!AN44="",0,'Detailed Cash Flow Chart'!AN44),0) ->  | AK44: =AI44 -IF('Financial Goals (non-recurring)'!$B$4=7,IF('Detailed Cash Flow Chart'!S44="",0,'Detailed Cash Flow Chart'!S44),0) -IF('Financial Goals (non-recurring)'!$D$4=7,IF('Detailed Cash Flow Chart'!U44="",0,'Detailed Cash Flow Chart'!U44),0) -IF('Financial Goals (non-recurring)'!$F$4=7,IF('Detailed Cash Flow Chart'!W44="",0,'Detailed Cash Flow Chart'!W44),0) -IF('Financial Goals (non-recurring)'!$H$4=7,IF('Detailed Cash Flow Chart'!Y44="",0,'Detailed Cash Flow Chart'!Y44),0) -IF('Financial Goals (non-recurring)'!$J$4=7,IF('Detailed Cash Flow Chart'!AA44="",0,'Detailed Cash Flow Chart'!AA44),0) -IF('Financial Goals (recurring)'!$B$3=7,IF('Detailed Cash Flow Chart'!AG44="",0,'Detailed Cash Flow Chart'!AG44),0) -IF('Financial Goals (recurring)'!$K$3=7,IF('Detailed Cash Flow Chart'!AN44="",0,'Detailed Cash Flow Chart'!AN44),0) -> 
A45: =IF(ISERROR(C45),NA(),'Detailed Cash Flow Chart'!AJ45) ->  | B45: ='Detailed Cash Flow Chart'!B45 -> 81 | I45: ='Detailed Cash Flow Chart'!D45 -> 1112678.705 | J45: =IF(ISERROR(C45),NA(),'Detailed Cash Flow Chart'!C45) ->  | L45: =IF(ISERROR(C45),NA(),'Detailed Cash Flow Chart'!AQ45) ->  | Y45: =IF('Detailed Cash Flow Chart'!E45=0,NA(),M45-'Detailed Cash Flow Chart'!E45) ->  | AA45: =Y45 -IF('Financial Goals (non-recurring)'!$B$4=2,IF('Detailed Cash Flow Chart'!S45="",0,'Detailed Cash Flow Chart'!S45),0) -IF('Financial Goals (non-recurring)'!$D$4=2,IF('Detailed Cash Flow Chart'!U45="",0,'Detailed Cash Flow Chart'!U45),0) -IF('Financial Goals (non-recurring)'!$F$4=2,IF('Detailed Cash Flow Chart'!W45="",0,'Detailed Cash Flow Chart'!W45),0) -IF('Financial Goals (non-recurring)'!$H$4=2,IF('Detailed Cash Flow Chart'!Y45="",0,'Detailed Cash Flow Chart'!Y45),0) -IF('Financial Goals (non-recurring)'!$J$4=2,IF('Detailed Cash Flow Chart'!AA45="",0,'Detailed Cash Flow Chart'!AA45),0) -IF('Financial Goals (recurring)'!$B$3=2,IF('Detailed Cash Flow Chart'!AG45="",0,'Detailed Cash Flow Chart'!AG45),0) -IF('Financial Goals (recurring)'!$K$3=2,IF('Detailed Cash Flow Chart'!AN45="",0,'Detailed Cash Flow Chart'!AN45),0) ->  | AC45: =AA45 -IF('Financial Goals (non-recurring)'!$B$4=3,IF('Detailed Cash Flow Chart'!S45="",0,'Detailed Cash Flow Chart'!S45),0) -IF('Financial Goals (non-recurring)'!$D$4=3,IF('Detailed Cash Flow Chart'!U45="",0,'Detailed Cash Flow Chart'!U45),0) -IF('Financial Goals (non-recurring)'!$F$4=3,IF('Detailed Cash Flow Chart'!W45="",0,'Detailed Cash Flow Chart'!W45),0) -IF('Financial Goals (non-recurring)'!$H$4=3,IF('Detailed Cash Flow Chart'!Y45="",0,'Detailed Cash Flow Chart'!Y45),0) -IF('Financial Goals (non-recurring)'!$J$4=3,IF('Detailed Cash Flow Chart'!AA45="",0,'Detailed Cash Flow Chart'!AA45),0) -IF('Financial Goals (recurring)'!$B$3=3,IF('Detailed Cash Flow Chart'!AG45="",0,'Detailed Cash Flow Chart'!AG45),0) -IF('Financial Goals (recurring)'!$K$3=3,IF('Detailed Cash Flow Chart'!AN45="",0,'Detailed Cash Flow Chart'!AN45),0) ->  | AE45: =AC45 -IF('Financial Goals (non-recurring)'!$B$4=4,IF('Detailed Cash Flow Chart'!S45="",0,'Detailed Cash Flow Chart'!S45),0) -IF('Financial Goals (non-recurring)'!$D$4=4,IF('Detailed Cash Flow Chart'!U45="",0,'Detailed Cash Flow Chart'!U45),0) -IF('Financial Goals (non-recurring)'!$F$4=4,IF('Detailed Cash Flow Chart'!W45="",0,'Detailed Cash Flow Chart'!W45),0) -IF('Financial Goals (non-recurring)'!$H$4=4,IF('Detailed Cash Flow Chart'!Y45="",0,'Detailed Cash Flow Chart'!Y45),0) -IF('Financial Goals (non-recurring)'!$J$4=4,IF('Detailed Cash Flow Chart'!AA45="",0,'Detailed Cash Flow Chart'!AA45),0) -IF('Financial Goals (recurring)'!$B$3=4,IF('Detailed Cash Flow Chart'!AG45="",0,'Detailed Cash Flow Chart'!AG45),0) -IF('Financial Goals (recurring)'!$K$3=4,IF('Detailed Cash Flow Chart'!AN45="",0,'Detailed Cash Flow Chart'!AN45),0) ->  | AG45: =AE45 -IF('Financial Goals (non-recurring)'!$B$4=5,IF('Detailed Cash Flow Chart'!S45="",0,'Detailed Cash Flow Chart'!S45),0) -IF('Financial Goals (non-recurring)'!$D$4=5,IF('Detailed Cash Flow Chart'!U45="",0,'Detailed Cash Flow Chart'!U45),0) -IF('Financial Goals (non-recurring)'!$F$4=5,IF('Detailed Cash Flow Chart'!W45="",0,'Detailed Cash Flow Chart'!W45),0) -IF('Financial Goals (non-recurring)'!$H$4=5,IF('Detailed Cash Flow Chart'!Y45="",0,'Detailed Cash Flow Chart'!Y45),0) -IF('Financial Goals (non-recurring)'!$J$4=5,IF('Detailed Cash Flow Chart'!AA45="",0,'Detailed Cash Flow Chart'!AA45),0) -IF('Financial Goals (recurring)'!$B$3=5,IF('Detailed Cash Flow Chart'!AG45="",0,'Detailed Cash Flow Chart'!AG45),0) -IF('Financial Goals (recurring)'!$K$3=5,IF('Detailed Cash Flow Chart'!AN45="",0,'Detailed Cash Flow Chart'!AN45),0) ->  | AI45: =AG45 -IF('Financial Goals (non-recurring)'!$B$4=6,IF('Detailed Cash Flow Chart'!S45="",0,'Detailed Cash Flow Chart'!S45),0) -IF('Financial Goals (non-recurring)'!$D$4=6,IF('Detailed Cash Flow Chart'!U45="",0,'Detailed Cash Flow Chart'!U45),0) -IF('Financial Goals (non-recurring)'!$F$4=6,IF('Detailed Cash Flow Chart'!W45="",0,'Detailed Cash Flow Chart'!W45),0) -IF('Financial Goals (non-recurring)'!$H$4=6,IF('Detailed Cash Flow Chart'!Y45="",0,'Detailed Cash Flow Chart'!Y45),0) -IF('Financial Goals (non-recurring)'!$J$4=6,IF('Detailed Cash Flow Chart'!AA45="",0,'Detailed Cash Flow Chart'!AA45),0) -IF('Financial Goals (recurring)'!$B$3=6,IF('Detailed Cash Flow Chart'!AG45="",0,'Detailed Cash Flow Chart'!AG45),0) -IF('Financial Goals (recurring)'!$K$3=6,IF('Detailed Cash Flow Chart'!AN45="",0,'Detailed Cash Flow Chart'!AN45),0) ->  | AK45: =AI45 -IF('Financial Goals (non-recurring)'!$B$4=7,IF('Detailed Cash Flow Chart'!S45="",0,'Detailed Cash Flow Chart'!S45),0) -IF('Financial Goals (non-recurring)'!$D$4=7,IF('Detailed Cash Flow Chart'!U45="",0,'Detailed Cash Flow Chart'!U45),0) -IF('Financial Goals (non-recurring)'!$F$4=7,IF('Detailed Cash Flow Chart'!W45="",0,'Detailed Cash Flow Chart'!W45),0) -IF('Financial Goals (non-recurring)'!$H$4=7,IF('Detailed Cash Flow Chart'!Y45="",0,'Detailed Cash Flow Chart'!Y45),0) -IF('Financial Goals (non-recurring)'!$J$4=7,IF('Detailed Cash Flow Chart'!AA45="",0,'Detailed Cash Flow Chart'!AA45),0) -IF('Financial Goals (recurring)'!$B$3=7,IF('Detailed Cash Flow Chart'!AG45="",0,'Detailed Cash Flow Chart'!AG45),0) -IF('Financial Goals (recurring)'!$K$3=7,IF('Detailed Cash Flow Chart'!AN45="",0,'Detailed Cash Flow Chart'!AN45),0) -> 
A46: =IF(ISERROR(C46),NA(),'Detailed Cash Flow Chart'!AJ46) ->  | B46: ='Detailed Cash Flow Chart'!B46 -> 82 | I46: ='Detailed Cash Flow Chart'!D46 -> 1212819.789 | J46: =IF(ISERROR(C46),NA(),'Detailed Cash Flow Chart'!C46) ->  | L46: =IF(ISERROR(C46),NA(),'Detailed Cash Flow Chart'!AQ46) ->  | Y46: =IF('Detailed Cash Flow Chart'!E46=0,NA(),M46-'Detailed Cash Flow Chart'!E46) ->  | AA46: =Y46 -IF('Financial Goals (non-recurring)'!$B$4=2,IF('Detailed Cash Flow Chart'!S46="",0,'Detailed Cash Flow Chart'!S46),0) -IF('Financial Goals (non-recurring)'!$D$4=2,IF('Detailed Cash Flow Chart'!U46="",0,'Detailed Cash Flow Chart'!U46),0) -IF('Financial Goals (non-recurring)'!$F$4=2,IF('Detailed Cash Flow Chart'!W46="",0,'Detailed Cash Flow Chart'!W46),0) -IF('Financial Goals (non-recurring)'!$H$4=2,IF('Detailed Cash Flow Chart'!Y46="",0,'Detailed Cash Flow Chart'!Y46),0) -IF('Financial Goals (non-recurring)'!$J$4=2,IF('Detailed Cash Flow Chart'!AA46="",0,'Detailed Cash Flow Chart'!AA46),0) -IF('Financial Goals (recurring)'!$B$3=2,IF('Detailed Cash Flow Chart'!AG46="",0,'Detailed Cash Flow Chart'!AG46),0) -IF('Financial Goals (recurring)'!$K$3=2,IF('Detailed Cash Flow Chart'!AN46="",0,'Detailed Cash Flow Chart'!AN46),0) ->  | AC46: =AA46 -IF('Financial Goals (non-recurring)'!$B$4=3,IF('Detailed Cash Flow Chart'!S46="",0,'Detailed Cash Flow Chart'!S46),0) -IF('Financial Goals (non-recurring)'!$D$4=3,IF('Detailed Cash Flow Chart'!U46="",0,'Detailed Cash Flow Chart'!U46),0) -IF('Financial Goals (non-recurring)'!$F$4=3,IF('Detailed Cash Flow Chart'!W46="",0,'Detailed Cash Flow Chart'!W46),0) -IF('Financial Goals (non-recurring)'!$H$4=3,IF('Detailed Cash Flow Chart'!Y46="",0,'Detailed Cash Flow Chart'!Y46),0) -IF('Financial Goals (non-recurring)'!$J$4=3,IF('Detailed Cash Flow Chart'!AA46="",0,'Detailed Cash Flow Chart'!AA46),0) -IF('Financial Goals (recurring)'!$B$3=3,IF('Detailed Cash Flow Chart'!AG46="",0,'Detailed Cash Flow Chart'!AG46),0) -IF('Financial Goals (recurring)'!$K$3=3,IF('Detailed Cash Flow Chart'!AN46="",0,'Detailed Cash Flow Chart'!AN46),0) ->  | AE46: =AC46 -IF('Financial Goals (non-recurring)'!$B$4=4,IF('Detailed Cash Flow Chart'!S46="",0,'Detailed Cash Flow Chart'!S46),0) -IF('Financial Goals (non-recurring)'!$D$4=4,IF('Detailed Cash Flow Chart'!U46="",0,'Detailed Cash Flow Chart'!U46),0) -IF('Financial Goals (non-recurring)'!$F$4=4,IF('Detailed Cash Flow Chart'!W46="",0,'Detailed Cash Flow Chart'!W46),0) -IF('Financial Goals (non-recurring)'!$H$4=4,IF('Detailed Cash Flow Chart'!Y46="",0,'Detailed Cash Flow Chart'!Y46),0) -IF('Financial Goals (non-recurring)'!$J$4=4,IF('Detailed Cash Flow Chart'!AA46="",0,'Detailed Cash Flow Chart'!AA46),0) -IF('Financial Goals (recurring)'!$B$3=4,IF('Detailed Cash Flow Chart'!AG46="",0,'Detailed Cash Flow Chart'!AG46),0) -IF('Financial Goals (recurring)'!$K$3=4,IF('Detailed Cash Flow Chart'!AN46="",0,'Detailed Cash Flow Chart'!AN46),0) ->  | AG46: =AE46 -IF('Financial Goals (non-recurring)'!$B$4=5,IF('Detailed Cash Flow Chart'!S46="",0,'Detailed Cash Flow Chart'!S46),0) -IF('Financial Goals (non-recurring)'!$D$4=5,IF('Detailed Cash Flow Chart'!U46="",0,'Detailed Cash Flow Chart'!U46),0) -IF('Financial Goals (non-recurring)'!$F$4=5,IF('Detailed Cash Flow Chart'!W46="",0,'Detailed Cash Flow Chart'!W46),0) -IF('Financial Goals (non-recurring)'!$H$4=5,IF('Detailed Cash Flow Chart'!Y46="",0,'Detailed Cash Flow Chart'!Y46),0) -IF('Financial Goals (non-recurring)'!$J$4=5,IF('Detailed Cash Flow Chart'!AA46="",0,'Detailed Cash Flow Chart'!AA46),0) -IF('Financial Goals (recurring)'!$B$3=5,IF('Detailed Cash Flow Chart'!AG46="",0,'Detailed Cash Flow Chart'!AG46),0) -IF('Financial Goals (recurring)'!$K$3=5,IF('Detailed Cash Flow Chart'!AN46="",0,'Detailed Cash Flow Chart'!AN46),0) ->  | AI46: =AG46 -IF('Financial Goals (non-recurring)'!$B$4=6,IF('Detailed Cash Flow Chart'!S46="",0,'Detailed Cash Flow Chart'!S46),0) -IF('Financial Goals (non-recurring)'!$D$4=6,IF('Detailed Cash Flow Chart'!U46="",0,'Detailed Cash Flow Chart'!U46),0) -IF('Financial Goals (non-recurring)'!$F$4=6,IF('Detailed Cash Flow Chart'!W46="",0,'Detailed Cash Flow Chart'!W46),0) -IF('Financial Goals (non-recurring)'!$H$4=6,IF('Detailed Cash Flow Chart'!Y46="",0,'Detailed Cash Flow Chart'!Y46),0) -IF('Financial Goals (non-recurring)'!$J$4=6,IF('Detailed Cash Flow Chart'!AA46="",0,'Detailed Cash Flow Chart'!AA46),0) -IF('Financial Goals (recurring)'!$B$3=6,IF('Detailed Cash Flow Chart'!AG46="",0,'Detailed Cash Flow Chart'!AG46),0) -IF('Financial Goals (recurring)'!$K$3=6,IF('Detailed Cash Flow Chart'!AN46="",0,'Detailed Cash Flow Chart'!AN46),0) ->  | AK46: =AI46 -IF('Financial Goals (non-recurring)'!$B$4=7,IF('Detailed Cash Flow Chart'!S46="",0,'Detailed Cash Flow Chart'!S46),0) -IF('Financial Goals (non-recurring)'!$D$4=7,IF('Detailed Cash Flow Chart'!U46="",0,'Detailed Cash Flow Chart'!U46),0) -IF('Financial Goals (non-recurring)'!$F$4=7,IF('Detailed Cash Flow Chart'!W46="",0,'Detailed Cash Flow Chart'!W46),0) -IF('Financial Goals (non-recurring)'!$H$4=7,IF('Detailed Cash Flow Chart'!Y46="",0,'Detailed Cash Flow Chart'!Y46),0) -IF('Financial Goals (non-recurring)'!$J$4=7,IF('Detailed Cash Flow Chart'!AA46="",0,'Detailed Cash Flow Chart'!AA46),0) -IF('Financial Goals (recurring)'!$B$3=7,IF('Detailed Cash Flow Chart'!AG46="",0,'Detailed Cash Flow Chart'!AG46),0) -IF('Financial Goals (recurring)'!$K$3=7,IF('Detailed Cash Flow Chart'!AN46="",0,'Detailed Cash Flow Chart'!AN46),0) -> 
A47: =IF(ISERROR(C47),NA(),'Detailed Cash Flow Chart'!AJ47) ->  | B47: ='Detailed Cash Flow Chart'!B47 -> 83 | I47: ='Detailed Cash Flow Chart'!D47 -> 1321973.57 | J47: =IF(ISERROR(C47),NA(),'Detailed Cash Flow Chart'!C47) ->  | L47: =IF(ISERROR(C47),NA(),'Detailed Cash Flow Chart'!AQ47) ->  | Y47: =IF('Detailed Cash Flow Chart'!E47=0,NA(),M47-'Detailed Cash Flow Chart'!E47) ->  | AA47: =Y47 -IF('Financial Goals (non-recurring)'!$B$4=2,IF('Detailed Cash Flow Chart'!S47="",0,'Detailed Cash Flow Chart'!S47),0) -IF('Financial Goals (non-recurring)'!$D$4=2,IF('Detailed Cash Flow Chart'!U47="",0,'Detailed Cash Flow Chart'!U47),0) -IF('Financial Goals (non-recurring)'!$F$4=2,IF('Detailed Cash Flow Chart'!W47="",0,'Detailed Cash Flow Chart'!W47),0) -IF('Financial Goals (non-recurring)'!$H$4=2,IF('Detailed Cash Flow Chart'!Y47="",0,'Detailed Cash Flow Chart'!Y47),0) -IF('Financial Goals (non-recurring)'!$J$4=2,IF('Detailed Cash Flow Chart'!AA47="",0,'Detailed Cash Flow Chart'!AA47),0) -IF('Financial Goals (recurring)'!$B$3=2,IF('Detailed Cash Flow Chart'!AG47="",0,'Detailed Cash Flow Chart'!AG47),0) -IF('Financial Goals (recurring)'!$K$3=2,IF('Detailed Cash Flow Chart'!AN47="",0,'Detailed Cash Flow Chart'!AN47),0) ->  | AC47: =AA47 -IF('Financial Goals (non-recurring)'!$B$4=3,IF('Detailed Cash Flow Chart'!S47="",0,'Detailed Cash Flow Chart'!S47),0) -IF('Financial Goals (non-recurring)'!$D$4=3,IF('Detailed Cash Flow Chart'!U47="",0,'Detailed Cash Flow Chart'!U47),0) -IF('Financial Goals (non-recurring)'!$F$4=3,IF('Detailed Cash Flow Chart'!W47="",0,'Detailed Cash Flow Chart'!W47),0) -IF('Financial Goals (non-recurring)'!$H$4=3,IF('Detailed Cash Flow Chart'!Y47="",0,'Detailed Cash Flow Chart'!Y47),0) -IF('Financial Goals (non-recurring)'!$J$4=3,IF('Detailed Cash Flow Chart'!AA47="",0,'Detailed Cash Flow Chart'!AA47),0) -IF('Financial Goals (recurring)'!$B$3=3,IF('Detailed Cash Flow Chart'!AG47="",0,'Detailed Cash Flow Chart'!AG47),0) -IF('Financial Goals (recurring)'!$K$3=3,IF('Detailed Cash Flow Chart'!AN47="",0,'Detailed Cash Flow Chart'!AN47),0) ->  | AE47: =AC47 -IF('Financial Goals (non-recurring)'!$B$4=4,IF('Detailed Cash Flow Chart'!S47="",0,'Detailed Cash Flow Chart'!S47),0) -IF('Financial Goals (non-recurring)'!$D$4=4,IF('Detailed Cash Flow Chart'!U47="",0,'Detailed Cash Flow Chart'!U47),0) -IF('Financial Goals (non-recurring)'!$F$4=4,IF('Detailed Cash Flow Chart'!W47="",0,'Detailed Cash Flow Chart'!W47),0) -IF('Financial Goals (non-recurring)'!$H$4=4,IF('Detailed Cash Flow Chart'!Y47="",0,'Detailed Cash Flow Chart'!Y47),0) -IF('Financial Goals (non-recurring)'!$J$4=4,IF('Detailed Cash Flow Chart'!AA47="",0,'Detailed Cash Flow Chart'!AA47),0) -IF('Financial Goals (recurring)'!$B$3=4,IF('Detailed Cash Flow Chart'!AG47="",0,'Detailed Cash Flow Chart'!AG47),0) -IF('Financial Goals (recurring)'!$K$3=4,IF('Detailed Cash Flow Chart'!AN47="",0,'Detailed Cash Flow Chart'!AN47),0) ->  | AG47: =AE47 -IF('Financial Goals (non-recurring)'!$B$4=5,IF('Detailed Cash Flow Chart'!S47="",0,'Detailed Cash Flow Chart'!S47),0) -IF('Financial Goals (non-recurring)'!$D$4=5,IF('Detailed Cash Flow Chart'!U47="",0,'Detailed Cash Flow Chart'!U47),0) -IF('Financial Goals (non-recurring)'!$F$4=5,IF('Detailed Cash Flow Chart'!W47="",0,'Detailed Cash Flow Chart'!W47),0) -IF('Financial Goals (non-recurring)'!$H$4=5,IF('Detailed Cash Flow Chart'!Y47="",0,'Detailed Cash Flow Chart'!Y47),0) -IF('Financial Goals (non-recurring)'!$J$4=5,IF('Detailed Cash Flow Chart'!AA47="",0,'Detailed Cash Flow Chart'!AA47),0) -IF('Financial Goals (recurring)'!$B$3=5,IF('Detailed Cash Flow Chart'!AG47="",0,'Detailed Cash Flow Chart'!AG47),0) -IF('Financial Goals (recurring)'!$K$3=5,IF('Detailed Cash Flow Chart'!AN47="",0,'Detailed Cash Flow Chart'!AN47),0) ->  | AI47: =AG47 -IF('Financial Goals (non-recurring)'!$B$4=6,IF('Detailed Cash Flow Chart'!S47="",0,'Detailed Cash Flow Chart'!S47),0) -IF('Financial Goals (non-recurring)'!$D$4=6,IF('Detailed Cash Flow Chart'!U47="",0,'Detailed Cash Flow Chart'!U47),0) -IF('Financial Goals (non-recurring)'!$F$4=6,IF('Detailed Cash Flow Chart'!W47="",0,'Detailed Cash Flow Chart'!W47),0) -IF('Financial Goals (non-recurring)'!$H$4=6,IF('Detailed Cash Flow Chart'!Y47="",0,'Detailed Cash Flow Chart'!Y47),0) -IF('Financial Goals (non-recurring)'!$J$4=6,IF('Detailed Cash Flow Chart'!AA47="",0,'Detailed Cash Flow Chart'!AA47),0) -IF('Financial Goals (recurring)'!$B$3=6,IF('Detailed Cash Flow Chart'!AG47="",0,'Detailed Cash Flow Chart'!AG47),0) -IF('Financial Goals (recurring)'!$K$3=6,IF('Detailed Cash Flow Chart'!AN47="",0,'Detailed Cash Flow Chart'!AN47),0) ->  | AK47: =AI47 -IF('Financial Goals (non-recurring)'!$B$4=7,IF('Detailed Cash Flow Chart'!S47="",0,'Detailed Cash Flow Chart'!S47),0) -IF('Financial Goals (non-recurring)'!$D$4=7,IF('Detailed Cash Flow Chart'!U47="",0,'Detailed Cash Flow Chart'!U47),0) -IF('Financial Goals (non-recurring)'!$F$4=7,IF('Detailed Cash Flow Chart'!W47="",0,'Detailed Cash Flow Chart'!W47),0) -IF('Financial Goals (non-recurring)'!$H$4=7,IF('Detailed Cash Flow Chart'!Y47="",0,'Detailed Cash Flow Chart'!Y47),0) -IF('Financial Goals (non-recurring)'!$J$4=7,IF('Detailed Cash Flow Chart'!AA47="",0,'Detailed Cash Flow Chart'!AA47),0) -IF('Financial Goals (recurring)'!$B$3=7,IF('Detailed Cash Flow Chart'!AG47="",0,'Detailed Cash Flow Chart'!AG47),0) -IF('Financial Goals (recurring)'!$K$3=7,IF('Detailed Cash Flow Chart'!AN47="",0,'Detailed Cash Flow Chart'!AN47),0) -> 
A48: =IF(ISERROR(C48),NA(),'Detailed Cash Flow Chart'!AJ48) ->  | B48: ='Detailed Cash Flow Chart'!B48 -> 84 | I48: ='Detailed Cash Flow Chart'!D48 -> 1440951.191 | J48: =IF(ISERROR(C48),NA(),'Detailed Cash Flow Chart'!C48) ->  | L48: =IF(ISERROR(C48),NA(),'Detailed Cash Flow Chart'!AQ48) ->  | Y48: =IF('Detailed Cash Flow Chart'!E48=0,NA(),M48-'Detailed Cash Flow Chart'!E48) ->  | AA48: =Y48 -IF('Financial Goals (non-recurring)'!$B$4=2,IF('Detailed Cash Flow Chart'!S48="",0,'Detailed Cash Flow Chart'!S48),0) -IF('Financial Goals (non-recurring)'!$D$4=2,IF('Detailed Cash Flow Chart'!U48="",0,'Detailed Cash Flow Chart'!U48),0) -IF('Financial Goals (non-recurring)'!$F$4=2,IF('Detailed Cash Flow Chart'!W48="",0,'Detailed Cash Flow Chart'!W48),0) -IF('Financial Goals (non-recurring)'!$H$4=2,IF('Detailed Cash Flow Chart'!Y48="",0,'Detailed Cash Flow Chart'!Y48),0) -IF('Financial Goals (non-recurring)'!$J$4=2,IF('Detailed Cash Flow Chart'!AA48="",0,'Detailed Cash Flow Chart'!AA48),0) -IF('Financial Goals (recurring)'!$B$3=2,IF('Detailed Cash Flow Chart'!AG48="",0,'Detailed Cash Flow Chart'!AG48),0) -IF('Financial Goals (recurring)'!$K$3=2,IF('Detailed Cash Flow Chart'!AN48="",0,'Detailed Cash Flow Chart'!AN48),0) ->  | AC48: =AA48 -IF('Financial Goals (non-recurring)'!$B$4=3,IF('Detailed Cash Flow Chart'!S48="",0,'Detailed Cash Flow Chart'!S48),0) -IF('Financial Goals (non-recurring)'!$D$4=3,IF('Detailed Cash Flow Chart'!U48="",0,'Detailed Cash Flow Chart'!U48),0) -IF('Financial Goals (non-recurring)'!$F$4=3,IF('Detailed Cash Flow Chart'!W48="",0,'Detailed Cash Flow Chart'!W48),0) -IF('Financial Goals (non-recurring)'!$H$4=3,IF('Detailed Cash Flow Chart'!Y48="",0,'Detailed Cash Flow Chart'!Y48),0) -IF('Financial Goals (non-recurring)'!$J$4=3,IF('Detailed Cash Flow Chart'!AA48="",0,'Detailed Cash Flow Chart'!AA48),0) -IF('Financial Goals (recurring)'!$B$3=3,IF('Detailed Cash Flow Chart'!AG48="",0,'Detailed Cash Flow Chart'!AG48),0) -IF('Financial Goals (recurring)'!$K$3=3,IF('Detailed Cash Flow Chart'!AN48="",0,'Detailed Cash Flow Chart'!AN48),0) ->  | AE48: =AC48 -IF('Financial Goals (non-recurring)'!$B$4=4,IF('Detailed Cash Flow Chart'!S48="",0,'Detailed Cash Flow Chart'!S48),0) -IF('Financial Goals (non-recurring)'!$D$4=4,IF('Detailed Cash Flow Chart'!U48="",0,'Detailed Cash Flow Chart'!U48),0) -IF('Financial Goals (non-recurring)'!$F$4=4,IF('Detailed Cash Flow Chart'!W48="",0,'Detailed Cash Flow Chart'!W48),0) -IF('Financial Goals (non-recurring)'!$H$4=4,IF('Detailed Cash Flow Chart'!Y48="",0,'Detailed Cash Flow Chart'!Y48),0) -IF('Financial Goals (non-recurring)'!$J$4=4,IF('Detailed Cash Flow Chart'!AA48="",0,'Detailed Cash Flow Chart'!AA48),0) -IF('Financial Goals (recurring)'!$B$3=4,IF('Detailed Cash Flow Chart'!AG48="",0,'Detailed Cash Flow Chart'!AG48),0) -IF('Financial Goals (recurring)'!$K$3=4,IF('Detailed Cash Flow Chart'!AN48="",0,'Detailed Cash Flow Chart'!AN48),0) ->  | AG48: =AE48 -IF('Financial Goals (non-recurring)'!$B$4=5,IF('Detailed Cash Flow Chart'!S48="",0,'Detailed Cash Flow Chart'!S48),0) -IF('Financial Goals (non-recurring)'!$D$4=5,IF('Detailed Cash Flow Chart'!U48="",0,'Detailed Cash Flow Chart'!U48),0) -IF('Financial Goals (non-recurring)'!$F$4=5,IF('Detailed Cash Flow Chart'!W48="",0,'Detailed Cash Flow Chart'!W48),0) -IF('Financial Goals (non-recurring)'!$H$4=5,IF('Detailed Cash Flow Chart'!Y48="",0,'Detailed Cash Flow Chart'!Y48),0) -IF('Financial Goals (non-recurring)'!$J$4=5,IF('Detailed Cash Flow Chart'!AA48="",0,'Detailed Cash Flow Chart'!AA48),0) -IF('Financial Goals (recurring)'!$B$3=5,IF('Detailed Cash Flow Chart'!AG48="",0,'Detailed Cash Flow Chart'!AG48),0) -IF('Financial Goals (recurring)'!$K$3=5,IF('Detailed Cash Flow Chart'!AN48="",0,'Detailed Cash Flow Chart'!AN48),0) ->  | AI48: =AG48 -IF('Financial Goals (non-recurring)'!$B$4=6,IF('Detailed Cash Flow Chart'!S48="",0,'Detailed Cash Flow Chart'!S48),0) -IF('Financial Goals (non-recurring)'!$D$4=6,IF('Detailed Cash Flow Chart'!U48="",0,'Detailed Cash Flow Chart'!U48),0) -IF('Financial Goals (non-recurring)'!$F$4=6,IF('Detailed Cash Flow Chart'!W48="",0,'Detailed Cash Flow Chart'!W48),0) -IF('Financial Goals (non-recurring)'!$H$4=6,IF('Detailed Cash Flow Chart'!Y48="",0,'Detailed Cash Flow Chart'!Y48),0) -IF('Financial Goals (non-recurring)'!$J$4=6,IF('Detailed Cash Flow Chart'!AA48="",0,'Detailed Cash Flow Chart'!AA48),0) -IF('Financial Goals (recurring)'!$B$3=6,IF('Detailed Cash Flow Chart'!AG48="",0,'Detailed Cash Flow Chart'!AG48),0) -IF('Financial Goals (recurring)'!$K$3=6,IF('Detailed Cash Flow Chart'!AN48="",0,'Detailed Cash Flow Chart'!AN48),0) ->  | AK48: =AI48 -IF('Financial Goals (non-recurring)'!$B$4=7,IF('Detailed Cash Flow Chart'!S48="",0,'Detailed Cash Flow Chart'!S48),0) -IF('Financial Goals (non-recurring)'!$D$4=7,IF('Detailed Cash Flow Chart'!U48="",0,'Detailed Cash Flow Chart'!U48),0) -IF('Financial Goals (non-recurring)'!$F$4=7,IF('Detailed Cash Flow Chart'!W48="",0,'Detailed Cash Flow Chart'!W48),0) -IF('Financial Goals (non-recurring)'!$H$4=7,IF('Detailed Cash Flow Chart'!Y48="",0,'Detailed Cash Flow Chart'!Y48),0) -IF('Financial Goals (non-recurring)'!$J$4=7,IF('Detailed Cash Flow Chart'!AA48="",0,'Detailed Cash Flow Chart'!AA48),0) -IF('Financial Goals (recurring)'!$B$3=7,IF('Detailed Cash Flow Chart'!AG48="",0,'Detailed Cash Flow Chart'!AG48),0) -IF('Financial Goals (recurring)'!$K$3=7,IF('Detailed Cash Flow Chart'!AN48="",0,'Detailed Cash Flow Chart'!AN48),0) -> 
A49: =IF(ISERROR(C49),NA(),'Detailed Cash Flow Chart'!AJ49) ->  | B49: ='Detailed Cash Flow Chart'!B49 -> 85 | I49: ='Detailed Cash Flow Chart'!D49 -> 1570636.798 | J49: =IF(ISERROR(C49),NA(),'Detailed Cash Flow Chart'!C49) ->  | L49: =IF(ISERROR(C49),NA(),'Detailed Cash Flow Chart'!AQ49) ->  | Y49: =IF('Detailed Cash Flow Chart'!E49=0,NA(),M49-'Detailed Cash Flow Chart'!E49) ->  | AA49: =Y49 -IF('Financial Goals (non-recurring)'!$B$4=2,IF('Detailed Cash Flow Chart'!S49="",0,'Detailed Cash Flow Chart'!S49),0) -IF('Financial Goals (non-recurring)'!$D$4=2,IF('Detailed Cash Flow Chart'!U49="",0,'Detailed Cash Flow Chart'!U49),0) -IF('Financial Goals (non-recurring)'!$F$4=2,IF('Detailed Cash Flow Chart'!W49="",0,'Detailed Cash Flow Chart'!W49),0) -IF('Financial Goals (non-recurring)'!$H$4=2,IF('Detailed Cash Flow Chart'!Y49="",0,'Detailed Cash Flow Chart'!Y49),0) -IF('Financial Goals (non-recurring)'!$J$4=2,IF('Detailed Cash Flow Chart'!AA49="",0,'Detailed Cash Flow Chart'!AA49),0) -IF('Financial Goals (recurring)'!$B$3=2,IF('Detailed Cash Flow Chart'!AG49="",0,'Detailed Cash Flow Chart'!AG49),0) -IF('Financial Goals (recurring)'!$K$3=2,IF('Detailed Cash Flow Chart'!AN49="",0,'Detailed Cash Flow Chart'!AN49),0) ->  | AC49: =AA49 -IF('Financial Goals (non-recurring)'!$B$4=3,IF('Detailed Cash Flow Chart'!S49="",0,'Detailed Cash Flow Chart'!S49),0) -IF('Financial Goals (non-recurring)'!$D$4=3,IF('Detailed Cash Flow Chart'!U49="",0,'Detailed Cash Flow Chart'!U49),0) -IF('Financial Goals (non-recurring)'!$F$4=3,IF('Detailed Cash Flow Chart'!W49="",0,'Detailed Cash Flow Chart'!W49),0) -IF('Financial Goals (non-recurring)'!$H$4=3,IF('Detailed Cash Flow Chart'!Y49="",0,'Detailed Cash Flow Chart'!Y49),0) -IF('Financial Goals (non-recurring)'!$J$4=3,IF('Detailed Cash Flow Chart'!AA49="",0,'Detailed Cash Flow Chart'!AA49),0) -IF('Financial Goals (recurring)'!$B$3=3,IF('Detailed Cash Flow Chart'!AG49="",0,'Detailed Cash Flow Chart'!AG49),0) -IF('Financial Goals (recurring)'!$K$3=3,IF('Detailed Cash Flow Chart'!AN49="",0,'Detailed Cash Flow Chart'!AN49),0) ->  | AE49: =AC49 -IF('Financial Goals (non-recurring)'!$B$4=4,IF('Detailed Cash Flow Chart'!S49="",0,'Detailed Cash Flow Chart'!S49),0) -IF('Financial Goals (non-recurring)'!$D$4=4,IF('Detailed Cash Flow Chart'!U49="",0,'Detailed Cash Flow Chart'!U49),0) -IF('Financial Goals (non-recurring)'!$F$4=4,IF('Detailed Cash Flow Chart'!W49="",0,'Detailed Cash Flow Chart'!W49),0) -IF('Financial Goals (non-recurring)'!$H$4=4,IF('Detailed Cash Flow Chart'!Y49="",0,'Detailed Cash Flow Chart'!Y49),0) -IF('Financial Goals (non-recurring)'!$J$4=4,IF('Detailed Cash Flow Chart'!AA49="",0,'Detailed Cash Flow Chart'!AA49),0) -IF('Financial Goals (recurring)'!$B$3=4,IF('Detailed Cash Flow Chart'!AG49="",0,'Detailed Cash Flow Chart'!AG49),0) -IF('Financial Goals (recurring)'!$K$3=4,IF('Detailed Cash Flow Chart'!AN49="",0,'Detailed Cash Flow Chart'!AN49),0) ->  | AG49: =AE49 -IF('Financial Goals (non-recurring)'!$B$4=5,IF('Detailed Cash Flow Chart'!S49="",0,'Detailed Cash Flow Chart'!S49),0) -IF('Financial Goals (non-recurring)'!$D$4=5,IF('Detailed Cash Flow Chart'!U49="",0,'Detailed Cash Flow Chart'!U49),0) -IF('Financial Goals (non-recurring)'!$F$4=5,IF('Detailed Cash Flow Chart'!W49="",0,'Detailed Cash Flow Chart'!W49),0) -IF('Financial Goals (non-recurring)'!$H$4=5,IF('Detailed Cash Flow Chart'!Y49="",0,'Detailed Cash Flow Chart'!Y49),0) -IF('Financial Goals (non-recurring)'!$J$4=5,IF('Detailed Cash Flow Chart'!AA49="",0,'Detailed Cash Flow Chart'!AA49),0) -IF('Financial Goals (recurring)'!$B$3=5,IF('Detailed Cash Flow Chart'!AG49="",0,'Detailed Cash Flow Chart'!AG49),0) -IF('Financial Goals (recurring)'!$K$3=5,IF('Detailed Cash Flow Chart'!AN49="",0,'Detailed Cash Flow Chart'!AN49),0) ->  | AI49: =AG49 -IF('Financial Goals (non-recurring)'!$B$4=6,IF('Detailed Cash Flow Chart'!S49="",0,'Detailed Cash Flow Chart'!S49),0) -IF('Financial Goals (non-recurring)'!$D$4=6,IF('Detailed Cash Flow Chart'!U49="",0,'Detailed Cash Flow Chart'!U49),0) -IF('Financial Goals (non-recurring)'!$F$4=6,IF('Detailed Cash Flow Chart'!W49="",0,'Detailed Cash Flow Chart'!W49),0) -IF('Financial Goals (non-recurring)'!$H$4=6,IF('Detailed Cash Flow Chart'!Y49="",0,'Detailed Cash Flow Chart'!Y49),0) -IF('Financial Goals (non-recurring)'!$J$4=6,IF('Detailed Cash Flow Chart'!AA49="",0,'Detailed Cash Flow Chart'!AA49),0) -IF('Financial Goals (recurring)'!$B$3=6,IF('Detailed Cash Flow Chart'!AG49="",0,'Detailed Cash Flow Chart'!AG49),0) -IF('Financial Goals (recurring)'!$K$3=6,IF('Detailed Cash Flow Chart'!AN49="",0,'Detailed Cash Flow Chart'!AN49),0) ->  | AK49: =AI49 -IF('Financial Goals (non-recurring)'!$B$4=7,IF('Detailed Cash Flow Chart'!S49="",0,'Detailed Cash Flow Chart'!S49),0) -IF('Financial Goals (non-recurring)'!$D$4=7,IF('Detailed Cash Flow Chart'!U49="",0,'Detailed Cash Flow Chart'!U49),0) -IF('Financial Goals (non-recurring)'!$F$4=7,IF('Detailed Cash Flow Chart'!W49="",0,'Detailed Cash Flow Chart'!W49),0) -IF('Financial Goals (non-recurring)'!$H$4=7,IF('Detailed Cash Flow Chart'!Y49="",0,'Detailed Cash Flow Chart'!Y49),0) -IF('Financial Goals (non-recurring)'!$J$4=7,IF('Detailed Cash Flow Chart'!AA49="",0,'Detailed Cash Flow Chart'!AA49),0) -IF('Financial Goals (recurring)'!$B$3=7,IF('Detailed Cash Flow Chart'!AG49="",0,'Detailed Cash Flow Chart'!AG49),0) -IF('Financial Goals (recurring)'!$K$3=7,IF('Detailed Cash Flow Chart'!AN49="",0,'Detailed Cash Flow Chart'!AN49),0) -> 
A50: =IF(ISERROR(C50),NA(),'Detailed Cash Flow Chart'!AJ50) ->  | B50: ='Detailed Cash Flow Chart'!B50 -> 86 | I50: ='Detailed Cash Flow Chart'!D50 -> 1711994.11 | J50: =IF(ISERROR(C50),NA(),'Detailed Cash Flow Chart'!C50) ->  | L50: =IF(ISERROR(C50),NA(),'Detailed Cash Flow Chart'!AQ50) ->  | Y50: =IF('Detailed Cash Flow Chart'!E50=0,NA(),M50-'Detailed Cash Flow Chart'!E50) ->  | AA50: =Y50 -IF('Financial Goals (non-recurring)'!$B$4=2,IF('Detailed Cash Flow Chart'!S50="",0,'Detailed Cash Flow Chart'!S50),0) -IF('Financial Goals (non-recurring)'!$D$4=2,IF('Detailed Cash Flow Chart'!U50="",0,'Detailed Cash Flow Chart'!U50),0) -IF('Financial Goals (non-recurring)'!$F$4=2,IF('Detailed Cash Flow Chart'!W50="",0,'Detailed Cash Flow Chart'!W50),0) -IF('Financial Goals (non-recurring)'!$H$4=2,IF('Detailed Cash Flow Chart'!Y50="",0,'Detailed Cash Flow Chart'!Y50),0) -IF('Financial Goals (non-recurring)'!$J$4=2,IF('Detailed Cash Flow Chart'!AA50="",0,'Detailed Cash Flow Chart'!AA50),0) -IF('Financial Goals (recurring)'!$B$3=2,IF('Detailed Cash Flow Chart'!AG50="",0,'Detailed Cash Flow Chart'!AG50),0) -IF('Financial Goals (recurring)'!$K$3=2,IF('Detailed Cash Flow Chart'!AN50="",0,'Detailed Cash Flow Chart'!AN50),0) ->  | AC50: =AA50 -IF('Financial Goals (non-recurring)'!$B$4=3,IF('Detailed Cash Flow Chart'!S50="",0,'Detailed Cash Flow Chart'!S50),0) -IF('Financial Goals (non-recurring)'!$D$4=3,IF('Detailed Cash Flow Chart'!U50="",0,'Detailed Cash Flow Chart'!U50),0) -IF('Financial Goals (non-recurring)'!$F$4=3,IF('Detailed Cash Flow Chart'!W50="",0,'Detailed Cash Flow Chart'!W50),0) -IF('Financial Goals (non-recurring)'!$H$4=3,IF('Detailed Cash Flow Chart'!Y50="",0,'Detailed Cash Flow Chart'!Y50),0) -IF('Financial Goals (non-recurring)'!$J$4=3,IF('Detailed Cash Flow Chart'!AA50="",0,'Detailed Cash Flow Chart'!AA50),0) -IF('Financial Goals (recurring)'!$B$3=3,IF('Detailed Cash Flow Chart'!AG50="",0,'Detailed Cash Flow Chart'!AG50),0) -IF('Financial Goals (recurring)'!$K$3=3,IF('Detailed Cash Flow Chart'!AN50="",0,'Detailed Cash Flow Chart'!AN50),0) ->  | AE50: =AC50 -IF('Financial Goals (non-recurring)'!$B$4=4,IF('Detailed Cash Flow Chart'!S50="",0,'Detailed Cash Flow Chart'!S50),0) -IF('Financial Goals (non-recurring)'!$D$4=4,IF('Detailed Cash Flow Chart'!U50="",0,'Detailed Cash Flow Chart'!U50),0) -IF('Financial Goals (non-recurring)'!$F$4=4,IF('Detailed Cash Flow Chart'!W50="",0,'Detailed Cash Flow Chart'!W50),0) -IF('Financial Goals (non-recurring)'!$H$4=4,IF('Detailed Cash Flow Chart'!Y50="",0,'Detailed Cash Flow Chart'!Y50),0) -IF('Financial Goals (non-recurring)'!$J$4=4,IF('Detailed Cash Flow Chart'!AA50="",0,'Detailed Cash Flow Chart'!AA50),0) -IF('Financial Goals (recurring)'!$B$3=4,IF('Detailed Cash Flow Chart'!AG50="",0,'Detailed Cash Flow Chart'!AG50),0) -IF('Financial Goals (recurring)'!$K$3=4,IF('Detailed Cash Flow Chart'!AN50="",0,'Detailed Cash Flow Chart'!AN50),0) ->  | AG50: =AE50 -IF('Financial Goals (non-recurring)'!$B$4=5,IF('Detailed Cash Flow Chart'!S50="",0,'Detailed Cash Flow Chart'!S50),0) -IF('Financial Goals (non-recurring)'!$D$4=5,IF('Detailed Cash Flow Chart'!U50="",0,'Detailed Cash Flow Chart'!U50),0) -IF('Financial Goals (non-recurring)'!$F$4=5,IF('Detailed Cash Flow Chart'!W50="",0,'Detailed Cash Flow Chart'!W50),0) -IF('Financial Goals (non-recurring)'!$H$4=5,IF('Detailed Cash Flow Chart'!Y50="",0,'Detailed Cash Flow Chart'!Y50),0) -IF('Financial Goals (non-recurring)'!$J$4=5,IF('Detailed Cash Flow Chart'!AA50="",0,'Detailed Cash Flow Chart'!AA50),0) -IF('Financial Goals (recurring)'!$B$3=5,IF('Detailed Cash Flow Chart'!AG50="",0,'Detailed Cash Flow Chart'!AG50),0) -IF('Financial Goals (recurring)'!$K$3=5,IF('Detailed Cash Flow Chart'!AN50="",0,'Detailed Cash Flow Chart'!AN50),0) ->  | AI50: =AG50 -IF('Financial Goals (non-recurring)'!$B$4=6,IF('Detailed Cash Flow Chart'!S50="",0,'Detailed Cash Flow Chart'!S50),0) -IF('Financial Goals (non-recurring)'!$D$4=6,IF('Detailed Cash Flow Chart'!U50="",0,'Detailed Cash Flow Chart'!U50),0) -IF('Financial Goals (non-recurring)'!$F$4=6,IF('Detailed Cash Flow Chart'!W50="",0,'Detailed Cash Flow Chart'!W50),0) -IF('Financial Goals (non-recurring)'!$H$4=6,IF('Detailed Cash Flow Chart'!Y50="",0,'Detailed Cash Flow Chart'!Y50),0) -IF('Financial Goals (non-recurring)'!$J$4=6,IF('Detailed Cash Flow Chart'!AA50="",0,'Detailed Cash Flow Chart'!AA50),0) -IF('Financial Goals (recurring)'!$B$3=6,IF('Detailed Cash Flow Chart'!AG50="",0,'Detailed Cash Flow Chart'!AG50),0) -IF('Financial Goals (recurring)'!$K$3=6,IF('Detailed Cash Flow Chart'!AN50="",0,'Detailed Cash Flow Chart'!AN50),0) ->  | AK50: =AI50 -IF('Financial Goals (non-recurring)'!$B$4=7,IF('Detailed Cash Flow Chart'!S50="",0,'Detailed Cash Flow Chart'!S50),0) -IF('Financial Goals (non-recurring)'!$D$4=7,IF('Detailed Cash Flow Chart'!U50="",0,'Detailed Cash Flow Chart'!U50),0) -IF('Financial Goals (non-recurring)'!$F$4=7,IF('Detailed Cash Flow Chart'!W50="",0,'Detailed Cash Flow Chart'!W50),0) -IF('Financial Goals (non-recurring)'!$H$4=7,IF('Detailed Cash Flow Chart'!Y50="",0,'Detailed Cash Flow Chart'!Y50),0) -IF('Financial Goals (non-recurring)'!$J$4=7,IF('Detailed Cash Flow Chart'!AA50="",0,'Detailed Cash Flow Chart'!AA50),0) -IF('Financial Goals (recurring)'!$B$3=7,IF('Detailed Cash Flow Chart'!AG50="",0,'Detailed Cash Flow Chart'!AG50),0) -IF('Financial Goals (recurring)'!$K$3=7,IF('Detailed Cash Flow Chart'!AN50="",0,'Detailed Cash Flow Chart'!AN50),0) -> 
